Workbook

Sheet Indice
D2: INDICE DE FORMULARIOS PROYECTO DE PRESUPUESTO 2020
D3: FORMULARIOS PARA SUSTENTAR LA PROGRAMACION Y FORMULACION DEL PROYECTO DE PRESUPUESTO 2020
D5: FORMATO | E5: DESCRIPCION DE FORMATO | F5: PRESUP. | G5: PLANIFIC. | H5: ORIGEN
D6: - INDICADORES INSTITUCIONALES
B7: Formul. Nº 4: | D7: FORMATO Nº 1: | E7: INDICADORES DE GESTION SEGÚN OBJETIVOS ESTRATEGICOS INSTITUCIONALES AL 2021 | G7: X
D9: - DISTRIBUCION DEL GASTO
D10: FORMATO Nº 2: | E10: DISTRIBUCION DEL PRESUPUESTO POR CATEGORIA PRESUPUESTAL 2018, 2019 Y PROYECTO 2020 | F10: KOKO BASE.DATOS
D11: FORMATO Nº 3: | E11: DISTRIBUCION DEL PRESUPUESTO POR FUENTE DE FINANCIAMIENTO 2018, 2019 Y PROYECTO 2020 | F11: KOKO BASE.DATOS | I11: PIA 2018-2019 CON ACTA DEL MEF, PIM PROYECTADO, 2020 MONTO QUE SE ASIGNE
D12: FORMATO Nº 4: | E12: DISTRIBUCION DEL GASTO POR UNIDADES EJECUTORAS /ENTIDAD PUBLICA Y FUENTES DE FINANCIAMIENTO - PROYECTO 2020 | F12: KOKO BASE.DATOS | I12: SE ACTUALIZA AUTOMATICAMENTE CON LA BASE DE GATOS DE GASTOS (COMPLETO) | J12: COMPLETO
D13: FORMATO Nº 5: | E13: DISTRIBUCION DEL PRESUPUESTO POR PROGRAMAS PRESUPUESTAL 2018, 2019 Y 2020 | F13: KOKO BASE.DATOS | H13: MELISSA
B14: Formul. Nº 11: | D14: FORMATO Nº 6: | E14: PROGRAMAS SOCIALES PRIORIZADOS SEGÚN EL CICLO DE VIDA POR FUENTE DE FINANCIAMIENTO 2018, 2019 y PROYECTO 2020 | G14: Cesar
B15: Formul. Nº 12: | D15: FORMATO Nº 7: | E15: RESUMEN POR GRUPO GENERICO Y FUENTES DE FINANCIAMIENTO PROYECTO 2020. | F15: KOKO BASE.DATOS | I15: SE ACTUALIZA AUTOMATICAMENTE CON LA BASE DE GATOS DE GASTOS (COMPLETO) | J15: COMPLETO
B16: Formul. Nº 15: | D16: FORMATO Nº 8: | E16: RESUMEN DE PRESUPUESTO POR FUNCIONES PIA 2018, 2019 y PROYECTO 2020 | F16: KOKO DIGITADO | H16: MELISSA | I16: INFORMACION DE MELISSA VERIFICANDO LOS PIA DE LOS 2 AÑOS ANTERIORES | J16: COMPLETO
D18: - GASTO DE PERSONAL
B19: Formul. Nº 18: | D19: FORMATO Nº 9: | E19: COMPARATIVO DE NUMERO DE PLAZAS EN EL PRESUPUESTO 2018, 2019 y PROYECTO 2020 | G19: Richard | H19: R.U.
B20: Formul. Nº 21: | D20: FORMATO Nº 10: | E20: INFORMACION DE REMUNERACIONES Y NUMERO DE PLAZAS-PRESUPUESTO 2018, 2019 y PROYECTO 2020 | G20: LoloC | H20: MELISSA
B21: Formul. Nº 22: | D21: FORMATO Nº 11: | E21: INGRESOS MENSUALES POR PERIODO DEL PERSONAL ACTIVO-COMPARATIVO PRESUPUESTO 2018, 2019 y PROYECTO 2020 | G21: Ricardo | H21: R.U.
D23: - GASTO EN BIENES Y SERVICIOS
B24: Formul. Nº 26: | D24: FORMATO Nº 12: | E24: ASIGNACION DE BIENES Y SERVICIOS - COMPARATIVO PRESUPUESTO 2018, 2019 y PROYECTO 2020 | G24: Gaston
B25: Formul. Nº 28: | D25: FORMATO Nº 13: | E25: CONTRATOS DE OBRAS SUSCRITOS EN LOS AÑOS 2018 y 2019 | G25: Contrat.
B26: Formul. Nº 29: | D26: FORMATO Nº 14: | E26: PRINCIPALES ADQUISICIONES DE BIENES Y SERVICIOS - PRESUPUESTO 2018, 2019 y PROYECTO 2020 | G26: Irma | H26: R.U.
D27: FORMATO Nº 15: | E27: DETALLE DE CONSULTORIAS PERSONAS JURIDICAS Y NATURALES - PRESUPUESTO 2018, 2019 Y PROYECTO 2020
B28: Formul. Nº 32: | D28: FORMATO Nº 16: | E28: TESORERIA - RESUMEN POR GRUPO GENERICO Y FUENTES DE FINANCIAMIENTO 2018 y 2019 | G28: Lolo | H28: R.U.
D30: - OTROS
B31: Formul. Nº 34: | D31: FORMATO Nº 17: | E31: NOMBRE E INGRESOS MENSUALES DE PERSONAL CONTRATADO FUERA DEL PAP EN LOS AÑOS FISCALES 2018 y 2019 | G31: Keyla
B32: Formul. Nº 36: | D32: FORMATO Nº 18: | E32: ALQUILER DE INMUEBLES EN LOS AÑOS 2018 y 2019 | G32: Carolina | H32: R.U.

Sheet B.DATOS (GASTOS)
C1: 2.1 | D1: 2.2 | E1: 2.3 | F1: 2.5 | H1: 2.4 | I1: 2.6 | K1: 2.8
B4: FORMULACION PRESUPUESTO AÑO 2020
B5: TECHOS PRESUPUESTALES DE EGRESOS POR UNIDADES EJECUTORAS
B6: PLIEGO : 451 GOBIERNO REGIONAL DEL DEPARTAMENTO DE LA LIBERTAD
B7: ( En Nuevos Soles )
B9: FTE.FTO. : 00 RECURSOS ORDINARIOS
B11: UNIDADES EJECUTORAS | C11: GASTOS CORRIENTES | H11: GASTOS DE CAPITAL | K11: SERVICIO DE LA DEUDA | M11: TOTAL
C12: 2.1 | D12: 2.2 | E12: 2.3 | F12: 2.5 | H12: 2.4 | I12: 2.6 | K12: 2.8
C13: PERS. Y OBLIG. | D13: PENSIONES Y | E13: BIENES Y | F13: OTROS | G13: SUBTOTAL | H13: DONACIONES | I13: ADQ. ACTIVOS | J13: SUBTOTAL | K13: SERV.DEUDA | L13: SUBTOTAL
C14: SOCIALES | D14: OTRAS PREST | E14: SERVICIOS | F14: GASTOS | G14: GTO. CTE | H14: Y TRANSFER. | I14: NO FINCIEROS | J14: GTO. CAP | K14: PUBLICA | L14: GTO. CAP
B15: 001 SEDE LA LIBERTAD | C15: 34754997 | D15: 25383163 | E15: 39461632 | F15: 527386 | G15: =SUM(C15:F15) -> 100127178 | I15: 37674422 | J15: =+H15+I15 -> 37674422 | L15: =+K15 -> 0 | M15: =+G15+J15+L15 -> 137801600
B16: 005 PROYECTO ESPEC.CHAVIMOCHIC | G16: =SUM(C16:F16) -> 0 | I16: 17000000 | J16: =+H16+I16 -> 17000000 | L16: =+K16 -> 0 | M16: =+G16+J16+L16 -> 17000000
B17: 100 AGRICULTURA LA LIBERTAD | C17: 3313959 | D17: 5931172 | E17: 1863768 | F17: 13000 | G17: =SUM(C17:F17) -> 11121899 | J17: =+H17+I17 -> 0 | L17: =+K17 -> 0 | M17: =+G17+J17+L17 -> 11121899
B18: 200 TRANSPORTES LA LIBERTAD | C18: 2165700 | D18: 1740136 | E18: 16028871 | G18: 19934707 | J18: 0 | L18: 0 | M18: 19934707
B20: EDUCACION | C20: =SUM(C21:C37) -> 880347566 | D20: 134277966 | E20: 53313255 | F20: 55084 | G20: 1067993871 | H20: 0 | I20: 0 | J20: 0 | K20: 0 | L20: 0 | M20: 1067993871
B21: 300 EDUCACION LA LIBERTAD | C21: 42267811 | D21: 110415265 | E21: 4839324 | G21: =SUM(C21:F21) -> 157522400 | J21: =+H21+I21 -> 0 | L21: =+K21 -> 0 | M21: =+G21+J21+L21 -> 157522400
B22: 301 EDUCACION CHEPEN | C22: 47444541 | D22: 4350145 | E22: 2324580 | G22: 54119266 | J22: 0 | L22: 0 | M22: 54119266
B23: 302 EDUCACION PACASMAYO | C23: 53232299 | D23: 5640427 | E23: 2891127 | G23: 61763853 | J23: 0 | L23: 0 | M23: 61763853
B24: 303 EDUCACION ASCOPE | C24: 66574635 | D24: 4830711 | E24: 3824626 | F24: 25085 | G24: 75255057 | J24: 0 | L24: 0 | M24: 75255057
B25: 304 EDUCACION GRAN CHIMU | C25: 29051802 | D25: 994933 | E25: 1651122 | F25: 10000 | G25: 31707857 | J25: 0 | L25: 0 | M25: 31707857
B26: 305 EDUCACION OTUZCO | C26: 57276878 | D26: 1536850 | E26: 4465400 | G26: 63279128 | J26: 0 | L26: 0 | M26: 63279128
B27: 306 EDUCACION SANTIAGO DE CHUCO | C27: 43943837 | D27: 1304282 | E27: 2598349 | G27: 47846468 | J27: 0 | L27: 0 | M27: 47846468
B28: 307 EDUCACION SANCHEZ CARRION | C28: 109132356 | D28: 2130928 | E28: 7080810 | G28: 118344094 | J28: 0 | L28: 0 | M28: 118344094
B29: 308 EDUCACION PATAZ | C29: 69070662 | D29: 1433355 | E29: 5074131 | G29: 75578148 | J29: 0 | L29: 0 | M29: 75578148
B30: 309 EDUCACION BOLIVAR | C30: 14505924 | D30: 438219 | E30: 1487452 | G30: 16431595 | J30: 0 | L30: 0 | M30: 16431595
B31: 310 COLEGIO MILITAR RAMON CASTILLA | C31: 3002507 | D31: 20129 | E31: 901067 | F31: 1201 | G31: 3924904 | J31: 0 | L31: 0 | M31: 3924904
B32: 311 EDUCACION JULCAN | C32: 29857953 | D32: 113590 | E32: 2425044 | G32: 32396587 | J32: 0 | L32: 0 | M32: 32396587
B33: 312 EDUCACION VIRU | C33: 34379553 | D33: 39781 | E33: 2366381 | G33: 36785715 | J33: 0 | L33: 0 | M33: 36785715
B34: 313 EDUCACION EL PORVENIR | C34: 67857630 | D34: 304250 | E34: 3283938 | F34: 15000 | G34: 71460818 | J34: 0 | L34: 0 | M34: 71460818
B35: 314 EDUCACION LA ESPERANZA | C35: 68358971 | D35: 211808 | E35: 2575459 | G35: 71146238 | J35: 0 | L35: 0 | M35: 71146238
B36: 315 EDUCACION TRUJILLO NOR OESTE | C36: 67339561 | D36: 294297 | E36: 2709417 | G36: 70343275 | J36: 0 | L36: 0 | M36: 70343275
B37: 316 EDUCACION TRUJILLO SUR ESTE | C37: 77050646 | D37: 218996 | E37: 2815028 | F37: 3798 | G37: 80088468 | J37: 0 | L37: 0 | M37: 80088468
L38: =+K38 -> 0 | M38: =+G38+J38+L38 -> 0
B39: SALUD | C39: =SUM(C40:C54) -> 278271765 | D39: 22300240 | E39: 71221761 | F39: 181126 | G39: 371974892 | H39: 0 | I39: 144379 | J39: 144379 | K39: 0 | L39: 0 | M39: 372119271
B40: 400 SALUD LA LIBERTAD | C40: 26213679 | D40: 2896508 | E40: 12347615 | F40: 181126 | G40: =SUM(C40:F40) -> 41638928 | I40: 36744 | J40: =+H40+I40 -> 36744 | L40: =+K40 -> 0 | M40: =+G40+J40+L40 -> 41675672
B41: 401 INSTIT. REG.DE OFTALMOLOGIA | C41: 3864202 | E41: 1417478 | G41: 5281680 | J41: 0 | L41: 0 | M41: 5281680
B42: 402 SALUD NORTE ASCOPE | C42: 43888815 | D42: 6117557 | E42: 5577479 | G42: 55583851 | J42: 0 | L42: 0 | M42: 55583851
B43: 403 SALUD TRUJILLO SUR OESTE | C43: 41532376 | D43: 9879593 | E43: 4623962 | G43: 56035931 | I43: 107635 | J43: 107635 | L43: 0 | M43: 56143566
B44: 404 SALUD CHEPEN | C44: 14754549 | D44: 1333940 | E44: 3773116 | G44: 19861605 | J44: 0 | L44: 0 | M44: 19861605
B45: 405 SALUD PACASMAYO | C45: 16000165 | D45: 597302 | E45: 2954040 | G45: 19551507 | J45: 0 | L45: 0 | M45: 19551507
B46: 406 SALUD SANCHEZ CARRION | C46: 14516281 | D46: 448682 | E46: 6876138 | G46: 21841101 | J46: 0 | L46: 0 | M46: 21841101
B47: 407 SALUD SANTIAGO DE CHUCO | C47: 7985295 | D47: 53732 | E47: 2885071 | G47: 10924098 | J47: 0 | L47: 0 | M47: 10924098
B48: 408 SALUD OTUZCO | C48: 12116698 | D48: 133789 | E48: 5918250 | G48: 18168737 | J48: 0 | L48: 0 | M48: 18168737
B49: 409 SALUD TRUJILLO ESTE | C49: 60942531 | D49: 839137 | E49: 12858208 | G49: 74639876 | J49: 0 | L49: 0 | M49: 74639876
B50: 410 INSTIT.REG.DE ENFERM.NEOPLASICAS | C50: 11170740 | E50: 5505842 | G50: 16676582 | J50: 0 | L50: 0 | M50: 16676582
B51: 411 SALUD JULCAN | C51: 3324969 | E51: 891557 | G51: 4216526 | J51: 0 | L51: 0 | M51: 4216526
B52: 412 SALUD VIRU | C52: 6901280 | E52: 1960199 | G52: 8861479 | J52: 0 | L52: 0 | M52: 8861479
B53: 413 SALUD ASCOPE | C53: 11265505 | E53: 2516907 | G53: 13782412 | J53: 0 | L53: 0 | M53: 13782412
B54: 414 SALUD GRAN CHIMU | C54: 3794680 | E54: 1115899 | G54: 4910579 | J54: 0 | L54: 0 | M54: 4910579
B55: TOTAL PLIEGO | C55: =+C15+C16+C17+C18+C20+C39 -> 1198853987 | D55: 189632677 | E55: 181889287 | F55: 776596 | G55: 1571152547 | H55: 0 | I55: 54818801 | J55: 54818801 | K55: 0 | L55: 0 | M55: 1625971348
B59: =+B4 -> FORMULACION PRESUPUESTO AÑO 2020
B60: =+B5 -> TECHOS PRESUPUESTALES DE EGRESOS POR UNIDADES EJECUTORAS
B61: =+B6 -> PLIEGO : 451 GOBIERNO REGIONAL DEL DEPARTAMENTO DE LA LIBERTAD
B62: ( En Nuevos Soles )
Q63: =+O63-M63 -> 0
B64: FTE.FTO. : 09 RECURSOS DIRECTAMENTE RECAUDADOS | P64: FORMULACION 2018 | U64: SALDO SEGÚN ACTA 2017
Q65: =+O65-M65 -> 0 | V65: =+T65-R65 -> 0
B66: UNIDADES EJECUTORAS | C66: GASTOS CORRIENTES | H66: GASTOS DE CAPITAL | K66: SERVICIO DE LA DEUDA | M66: TOTAL | Q66: MONTOS APROBADOS EN EL PIA QUE INCLUYE SALDOS DE BALANCE PROYECTADO | S66: TOTAL | V66: MONTOS DETERM INADOS SEGÚN ACTA DE CONCILIACION POR UNIDADES EJECUTORAS AÑO 2017 | X66: TOTAL
C67: 2.1 | D67: 2.2 | E67: 2.3 | F67: 2.5 | H67: 2.4 | I67: 2.6 | K67: 2.8
C68: PERS. Y OBLIG. | D68: PENSIONES Y | E68: BIENES Y | F68: OTROS | G68: SUBTOTAL | H68: DONACIONES | I68: ADQ. ACTIVOS | J68: SUBTOTAL | K68: SERV.DEUDA | L68: SUBTOTAL
C69: SOCIALES | D69: OTRAS PREST | E69: SERVICIOS | F69: GASTOS | G69: GTO. CTE | H69: Y TRANSFER. | I69: NO FINCIEROS | J69: GTO. CAP | K69: PUBLICA | L69: GTO. CAP | Q69: ASIGNACION | R69: SALDO BAL. | V69: AUTORIZADO | W69: SALDO ACTA
B70: 001 SEDE LA LIBERTAD | C70: 109283 | E70: 6905330 | F70: 3120 | G70: =SUM(C70:F70) -> 7017733 | J70: =+H70+I70 -> 0 | L70: =+K70 -> 0 | M70: =+G70+J70+L70 -> 7017733 | P70: 001 | Q70: =+'B.DATOS (INGRESOS)'!Q14 -> 5567213 | R70: =+'B.DATOS (INGRESOS)'!R14 -> 1450520 | S70: =SUM(Q70:R70) -> 7017733 | U70: 001 | V70: =+R70 -> 1450520 | X70: =+W70-V70 -> -1450520
B71: 005 PROYECTO ESPEC.CHAVIMOCHIC | G71: =SUM(C71:F71) -> 0 | I71: 33738657 | J71: =+H71+I71 -> 33738657 | K71: 20445916 | L71: =+K71 -> 20445916 | M71: =+G71+J71+L71 -> 54184573 | P71: 005 | Q71: =+'B.DATOS (INGRESOS)'!Q15 -> 54184573 | R71: =+'B.DATOS (INGRESOS)'!R15 -> 0 | S71: =SUM(Q71:R71) -> 54184573 | U71: 005 | V71: =+R71 -> 0 | X71: =+W71-V71 -> 0
B72: 100 AGRICULTURA LA LIBERTAD | E72: 221565 | G72: =SUM(C72:F72) -> 221565 | J72: =+H72+I72 -> 0 | L72: =+K72 -> 0 | M72: =+G72+J72+L72 -> 221565 | P72: 100 | Q72: =+'B.DATOS (INGRESOS)'!Q16 -> 221565 | R72: =+'B.DATOS (INGRESOS)'!R16 -> 0 | S72: =SUM(Q72:R72) -> 221565 | U72: 100 | V72: =+R72 -> 0 | X72: =+W72-V72 -> 0
B73: 200 TRANSPORTES LA LIBERTAD | E73: 5304528 | G73: =SUM(C73:F73) -> 5304528 | J73: =+H73+I73 -> 0 | L73: =+K73 -> 0 | M73: =+G73+J73+L73 -> 5304528 | P73: 200 | Q73: =+'B.DATOS (INGRESOS)'!Q17 -> 4737368 | R73: =+'B.DATOS (INGRESOS)'!R17 -> 567160 | S73: =SUM(Q73:R73) -> 5304528 | U73: 200 | V73: =+R73 -> 567160 | X73: =+W73-V73 -> -567160
S74: =SUM(Q74:R74) -> 0 | V74: =+R74 -> 0 | X74: =+W74-V74 -> 0
B75: EDUCACION | C75: =SUM(C76:C92) -> 0 | D75: 0 | E75: 2506182 | F75: 0 | G75: 2506182 | H75: 0 | I75: 54040 | J75: 54040 | K75: 0 | L75: 0 | M75: 2560222 | Q75: =SUM(Q76:Q92) -> 2519802 | R75: =SUM(R76:R92) -> 40420 | S75: =SUM(S76:S92) -> 2560222 | V75: =SUM(V76:V92) -> 40420 | W75: =SUM(W76:W92) -> 0 | X75: =SUM(X76:X92) -> -40420
B76: 300 EDUCACION LA LIBERTAD | E76: 406224 | G76: =SUM(C76:F76) -> 406224 | I76: 15000 | J76: =+H76+I76 -> 15000 | L76: =+K76 -> 0 | M76: =+G76+J76+L76 -> 421224 | P76: 300 | Q76: =+'B.DATOS (INGRESOS)'!Q20 -> 421224 | R76: =+'B.DATOS (INGRESOS)'!R20 -> 0 | S76: =SUM(Q76:R76) -> 421224 | U76: 300 | V76: =+R76 -> 0 | X76: =+W76-V76 -> 0
B77: 301 EDUCACION CHEPEN | E77: 4223 | G77: 4223 | J77: 0 | L77: 0 | M77: 4223 | P77: 301 | Q77: =+'B.DATOS (INGRESOS)'!Q21 -> 4223 | R77: =+'B.DATOS (INGRESOS)'!R21 -> 0 | S77: 4223 | U77: 301 | V77: 0 | X77: 0
B78: 302 EDUCACION PACASMAYO | E78: 10443 | G78: 10443 | J78: 0 | L78: 0 | M78: 10443 | P78: 302 | Q78: =+'B.DATOS (INGRESOS)'!Q22 -> 10443 | R78: =+'B.DATOS (INGRESOS)'!R22 -> 0 | S78: 10443 | U78: 302 | V78: 0 | X78: 0
B79: 303 EDUCACION ASCOPE | E79: 76978 | G79: 76978 | J79: 0 | L79: 0 | M79: 76978 | P79: 303 | Q79: =+'B.DATOS (INGRESOS)'!Q23 -> 76978 | R79: =+'B.DATOS (INGRESOS)'!R23 -> 0 | S79: 76978 | U79: 303 | V79: 0 | X79: 0
B80: 304 EDUCACION GRAN CHIMU | E80: 9336 | G80: 9336 | J80: 0 | L80: 0 | M80: 9336 | P80: 304 | Q80: =+'B.DATOS (INGRESOS)'!Q24 -> 9336 | R80: =+'B.DATOS (INGRESOS)'!R24 -> 0 | S80: 9336 | U80: 304 | V80: 0 | X80: 0
B81: 305 EDUCACION OTUZCO | E81: 15000 | G81: 15000 | J81: 0 | L81: 0 | M81: 15000 | P81: 305 | Q81: =+'B.DATOS (INGRESOS)'!Q25 -> 15000 | R81: =+'B.DATOS (INGRESOS)'!R25 -> 0 | S81: 15000 | U81: 305 | V81: 0 | X81: 0
B82: 306 EDUCACION SANTIAGO DE CHUCO | E82: 28772 | G82: 28772 | J82: 0 | L82: 0 | M82: 28772 | P82: 306 | Q82: =+'B.DATOS (INGRESOS)'!Q26 -> 28772 | R82: =+'B.DATOS (INGRESOS)'!R26 -> 0 | S82: 28772 | U82: 306 | V82: 0 | X82: 0
B83: 307 EDUCACION SANCHEZ CARRION | E83: 114573 | G83: 114573 | J83: 0 | L83: 0 | M83: 114573 | P83: 307 | Q83: =+'B.DATOS (INGRESOS)'!Q27 -> 114573 | R83: =+'B.DATOS (INGRESOS)'!R27 -> 0 | S83: 114573 | U83: 307 | V83: 0 | X83: 0
B84: 308 EDUCACION PATAZ | E84: 77352 | G84: 77352 | J84: 0 | L84: 0 | M84: 77352 | P84: 308 | Q84: =+'B.DATOS (INGRESOS)'!Q28 -> 77352 | R84: =+'B.DATOS (INGRESOS)'!R28 -> 0 | S84: 77352 | U84: 308 | V84: 0 | X84: 0
B85: 309 EDUCACION BOLIVAR | E85: 3640 | G85: 3640 | J85: 0 | L85: 0 | M85: 3640 | P85: 309 | Q85: =+'B.DATOS (INGRESOS)'!Q29 -> 3640 | R85: =+'B.DATOS (INGRESOS)'!R29 -> 0 | S85: 3640 | U85: 309 | V85: 0 | X85: 0
B86: 310 COLEGIO MILITAR RAMON CASTILLA | E86: 1474450 | G86: 1474450 | I86: 39040 | J86: 39040 | L86: 0 | M86: 1513490 | P86: 310 | Q86: =+'B.DATOS (INGRESOS)'!Q30 -> 1475650 | R86: =+'B.DATOS (INGRESOS)'!R30 -> 37840 | S86: 1513490 | U86: 310 | V86: 37840 | X86: -37840
B87: 311 EDUCACION JULCAN | E87: 14910 | G87: 14910 | J87: 0 | L87: 0 | M87: 14910 | P87: 311 | Q87: =+'B.DATOS (INGRESOS)'!Q31 -> 14910 | R87: =+'B.DATOS (INGRESOS)'!R31 -> 0 | S87: 14910 | U87: 311 | V87: 0 | X87: 0
B88: 312 EDUCACION VIRU | E88: 41130 | G88: 41130 | J88: 0 | L88: 0 | M88: 41130 | P88: 312 | Q88: =+'B.DATOS (INGRESOS)'!Q32 -> 41130 | R88: =+'B.DATOS (INGRESOS)'!R32 -> 0 | S88: 41130 | U88: 312 | V88: 0 | X88: 0
B89: 313 EDUCACION EL PORVENIR | E89: 68120 | G89: 68120 | J89: 0 | L89: 0 | M89: 68120 | P89: 313 | Q89: =+'B.DATOS (INGRESOS)'!Q33 -> 65540 | R89: =+'B.DATOS (INGRESOS)'!R33 -> 2580 | S89: 68120 | U89: 313 | V89: 2580 | X89: -2580
B90: 314 EDUCACION LA ESPERANZA | E90: 47358 | G90: 47358 | J90: 0 | L90: 0 | M90: 47358 | P90: 314 | Q90: =+'B.DATOS (INGRESOS)'!Q34 -> 47358 | R90: =+'B.DATOS (INGRESOS)'!R34 -> 0 | S90: 47358 | U90: 314 | V90: 0 | X90: 0
B91: 315 EDUCACION TRUJILLO NOR OESTE | E91: 76641 | G91: 76641 | J91: 0 | L91: 0 | M91: 76641 | P91: 315 | Q91: =+'B.DATOS (INGRESOS)'!Q35 -> 76641 | R91: =+'B.DATOS (INGRESOS)'!R35 -> 0 | S91: 76641 | U91: 315 | V91: 0 | X91: 0
B92: 316 EDUCACION TRUJILLO SUR ESTE | E92: 37032 | G92: 37032 | J92: 0 | L92: 0 | M92: 37032 | P92: 316 | Q92: =+'B.DATOS (INGRESOS)'!Q36 -> 37032 | R92: =+'B.DATOS (INGRESOS)'!R36 -> 0 | S92: 37032 | U92: 316 | V92: 0 | X92: 0
L93: 0 | M93: 0 | S93: 0 | V93: 0 | X93: 0
B94: SALUD | C94: =SUM(C95:C109) -> 0 | D94: 0 | E94: 27457733 | F94: 551368 | G94: 28009101 | H94: 0 | I94: 66852 | J94: 66852 | K94: 0 | L94: 0 | M94: 28075953 | Q94: =SUM(Q95:Q109) -> 24901065 | R94: =SUM(R95:R109) -> 3174888 | S94: =SUM(S95:S109) -> 28075953 | V94: =SUM(V95:V109) -> 3174888 | W94: =SUM(W95:W109) -> 0 | X94: =SUM(X95:X109) -> -3174888
B95: 400 SALUD LA LIBERTAD | E95: 2237590 | F95: 551368 | G95: =SUM(C95:F95) -> 2788958 | I95: 35052 | J95: =+H95+I95 -> 35052 | L95: =+K95 -> 0 | M95: =+G95+J95+L95 -> 2824010 | P95: 400 | Q95: =+'B.DATOS (INGRESOS)'!Q39 -> 2266773 | R95: =+'B.DATOS (INGRESOS)'!R39 -> 557237 | S95: =SUM(Q95:R95) -> 2824010 | U95: 400 | V95: =+R95 -> 557237 | X95: =+W95-V95 -> -557237
B96: 401 INSTIT. REG.DE OFTALMOLOGIA | E96: 5251198 | G96: 5251198 | J96: 0 | L96: 0 | M96: 5251198 | P96: 401 | Q96: =+'B.DATOS (INGRESOS)'!Q40 -> 4614037 | R96: =+'B.DATOS (INGRESOS)'!R40 -> 637161 | S96: 5251198 | U96: 401 | V96: 637161 | X96: -637161
B97: 402 SALUD NORTE ASCOPE | E97: 8007845 | G97: 8007845 | I97: 31800 | J97: 31800 | L97: 0 | M97: 8039645 | P97: 402 | Q97: =+'B.DATOS (INGRESOS)'!Q41 -> 6771408 | R97: =+'B.DATOS (INGRESOS)'!R41 -> 1268237 | S97: 8039645 | U97: 402 | V97: 1268237 | X97: -1268237
B98: 403 SALUD TRUJILLO SUR OESTE | E98: 4212462 | G98: 4212462 | J98: 0 | L98: 0 | M98: 4212462 | P98: 403 | Q98: =+'B.DATOS (INGRESOS)'!Q42 -> 3985411 | R98: =+'B.DATOS (INGRESOS)'!R42 -> 227051 | S98: 4212462 | U98: 403 | V98: 227051 | X98: -227051
B99: 404 SALUD CHEPEN | E99: 724369 | G99: 724369 | J99: 0 | L99: 0 | M99: 724369 | P99: 404 | Q99: =+'B.DATOS (INGRESOS)'!Q43 -> 724369 | R99: =+'B.DATOS (INGRESOS)'!R43 -> 0 | S99: 724369 | U99: 404 | V99: 0 | X99: 0
B100: 405 SALUD PACASMAYO | E100: 391608 | G100: 391608 | J100: 0 | L100: 0 | M100: 391608 | P100: 405 | Q100: =+'B.DATOS (INGRESOS)'!Q44 -> 391608 | R100: =+'B.DATOS (INGRESOS)'!R44 -> 0 | S100: 391608 | U100: 405 | V100: 0 | X100: 0
B101: 406 SALUD SANCHEZ CARRION | E101: 255212 | G101: 255212 | J101: 0 | L101: 0 | M101: 255212 | P101: 406 | Q101: =+'B.DATOS (INGRESOS)'!Q45 -> 255212 | R101: =+'B.DATOS (INGRESOS)'!R45 -> 0 | S101: 255212 | U101: 406 | V101: 0 | X101: 0
B102: 407 SALUD SANTIAGO DE CHUCO | E102: 31041 | G102: 31041 | J102: 0 | L102: 0 | M102: 31041 | P102: 407 | Q102: =+'B.DATOS (INGRESOS)'!Q46 -> 31041 | R102: =+'B.DATOS (INGRESOS)'!R46 -> 0 | S102: 31041 | U102: 407 | V102: 0 | X102: 0
B103: 408 SALUD OTUZCO | E103: 240075 | G103: 240075 | J103: 0 | L103: 0 | M103: 240075 | P103: 408 | Q103: =+'B.DATOS (INGRESOS)'!Q47 -> 240075 | R103: =+'B.DATOS (INGRESOS)'!R47 -> 0 | S103: 240075 | U103: 408 | V103: 0 | X103: 0
B104: 409 SALUD TRUJILLO ESTE | E104: 3733602 | G104: 3733602 | J104: 0 | L104: 0 | M104: 3733602 | P104: 409 | Q104: =+'B.DATOS (INGRESOS)'!Q48 -> 3433602 | R104: =+'B.DATOS (INGRESOS)'!R48 -> 300000 | S104: 3733602 | U104: 409 | V104: 300000 | X104: -300000
B105: 410 INSTIT.REG.DE ENFERM.NEOPLASICAS | C105: 0 | E105: 1554121 | G105: 1554121 | J105: 0 | L105: 0 | M105: 1554121 | P105: 410 | Q105: =+'B.DATOS (INGRESOS)'!Q49 -> 1370919 | R105: =+'B.DATOS (INGRESOS)'!R49 -> 183202 | S105: 1554121 | U105: 410 | V105: 183202 | X105: -183202
B106: 411 SALUD JULCAN | E106: 2000 | G106: 2000 | J106: 0 | L106: 0 | M106: 2000 | P106: 411 | Q106: =+'B.DATOS (INGRESOS)'!Q50 -> 0 | R106: =+'B.DATOS (INGRESOS)'!R50 -> 2000 | S106: 2000 | U106: 411 | V106: 2000 | X106: -2000
B107: 412 SALUD VIRU | E107: 526161 | G107: 526161 | J107: 0 | L107: 0 | M107: 526161 | P107: 412 | Q107: =+'B.DATOS (INGRESOS)'!Q51 -> 526161 | R107: =+'B.DATOS (INGRESOS)'!R51 -> 0 | S107: 526161 | U107: 412 | V107: 0 | X107: 0
B108: 413 SALUD ASCOPE | E108: 191875 | G108: 191875 | J108: 0 | L108: 0 | M108: 191875 | P108: 413 | Q108: =+'B.DATOS (INGRESOS)'!Q52 -> 191875 | R108: =+'B.DATOS (INGRESOS)'!R52 -> 0 | S108: 191875 | U108: 413 | V108: 0 | X108: 0
B109: 414 SALUD GRAN CHIMU | E109: 98574 | G109: 98574 | J109: 0 | L109: 0 | M109: 98574 | P109: 414 | Q109: =+'B.DATOS (INGRESOS)'!Q53 -> 98574 | R109: =+'B.DATOS (INGRESOS)'!R53 -> 0 | S109: 98574 | U109: 414 | V109: 0 | X109: 0
B110: TOTAL PLIEGO | C110: =+C70+C71+C72+C73+C75+C94 -> 109283 | D110: 0 | E110: 42395338 | F110: 554488 | G110: 43059109 | H110: 0 | I110: 33859549 | J110: 33859549 | K110: 20445916 | L110: 20445916 | M110: 97364574 | Q110: =+Q70+Q71+Q72+Q73+Q75+Q94 -> 92131586 | R110: =+R70+R71+R72+R73+R75+R94 -> 5232988 | S110: =+S70+S71+S72+S73+S75+S94 -> 97364574 | V110: =+V70+V71+V72+V73+V75+V94 -> 5232988 | W110: =+W70+W71+W72+W73+W75+W94 -> 0 | X110: =+X70+X71+X72+X73+X75+X94 -> -5232988
W111: =+R110 -> 5232988
W113: =+W111-W110 -> 5232988
B114: =+B4 -> FORMULACION PRESUPUESTO AÑO 2020
B115: =+B5 -> TECHOS PRESUPUESTALES DE EGRESOS POR UNIDADES EJECUTORAS
B116: =+B6 -> PLIEGO : 451 GOBIERNO REGIONAL DEL DEPARTAMENTO DE LA LIBERTAD
B117: ( En Nuevos Soles )
B119: FTE.FTO. : 3 RECURSOS POR OPERACIONES OFICIALES DE CREDITO | P119: FORMULACION 2018 | U119: SALDO SEGÚN ACTA 2017
Q120: =+O120-M120 -> 0 | V120: =+T120-R120 -> 0
B121: UNIDADES EJECUTORAS | C121: GASTOS CORRIENTES | H121: GASTOS DE CAPITAL | K121: SERVICIO DE LA DEUDA | M121: TOTAL | Q121: MONTOS APROBADOS EN EL PIA QUE INCLUYE SALDOS DE BALANCE PROYECTADO | S121: TOTAL | V121: MONTOS DETERM INADOS SEGÚN ACTA DE CONCILIACION POR UNIDADES EJECUTORAS AÑO 2017 | X121: TOTAL
C122: 2.1 | D122: 2.2 | E122: 2.3 | F122: 2.5 | H122: 2.4 | I122: 2.6 | K122: 2.8
C123: PERS. Y OBLIG. | D123: PENSIONES Y | E123: BIENES Y | F123: OTROS | G123: SUBTOTAL | H123: DONACIONES | I123: ADQ. ACTIVOS | J123: SUBTOTAL | K123: SERV.DEUDA | L123: SUBTOTAL
C124: SOCIALES | D124: OTRAS PREST | E124: SERVICIOS | F124: GASTOS | G124: GTO. CTE | H124: Y TRANSFER. | I124: NO FINCIEROS | J124: GTO. CAP | K124: PUBLICA | L124: GTO. CAP | Q124: ASIGNACION | R124: SALDO BAL. | V124: AUTORIZADO | W124: SALDO ACTA
B125: 001 SEDE LA LIBERTAD | G125: =SUM(C125:F125) -> 0 | J125: =+H125+I125 -> 0 | L125: =+K125 -> 0 | M125: =+G125+J125+L125 -> 0 | P125: 001 | S125: =SUM(Q125:R125) -> 0 | U125: 001 | V125: =+R125 -> 0 | X125: =+W125-V125 -> 0
B126: 005 PROYECTO ESPEC.CHAVIMOCHIC | G126: =SUM(C126:F126) -> 0 | I126: 216867115 | J126: =+H126+I126 -> 216867115 | L126: =+K126 -> 0 | M126: =+G126+J126+L126 -> 216867115 | P126: 005 | Q126: =+'B.DATOS (INGRESOS)'!Q69 -> 216867115 | R126: =+'B.DATOS (INGRESOS)'!R69 -> 0 | S126: =SUM(Q126:R126) -> 216867115 | U126: 005 | V126: =+R126 -> 0 | X126: =+W126-V126 -> 0
B127: 100 AGRICULTURA LA LIBERTAD | G127: =SUM(C127:F127) -> 0 | J127: =+H127+I127 -> 0 | L127: =+K127 -> 0 | M127: =+G127+J127+L127 -> 0 | P127: 100 | Q127: =+'B.DATOS (INGRESOS)'!Q70 -> 0 | R127: =+'B.DATOS (INGRESOS)'!R70 -> 0 | S127: =SUM(Q127:R127) -> 0 | U127: 100 | V127: =+R127 -> 0 | X127: =+W127-V127 -> 0
B128: 200 TRANSPORTES LA LIBERTAD | G128: =SUM(C128:F128) -> 0 | J128: =+H128+I128 -> 0 | L128: =+K128 -> 0 | M128: =+G128+J128+L128 -> 0 | P128: 200 | Q128: =+'B.DATOS (INGRESOS)'!Q71 -> 0 | R128: =+'B.DATOS (INGRESOS)'!R71 -> 0 | S128: =SUM(Q128:R128) -> 0 | U128: 200 | V128: =+R128 -> 0 | X128: =+W128-V128 -> 0
Q129: =+'B.DATOS (INGRESOS)'!Q72 -> 0 | R129: =+'B.DATOS (INGRESOS)'!R72 -> 0 | S129: =SUM(Q129:R129) -> 0 | V129: =+R129 -> 0 | X129: =+W129-V129 -> 0
B130: EDUCACION | C130: =SUM(C131:C147) -> 0 | D130: 0 | E130: 0 | F130: 0 | G130: 0 | H130: 0 | I130: 0 | J130: 0 | K130: 0 | L130: 0 | M130: 0 | Q130: =+'B.DATOS (INGRESOS)'!Q73 -> 0 | R130: =+'B.DATOS (INGRESOS)'!R73 -> 0 | S130: =SUM(S131:S147) -> 0 | V130: =SUM(V131:V147) -> 0 | W130: =SUM(W131:W147) -> 0 | X130: =SUM(X131:X147) -> 0
B131: 300 EDUCACION LA LIBERTAD | G131: =SUM(C131:F131) -> 0 | J131: =+H131+I131 -> 0 | L131: =+K131 -> 0 | M131: =+G131+J131+L131 -> 0 | P131: 300 | Q131: =+'B.DATOS (INGRESOS)'!Q74 -> 0 | R131: =+'B.DATOS (INGRESOS)'!R74 -> 0 | S131: =SUM(Q131:R131) -> 0 | U131: 300 | V131: =+R131 -> 0 | X131: =+W131-V131 -> 0
B132: 301 EDUCACION CHEPEN | G132: 0 | J132: 0 | L132: 0 | M132: 0 | P132: 301 | Q132: =+'B.DATOS (INGRESOS)'!Q75 -> 0 | R132: =+'B.DATOS (INGRESOS)'!R75 -> 0 | S132: 0 | U132: 301 | V132: 0 | X132: 0
B133: 302 EDUCACION PACASMAYO | G133: 0 | J133: 0 | L133: 0 | M133: 0 | P133: 302 | Q133: =+'B.DATOS (INGRESOS)'!Q76 -> 0 | R133: =+'B.DATOS (INGRESOS)'!R76 -> 0 | S133: 0 | U133: 302 | V133: 0 | X133: 0
B134: 303 EDUCACION ASCOPE | G134: 0 | J134: 0 | L134: 0 | M134: 0 | P134: 303 | Q134: =+'B.DATOS (INGRESOS)'!Q77 -> 0 | R134: =+'B.DATOS (INGRESOS)'!R77 -> 0 | S134: 0 | U134: 303 | V134: 0 | X134: 0
B135: 304 EDUCACION GRAN CHIMU | G135: 0 | J135: 0 | L135: 0 | M135: 0 | P135: 304 | Q135: =+'B.DATOS (INGRESOS)'!Q78 -> 0 | R135: =+'B.DATOS (INGRESOS)'!R78 -> 0 | S135: 0 | U135: 304 | V135: 0 | X135: 0
B136: 305 EDUCACION OTUZCO | G136: 0 | J136: 0 | L136: 0 | M136: 0 | P136: 305 | Q136: =+'B.DATOS (INGRESOS)'!Q79 -> 0 | R136: =+'B.DATOS (INGRESOS)'!R79 -> 0 | S136: 0 | U136: 305 | V136: 0 | X136: 0
B137: 306 EDUCACION SANTIAGO DE CHUCO | G137: 0 | J137: 0 | L137: 0 | M137: 0 | P137: 306 | Q137: =+'B.DATOS (INGRESOS)'!Q80 -> 0 | R137: =+'B.DATOS (INGRESOS)'!R80 -> 0 | S137: 0 | U137: 306 | V137: 0 | X137: 0
B138: 307 EDUCACION SANCHEZ CARRION | G138: 0 | J138: 0 | L138: 0 | M138: 0 | P138: 307 | Q138: =+'B.DATOS (INGRESOS)'!Q81 -> 0 | R138: =+'B.DATOS (INGRESOS)'!R81 -> 0 | S138: 0 | U138: 307 | V138: 0 | X138: 0
B139: 308 EDUCACION PATAZ | G139: 0 | J139: 0 | L139: 0 | M139: 0 | P139: 308 | Q139: =+'B.DATOS (INGRESOS)'!Q82 -> 0 | R139: =+'B.DATOS (INGRESOS)'!R82 -> 0 | S139: 0 | U139: 308 | V139: 0 | X139: 0
B140: 309 EDUCACION BOLIVAR | G140: 0 | J140: 0 | L140: 0 | M140: 0 | P140: 309 | Q140: =+'B.DATOS (INGRESOS)'!Q83 -> 0 | R140: =+'B.DATOS (INGRESOS)'!R83 -> 0 | S140: 0 | U140: 309 | V140: 0 | X140: 0
B141: 310 COLEGIO MILITAR RAMON CASTILLA | G141: 0 | J141: 0 | L141: 0 | M141: 0 | P141: 310 | Q141: =+'B.DATOS (INGRESOS)'!Q84 -> 0 | R141: =+'B.DATOS (INGRESOS)'!R84 -> 0 | S141: 0 | U141: 310 | V141: 0 | X141: 0
B142: 311 EDUCACION JULCAN | G142: 0 | J142: 0 | L142: 0 | M142: 0 | P142: 311 | Q142: =+'B.DATOS (INGRESOS)'!Q85 -> 0 | R142: =+'B.DATOS (INGRESOS)'!R85 -> 0 | S142: 0 | U142: 311 | V142: 0 | X142: 0
B143: 312 EDUCACION VIRU | G143: 0 | J143: 0 | L143: 0 | M143: 0 | P143: 312 | Q143: =+'B.DATOS (INGRESOS)'!Q86 -> 0 | R143: =+'B.DATOS (INGRESOS)'!R86 -> 0 | S143: 0 | U143: 312 | V143: 0 | X143: 0
B144: 313 EDUCACION EL PORVENIR | G144: 0 | J144: 0 | L144: 0 | M144: 0 | P144: 313 | Q144: =+'B.DATOS (INGRESOS)'!Q87 -> 0 | R144: =+'B.DATOS (INGRESOS)'!R87 -> 0 | S144: 0 | U144: 313 | V144: 0 | X144: 0
B145: 314 EDUCACION LA ESPERANZA | G145: 0 | J145: 0 | L145: 0 | M145: 0 | P145: 314 | Q145: =+'B.DATOS (INGRESOS)'!Q88 -> 0 | R145: =+'B.DATOS (INGRESOS)'!R88 -> 0 | S145: 0 | U145: 314 | V145: 0 | X145: 0
B146: 315 EDUCACION TRUJILLO NOR OESTE | G146: 0 | J146: 0 | L146: 0 | M146: 0 | P146: 315 | Q146: =+'B.DATOS (INGRESOS)'!Q89 -> 0 | R146: =+'B.DATOS (INGRESOS)'!R89 -> 0 | S146: 0 | U146: 315 | V146: 0 | X146: 0
B147: 316 EDUCACION TRUJILLO SUR ESTE | G147: 0 | J147: 0 | L147: 0 | M147: 0 | P147: 316 | Q147: =+'B.DATOS (INGRESOS)'!Q90 -> 0 | R147: =+'B.DATOS (INGRESOS)'!R90 -> 0 | S147: 0 | U147: 316 | V147: 0 | X147: 0
L148: 0 | M148: 0 | Q148: =+'B.DATOS (INGRESOS)'!Q91 -> 0 | R148: =+'B.DATOS (INGRESOS)'!R91 -> 0 | S148: 0 | V148: 0 | X148: 0
B149: SALUD | C149: =SUM(C150:C164) -> 0 | D149: 0 | E149: 0 | F149: 0 | G149: 0 | H149: 0 | I149: 0 | J149: 0 | K149: 0 | L149: 0 | M149: 0 | Q149: =SUM(Q150:Q164) -> 0 | R149: =SUM(R150:R164) -> 0 | S149: =SUM(S150:S164) -> 0 | V149: =SUM(V150:V164) -> 0 | W149: =SUM(W150:W164) -> 0 | X149: =SUM(X150:X164) -> 0
B150: 400 SALUD LA LIBERTAD | G150: =SUM(C150:F150) -> 0 | J150: =+H150+I150 -> 0 | L150: =+K150 -> 0 | M150: =+G150+J150+L150 -> 0 | P150: 400 | S150: =SUM(Q150:R150) -> 0 | U150: 400 | V150: =+R150 -> 0 | X150: =+W150-V150 -> 0
B151: 401 INSTIT. REG.DE OFTALMOLOGIA | G151: 0 | J151: 0 | L151: 0 | M151: 0 | P151: 401 | S151: 0 | U151: 401 | V151: 0 | X151: 0
B152: 402 SALUD NORTE ASCOPE | G152: 0 | J152: 0 | L152: 0 | M152: 0 | P152: 402 | S152: 0 | U152: 402 | V152: 0 | X152: 0
B153: 403 SALUD TRUJILLO SUR OESTE | G153: 0 | J153: 0 | L153: 0 | M153: 0 | P153: 403 | S153: 0 | U153: 403 | V153: 0 | X153: 0
B154: 404 SALUD CHEPEN | G154: 0 | J154: 0 | L154: 0 | M154: 0 | P154: 404 | S154: 0 | U154: 404 | V154: 0 | X154: 0
B155: 405 SALUD PACASMAYO | G155: 0 | J155: 0 | L155: 0 | M155: 0 | P155: 405 | S155: 0 | U155: 405 | V155: 0 | X155: 0
B156: 406 SALUD SANCHEZ CARRION | G156: 0 | J156: 0 | L156: 0 | M156: 0 | P156: 406 | S156: 0 | U156: 406 | V156: 0 | X156: 0
B157: 407 SALUD SANTIAGO DE CHUCO | G157: 0 | J157: 0 | L157: 0 | M157: 0 | P157: 407 | S157: 0 | U157: 407 | V157: 0 | X157: 0
B158: 408 SALUD OTUZCO | G158: 0 | J158: 0 | L158: 0 | M158: 0 | P158: 408 | S158: 0 | U158: 408 | V158: 0 | X158: 0
B159: 409 SALUD TRUJILLO ESTE | G159: 0 | J159: 0 | L159: 0 | M159: 0 | P159: 409 | S159: 0 | U159: 409 | V159: 0 | X159: 0
B160: 410 INSTIT.REG.DE ENFERM.NEOPL. | G160: 0 | J160: 0 | L160: 0 | M160: 0 | P160: 410 | S160: 0 | U160: 410 | V160: 0 | X160: 0
B161: 411 SALUD JULCAN | G161: 0 | J161: 0 | L161: 0 | M161: 0 | P161: 411 | S161: 0 | U161: 411 | V161: 0 | X161: 0
B162: 412 SALUD VIRU | G162: 0 | J162: 0 | L162: 0 | M162: 0 | P162: 412 | S162: 0 | U162: 412 | V162: 0 | X162: 0
B163: 413 SALUD ASCOPE | G163: 0 | J163: 0 | L163: 0 | M163: 0 | P163: 413 | S163: 0 | U163: 413 | V163: 0 | X163: 0
B164: 414 SALUD GRAN CHIMU | G164: 0 | J164: 0 | L164: 0 | M164: 0 | P164: 414 | S164: 0 | U164: 414 | V164: 0 | X164: 0
B165: TOTAL PLIEGO | C165: =+C125+C126+C127+C128+C130+C149 -> 0 | D165: 0 | E165: 0 | F165: 0 | G165: 0 | H165: 0 | I165: 216867115 | J165: 216867115 | K165: 0 | L165: 0 | M165: 216867115 | Q165: =+Q125+Q126+Q127+Q128+Q130+Q149 -> 216867115 | R165: =+R125+R126+R127+R128+R130+R149 -> 0 | S165: =+S125+S126+S127+S128+S130+S149 -> 216867115 | V165: =+V125+V126+V127+V128+V130+V149 -> 0 | W165: =+W125+W126+W127+W128+W130+W149 -> 0 | X165: =+X125+X126+X127+X128+X130+X149 -> 0
W166: =+R165 -> 0
W167: =+W166-W165 -> 0
B168: =+B4 -> FORMULACION PRESUPUESTO AÑO 2020
B169: =+B5 -> TECHOS PRESUPUESTALES DE EGRESOS POR UNIDADES EJECUTORAS
B170: =+B6 -> PLIEGO : 451 GOBIERNO REGIONAL DEL DEPARTAMENTO DE LA LIBERTAD
B171: ( En Nuevos Soles )
B173: FTE.FTO. : 4 DONACIONES Y TRANSFERENCIAS | P173: FORMULACION 2018 | U173: SALDO SEGÚN ACTA 2017
Q174: =+O174-M174 -> 0 | V174: =+T174-R174 -> 0
B175: UNIDADES EJECUTORAS | C175: GASTOS CORRIENTES | H175: GASTOS DE CAPITAL | K175: SERVICIO DE LA DEUDA | M175: TOTAL | Q175: MONTOS APROBADOS EN EL PIA QUE INCLUYE SALDOS DE BALANCE PROYECTADO | S175: TOTAL | V175: MONTOS DETERM INADOS SEGÚN ACTA DE CONCILIACION POR UNIDADES EJECUTORAS AÑO 2017 | X175: TOTAL
C176: 2.1 | D176: 2.2 | E176: 2.3 | F176: 2.5 | H176: 2.4 | I176: 2.6 | K176: 2.8
C177: PERS. Y OBLIG. | D177: PENSIONES Y | E177: BIENES Y | F177: OTROS | G177: SUBTOTAL | H177: DONACIONES | I177: ADQ. ACTIVOS | J177: SUBTOTAL | K177: SERV.DEUDA | L177: SUBTOTAL
C178: SOCIALES | D178: OTRAS PREST | E178: SERVICIOS | F178: GASTOS | G178: GTO. CTE | H178: Y TRANSFER. | I178: NO FINCIEROS | J178: GTO. CAP | K178: PUBLICA | L178: GTO. CAP | Q178: ASIGNACION | R178: SALDO BAL. | V178: AUTORIZADO | W178: SALDO ACTA
B179: 001 SEDE LA LIBERTAD | G179: =SUM(C179:F179) -> 0 | J179: =+H179+I179 -> 0 | L179: =+K179 -> 0 | M179: =+G179+J179+L179 -> 0 | O179: 001 | P179: D-0 | S179: =SUM(Q179:R179) -> 0 | U179: D-0 | V179: =+R179 -> 0 | X179: =+W179-V179 -> 0
B180: 005 PROYECTO ESPEC.CHAVIMOCHIC | G180: =SUM(C180:F180) -> 0 | J180: =+H180+I180 -> 0 | L180: =+K180 -> 0 | M180: =+G180+J180+L180 -> 0 | O180: 005 | R180: =+Q180 -> 0 | S180: =SUM(Q180:R180) -> 0 | V180: =+R180 -> 0 | X180: =+W180-V180 -> 0
B181: 100 AGRICULTURA LA LIBERTAD | G181: =SUM(C181:F181) -> 0 | J181: =+H181+I181 -> 0 | L181: =+K181 -> 0 | M181: =+G181+J181+L181 -> 0 | O181: 100 | R181: =+Q181 -> 0 | S181: =SUM(Q181:R181) -> 0 | V181: =+R181 -> 0 | X181: =+W181-V181 -> 0
B182: 200 TRANSPORTES LA LIBERTAD | G182: =SUM(C182:F182) -> 0 | J182: =+H182+I182 -> 0 | L182: =+K182 -> 0 | M182: =+G182+J182+L182 -> 0 | O182: 200 | R182: =+Q182 -> 0 | S182: =SUM(Q182:R182) -> 0 | V182: =+R182 -> 0 | X182: =+W182-V182 -> 0
S183: =SUM(Q183:R183) -> 0 | V183: =+R183 -> 0 | X183: =+W183-V183 -> 0
B184: EDUCACION | C184: =SUM(C185:C201) -> 0 | D184: 0 | E184: 0 | F184: 0 | G184: 0 | H184: 0 | I184: 0 | J184: 0 | K184: 0 | L184: 0 | M184: 0 | Q184: =SUM(Q185:Q201) -> 0 | R184: =SUM(R185:R201) -> 0 | S184: =SUM(S185:S201) -> 0 | V184: =SUM(V185:V201) -> 0 | W184: =SUM(W185:W201) -> 0 | X184: =SUM(X185:X201) -> 0
B185: 300 EDUCACION LA LIBERTAD | G185: =SUM(C185:F185) -> 0 | J185: =+H185+I185 -> 0 | L185: =+K185 -> 0 | M185: =+G185+J185+L185 -> 0 | O185: 300 | P185: T-A | S185: =SUM(Q185:R185) -> 0 | U185: T-A | V185: =+R185 -> 0 | X185: =+W185-V185 -> 0
B186: 301 EDUCACION CHEPEN | G186: 0 | J186: 0 | L186: 0 | M186: 0 | O186: 301 | P186: D-N | S186: 0 | U186: D-N | V186: 0 | X186: 0
B187: 302 EDUCACION PACASMAYO | G187: 0 | J187: 0 | L187: 0 | M187: 0 | O187: 302 | P187: D-N | S187: 0 | U187: D-N | V187: 0 | X187: 0
B188: 303 EDUCACION ASCOPE | G188: 0 | J188: 0 | L188: 0 | M188: 0 | O188: 303 | P188: D-N | S188: 0 | U188: D-N | V188: 0 | X188: 0
B189: 304 EDUCACION GRAN CHIMU | G189: 0 | J189: 0 | L189: 0 | M189: 0 | O189: 304 | P189: T-A | S189: 0 | U189: T-A | V189: 0 | X189: 0
B190: 305 EDUCACION OTUZCO | G190: 0 | J190: 0 | L190: 0 | M190: 0 | O190: 305 | P190: D-N | S190: 0 | U190: D-N | V190: 0 | X190: 0
B191: 306 EDUCACION SANTIAGO DE CHUCO | G191: 0 | J191: 0 | L191: 0 | M191: 0 | O191: 306 | P191: T-A | S191: 0 | U191: T-A | V191: 0 | X191: 0
B192: 307 EDUCACION SANCHEZ CARRION | G192: 0 | J192: 0 | L192: 0 | M192: 0 | O192: 307 | P192: D-N | S192: 0 | U192: D-N | V192: 0 | X192: 0
B193: 308 EDUCACION PATAZ | G193: 0 | J193: 0 | L193: 0 | M193: 0 | O193: 308 | P193: D-0 | S193: 0 | U193: D-0 | V193: 0 | X193: 0
B194: 309 EDUCACION BOLIVAR | G194: 0 | J194: 0 | L194: 0 | M194: 0 | O194: 309 | S194: 0 | V194: 0 | X194: 0
B195: 310 COLEGIO MILITAR RAMON CASTILLA | G195: 0 | J195: 0 | L195: 0 | M195: 0 | O195: 310 | P195: T-A | S195: 0 | U195: T-A | V195: 0 | X195: 0
B196: 311 EDUCACION JULCAN | G196: 0 | J196: 0 | L196: 0 | M196: 0 | O196: 311 | P196: T-A | S196: 0 | U196: T-A | V196: 0 | X196: 0
B197: 312 EDUCACION VIRU | G197: 0 | J197: 0 | L197: 0 | M197: 0 | O197: 312 | P197: D-N | S197: 0 | U197: D-N | V197: 0 | X197: 0
B198: 313 EDUCACION EL PORVENIR | G198: 0 | J198: 0 | L198: 0 | M198: 0 | O198: 313 | P198: D-N | S198: 0 | U198: D-N | V198: 0 | X198: 0
B199: 314 EDUCACION LA ESPERANZA | G199: 0 | J199: 0 | L199: 0 | M199: 0 | O199: 314 | P199: D-N | S199: 0 | U199: D-N | V199: 0 | X199: 0
B200: 315 EDUCACION TRUJILLO NOR OESTE | G200: 0 | J200: 0 | L200: 0 | M200: 0 | O200: 315 | P200: D-N | S200: 0 | U200: D-N | V200: 0 | X200: 0
B201: 316 EDUCACION TRUJILLO SUR ESTE | G201: 0 | J201: 0 | L201: 0 | M201: 0 | O201: 316 | P201: D-N | S201: 0 | U201: D-N | V201: 0 | X201: 0
G202: 0 | J202: 0 | L202: 0 | M202: 0 | S202: 0 | V202: 0 | X202: 0
B203: SALUD | C203: =SUM(C204:C218) -> 0 | D203: 0 | E203: 3748466 | F203: 0 | G203: 3748466 | H203: 0 | I203: 0 | J203: 0 | K203: 0 | L203: 0 | M203: 3748466 | Q203: =SUM(Q204:Q218) -> 0 | R203: =SUM(R204:R218) -> 3748466 | S203: =SUM(S204:S218) -> 3748466 | V203: =SUM(V204:V218) -> 3748466 | W203: =SUM(W204:W218) -> 0 | X203: =SUM(X204:X218) -> -3748466
B204: 400 SALUD LA LIBERTAD | E204: 3748466 | G204: =SUM(C204:F204) -> 3748466 | J204: =+H204+I204 -> 0 | L204: =+K204 -> 0 | M204: =+G204+J204+L204 -> 3748466 | O204: 400 | P204: T-7 | Q204: =+'B.DATOS (INGRESOS)'!Q147 -> 0 | R204: =+'B.DATOS (INGRESOS)'!R147 -> 3748466 | S204: =SUM(Q204:R204) -> 3748466 | U204: T-7 | V204: =+R204 -> 3748466 | X204: =+W204-V204 -> -3748466
B205: 401 INSTIT. REG.DE OFTALMOLOGIA | G205: 0 | J205: 0 | L205: 0 | M205: 0 | O205: 401 | P205: T-7 | Q205: =+'B.DATOS (INGRESOS)'!Q148 -> 0 | R205: =+'B.DATOS (INGRESOS)'!R148 -> 0 | S205: 0 | U205: T-7 | V205: 0 | X205: 0
B206: 402 SALUD NORTE ASCOPE | G206: 0 | J206: 0 | L206: 0 | M206: 0 | O206: 402 | P206: T-7 | Q206: =+'B.DATOS (INGRESOS)'!Q149 -> 0 | R206: =+'B.DATOS (INGRESOS)'!R149 -> 0 | S206: 0 | U206: T-7 | V206: 0 | X206: 0
B207: 403 SALUD TRUJILLO SUR OESTE | G207: 0 | J207: 0 | L207: 0 | M207: 0 | O207: 403 | P207: T-7 | Q207: =+'B.DATOS (INGRESOS)'!Q150 -> 0 | R207: =+'B.DATOS (INGRESOS)'!R150 -> 0 | S207: 0 | U207: T-7 | V207: 0 | X207: 0
B208: 404 SALUD CHEPEN | G208: 0 | J208: 0 | L208: 0 | M208: 0 | O208: 404 | P208: T-7 | Q208: =+'B.DATOS (INGRESOS)'!Q151 -> 0 | R208: =+'B.DATOS (INGRESOS)'!R151 -> 0 | S208: 0 | U208: T-7 | V208: 0 | X208: 0
B209: 405 SALUD PACASMAYO | G209: 0 | J209: 0 | L209: 0 | M209: 0 | O209: 405 | P209: T-7 | Q209: =+'B.DATOS (INGRESOS)'!Q152 -> 0 | R209: =+'B.DATOS (INGRESOS)'!R152 -> 0 | S209: 0 | U209: T-7 | V209: 0 | X209: 0
B210: 406 SALUD SANCHEZ CARRION | G210: 0 | J210: 0 | L210: 0 | M210: 0 | O210: 406 | P210: T-7 | Q210: =+'B.DATOS (INGRESOS)'!Q153 -> 0 | R210: =+'B.DATOS (INGRESOS)'!R153 -> 0 | S210: 0 | U210: T-7 | V210: 0 | X210: 0
B211: 407 SALUD SANTIAGO DE CHUCO | G211: 0 | J211: 0 | L211: 0 | M211: 0 | O211: 407 | P211: T-7 | Q211: =+'B.DATOS (INGRESOS)'!Q154 -> 0 | R211: =+'B.DATOS (INGRESOS)'!R154 -> 0 | S211: 0 | U211: T-7 | V211: 0 | X211: 0
... 158 more rows

Sheet B.DATOS (INGRESOS)
C2: 1.3 | D2: 1.5 | F2: 1.6 | H2: 1.4 | J2: 1.8 | K2: 1.9
B3: FORMULACION PRESUPUESTO AÑO 2020
B4: TECHOS PRESUPUESTALES DE INGRESOS POR UNIDADES EJECUTORAS
B5: PLIEGO : 451 GOBIERNO REGIONAL DEL DEPARTAMENTO DE LA LIBERTAD
B6: ( En Nuevos Soles )
B8: FTE.FTO. : 09 RECURSOS DIRECTAMENTE RECAUDADOS | P8: FORMULACION 2020 | U8: SALDO SEGÚN ACTA 2018
V9: =+T9-R9 -> 0
B10: UNIDADES EJECUTORAS | C10: INGRESOS CORRIENTE | F10: INGRESOS DE CAPITAL | H10: TRANSFERENCIAS | J10: FINANCIAMIENTO | M10: TOTAL | Q10: MONTOS APROBADOS EN EL PIA QUE INCLUYE SALDOS DE BALANCE PROYECTADO | S10: TOTAL | V10: MONTOS DETERM INADOS SEGÚN ACTA DE CONCILIACION POR UNIDADES EJECUTORAS AÑO 2018 | X10: TOTAL
C11: 1.3 | D11: 1.5 | E11: SUBTOTAL INGR.CTE. | F11: 1.6 | G11: SUBTOTAL INGR.CAP. | H11: 1.4 | I11: SUBTOTAL TRANSFER. | J11: 1.8 | K11: 1.9 | L11: SUBTOTAL FINANCIAM.
C12: VENTA DE | D12: OTROS | F12: VENTA DE | H12: DONAC. Y | J12: EMDEUD. | K12: ADQ. ACTIVOS
C13: BNS Y SERV | D13: INGRESOS | F13: ACT.NO FIN | H13: TRANSFER | K13: NO FINCIEROS | Q13: ASIGNACION | R13: SALDO BAL. | V13: AUTORIZADO | W13: SALDO ACTA
B14: 001 SEDE LA LIBERTAD | C14: 3159445 | D14: 2359768 | E14: =SUM(C14:D14) -> 5519213 | F14: 48000 | G14: =+F14 -> 48000 | I14: =+H14 -> 0 | K14: 1450520 | L14: =SUM(J14:K14) -> 1450520 | M14: =+E14+G14+I14+L14 -> 7017733 | P14: 001 | Q14: =+E14+G14 -> 5567213 | R14: =+K14 -> 1450520 | S14: =SUM(Q14:R14) -> 7017733 | U14: 001 | V14: =+R14 -> 1450520 | X14: =+W14-V14 -> -1450520
B15: 005 PROYECTO ESPEC.CHAVIMOCHIC | C15: 33738657 | E15: =SUM(C15:D15) -> 33738657 | F15: 20445916 | G15: =+F15 -> 20445916 | I15: =+H15 -> 0 | L15: =SUM(J15:K15) -> 0 | M15: =+E15+G15+I15+L15 -> 54184573 | P15: 005 | Q15: =+E15+G15 -> 54184573 | R15: =+K15 -> 0 | S15: =SUM(Q15:R15) -> 54184573 | U15: 005 | V15: =+R15 -> 0 | X15: =+W15-V15 -> 0
B16: 100 AGRICULTURA LA LIBERTAD | C16: 127300 | D16: 94265 | E16: =SUM(C16:D16) -> 221565 | G16: =+F16 -> 0 | I16: =+H16 -> 0 | L16: =SUM(J16:K16) -> 0 | M16: =+E16+G16+I16+L16 -> 221565 | P16: 100 | Q16: =+E16+G16 -> 221565 | R16: =+K16 -> 0 | S16: =SUM(Q16:R16) -> 221565 | U16: 100 | V16: =+R16 -> 0 | X16: =+W16-V16 -> 0
B17: 200 TRANSPORTES LA LIBERTAD | C17: 4329799 | D17: 407569 | E17: 4737368 | G17: 0 | I17: 0 | K17: 567160 | L17: 567160 | M17: 5304528 | P17: 200 | Q17: =+E17+G17 -> 4737368 | R17: 567160 | S17: =SUM(Q17:R17) -> 5304528 | U17: 200 | V17: =+R17 -> 567160 | X17: =+W17-V17 -> -567160
S18: =SUM(Q18:R18) -> 0 | V18: =+R18 -> 0 | X18: =+W18-V18 -> 0
B19: EDUCACION | C19: =SUM(C20:C36) -> 2493228 | D19: 26574 | E19: 2519802 | F19: 0 | G19: 0 | H19: 0 | I19: 0 | J19: 0 | K19: 40420 | L19: 40420 | M19: 2560222 | Q19: =SUM(Q20:Q36) -> 2519802 | R19: =SUM(R20:R36) -> 40420 | S19: =SUM(S20:S36) -> 2560222 | V19: =SUM(V20:V36) -> 40420 | W19: =SUM(W20:W36) -> 0 | X19: =SUM(X20:X36) -> -40420
B20: 300 EDUCACION LA LIBERTAD | C20: 398000 | D20: 23224 | E20: =SUM(C20:D20) -> 421224 | G20: =+F20 -> 0 | I20: =+H20 -> 0 | L20: =SUM(J20:K20) -> 0 | M20: =+E20+G20+I20+L20 -> 421224 | P20: 300 | Q20: =+E20+G20 -> 421224 | R20: =+K20 -> 0 | S20: =SUM(Q20:R20) -> 421224 | U20: 300 | V20: =+R20 -> 0 | X20: =+W20-V20 -> 0
B21: 301 EDUCACION CHEPEN | C21: 4223 | E21: 4223 | G21: 0 | I21: 0 | L21: 0 | M21: 4223 | P21: 301 | Q21: 4223 | R21: 0 | S21: 4223 | U21: 301 | V21: 0 | X21: 0
B22: 302 EDUCACION PACASMAYO | C22: 10443 | E22: 10443 | G22: 0 | I22: 0 | L22: 0 | M22: 10443 | P22: 302 | Q22: 10443 | R22: 0 | S22: 10443 | U22: 302 | V22: 0 | X22: 0
B23: 303 EDUCACION ASCOPE | C23: 76978 | E23: 76978 | G23: 0 | I23: 0 | L23: 0 | M23: 76978 | P23: 303 | Q23: 76978 | R23: 0 | S23: 76978 | U23: 303 | V23: 0 | X23: 0
B24: 304 EDUCACION GRAN CHIMU | C24: 9336 | E24: 9336 | G24: 0 | I24: 0 | L24: 0 | M24: 9336 | P24: 304 | Q24: 9336 | R24: 0 | S24: 9336 | U24: 304 | V24: 0 | X24: 0
B25: 305 EDUCACION OTUZCO | C25: 15000 | E25: 15000 | G25: 0 | I25: 0 | L25: 0 | M25: 15000 | P25: 305 | Q25: 15000 | R25: 0 | S25: 15000 | U25: 305 | V25: 0 | X25: 0
B26: 306 EDUCACION SANTIAGO DE CHUCO | C26: 28772 | E26: 28772 | G26: 0 | I26: 0 | L26: 0 | M26: 28772 | P26: 306 | Q26: 28772 | R26: 0 | S26: 28772 | U26: 306 | V26: 0 | X26: 0
B27: 307 EDUCACION SANCHEZ CARRION | C27: 114573 | E27: 114573 | G27: 0 | I27: 0 | L27: 0 | M27: 114573 | P27: 307 | Q27: 114573 | R27: 0 | S27: 114573 | U27: 307 | V27: 0 | X27: 0
B28: 308 EDUCACION PATAZ | C28: 77352 | E28: 77352 | G28: 0 | I28: 0 | L28: 0 | M28: 77352 | P28: 308 | Q28: 77352 | R28: 0 | S28: 77352 | U28: 308 | V28: 0 | X28: 0
B29: 309 EDUCACION BOLIVAR | C29: 3640 | E29: 3640 | G29: 0 | I29: 0 | L29: 0 | M29: 3640 | P29: 309 | Q29: 3640 | R29: 0 | S29: 3640 | U29: 309 | V29: 0 | X29: 0
B30: 310 COLEGIO MILITAR RAMON CASTILLA | C30: 1475650 | E30: 1475650 | G30: 0 | I30: 0 | K30: 37840 | L30: 37840 | M30: 1513490 | P30: 310 | Q30: 1475650 | R30: 37840 | S30: 1513490 | U30: 310 | V30: 37840 | X30: -37840
B31: 311 EDUCACION JULCAN | C31: 14910 | E31: 14910 | G31: 0 | I31: 0 | L31: 0 | M31: 14910 | P31: 311 | Q31: 14910 | R31: 0 | S31: 14910 | U31: 311 | V31: 0 | X31: 0
B32: 312 EDUCACION VIRU | C32: 41130 | E32: 41130 | G32: 0 | I32: 0 | L32: 0 | M32: 41130 | P32: 312 | Q32: 41130 | R32: 0 | S32: 41130 | U32: 312 | V32: 0 | X32: 0
B33: 313 EDUCACION EL PORVENIR | C33: 65540 | E33: 65540 | G33: 0 | I33: 0 | K33: 2580 | L33: 2580 | M33: 68120 | P33: 313 | Q33: 65540 | R33: 2580 | S33: 68120 | U33: 313 | V33: 2580 | X33: -2580
B34: 314 EDUCACION LA ESPERANZA | C34: 47358 | E34: 47358 | G34: 0 | I34: 0 | L34: 0 | M34: 47358 | P34: 314 | Q34: 47358 | R34: 0 | S34: 47358 | U34: 314 | V34: 0 | X34: 0
B35: 315 EDUCACION TRUJILLO NOR OESTE | C35: 73291 | D35: 3350 | E35: 76641 | G35: 0 | I35: 0 | L35: 0 | M35: 76641 | P35: 315 | Q35: 76641 | R35: 0 | S35: 76641 | U35: 315 | V35: 0 | X35: 0
B36: 316 EDUCACION TRUJILLO SUR ESTE | C36: 37032 | E36: 37032 | G36: 0 | I36: 0 | L36: 0 | M36: 37032 | P36: 316 | Q36: 37032 | R36: 0 | S36: 37032 | U36: 316 | V36: 0 | X36: 0
E37: 0 | G37: 0 | I37: 0 | L37: 0 | M37: 0 | S37: 0 | V37: 0 | X37: 0
B38: SALUD | C38: =SUM(C39:C53) -> 24233754 | D38: 667311 | E38: 24901065 | F38: 0 | G38: 0 | H38: 0 | I38: 0 | J38: 0 | K38: 3174888 | L38: 3174888 | M38: 28075953 | Q38: =SUM(Q39:Q53) -> 24901065 | R38: =SUM(R39:R53) -> 3174888 | S38: =SUM(S39:S53) -> 28075953 | V38: =SUM(V39:V53) -> 3174888 | W38: =SUM(W39:W53) -> 0 | X38: =SUM(X39:X53) -> -3174888
B39: 400 SALUD LA LIBERTAD | C39: 2116773 | D39: 150000 | E39: =SUM(C39:D39) -> 2266773 | G39: =+F39 -> 0 | I39: =+H39 -> 0 | K39: 557237 | L39: =SUM(J39:K39) -> 557237 | M39: =+E39+G39+I39+L39 -> 2824010 | P39: 400 | Q39: =+E39+G39 -> 2266773 | R39: =+K39 -> 557237 | S39: =SUM(Q39:R39) -> 2824010 | U39: 400 | V39: =+R39 -> 557237 | X39: =+W39-V39 -> -557237
B40: 401 INSTIT. REG.DE OFTALMOLOGIA | C40: 4614037 | E40: 4614037 | G40: 0 | I40: 0 | K40: 637161 | L40: 637161 | M40: 5251198 | P40: 401 | Q40: 4614037 | R40: 637161 | S40: 5251198 | U40: 401 | V40: 637161 | X40: -637161
B41: 402 SALUD NORTE ASCOPE | C41: 6691408 | D41: 80000 | E41: 6771408 | G41: 0 | I41: 0 | K41: 1268237 | L41: 1268237 | M41: 8039645 | P41: 402 | Q41: 6771408 | R41: 1268237 | S41: 8039645 | U41: 402 | V41: 1268237 | X41: -1268237
B42: 403 SALUD TRUJILLO SUR OESTE | C42: 3583300 | D42: 402111 | E42: 3985411 | G42: 0 | I42: 0 | K42: 227051 | L42: 227051 | M42: 4212462 | P42: 403 | Q42: 3985411 | R42: 227051 | S42: 4212462 | U42: 403 | V42: 227051 | X42: -227051
B43: 404 SALUD CHEPEN | C43: 724369 | E43: 724369 | G43: 0 | I43: 0 | L43: 0 | M43: 724369 | P43: 404 | Q43: 724369 | R43: 0 | S43: 724369 | U43: 404 | V43: 0 | X43: 0
B44: 405 SALUD PACASMAYO | C44: 390608 | D44: 1000 | E44: 391608 | G44: 0 | I44: 0 | L44: 0 | M44: 391608 | P44: 405 | Q44: 391608 | R44: 0 | S44: 391608 | U44: 405 | V44: 0 | X44: 0
B45: 406 SALUD SANCHEZ CARRION | C45: 251712 | D45: 3500 | E45: 255212 | G45: 0 | I45: 0 | L45: 0 | M45: 255212 | P45: 406 | Q45: 255212 | R45: 0 | S45: 255212 | U45: 406 | V45: 0 | X45: 0
B46: 407 SALUD SANTIAGO DE CHUCO | C46: 31041 | E46: 31041 | G46: 0 | I46: 0 | L46: 0 | M46: 31041 | P46: 407 | Q46: 31041 | R46: 0 | S46: 31041 | U46: 407 | V46: 0 | X46: 0
B47: 408 SALUD OTUZCO | C47: 240075 | E47: 240075 | G47: 0 | I47: 0 | L47: 0 | M47: 240075 | P47: 408 | Q47: 240075 | R47: 0 | S47: 240075 | U47: 408 | V47: 0 | X47: 0
B48: 409 SALUD TRUJILLO ESTE | C48: 3433602 | E48: 3433602 | G48: 0 | I48: 0 | K48: 300000 | L48: 300000 | M48: 3733602 | P48: 409 | Q48: 3433602 | R48: 300000 | S48: 3733602 | U48: 409 | V48: 300000 | X48: -300000
B49: 410 INSTIT.REG.DE ENFERM.NEOPLASICAS | C49: 1341469 | D49: 29450 | E49: 1370919 | G49: 0 | I49: 0 | K49: 183202 | L49: 183202 | M49: 1554121 | P49: 410 | Q49: 1370919 | R49: 183202 | S49: 1554121 | U49: 410 | V49: 183202 | X49: -183202
B50: 411 SALUD JULCAN | E50: 0 | G50: 0 | I50: 0 | K50: 2000 | L50: 2000 | M50: 2000 | P50: 411 | Q50: 0 | R50: 2000 | S50: 2000 | U50: 411 | V50: 2000 | X50: -2000
B51: 412 SALUD VIRU | C51: 525411 | D51: 750 | E51: 526161 | G51: 0 | I51: 0 | L51: 0 | M51: 526161 | P51: 412 | Q51: 526161 | R51: 0 | S51: 526161 | U51: 412 | V51: 0 | X51: 0
B52: 413 SALUD ASCOPE | C52: 191375 | D52: 500 | E52: 191875 | G52: 0 | I52: 0 | L52: 0 | M52: 191875 | P52: 413 | Q52: 191875 | R52: 0 | S52: 191875 | U52: 413 | V52: 0 | X52: 0
B53: 414 SALUD GRAN CHIMU | C53: 98574 | E53: 98574 | G53: 0 | I53: 0 | L53: 0 | M53: 98574 | P53: 414 | Q53: 98574 | R53: 0 | S53: 98574 | U53: 414 | V53: 0 | X53: 0
B54: TOTAL PLIEGO | C54: =+C14+C15+C16+C17+C19+C38 -> 68082183 | D54: 3555487 | E54: 71637670 | F54: 20493916 | G54: 20493916 | H54: 0 | I54: 0 | J54: 0 | K54: 5232988 | L54: 5232988 | M54: 97364574 | Q54: =+Q14+Q15+Q16+Q17+Q19+Q38 -> 92131586 | R54: =+R14+R15+R16+R17+R19+R38 -> 5232988 | S54: =+S14+S15+S16+S17+S19+S38 -> 97364574 | V54: =+V14+V15+V16+V17+V19+V38 -> 5232988 | W54: =+W14+W15+W16+W17+W19+W38 -> 0 | X54: =+X14+X15+X16+X17+X19+X38 -> -5232988
W55: =+R54 -> 5232988
W56: =+W55-W54 -> 5232988
B57: =+B3 -> FORMULACION PRESUPUESTO AÑO 2020
B58: =+B4 -> TECHOS PRESUPUESTALES DE INGRESOS POR UNIDADES EJECUTORAS
B59: =+B5 -> PLIEGO : 451 GOBIERNO REGIONAL DEL DEPARTAMENTO DE LA LIBERTAD
B60: ( En Nuevos Soles )
B62: FTE.FTO. : 3 RECURSOS POR OPERACIONES OFICIALES DE CREDITO | P62: =+P8 -> FORMULACION 2020 | U62: =+U8 -> SALDO SEGÚN ACTA 2018
Q63: =+O63-M63 -> 0 | V63: =+T63-R63 -> 0
B64: UNIDADES EJECUTORAS | C64: INGRESOS CORRIENTE | F64: INGRESOS DE CAPITAL | H64: TRANSFERENCIAS | J64: FINANCIAMIENTO | M64: TOTAL | Q64: MONTOS APROBADOS EN EL PIA QUE INCLUYE SALDOS DE BALANCE PROYECTADO | S64: TOTAL | V64: =+V10 -> MONTOS DETERM INADOS SEGÚN ACTA DE CONCILIACION POR UNIDADES EJECUTORAS AÑO 2018 | X64: TOTAL
C65: 1.3 | D65: 1.5 | E65: SUBTOTAL INGR.CTE. | F65: 1.6 | G65: SUBTOTAL INGR.CAP. | H65: 1.4 | I65: SUBTOTAL TRANSFER. | J65: 1.8 | K65: 1.9 | L65: SUBTOTAL FINANCIAM.
C66: VENTA DE | D66: OTROS | F66: VENTA DE | H66: DONAC. Y | J66: EMDEUD. | K66: ADQ. ACTIVOS
C67: BNS Y SERV | D67: INGRESOS | F67: ACT.NO FIN | H67: TRANSFER | K67: NO FINCIEROS | Q67: ASIGNACION | R67: SALDO BAL. | V67: AUTORIZADO | W67: SALDO ACTA
B68: 001 SEDE LA LIBERTAD | E68: =SUM(C68:D68) -> 0 | G68: =+F68 -> 0 | I68: =+H68 -> 0 | L68: =SUM(J68:K68) -> 0 | M68: =+E68+G68+I68+L68 -> 0 | P68: 001 | Q68: =+J68 -> 0 | S68: =SUM(Q68:R68) -> 0 | U68: 001 | V68: =+R68 -> 0 | X68: =+W68-V68 -> 0
B69: 005 PROYECTO ESPEC.CHAVIMOCHIC | E69: =SUM(C69:D69) -> 0 | G69: =+F69 -> 0 | I69: =+H69 -> 0 | J69: 216867115 | L69: =SUM(J69:K69) -> 216867115 | M69: =+E69+G69+I69+L69 -> 216867115 | P69: 005 | Q69: =+J69 -> 216867115 | R69: =+K69 -> 0 | S69: =SUM(Q69:R69) -> 216867115 | U69: 005 | V69: =+R69 -> 0 | X69: =+W69-V69 -> 0
B70: 100 AGRICULTURA LA LIBERTAD | E70: =SUM(C70:D70) -> 0 | G70: =+F70 -> 0 | I70: =+H70 -> 0 | L70: =SUM(J70:K70) -> 0 | M70: =+E70+G70+I70+L70 -> 0 | P70: 100 | S70: =SUM(Q70:R70) -> 0 | U70: 100 | V70: =+R70 -> 0 | X70: =+W70-V70 -> 0
B71: 200 TRANSPORTES LA LIBERTAD | E71: =SUM(C71:D71) -> 0 | G71: =+F71 -> 0 | I71: =+H71 -> 0 | L71: =SUM(J71:K71) -> 0 | M71: =+E71+G71+I71+L71 -> 0 | P71: 200 | S71: =SUM(Q71:R71) -> 0 | U71: 200 | V71: =+R71 -> 0 | X71: =+W71-V71 -> 0
S72: =SUM(Q72:R72) -> 0 | V72: =+R72 -> 0 | X72: =+W72-V72 -> 0
B73: EDUCACION | C73: =SUM(C74:C90) -> 0 | D73: 0 | E73: 0 | F73: 0 | G73: 0 | H73: 0 | I73: 0 | J73: 0 | K73: 0 | L73: 0 | M73: 0 | Q73: =SUM(Q74:Q90) -> 0 | R73: =SUM(R74:R90) -> 0 | S73: =SUM(S74:S90) -> 0 | V73: =SUM(V74:V90) -> 0 | W73: =SUM(W74:W90) -> 0 | X73: =SUM(X74:X90) -> 0
B74: 300 EDUCACION LA LIBERTAD | E74: =SUM(C74:D74) -> 0 | G74: =+F74 -> 0 | I74: =+H74 -> 0 | L74: =SUM(J74:K74) -> 0 | M74: =+E74+G74+I74+L74 -> 0 | P74: 300 | S74: =SUM(Q74:R74) -> 0 | U74: 300 | V74: =+R74 -> 0 | X74: =+W74-V74 -> 0
B75: 301 EDUCACION CHEPEN | E75: 0 | G75: 0 | I75: 0 | L75: 0 | M75: 0 | P75: 301 | S75: 0 | U75: 301 | V75: 0 | X75: 0
B76: 302 EDUCACION PACASMAYO | E76: 0 | G76: 0 | I76: 0 | L76: 0 | M76: 0 | P76: 302 | S76: 0 | U76: 302 | V76: 0 | X76: 0
B77: 303 EDUCACION ASCOPE | E77: 0 | G77: 0 | I77: 0 | L77: 0 | M77: 0 | P77: 303 | S77: 0 | U77: 303 | V77: 0 | X77: 0
B78: 304 EDUCACION GRAN CHIMU | E78: 0 | G78: 0 | I78: 0 | L78: 0 | M78: 0 | P78: 304 | S78: 0 | U78: 304 | V78: 0 | X78: 0
B79: 305 EDUCACION OTUZCO | E79: 0 | G79: 0 | I79: 0 | L79: 0 | M79: 0 | P79: 305 | S79: 0 | U79: 305 | V79: 0 | X79: 0
B80: 306 EDUCACION SANTIAGO DE CHUCO | E80: 0 | G80: 0 | I80: 0 | L80: 0 | M80: 0 | P80: 306 | S80: 0 | U80: 306 | V80: 0 | X80: 0
B81: 307 EDUCACION SANCHEZ CARRION | E81: 0 | G81: 0 | I81: 0 | L81: 0 | M81: 0 | P81: 307 | S81: 0 | U81: 307 | V81: 0 | X81: 0
B82: 308 EDUCACION PATAZ | E82: 0 | G82: 0 | I82: 0 | L82: 0 | M82: 0 | P82: 308 | S82: 0 | U82: 308 | V82: 0 | X82: 0
B83: 309 EDUCACION BOLIVAR | E83: 0 | G83: 0 | I83: 0 | L83: 0 | M83: 0 | P83: 309 | S83: 0 | U83: 309 | V83: 0 | X83: 0
B84: 310 COLEGIO MILITAR RAMON CASTILLA | E84: 0 | G84: 0 | I84: 0 | L84: 0 | M84: 0 | P84: 310 | S84: 0 | U84: 310 | V84: 0 | X84: 0
B85: 311 EDUCACION JULCAN | E85: 0 | G85: 0 | I85: 0 | L85: 0 | M85: 0 | P85: 311 | S85: 0 | U85: 311 | V85: 0 | X85: 0
B86: 312 EDUCACION VIRU | E86: 0 | G86: 0 | I86: 0 | L86: 0 | M86: 0 | P86: 312 | S86: 0 | U86: 312 | V86: 0 | X86: 0
B87: 313 EDUCACION EL PORVENIR | E87: 0 | G87: 0 | I87: 0 | L87: 0 | M87: 0 | P87: 313 | S87: 0 | U87: 313 | V87: 0 | X87: 0
B88: 314 EDUCACION LA ESPERANZA | E88: 0 | G88: 0 | I88: 0 | L88: 0 | M88: 0 | P88: 314 | S88: 0 | U88: 314 | V88: 0 | X88: 0
B89: 315 EDUCACION TRUJILLO NOR OESTE | E89: 0 | G89: 0 | I89: 0 | L89: 0 | M89: 0 | P89: 315 | S89: 0 | U89: 315 | V89: 0 | X89: 0
B90: 316 EDUCACION TRUJILLO SUR ESTE | E90: 0 | G90: 0 | I90: 0 | L90: 0 | M90: 0 | P90: 316 | S90: 0 | U90: 316 | V90: 0 | X90: 0
G91: 0 | I91: 0 | M91: =+E91+G91+L91 -> 0 | S91: 0 | V91: 0 | X91: 0
B92: SALUD | C92: =SUM(C93:C107) -> 0 | D92: 0 | E92: 0 | F92: 0 | G92: 0 | H92: 0 | I92: 0 | J92: 0 | K92: 0 | L92: 0 | M92: 0 | Q92: =SUM(Q93:Q107) -> 0 | R92: =SUM(R93:R107) -> 0 | S92: =SUM(S93:S107) -> 0 | V92: =SUM(V93:V107) -> 0 | W92: =SUM(W93:W107) -> 0 | X92: =SUM(X93:X107) -> 0
B93: 400 SALUD LA LIBERTAD | E93: =SUM(C93:D93) -> 0 | G93: =+F93 -> 0 | I93: =+H93 -> 0 | L93: =SUM(J93:K93) -> 0 | M93: =+E93+G93+I93+L93 -> 0 | P93: 400 | S93: =SUM(Q93:R93) -> 0 | U93: 400 | V93: =+R93 -> 0 | X93: =+W93-V93 -> 0
B94: 401 INSTIT. REG.DE OFTALMOLOGIA | E94: 0 | G94: 0 | I94: 0 | L94: 0 | M94: 0 | P94: 401 | S94: 0 | U94: 401 | V94: 0 | X94: 0
B95: 402 SALUD NORTE ASCOPE | E95: 0 | G95: 0 | I95: 0 | L95: 0 | M95: 0 | P95: 402 | S95: 0 | U95: 402 | V95: 0 | X95: 0
B96: 403 SALUD TRUJILLO SUR OESTE | E96: 0 | G96: 0 | I96: 0 | L96: 0 | M96: 0 | P96: 403 | S96: 0 | U96: 403 | V96: 0 | X96: 0
B97: 404 SALUD CHEPEN | E97: 0 | G97: 0 | I97: 0 | L97: 0 | M97: 0 | P97: 404 | S97: 0 | U97: 404 | V97: 0 | X97: 0
B98: 405 SALUD PACASMAYO | E98: 0 | G98: 0 | I98: 0 | L98: 0 | M98: 0 | P98: 405 | S98: 0 | U98: 405 | V98: 0 | X98: 0
B99: 406 SALUD SANCHEZ CARRION | E99: 0 | G99: 0 | I99: 0 | L99: 0 | M99: 0 | P99: 406 | S99: 0 | U99: 406 | V99: 0 | X99: 0
B100: 407 SALUD SANTIAGO DE CHUCO | E100: 0 | G100: 0 | I100: 0 | L100: 0 | M100: 0 | P100: 407 | S100: 0 | U100: 407 | V100: 0 | X100: 0
B101: 408 SALUD OTUZCO | E101: 0 | G101: 0 | I101: 0 | L101: 0 | M101: 0 | P101: 408 | S101: 0 | U101: 408 | V101: 0 | X101: 0
B102: 409 SALUD TRUJILLO ESTE | E102: 0 | G102: 0 | I102: 0 | L102: 0 | M102: 0 | P102: 409 | S102: 0 | U102: 409 | V102: 0 | X102: 0
B103: 410 INSTIT.REG.DE ENFERM.NEOPLASICAS | E103: 0 | G103: 0 | I103: 0 | L103: 0 | M103: 0 | P103: 410 | S103: 0 | U103: 410 | V103: 0 | X103: 0
B104: 411 SALUD JULCAN | E104: 0 | G104: 0 | I104: 0 | L104: 0 | M104: 0 | P104: 411 | S104: 0 | U104: 411 | V104: 0 | X104: 0
B105: 412 SALUD VIRU | E105: 0 | G105: 0 | I105: 0 | L105: 0 | M105: 0 | P105: 412 | S105: 0 | U105: 412 | V105: 0 | X105: 0
B106: 413 SALUD ASCOPE | E106: 0 | G106: 0 | I106: 0 | L106: 0 | M106: 0 | P106: 413 | S106: 0 | U106: 413 | V106: 0 | X106: 0
B107: 414 SALUD GRAN CHIMU | E107: 0 | G107: 0 | I107: 0 | L107: 0 | M107: 0 | P107: 414 | S107: 0 | U107: 414 | V107: 0 | X107: 0
B108: TOTAL PLIEGO | C108: =+C68+C69+C70+C71+C73+C92 -> 0 | D108: 0 | E108: 0 | F108: 0 | G108: 0 | H108: 0 | I108: 0 | J108: 216867115 | K108: 0 | L108: 216867115 | M108: 216867115 | Q108: =+Q68+Q69+Q70+Q71+Q73+Q92 -> 216867115 | R108: =+R68+R69+R70+R71+R73+R92 -> 0 | S108: =+S68+S69+S70+S71+S73+S92 -> 216867115 | V108: =+V68+V69+V70+V71+V73+V92 -> 0 | W108: =+W68+W69+W70+W71+W73+W92 -> 0 | X108: =+X68+X69+X70+X71+X73+X92 -> 0
W109: =+R108 -> 0
W110: =+W109-W108 -> 0
B111: =+B3 -> FORMULACION PRESUPUESTO AÑO 2020
B112: =+B4 -> TECHOS PRESUPUESTALES DE INGRESOS POR UNIDADES EJECUTORAS
B113: =+B5 -> PLIEGO : 451 GOBIERNO REGIONAL DEL DEPARTAMENTO DE LA LIBERTAD
B114: ( En Nuevos Soles )
B116: FTE.FTO. : 4 DONACIONES Y TRANSFERENCIAS | P116: =+P8 -> FORMULACION 2020 | U116: =+U8 -> SALDO SEGÚN ACTA 2018
Q117: =+O117-M117 -> 0 | V117: =+T117-R117 -> 0
B118: UNIDADES EJECUTORAS | C118: INGRESOS CORRIENTE | F118: INGRESOS DE CAPITAL | H118: TRANSFERENCIAS | J118: FINANCIAMIENTO | M118: TOTAL | Q118: MONTOS APROBADOS EN EL PIA QUE INCLUYE SALDOS DE BALANCE PROYECTADO | S118: TOTAL | V118: =+V10 -> MONTOS DETERM INADOS SEGÚN ACTA DE CONCILIACION POR UNIDADES EJECUTORAS AÑO 2018 | X118: TOTAL
C119: 1.3 | D119: 1.5 | E119: SUBTOTAL INGR.CTE. | F119: 1.6 | G119: SUBTOTAL INGR.CAP. | H119: 1.4 | I119: SUBTOTAL TRANSFER. | J119: 1.8 | K119: 1.9 | L119: SUBTOTAL FINANCIAM.
C120: VENTA DE | D120: OTROS | F120: VENTA DE | H120: DONAC. Y | J120: EMDEUD. | K120: ADQ. ACTIVOS
C121: BNS Y SERV | D121: INGRESOS | F121: ACT.NO FIN | H121: TRANSFER | K121: NO FINCIEROS | Q121: ASIGNACION | R121: SALDO BAL. | V121: AUTORIZADO | W121: SALDO ACTA
B122: 001 SEDE LA LIBERTAD | E122: =SUM(C122:D122) -> 0 | G122: =+F122 -> 0 | I122: =+H122 -> 0 | L122: =SUM(J122:K122) -> 0 | M122: =+E122+G122+I122+L122 -> 0 | O122: 001 | P122: D-0 | S122: =SUM(Q122:R122) -> 0 | U122: D-0 | V122: =+R122 -> 0 | X122: =+W122-V122 -> 0
B123: 005 PROYECTO ESPEC.CHAVIMOCHIC | E123: =SUM(C123:D123) -> 0 | G123: =+F123 -> 0 | I123: =+H123 -> 0 | L123: =SUM(J123:K123) -> 0 | M123: =+E123+G123+I123+L123 -> 0 | O123: 005 | R123: =+Q123 -> 0 | S123: =SUM(Q123:R123) -> 0 | V123: =+R123 -> 0 | X123: =+W123-V123 -> 0
B124: 100 AGRICULTURA LA LIBERTAD | E124: =SUM(C124:D124) -> 0 | G124: =+F124 -> 0 | I124: =+H124 -> 0 | L124: =SUM(J124:K124) -> 0 | M124: =+E124+G124+I124+L124 -> 0 | O124: 100 | R124: =+Q124 -> 0 | S124: =SUM(Q124:R124) -> 0 | V124: =+R124 -> 0 | X124: =+W124-V124 -> 0
B125: 200 TRANSPORTES LA LIBERTAD | E125: =SUM(C125:D125) -> 0 | G125: =+F125 -> 0 | I125: =+H125 -> 0 | L125: =SUM(J125:K125) -> 0 | M125: =+E125+G125+I125+L125 -> 0 | O125: 200 | R125: =+Q125 -> 0 | S125: =SUM(Q125:R125) -> 0 | V125: =+R125 -> 0 | X125: =+W125-V125 -> 0
S126: =SUM(Q126:R126) -> 0 | V126: =+R126 -> 0 | X126: =+W126-V126 -> 0
B127: EDUCACION | C127: =SUM(C128:C144) -> 0 | D127: 0 | E127: 0 | F127: 0 | G127: 0 | H127: 0 | I127: 0 | J127: 0 | K127: 0 | L127: 0 | M127: 0 | Q127: =SUM(Q128:Q144) -> 0 | R127: =SUM(R128:R144) -> 0 | S127: =SUM(S128:S144) -> 0 | V127: =SUM(V128:V144) -> 0 | W127: =SUM(W128:W144) -> 0 | X127: =SUM(X128:X144) -> 0
B128: 300 EDUCACION LA LIBERTAD | E128: =SUM(C128:D128) -> 0 | G128: =+F128 -> 0 | I128: =+H128 -> 0 | L128: =SUM(J128:K128) -> 0 | M128: =+E128+G128+I128+L128 -> 0 | O128: 300 | P128: T-A | S128: =SUM(Q128:R128) -> 0 | U128: T-A | V128: =+R128 -> 0 | X128: =+W128-V128 -> 0
B129: 301 EDUCACION CHEPEN | E129: 0 | G129: 0 | I129: 0 | L129: 0 | M129: 0 | O129: 301 | P129: D-N | S129: 0 | U129: D-N | V129: 0 | X129: 0
B130: 302 EDUCACION PACASMAYO | E130: 0 | G130: 0 | I130: 0 | L130: 0 | M130: 0 | O130: 302 | P130: D-N | S130: 0 | U130: D-N | V130: 0 | X130: 0
B131: 303 EDUCACION ASCOPE | E131: 0 | G131: 0 | I131: 0 | L131: 0 | M131: 0 | O131: 303 | P131: D-N | S131: 0 | U131: D-N | V131: 0 | X131: 0
B132: 304 EDUCACION GRAN CHIMU | E132: 0 | G132: 0 | I132: 0 | L132: 0 | M132: 0 | O132: 304 | P132: T-A | S132: 0 | U132: T-A | V132: 0 | X132: 0
B133: 305 EDUCACION OTUZCO | E133: 0 | G133: 0 | I133: 0 | L133: 0 | M133: 0 | O133: 305 | P133: D-N | S133: 0 | U133: D-N | V133: 0 | X133: 0
B134: 306 EDUCACION SANTIAGO DE CHUCO | E134: 0 | G134: 0 | I134: 0 | L134: 0 | M134: 0 | O134: 306 | P134: T-A | S134: 0 | U134: T-A | V134: 0 | X134: 0
B135: 307 EDUCACION SANCHEZ CARRION | E135: 0 | G135: 0 | I135: 0 | L135: 0 | M135: 0 | O135: 307 | P135: D-N | S135: 0 | U135: D-N | V135: 0 | X135: 0
B136: 308 EDUCACION PATAZ | E136: 0 | G136: 0 | I136: 0 | L136: 0 | M136: 0 | O136: 308 | P136: D-0 | S136: 0 | U136: D-0 | V136: 0 | X136: 0
B137: 309 EDUCACION BOLIVAR | E137: 0 | G137: 0 | I137: 0 | L137: 0 | M137: 0 | O137: 309 | S137: 0 | V137: 0 | X137: 0
B138: 310 COLEGIO MILITAR RAMON CASTILLA | E138: 0 | G138: 0 | I138: 0 | L138: 0 | M138: 0 | O138: 310 | P138: T-A | S138: 0 | U138: T-A | V138: 0 | X138: 0
B139: 311 EDUCACION JULCAN | E139: 0 | G139: 0 | I139: 0 | L139: 0 | M139: 0 | O139: 311 | P139: T-A | S139: 0 | U139: T-A | V139: 0 | X139: 0
B140: 312 EDUCACION VIRU | E140: 0 | G140: 0 | I140: 0 | L140: 0 | M140: 0 | O140: 312 | P140: D-N | S140: 0 | U140: D-N | V140: 0 | X140: 0
B141: 313 EDUCACION EL PORVENIR | E141: 0 | G141: 0 | I141: 0 | L141: 0 | M141: 0 | O141: 313 | P141: D-N | S141: 0 | U141: D-N | V141: 0 | X141: 0
B142: 314 EDUCACION LA ESPERANZA | E142: 0 | G142: 0 | I142: 0 | L142: 0 | M142: 0 | O142: 314 | P142: D-N | S142: 0 | U142: D-N | V142: 0 | X142: 0
B143: 315 EDUCACION TRUJILLO NOR OESTE | E143: 0 | G143: 0 | I143: 0 | L143: 0 | M143: 0 | O143: 315 | P143: D-N | S143: 0 | U143: D-N | V143: 0 | X143: 0
B144: 316 EDUCACION TRUJILLO SUR ESTE | E144: 0 | G144: 0 | I144: 0 | L144: 0 | M144: 0 | O144: 316 | P144: D-N | S144: 0 | U144: D-N | V144: 0 | X144: 0
G145: 0 | I145: 0 | M145: =+E145+G145+L145 -> 0 | S145: 0 | V145: 0 | X145: 0
B146: SALUD | C146: =SUM(C147:C161) -> 0 | D146: 0 | E146: 0 | F146: 0 | G146: 0 | H146: 0 | I146: 0 | J146: 0 | K146: 3748466 | L146: 3748466 | M146: 3748466 | Q146: =SUM(Q147:Q161) -> 0 | R146: =SUM(R147:R161) -> 3748466 | S146: =SUM(S147:S161) -> 3748466 | V146: =SUM(V147:V161) -> 3748466 | W146: =SUM(W147:W161) -> 0 | X146: =SUM(X147:X161) -> -3748466
B147: 400 SALUD LA LIBERTAD | E147: =SUM(C147:D147) -> 0 | G147: =+F147 -> 0 | I147: =+H147 -> 0 | K147: 3748466 | L147: =SUM(J147:K147) -> 3748466 | M147: =+E147+G147+I147+L147 -> 3748466 | O147: 400 | P147: T-7 | R147: =+K147 -> 3748466 | S147: =SUM(Q147:R147) -> 3748466 | U147: T-7 | V147: =+R147 -> 3748466 | X147: =+W147-V147 -> -3748466
B148: 401 INSTIT. REG.DE OFTALMOLOGIA | E148: 0 | G148: 0 | I148: 0 | L148: 0 | M148: 0 | O148: 401 | P148: T-7 | S148: 0 | U148: T-7 | V148: 0 | X148: 0
B149: 402 SALUD NORTE ASCOPE | E149: 0 | G149: 0 | I149: 0 | L149: 0 | M149: 0 | O149: 402 | P149: T-7 | S149: 0 | U149: T-7 | V149: 0 | X149: 0
B150: 403 SALUD TRUJILLO SUR OESTE | E150: 0 | G150: 0 | I150: 0 | L150: 0 | M150: 0 | O150: 403 | P150: T-7 | S150: 0 | U150: T-7 | V150: 0 | X150: 0
B151: 404 SALUD CHEPEN | E151: 0 | G151: 0 | I151: 0 | L151: 0 | M151: 0 | O151: 404 | P151: T-7 | S151: 0 | U151: T-7 | V151: 0 | X151: 0
B152: 405 SALUD PACASMAYO | E152: 0 | G152: 0 | I152: 0 | L152: 0 | M152: 0 | O152: 405 | P152: T-7 | S152: 0 | U152: T-7 | V152: 0 | X152: 0
B153: 406 SALUD SANCHEZ CARRION | E153: 0 | G153: 0 | I153: 0 | L153: 0 | M153: 0 | O153: 406 | P153: T-7 | S153: 0 | U153: T-7 | V153: 0 | X153: 0
B154: 407 SALUD SANTIAGO DE CHUCO | E154: 0 | G154: 0 | I154: 0 | L154: 0 | M154: 0 | O154: 407 | P154: T-7 | S154: 0 | U154: T-7 | V154: 0 | X154: 0
B155: 408 SALUD OTUZCO | E155: 0 | G155: 0 | I155: 0 | L155: 0 | M155: 0 | O155: 408 | P155: T-7 | S155: 0 | U155: T-7 | V155: 0 | X155: 0
B156: 409 SALUD TRUJILLO ESTE | E156: 0 | G156: 0 | I156: 0 | L156: 0 | M156: 0 | O156: 409 | P156: T-7 | S156: 0 | U156: T-7 | V156: 0 | X156: 0
B157: 410 INSTIT.REG.DE ENFERM.NEOPLASICAS | E157: 0 | G157: 0 | I157: 0 | L157: 0 | M157: 0 | O157: 410 | P157: T-7 | S157: 0 | U157: T-7 | V157: 0 | X157: 0
B158: 411 SALUD JULCAN | E158: 0 | G158: 0 | I158: 0 | L158: 0 | M158: 0 | O158: 411 | P158: T-7 | S158: 0 | U158: T-7 | V158: 0 | X158: 0
B159: 412 SALUD VIRU | E159: 0 | G159: 0 | I159: 0 | L159: 0 | M159: 0 | O159: 412 | P159: T-7 | S159: 0 | U159: T-7 | V159: 0 | X159: 0
B160: 413 SALUD ASCOPE | E160: 0 | G160: 0 | I160: 0 | L160: 0 | M160: 0 | O160: 413 | P160: T-7 | S160: 0 | U160: T-7 | V160: 0 | X160: 0
B161: 414 SALUD GRAN CHIMU | E161: 0 | G161: 0 | I161: 0 | L161: 0 | M161: 0 | O161: 414 | P161: T-7 | S161: 0 | U161: T-7 | V161: 0 | X161: 0
B162: TOTAL PLIEGO | C162: =+C122+C123+C124+C125+C127+C146 -> 0 | D162: 0 | E162: 0 | F162: 0 | G162: 0 | H162: 0 | I162: 0 | J162: 0 | K162: 3748466 | L162: 3748466 | M162: 3748466 | Q162: =+Q122+Q123+Q124+Q125+Q127+Q146 -> 0 | R162: =+R122+R123+R124+R125+R127+R146 -> 3748466 | S162: =+S122+S123+S124+S125+S127+S146 -> 3748466 | V162: =+V122+V123+V124+V125+V127+V146 -> 3748466 | W162: =+W122+W123+W124+W125+W127+W146 -> 0 | X162: =+X122+X123+X124+X125+X127+X146 -> -3748466
W163: =+R162 -> 3748466
Q164: =+O164-M164 -> 0 | W164: =+W163-W162 -> 3748466
B165: =+B3 -> FORMULACION PRESUPUESTO AÑO 2020
B166: =+B4 -> TECHOS PRESUPUESTALES DE INGRESOS POR UNIDADES EJECUTORAS
B167: =+B5 -> PLIEGO : 451 GOBIERNO REGIONAL DEL DEPARTAMENTO DE LA LIBERTAD
B168: ( En Nuevos Soles )
B170: FTE.FTO. : 5 RECURSOS DETERMINADOS | P170: FORMULACION 2018 | U170: =+U8 -> SALDO SEGÚN ACTA 2018
Q171: =+O171-M171 -> 0 | V171: =+T171-R171 -> 0
B172: UNIDADES EJECUTORAS | C172: INGRESOS CORRIENTE | F172: INGRESOS DE CAPITAL | H172: TRANSFERENCIAS | J172: FINANCIAMIENTO | M172: TOTAL | Q172: MONTOS APROBADOS EN EL PIA QUE INCLUYE SALDOS DE BALANCE PROYECTADO | S172: TOTAL | V172: =+V10 -> MONTOS DETERM INADOS SEGÚN ACTA DE CONCILIACION POR UNIDADES EJECUTORAS AÑO 2018 | X172: TOTAL
C173: 1.3 | D173: 1.5 | E173: SUBTOTAL INGR.CTE. | F173: 1.6 | G173: SUBTOTAL INGR.CAP. | H173: 1.4 | I173: SUBTOTAL TRANSFER. | J173: 1.8 | K173: 1.9 | L173: SUBTOTAL FINANCIAM.
C174: VENTA DE | D174: OTROS | F174: VENTA DE | H174: DONAC. Y | J174: EMDEUD. | K174: ADQ. ACTIVOS
C175: BNS Y SERV | D175: INGRESOS | F175: ACT.NO FIN | H175: TRANSFER | K175: NO FINCIEROS | Q175: ASIGNACION | R175: SALDO BAL. | V175: AUTORIZADO | W175: SALDO ACTA
B176: 001 SEDE LA LIBERTAD | E176: =SUM(C176:D176) -> 0 | G176: =+F176 -> 0 | H176: 26324938 | I176: =+H176 -> 26324938 | L176: =SUM(J176:K176) -> 0 | M176: =+E176+G176+I176+L176 -> 26324938 | P176: 001 | Q176: =+I176 -> 26324938 | R176: =+K176 -> 0 | S176: =SUM(Q176:R176) -> 26324938 | U176: 001 | V176: =+R176 -> 0 | X176: =+W176-V176 -> 0
B177: 005 PROYECTO ESPEC.CHAVIMOCHIC | E177: =SUM(C177:D177) -> 0 | G177: =+F177 -> 0 | H177: 15575093 | I177: =+H177 -> 15575093 | K177: 20015005 | L177: =SUM(J177:K177) -> 20015005 | M177: =+E177+G177+I177+L177 -> 35590098 | P177: 005 | R177: =+K177 -> 20015005 | S177: =SUM(Q177:R177) -> 20015005 | U177: 005 | V177: =+R177 -> 20015005 | X177: =+W177-V177 -> -20015005
B178: 100 AGRICULTURA LA LIBERTAD | E178: =SUM(C178:D178) -> 0 | G178: =+F178 -> 0 | I178: =+H178 -> 0 | L178: =SUM(J178:K178) -> 0 | M178: =+E178+G178+I178+L178 -> 0 | P178: 100 | S178: =SUM(Q178:R178) -> 0 | U178: 100 | X178: =SUM(V178:W178) -> 0
B179: 200 TRANSPORTES LA LIBERTAD | E179: =SUM(C179:D179) -> 0 | G179: =+F179 -> 0 | I179: =+H179 -> 0 | L179: =SUM(J179:K179) -> 0 | M179: =+E179+G179+I179+L179 -> 0 | P179: 200 | S179: =SUM(Q179:R179) -> 0 | U179: 200 | X179: =SUM(V179:W179) -> 0
S180: =SUM(Q180:R180) -> 0 | X180: =SUM(V180:W180) -> 0
B181: EDUCACION | C181: =SUM(C182:C198) -> 0 | D181: 0 | E181: 0 | F181: 0 | G181: 0 | H181: 0 | I181: 0 | J181: 0 | K181: 0 | L181: 0 | M181: 0 | Q181: =SUM(Q182:Q198) -> 0 | R181: =SUM(R182:R198) -> 0 | S181: =SUM(S182:S198) -> 0 | V181: =SUM(V182:V198) -> 0 | W181: =SUM(W182:W198) -> 0 | X181: =SUM(X182:X198) -> 0
B182: 300 EDUCACION LA LIBERTAD | E182: =SUM(C182:D182) -> 0 | G182: =+F182 -> 0 | I182: =+H182 -> 0 | L182: =SUM(J182:K182) -> 0 | M182: =+E182+G182+I182+L182 -> 0 | P182: 300 | S182: =SUM(Q182:R182) -> 0 | U182: 300 | X182: =SUM(V182:W182) -> 0
B183: 301 EDUCACION CHEPEN | E183: 0 | G183: 0 | I183: 0 | L183: 0 | M183: 0 | P183: 301 | S183: 0 | U183: 301 | X183: 0
B184: 302 EDUCACION PACASMAYO | E184: 0 | G184: 0 | I184: 0 | L184: 0 | M184: 0 | P184: 302 | S184: 0 | U184: 302 | X184: 0
B185: 303 EDUCACION ASCOPE | E185: 0 | G185: 0 | I185: 0 | L185: 0 | M185: 0 | P185: 303 | S185: 0 | U185: 303 | X185: 0
B186: 304 EDUCACION GRAN CHIMU | E186: 0 | G186: 0 | I186: 0 | L186: 0 | M186: 0 | P186: 304 | S186: 0 | U186: 304 | X186: 0
B187: 305 EDUCACION OTUZCO | E187: 0 | G187: 0 | I187: 0 | L187: 0 | M187: 0 | P187: 305 | S187: 0 | U187: 305 | X187: 0
B188: 306 EDUCACION SANTIAGO DE CHUCO | E188: 0 | G188: 0 | I188: 0 | L188: 0 | M188: 0 | P188: 306 | S188: 0 | U188: 306 | X188: 0
B189: 307 EDUCACION SANCHEZ CARRION | E189: 0 | G189: 0 | I189: 0 | L189: 0 | M189: 0 | P189: 307 | S189: 0 | U189: 307 | X189: 0
B190: 308 EDUCACION PATAZ | E190: 0 | G190: 0 | I190: 0 | L190: 0 | M190: 0 | P190: 308 | S190: 0 | U190: 308 | X190: 0
B191: 309 EDUCACION BOLIVAR | E191: 0 | G191: 0 | I191: 0 | L191: 0 | M191: 0 | P191: 309 | S191: 0 | U191: 309 | X191: 0
B192: 310 COLEGIO MILITAR RAMON CASTILLA | E192: 0 | G192: 0 | I192: 0 | L192: 0 | M192: 0 | P192: 310 | S192: 0 | U192: 310 | X192: 0
B193: 311 EDUCACION JULCAN | E193: 0 | G193: 0 | I193: 0 | L193: 0 | M193: 0 | P193: 311 | S193: 0 | U193: 311 | X193: 0
B194: 312 EDUCACION VIRU | E194: 0 | G194: 0 | I194: 0 | L194: 0 | M194: 0 | P194: 312 | S194: 0 | U194: 312 | X194: 0
B195: 313 EDUCACION EL PORVENIR | E195: 0 | G195: 0 | I195: 0 | L195: 0 | M195: 0 | P195: 313 | S195: 0 | U195: 313 | X195: 0
B196: 314 EDUCACION LA ESPERANZA | E196: 0 | G196: 0 | I196: 0 | L196: 0 | M196: 0 | P196: 314 | S196: 0 | U196: 314 | X196: 0
B197: 315 EDUCACION TRUJILLO NOR OESTE | E197: 0 | G197: 0 | I197: 0 | L197: 0 | M197: 0 | P197: 315 | S197: 0 | U197: 315 | X197: 0
B198: 316 EDUCACION TRUJILLO SUR ESTE | E198: 0 | G198: 0 | I198: 0 | L198: 0 | M198: 0 | P198: 316 | S198: 0 | U198: 316 | X198: 0
G199: 0 | I199: 0 | M199: =+E199+G199+L199 -> 0 | S199: 0 | X199: 0
B200: SALUD | C200: =SUM(C201:C215) -> 0 | D200: 0 | E200: 0 | F200: 0 | G200: 0 | H200: 0 | I200: 0 | J200: 0 | K200: 0 | L200: 0 | M200: 0 | Q200: =SUM(Q201:Q215) -> 0 | R200: =SUM(R201:R215) -> 0 | S200: =SUM(S201:S215) -> 0 | V200: =SUM(V201:V215) -> 0 | W200: =SUM(W201:W215) -> 0 | X200: =SUM(X201:X215) -> 0
B201: 400 SALUD LA LIBERTAD | E201: =SUM(C201:D201) -> 0 | G201: =+F201 -> 0 | I201: =+H201 -> 0 | L201: =SUM(J201:K201) -> 0 | M201: =+E201+G201+I201+L201 -> 0 | P201: 400 | S201: =SUM(Q201:R201) -> 0 | U201: 400 | X201: =SUM(V201:W201) -> 0
B202: 401 INSTIT. REG.DE OFTALMOLOGIA | E202: 0 | G202: 0 | I202: 0 | L202: 0 | M202: 0 | P202: 401 | S202: 0 | U202: 401 | X202: 0
B203: 402 SALUD NORTE ASCOPE | E203: 0 | G203: 0 | I203: 0 | L203: 0 | M203: 0 | P203: 402 | S203: 0 | U203: 402 | X203: 0
B204: 403 SALUD TRUJILLO SUR OESTE | E204: 0 | G204: 0 | I204: 0 | L204: 0 | M204: 0 | P204: 403 | S204: 0 | U204: 403 | X204: 0
B205: 404 SALUD CHEPEN | E205: 0 | G205: 0 | I205: 0 | L205: 0 | M205: 0 | P205: 404 | S205: 0 | U205: 404 | X205: 0
... 78 more rows

Sheet F.01
B2: FORMATO 01
B3: INDICADORES DE GESTION SEGÚN OBJETIVOS ESTRATEGICOS INSTITUCIONALES AL 2021
B5: SECTOR: 99 GOBIERNOS REGIONALES
B6: PLIEGO : 451 GOBIERNO REGIONAL LA LIBERTAD
B8: PLIEGO | C8: Objetivo Estrategico Sectorial (Código) | D8: Objetivo Estrategico Institucional (Código y Enunciado) | E8: Nombre del Indicador | F8: Linea Base | G8: Meta 2021 | H8: Fuente de Información | I8: Responsable | J8: 2018 | L8: 2019 | N8: 2020 | O8: 2021
J9: Meta | K9: Resultado | L9: Meta | M9: Proyectado | N9: Meta | O9: Meta
B10: GOBIERNO REGIONAL LA LIBERTAD | D10: OEI.01 Garantizar servicios de salud integral a la población de La Libertad | E10: Prevalencia de Desnutrición crónica en niños menores de 5 años | F10: 0.148 | G10: 0.08 | H10: Encuesta Nacional de Hogares (ENAHO, INEI) | I10: GR de Salud/Subgerencia de Cuidado Integral | J10: 0.148 | K10: 0.148 | L10: 0.148 | M10: 0.148 | N10: 0.1 | O10: 0.08
E11: Porcentaje de anemia en menores de 36 meses | F11: 0.379 | G11: 0.22 | H11: ENDES | J11: 0.379 | K11: 0.435 | L11: 0.379 | M11: 0.379 | N11: 0.27 | O11: 0.22
D12: OEI.02 Mejorar el servicio educativo de calidad a la población estudiantil de La Libertad | E12: Porcentaje de estudiantes de 2° grado de primaria de instituciones educativas públicas y privadas, que se encuentran en el nivel satisfactorio en comprensión lectora | F12: 0.398 | G12: 0.48 | H12: Evaluación Censal de Estudiantes (ECE) | I12: GR de Educación | J12: 0.398 | K12: 0.398 | L12: 0.398 | M12: 0.398 | N12: 0.43 | O12: 0.48
E13: Porcentaje de estudiantes de 2° grado de primaria de instituciones educativas públicas y privadas, que se encuentran en el nivel satisfactorio en habilidades matemáticas | F13: 0.305 | G13: 0.48 | H13: Evaluación Censal de Estudiantes (ECE) | J13: 0.305 | K13: 0.305 | L13: 0.305 | M13: 0.305 | N13: 0.43 | O13: 0.48
D14: OEI.03 Mejorar el acceso, cobertura y calidad de los servicios básicos de manera sostenible en La Libertad | E14: Porcentaje de viviendas con acceso al servicios de agua potable por red pública | F14: 0.8207 | G14: 0.8607 | H14: Encuesta demográfica y salud familiar ENDES | I14: Gerencia Regional de Vivienda, Construcción y Saneamiento | J14: 0.8207 | K14: 0.8207 | L14: 0.8207 | M14: 0.8207 | N14: 0.8507 | O14: 0.8607
E15: Porcentaje de viviendas con acceso a alcantarillado por red pública | F15: 0.6795 | G15: 0.7195 | H15: Encuesta demográfica y salud familiar ENDES | J15: 0.6795 | K15: 0.6795 | L15: 0.6795 | M15: 0.6795 | N15: 0.7095 | O15: 0.7195
D16: OEI.04 Promover el acceso y cobertura integral de los servicios sociales a la población de la región La Libertad | E16: Porcentaje de distritos priorizados en los quintiles 1 y 2 de pobreza | F16: 0.15 | G16: 0.5 | H16: Encuesta demográfica y salud familiar ENDES | I16: Gerencia Regional de Desarrollo e Inclusión Social | J16: 0.15 | K16: 0.15 | L16: 0.15 | M16: 0.15 | N16: 0.3 | O16: 0.5
D17: OEI.05 Promover la competitividad del agro y la seguridad jurídica de la propiedad de los productores agrarios de la libertad | E17: Porcentaje de pequeños productores que aplican tecnología innovadora para la obtención de productos de calidad | F17: 0.27 | G17: 0.35 | H17: Reporte de logros en competitividad de productores agrarios | I17: Gerencia Regional de Agricultura (GRA)-Sub Gerencia de Competitividad Agraria | J17: 0.27 | K17: 0.27 | L17: 0.27 | M17: 0.27 | N17: 0.32 | O17: 0.35
E18: Número de hectáreas con plantación forestal con técnicas adecuadas y, de aprovechamiento con documentos de gestión aprobados | F18: 651 | G18: 1218 | H18: Reporte de hectáreas que cuentan con plantación forestal | I18: Gerencia Regional de Agricultura (GRA)- Sub Gerencia de Desarrollo de Recursos Naturales e Infraestructura Agraria | J18: 651 | K18: 651 | L18: 651 | M18: 651 | N18: 1108 | O18: 1218
D19: OEI.06 Asegurar el acceso integral y de calidad a los servicios públicos de Transporte y Telecomunicaciones en La Libertad | E19: Tasa de accidentes de tránsito por cada 10,000 vehículos | F19: 231 | G19: 137 | H19: Reporte de accidentes de tránsito PNP | I19: Gerencia Regional de Transportes y Comunicaciones | J19: 231 | K19: 231 | L19: 231 | M19: 231 | N19: 160 | O19: 137
E20: Porcentaje de Gobiernos Locales con acceso a internet | F20: 0.8916 | G20: 0.9398 | H20: Informe semestral de conectividad | I20: Gerencia Regional de Transportes y Comunicaciones | J20: 0.8916 | K20: 0.8916 | L20: 0.8916 | M20: 0.8916 | N20: 0.9157 | O20: 0.9398
D21: OEI.07 Fortalecer la productividad e innovación de los agentes económicos en La Libertad | E21: Porcentaje de Gasto público en investigación y desarrollo | F21: 0.0416 | G21: 0.056 | H21: Reporte de innovación y productividad en la región | I21: Gerencia Regional de La Producción | J21: 0.0416 | K21: 0.0416 | L21: 0.0416 | M21: 0.0416 | N21: 0.051 | O21: 0.056
D22: OEI.08 Promover el empleo digno y productivo y la formalización laboral en La Libertad | E22: Porcentaje de PEA ocupada adecuadamente | F22: 0.44 | G22: 0.704 | H22: Perú Perfil Sociodemográfico La Libertad | I22: Gerencia Regional de Trabajo y Promoción del Empleo. | J22: 0.44 | K22: 0.44 | L22: 0.44 | M22: 0.44 | N22: 0.65 | O22: 0.704
E23: Tasa de informalidad laboral | F23: 0.75 | G23: 0.73 | J23: 0.75 | K23: 0.75 | L23: 0.75 | M23: 0.75 | N23: 0.74 | O23: 0.73
D24: OEI.09 Promover el acceso al mercado de los destinos turísticos, productos exportables y artesanales de la región La Libertad | E24: Porcentaje de productos exportables promovidos | F24: 0.05 | G24: 0.3 | H24: Informe regional de Actividad exportadora | I24: Gerencia Regional de Comercio Exterior, Turismo y Artesanía | J24: 0.05 | K24: 0.05 | L24: 0.05 | M24: 0.05 | N24: 0.2 | O24: 0.3
E25: Porcentaje de recursos turísticos inventariados intervenidos | F25: 0.0427 | G25: 0.0769 | H25: Reporte de recursos turísticos inventariados La Libertad | J25: 0.0427 | K25: 0.0427 | L25: 0.0427 | M25: 0.0427 | N25: 0.0598 | O25: 0.0769
E26: Porcentaje de líneas artesanales fortalecidas en diseño, modelaje y comercialización | F26: 0.45 | G26: 0.35 | H26: Registro de productores artesanales de La Libertad | J26: 0.45 | K26: 0.45 | L26: 0.45 | M26: 0.45 | N26: 0.38 | O26: 0.35
D27: OEI. 10.Promover, evaluar y fiscalizar actividades sostenibles en los sectores minería, energía e hidrocarburos en La Libertad | E27: Porcentaje de productores mineros formalizados | F27: 0.07 | G27: 1 | H27: Registro de resoluciones emitidas por Subgerencia de Minería | I27: Sub Gerencia de Minas | J27: 0.07 | K27: 0.07 | L27: 0.07 | M27: 0.07 | N27: 1 | O27: 1
E28: Porcentaje de certificaciones ambientales emitidas, para proyectos energéticos | F28: nd | G28: 1 | H28: Resoluciones finales emitidas por Subgerencia de Energía e Hidrocarburos | I28: Sub Gerente de Energía e Hidrocarburos | J28: nd | K28: nd | L28: nd | M28: nd | N28: 1 | O28: 1
E29: Porcentaje de certificaciones ambientales emitidas, para inversiones en hidrocarburos | F29: nd | G29: 1 | H29: Registro de resoluciones emitidas por la Subgerencia de Energía e Hidrocarburos | I29: Sub Gerente de Energía e Hidrocarburos | J29: nd | K29: nd | L29: nd | M29: nd | N29: 1 | O29: 1
D30: OEI. 11.Mejorar la infraestructura en beneficio de la población de La Libertad | E30: Porcentaje de avance en ejecución financiera de proyectos de inversión | F30: 0.35 | G30: 0.78 | H30: Programa Multianual de Inversiones | I30: Gerencia Regional de Infraestructura | J30: 0.35 | K30: 0.35 | L30: 0.35 | M30: 0.35 | N30: 0.65 | O30: 0.78
D31: OEI. 12.Promover la conservación y el aprovechamiento sostenible de los recursos naturales en La Libertad | E31: Porcentaje de Instrumentos implementados para la mejora de la Gestión Ambiental Regional | F31: 0.4 | G31: 0.8 | H31: Sistema de Información Ambiental Regional La Libertad y del MINAM. | I31: Sub Gerencia de Recursos Naturales y Sub Gerencia de Gestión Ambiental | J31: 0.4 | K31: 0.4 | L31: 0.4 | M31: 0.4 | N31: 0.6 | O31: 0.8
D32: OEI. 13.Fortalecer espacios de coordinación interinstitucional articulados en la gestión de riesgo de desastres en La Libertad | E32: Porcentaje de Gobiernos Locales y sus plataformas de defensa civil con capacidades fortalecidas en Gestión del Riesgo de Desastres | F32: 0.5 | G32: 1 | H32: Informe de articulación en Gestión de Riesgo de Desastres | I32: Sub Gerencia de Defensa Civil | J32: 0.5 | K32: 0.5 | L32: 0.5 | M32: 0.5 | N32: 1 | O32: 1
E33: Porcentaje de organizaciones de primera respuesta con capacidades fortalecidas en Gestión del Riesgo de Desastres | F33: 0.5 | G33: 1 | H33: Informe de articulación en Gestión de Riesgo de Desastres | J33: 0.5 | K33: 0.5 | L33: 0.5 | M33: 0.5 | N33: 1 | O33: 1
D34: OEI. 14.Fortalecer una gestión institucional moderna, transparente y participativa | E34: Porcentaje de la población adulta que considera que la gestión pública del Gobierno Regional es buena o muy buena | F34: 0.265 | G34: 0.4 | H34: Memoria institucional | I34: Gerencia Regional de Planeamiento y Acondicionamiento Territorial | J34: 0.265 | K34: 0.265 | L34: 0.265 | M34: 0.265 | N34: 0.35 | O34: 0.4
E35: Número de servidoras/es civiles que han sido sancionadas/os por la Contraloría General de la República-CGR | F35: 26 | G35: 10 | H35: Informe Recursos Humanos | I35: Subgerencia de Recursos Humanos | J35: 26 | K35: 26 | L35: 26 | M35: 26 | N35: 12 | O35: 10
D36: OEI. 15.Fortalecer integral y oportunamente a las instituciones comprometidas con la seguridad ciudadana de la región La Libertad | E36: Porcentaje de Gobiernos Locales Provinciales con capacidades fortalecidas de gestión en seguridad ciudadana | F36: 1 | G36: 1 | H36: Informe de capacidades fortalecidas en seguridad ciudadana | I36: Sub Gerencia de Seguridad Ciudadana | J36: 1 | K36: 1 | L36: 1 | M36: 1 | N36: 1 | O36: 1
E37: Numero de organizaciones sociales (Rondas Campesinas y Juntas Vecinales) con capacidades fortalecidas en gestión de seguridad ciudadana | F37: 100 | G37: 250 | H37: Informe de capacidades fortalecidas en seguridad ciudadana | J37: 100 | K37: 100 | L37: 100 | M37: 100 | N37: 200 | O37: 250

Sheet F.02
B2: FORMATO N° 02
B3: DISTRIBUCION DEL PRESUPUESTO POR CATEGORIA PRESUPUESTAL 2018, 2019 Y PROYECTO 2020
B4: PROYECTO DE PRESUPUESTO - 2020
B5: SECTOR : 99 GOBIERNOS REGIONALES
B6: PLIEGO : 451 GOBIERNO REGIONAL LA LIBERTAD
B7: FTE FTO :
B8: P.I.A. | C8: 2018 | D8: 2019 | E8: 2020
B9: POR CATEGORIA PRESUPUESTAL | G9: 2019
G10: FALTA INGRESAR PIM
B11: 1: Acciones Centrales (AC) | C11: 127565933 | D11: 186496981 | E11: 191829182 | G11: FALTA INGRESAR EJECUCION PROYECTADA
B13: 2: Asignaciones Presupuestales que No Resultan en Productos (APNP) | C13: 427766559 | D13: 396014201 | E13: 404793865
G14: AÑO 2020
B15: 3: Programas Presupuestales | C15: 1460148628 | D15: 1284161818 | E15: 1409243492
G16: PIM : SE INGRESO EL MISMO IMPORTE DEL PIA
B17: PIA TOTAL S/ | C17: =SUM(C11:C16) -> 2015481120 | D17: =SUM(D11:D16) -> 1866673000 | E17: 2005866539 | G17: EJECUCION PROYECTADA : SE INGRESOS EL MISMO IMPORTE DEL PIA
B20: P.I.M. | C20: 2018 | D20: 2019 | E20: 2020
B21: POR CATEGORIA PRESUPUESTAL
B23: 1: Acciones Centrales (AC) | C23: 225452498 | D23: 240344719 | E23: 191829182
B25: 2: Asignaciones Presupuestales que No Resultan en Productos (APNP) | C25: 586029001 | D25: 499276735 | E25: 404793865
B27: 3: Programas Presupuestales | C27: 1754548817 | D27: 1469132772 | E27: 1409243492
B29: PIM TOTAL S/ | C29: =SUM(C23:C28) -> 2566030316 | D29: =SUM(D23:D28) -> 2208754226 | E29: =SUM(E23:E28) -> 2005866539
B32: EJECUCION | C32: 2018 | D32: 2019 | E32: 2020
B33: POR CATEGORIA PRESUPUESTAL
B35: 1: Acciones Centrales (AC) | C35: 214982963.9 | D35: 211132956 | E35: 191829182
B37: 2: Asignaciones Presupuestales que No Resultan en Productos (APNP) | C37: 471073048.4 | D37: 427640661 | E37: 404793865
B39: 3: Programas Presupuestales | C39: 1169868784 | D39: 1272318895 | E39: 1409243492
B41: EJECUCION TOTAL S/ | C41: =SUM(C35:C40) -> 1855924796 | D41: =SUM(D35:D40) -> 1911092512 | E41: =SUM(E35:E40) -> 2005866539
B43: (*) Proyeccion a 31/12/2019 | C43: OK | D43: OK | E43: OK
B44: (**) Proyecto 2020
B46: PROYECTO DE PRESUPUESTO PARA EL AÑO FISCAL 2020
B47: INFORMACION PARA LA COMISION DE PRESUPUESTO Y CUENTA GENERAL DE LA REPUBLICA DEL CONGRESO DE LA REPUBLICA

Sheet F.03
D2: FORMATO N° 03
D3: DISTRIBUCION DEL PRESUPUESTO POR FUENTE DE FINANCIAMIENTO 2018, 2019 Y PROYECTO 2020
D4: PROYECTO DE PRESUPUESTO - 2020
D5: SECTOR : 99 GOBIERNOS REGIONALES
D6: PLIEGO : 451 GOBIERNO REGIONAL LA LIBERTAD
D8: P.I.A. | E8: 2018 | F8: 2019 | G8: 2020
D9: POR FUENTE DE FINANCIAMIENTO
D10: CONSOLIDADO | E10: =+E11+E18+E23 -> 2015481120 | F10: =+F11+F18+F23 -> 1866673000 | G10: =+G11+G18+G23 -> 2005866539 | I10: AÑO 2019
D11: GASTOS CORRIENTES | E11: =SUM(E12:E17) -> 1407809059 | F11: =SUM(F12:F17) -> 1497634211 | G11: 1623426221 | I11: FALTA INGRESAR PIM
D12: 1: Reserva de ContingenciaAcciones Centrales (AC) | E12: =+E28+E44+E60+E76+E92 -> 0 | F12: =+F28+F44+F60+F76+F92 -> 0 | G12: =+G28+G44+G60+G76+G92 -> 0
B13: 2.1 | D13: 2: Personal y Obligaciones Sociales | E13: =+E29+E45+E61+E77+E93 -> 1007863475 | F13: 1091124191 | G13: 1198963270 | I13: FALTA INGRESAR EJECUCION PROYECTADA
B14: 2.2 | D14: 3: Pensiones y Prestaciones Sociales | E14: =+E30+E46+E62+E78+E94 -> 179231072 | F14: 184605850 | G14: 189632677
B15: 2.3 | D15: 4: Bienes y Servicios | E15: =+E31+E47+E63+E79+E95 -> 214395686 | F15: =+F31+F47+F63+F79+F95 -> 215693312 | G15: 233499190 | I15: AÑO 2020
B16: 2.4 | D16: 5: Donaciones y Transferencias (corrientes) | E16: =+E32+E48+E64+E80+E96 -> 0 | F16: 0 | G16: 0
B17: 2.5 | D17: 6: Otros Gastos (corrientes) | E17: =+E33+E49+E65+E81+E97 -> 6318826 | F17: 6210858 | G17: 1331084 | I17: PIM : SE INGRESO EL MISMO IMPORTE DEL PIA
D18: GASTOS DE CAPITAL | E18: =SUM(E19:E22) -> 597201526 | F18: =SUM(F19:F22) -> 343447131 | G18: 350517388 | I18: EJECUCION PROYECTADA : SE INGRESOS EL MISMO IMPORTE DEL PIA
B19: 2.4 | D19: 7: Donaciones y Transferencias (de capital) | E19: =+E35+E51+E67+E83+E99 -> 0 | F19: 10080749 | G19: 0
B20: 2.5 | D20: 8: Otros Gastos (de capital) | E20: =+E36+E52+E68+E84+E100 -> 0 | F20: 0 | G20: 0
B21: 2.6 | D21: 9: Adquisiciones de Activos No Financieros | E21: =+E37+E53+E69+E85+E101 -> 597201526 | F21: 333366382 | G21: 350517388
B22: 2.7 | D22: 10: Adquisiciones de Activos Financieros | E22: =+E38+E54+E70+E86+E102 -> 0 | F22: 0 | G22: 0
D23: SERVICIO DE DEUDA | E23: =+E24 -> 10470535 | F23: =+F24 -> 25591658 | G23: 31922930
B24: 2.8 | D24: 11: Servicio de Deuda | E24: =+E40+E56+E72+E88+E104 -> 10470535 | F24: =+F40+F56+F72+F88+F104 -> 25591658 | G24: 31922930
D26: RECURSOS ORDINARIOS | E26: =+E27+E34+E39 -> 1370490992 | F26: =+F27+F34+F39 -> 1479117577 | G26: =+G27+G34+G39 -> 1625971348
D27: GASTOS CORRIENTES | E27: =SUM(E28:E33) -> 1317254327 | F27: =SUM(F28:F33) -> 1429912434 | G27: =SUM(G28:G33) -> 1571152547
D28: 1: Reserva de ContingenciaAcciones Centrales (AC)
B29: 2.1 | D29: 2: Personal y Obligaciones Sociales | E29: 1007471170 | F29: 1091014908 | G29: =+'B.DATOS (GASTOS)'!F338 -> 1198853987
B30: 2.2 | D30: 3: Pensiones y Prestaciones Sociales | E30: 179231072 | F30: 184605850 | G30: =+'B.DATOS (GASTOS)'!F339 -> 189632677
B31: 2.3 | D31: 4: Bienes y Servicios | E31: 129620979 | F31: 153260570 | G31: =+'B.DATOS (GASTOS)'!F340 -> 181889287
B32: 2.4 | D32: 5: Donaciones y Transferencias (corrientes)
B33: 2.5 | D33: 6: Otros Gastos (corrientes) | E33: 931106 | F33: 1031106 | G33: =+'B.DATOS (GASTOS)'!F341 -> 776596
D34: GASTOS DE CAPITAL | E34: =SUM(E35:E38) -> 53236665 | F34: =SUM(F35:F38) -> 49205143 | G34: 54818801
B35: 2.4 | D35: 7: Donaciones y Transferencias (de capital)
B36: 2.5 | D36: 8: Otros Gastos (de capital)
B37: 2.6 | D37: 9: Adquisiciones de Activos No Financieros | E37: 53236665 | F37: 49205143 | G37: =+'B.DATOS (GASTOS)'!F344 -> 54818801
B38: 2.7 | D38: 10: Adquisiciones de Activos Financieros
D39: SERVICIO DE DEUDA | E39: =+E40 -> 0 | F39: =+F40 -> 0 | G39: 0
B40: 2.8 | D40: 11: Servicio de Deuda | G40: =+'B.DATOS (GASTOS)'!F346 -> 0
D42: RECURSOS DIRECTAMENTE RECAUDADOS | E42: =+E43+E50+E55 -> 143590395 | F42: =+F43+F50+F55 -> 113629273 | G42: =+G43+G50+G55 -> 97364574
D43: GASTOS CORRIENTES | E43: =SUM(E44:E49) -> 59744745 | F43: =SUM(F44:F49) -> 59786835 | G43: 43059109
D44: 1: Reserva de ContingenciaAcciones Centrales (AC)
B45: 2.1 | D45: 2: Personal y Obligaciones Sociales | F45: 109283 | G45: =+'B.DATOS (GASTOS)'!G338 -> 109283
B46: 2.2 | D46: 3: Pensiones y Prestaciones Sociales | G46: =+'B.DATOS (GASTOS)'!G339 -> 0
B47: 2.3 | D47: 4: Bienes y Servicios | E47: 54557025 | F47: 54497800 | G47: =+'B.DATOS (GASTOS)'!G340 -> 42395338
B48: 2.4 | D48: 5: Donaciones y Transferencias (corrientes)
B49: 2.5 | D49: 6: Otros Gastos (corrientes) | E49: 5187720 | F49: 5179752 | G49: =+'B.DATOS (GASTOS)'!G341 -> 554488
D50: GASTOS DE CAPITAL | E50: =SUM(E51:E54) -> 73375115 | F50: =SUM(F51:F54) -> 43371903 | G50: 33859549
B51: 2.4 | D51: 7: Donaciones y Transferencias (de capital)
B52: 2.5 | D52: 8: Otros Gastos (de capital)
B53: 2.6 | D53: 9: Adquisiciones de Activos No Financieros | E53: 73375115 | F53: 43371903 | G53: =+'B.DATOS (GASTOS)'!G344 -> 33859549
B54: 2.7 | D54: 10: Adquisiciones de Activos Financieros
D55: SERVICIO DE DEUDA | E55: =+E56 -> 10470535 | F55: =+F56 -> 10470535 | G55: 20445916
B56: 2.8 | D56: 11: Servicio de Deuda | E56: 10470535 | F56: 10470535 | G56: =+'B.DATOS (GASTOS)'!G346 -> 20445916
D58: RECURSOS POR OPERACIONES OFICIALES DE CREDITO | E58: =+E59+E66+E71 -> 341521200 | F58: =+F59+F66+F71 -> 179223861 | G58: =+G59+G66+G71 -> 216867115
D59: GASTOS CORRIENTES | E59: =SUM(E60:E65) -> 0 | F59: =SUM(F60:F65) -> 0 | G59: 0
D60: 1: Reserva de ContingenciaAcciones Centrales (AC)
B61: 2.1 | D61: 2: Personal y Obligaciones Sociales | G61: =+'B.DATOS (GASTOS)'!H338 -> 0
B62: 2.2 | D62: 3: Pensiones y Prestaciones Sociales | G62: =+'B.DATOS (GASTOS)'!H339 -> 0
B63: 2.3 | D63: 4: Bienes y Servicios | G63: =+'B.DATOS (GASTOS)'!H340 -> 0
B64: 2.4 | D64: 5: Donaciones y Transferencias (corrientes)
B65: 2.5 | D65: 6: Otros Gastos (corrientes) | G65: =+'B.DATOS (GASTOS)'!H341 -> 0
D66: GASTOS DE CAPITAL | E66: =SUM(E67:E70) -> 341521200 | F66: =SUM(F67:F70) -> 179223861 | G66: 216867115
B67: 2.4 | D67: 7: Donaciones y Transferencias (de capital)
B68: 2.5 | D68: 8: Otros Gastos (de capital)
B69: 2.6 | D69: 9: Adquisiciones de Activos No Financieros | E69: 341521200 | F69: 179223861 | G69: =+'B.DATOS (GASTOS)'!H344 -> 216867115
B70: 2.7 | D70: 10: Adquisiciones de Activos Financieros
D71: SERVICIO DE DEUDA | E71: =+E72 -> 0 | F71: =+F72 -> 0 | G71: 0
B72: 2.8 | D72: 11: Servicio de Deuda | G72: =+'B.DATOS (GASTOS)'!H346 -> 0
D74: DONACIONES Y TRANSFERENCIAS | E74: =+E75+E82+E87 -> 51411305 | F74: =+F75+F82+F87 -> 0 | G74: =+G75+G82+G87 -> 3748466
D75: GASTOS CORRIENTES | E75: =SUM(E76:E81) -> 9116541 | F75: =SUM(F76:F81) -> 0 | G75: 3748466
D76: 1: Reserva de ContingenciaAcciones Centrales (AC)
B77: 2.1 | D77: 2: Personal y Obligaciones Sociales | E77: 392305 | G77: =+'B.DATOS (GASTOS)'!I338 -> 0
B78: 2.2 | D78: 3: Pensiones y Prestaciones Sociales | G78: =+'B.DATOS (GASTOS)'!I339 -> 0
B79: 2.3 | D79: 4: Bienes y Servicios | E79: 8524236 | G79: =+'B.DATOS (GASTOS)'!I340 -> 3748466
B80: 2.4 | D80: 5: Donaciones y Transferencias (corrientes)
B81: 2.5 | D81: 6: Otros Gastos (corrientes) | E81: 200000 | G81: =+'B.DATOS (GASTOS)'!I341 -> 0
D82: GASTOS DE CAPITAL | E82: =SUM(E83:E86) -> 42294764 | F82: =SUM(F83:F86) -> 0 | G82: 0
B83: 2.4 | D83: 7: Donaciones y Transferencias (de capital)
B84: 2.5 | D84: 8: Otros Gastos (de capital)
B85: 2.6 | D85: 9: Adquisiciones de Activos No Financieros | E85: 42294764 | G85: =+'B.DATOS (GASTOS)'!I344 -> 0
B86: 2.7 | D86: 10: Adquisiciones de Activos Financieros
D87: SERVICIO DE DEUDA | E87: =+E88 -> 0 | F87: =+F88 -> 0 | G87: 0
B88: 2.8 | D88: 11: Servicio de Deuda | G88: =+'B.DATOS (GASTOS)'!I346 -> 0
D90: RECURSOS DETERMINADOS | E90: =+E91+E98+E103 -> 108467228 | F90: =+F91+F98+F103 -> 94702289 | G90: =+G91+G98+G103 -> 61915036
D91: GASTOS CORRIENTES | E91: =SUM(E92:E97) -> 21693446 | F91: =SUM(F92:F97) -> 7934942 | G91: 5466099
D92: 1: Reserva de ContingenciaAcciones Centrales (AC)
B93: 2.1 | D93: 2: Personal y Obligaciones Sociales | G93: =+'B.DATOS (GASTOS)'!J338 -> 0
B94: 2.2 | D94: 3: Pensiones y Prestaciones Sociales | G94: =+'B.DATOS (GASTOS)'!J339 -> 0
B95: 2.3 | D95: 4: Bienes y Servicios | E95: 21693446 | F95: 7934942 | G95: =+'B.DATOS (GASTOS)'!J340 -> 5466099
B96: 2.4 | D96: 5: Donaciones y Transferencias (corrientes)
B97: 2.5 | D97: 6: Otros Gastos (corrientes) | G97: =+'B.DATOS (GASTOS)'!J341 -> 0
D98: GASTOS DE CAPITAL | E98: =SUM(E99:E102) -> 86773782 | F98: =SUM(F99:F102) -> 71646224 | G98: 44971923
B99: 2.4 | D99: 7: Donaciones y Transferencias (de capital) | F99: 10080749
B100: 2.5 | D100: 8: Otros Gastos (de capital)
B101: 2.6 | D101: 9: Adquisiciones de Activos No Financieros | E101: 86773782 | F101: 61565475 | G101: =+'B.DATOS (GASTOS)'!J344 -> 44971923
B102: 2.7 | D102: 10: Adquisiciones de Activos Financieros
D103: SERVICIO DE DEUDA | E103: =+E104 -> 0 | F103: =+F104 -> 15121123 | G103: 11477014
B104: 2.8 | D104: 11: Servicio de Deuda | F104: 15121123 | G104: =+'B.DATOS (GASTOS)'!J346 -> 11477014
D106: PIA TOTAL S/ | E106: =+E10 -> 2015481120 | F106: =+F10 -> 1866673000 | G106: =+G10 -> 2005866539
D109: P.I.M. | E109: 2018 | F109: 2019 (*) | G109: 2020 (**)
D110: POR FUENTE DE FINANCIAMIENTO
D111: CONSOLIDADO | E111: =+E112+E119+E124 -> 2566030316 | F111: =+F112+F119+F124 -> 2208754226 | G111: =+G112+G119+G124 -> 2005866539
D112: GASTOS CORRIENTES | E112: =SUM(E113:E118) -> 1728032165 | F112: =SUM(F113:F118) -> 1756697003 | G112: 1623426221
D113: 1: Reserva de ContingenciaAcciones Centrales (AC) | E113: =+E129+E145+E161+E177+E193 -> 0 | F113: =+F129+F145+F161+F177+F193 -> 0 | G113: 0
B114: 2.1 | D114: 2: Personal y Obligaciones Sociales | E114: =+E130+E146+E162+E178+E194 -> 1122929518 | F114: =+F130+F146+F162+F178+F194 -> 1176066893 | G114: 1198963270
B115: 2.2 | D115: 3: Pensiones y Prestaciones Sociales | E115: =+E131+E147+E163+E179+E195 -> 179293669 | F115: =+F131+F147+F163+F179+F195 -> 183567012 | G115: 189632677
B116: 2.3 | D116: 4: Bienes y Servicios | E116: =+E132+E148+E164+E180+E196 -> 366705632 | F116: =+F132+F148+F164+F180+F196 -> 340838548 | G116: 233499190
B117: 2.4 | D117: 5: Donaciones y Transferencias (corrientes) | E117: =+E133+E149+E165+E181+E197 -> 0 | F117: =+F133+F149+F165+F181+F197 -> 10743435 | G117: 0
B118: 2.5 | D118: 6: Otros Gastos (corrientes) | E118: =+E134+E150+E166+E182+E198 -> 59103346 | F118: =+F134+F150+F166+F182+F198 -> 45481115 | G118: 1331084
D119: GASTOS DE CAPITAL | E119: =SUM(E120:E123) -> 791830300 | F119: =SUM(F120:F123) -> 426465565 | G119: 350517388
B120: 2.4 | D120: 7: Donaciones y Transferencias (de capital) | E120: =+E136+E152+E168+E184+E200 -> 18386443 | F120: =+F136+F152+F168+F184+F200 -> 0 | G120: 0
B121: 2.5 | D121: 8: Otros Gastos (de capital) | E121: =+E137+E153+E169+E185+E201 -> 0 | F121: =+F137+F153+F169+F185+F201 -> 0 | G121: 0
B122: 2.6 | D122: 9: Adquisiciones de Activos No Financieros | E122: =+E138+E154+E170+E186+E202 -> 773443857 | F122: =+F138+F154+F170+F186+F202 -> 426465565 | G122: 350517388
B123: 2.7 | D123: 10: Adquisiciones de Activos Financieros | E123: =+E139+E155+E171+E187+E203 -> 0 | F123: =+F139+F155+F171+F187+F203 -> 0 | G123: 0
D124: SERVICIO DE DEUDA | E124: =+E125 -> 46167851 | F124: =+F125 -> 25591658 | G124: 31922930
B125: 2.8 | D125: 11: Servicio de Deuda | E125: =+E141+E157+E173+E189+E205 -> 46167851 | F125: =+F141+F157+F173+F189+F205 -> 25591658 | G125: 31922930
D127: RECURSOS ORDINARIOS | E127: =+E128+E135+E140 -> 1604244844 | F127: =+F128+F135+F140 -> 1665818872 | G127: =+G128+G135+G140 -> 1625971348
D128: GASTOS CORRIENTES | E128: =SUM(E129:E134) -> 1516161630 | F128: =SUM(F129:F134) -> 1574526328 | G128: 1571152547
D129: 1: Reserva de ContingenciaAcciones Centrales (AC)
B130: 2.1 | D130: 2: Personal y Obligaciones Sociales | E130: 1122427930 | F130: 1175536671 | G130: =+G29 -> 1198853987
B131: 2.2 | D131: 3: Pensiones y Prestaciones Sociales | E131: 179293669 | F131: =188718010-5150998 -> 183567012 | G131: =+G30 -> 189632677
B132: 2.3 | D132: 4: Bienes y Servicios | E132: 161343739 | F132: 174757491 | G132: 181889287
B133: 2.4 | D133: 5: Donaciones y Transferencias (corrientes) | F133: 457686 | G133: 0
B134: 2.5 | D134: 6: Otros Gastos (corrientes) | E134: 53096292 | F134: 40207468 | G134: 776596
D135: GASTOS DE CAPITAL | E135: =SUM(E136:E139) -> 88083214 | F135: =SUM(F136:F139) -> 91292544 | G135: 54818801
B136: 2.4 | D136: 7: Donaciones y Transferencias (de capital) | E136: 5633100 | G136: =+G35 -> 0
B137: 2.5 | D137: 8: Otros Gastos (de capital) | G137: 0
B138: 2.6 | D138: 9: Adquisiciones de Activos No Financieros | E138: 82450114 | F138: 91292544 | G138: 54818801
B139: 2.7 | D139: 10: Adquisiciones de Activos Financieros | G139: 0
D140: SERVICIO DE DEUDA | E140: =+E141 -> 0 | F140: =+F141 -> 0 | G140: 0
B141: 2.8 | D141: 11: Servicio de Deuda
D143: RECURSOS DIRECTAMENTE RECAUDADOS | E143: =+E144+E151+E156 -> 146763926 | F143: =+F144+F151+F156 -> 126837169 | G143: =+G144+G151+G156 -> 97364574
D144: GASTOS CORRIENTES | E144: =SUM(E145:E150) -> 63918455 | F144: =SUM(F145:F150) -> 68970131 | G144: 43059109
D145: 1: Reserva de ContingenciaAcciones Centrales (AC)
B146: 2.1 | D146: 2: Personal y Obligaciones Sociales | E146: 109283 | F146: 109283 | G146: =+G45 -> 109283
B147: 2.2 | D147: 3: Pensiones y Prestaciones Sociales | G147: 0
B148: 2.3 | D148: 4: Bienes y Servicios | E148: 58038232 | F148: 63618201 | G148: 42395338
B149: 2.4 | D149: 5: Donaciones y Transferencias (corrientes) | F149: 205000 | G149: 0
B150: 2.5 | D150: 6: Otros Gastos (corrientes) | E150: 5770940 | F150: 5037647 | G150: 554488
D151: GASTOS DE CAPITAL | E151: =SUM(E152:E155) -> 71991629 | F151: =SUM(F152:F155) -> 47396503 | G151: 33859549
B152: 2.4 | D152: 7: Donaciones y Transferencias (de capital) | G152: =+G51 -> 0
B153: 2.5 | D153: 8: Otros Gastos (de capital) | G153: 0
B154: 2.6 | D154: 9: Adquisiciones de Activos No Financieros | E154: 71991629 | F154: 47396503 | G154: 33859549
B155: 2.7 | D155: 10: Adquisiciones de Activos Financieros | G155: 0
D156: SERVICIO DE DEUDA | E156: =+E157 -> 10853842 | F156: =+F157 -> 10470535 | G156: 20445916
B157: 2.8 | D157: 11: Servicio de Deuda | E157: 10853842 | F157: 10470535 | G157: =+G56 -> 20445916
D159: RECURSOS POR OPERACIONES OFICIALES DE CREDITO | E159: =+E160+E167+E172 -> 488947423 | F159: =+F160+F167+F172 -> 203677089 | G159: =+G160+G167+G172 -> 216867115
D160: GASTOS CORRIENTES | E160: =SUM(E161:E166) -> 0 | F160: =SUM(F161:F166) -> 0 | G160: 0
D161: 1: Reserva de ContingenciaAcciones Centrales (AC)
B162: 2.1 | D162: 2: Personal y Obligaciones Sociales | G162: =+G61 -> 0
B163: 2.2 | D163: 3: Pensiones y Prestaciones Sociales | G163: 0
B164: 2.3 | D164: 4: Bienes y Servicios | G164: 0
B165: 2.4 | D165: 5: Donaciones y Transferencias (corrientes) | G165: 0
B166: 2.5 | D166: 6: Otros Gastos (corrientes) | G166: 0
D167: GASTOS DE CAPITAL | E167: =SUM(E168:E171) -> 488947423 | F167: =SUM(F168:F171) -> 203677089 | G167: 216867115
B168: 2.4 | D168: 7: Donaciones y Transferencias (de capital) | G168: =+G67 -> 0
B169: 2.5 | D169: 8: Otros Gastos (de capital) | G169: 0
B170: 2.6 | D170: 9: Adquisiciones de Activos No Financieros | E170: 488947423 | F170: 203677089 | G170: 216867115
B171: 2.7 | D171: 10: Adquisiciones de Activos Financieros | G171: 0
D172: SERVICIO DE DEUDA | E172: =+E173 -> 0 | F172: =+F173 -> 0 | G172: 0
B173: 2.8 | D173: 11: Servicio de Deuda | G173: =+G72 -> 0
D175: DONACIONES Y TRANSFERENCIAS | E175: =+E176+E183+E188 -> 180311964 | F175: =+F176+F183+F188 -> 109661782 | G175: =+G176+G183+G188 -> 3748466
D176: GASTOS CORRIENTES | E176: =SUM(E177:E182) -> 120876627 | F176: =SUM(F177:F182) -> 89651098 | G176: 3748466
D177: 1: Reserva de ContingenciaAcciones Centrales (AC)
B178: 2.1 | D178: 2: Personal y Obligaciones Sociales | E178: 392305 | F178: 420939 | G178: =+G77 -> 0
B179: 2.2 | D179: 3: Pensiones y Prestaciones Sociales | G179: 0
B180: 2.3 | D180: 4: Bienes y Servicios | E180: 120248208 | F180: =88994136+23 -> 88994159 | G180: 3748466
B181: 2.4 | D181: 5: Donaciones y Transferencias (corrientes) | G181: 0
B182: 2.5 | D182: 6: Otros Gastos (corrientes) | E182: 236114 | F182: 236000 | G182: 0
D183: GASTOS DE CAPITAL | E183: =SUM(E184:E187) -> 59435337 | F183: =SUM(F184:F187) -> 20010684 | G183: 0
B184: 2.4 | D184: 7: Donaciones y Transferencias (de capital) | G184: =+G83 -> 0
B185: 2.5 | D185: 8: Otros Gastos (de capital) | G185: 0
B186: 2.6 | D186: 9: Adquisiciones de Activos No Financieros | E186: 59435337 | F186: 20010684 | G186: 0
B187: 2.7 | D187: 10: Adquisiciones de Activos Financieros | G187: 0
D188: SERVICIO DE DEUDA | E188: =+E189 -> 0 | F188: =+F189 -> 0 | G188: 0
B189: 2.8 | D189: 11: Servicio de Deuda | G189: =+G88 -> 0
D191: RECURSOS DETERMINADOS | E191: =+E192+E199+E204 -> 145762159 | F191: =+F192+F199+F204 -> 102759314 | G191: =+G192+G199+G204 -> 61915036
D192: GASTOS CORRIENTES | E192: =SUM(E193:E198) -> 27075453 | F192: =SUM(F193:F198) -> 23549446 | G192: 5466099
D193: 1: Reserva de ContingenciaAcciones Centrales (AC)
B194: 2.1 | D194: 2: Personal y Obligaciones Sociales | G194: =+G93 -> 0
B195: 2.2 | D195: 3: Pensiones y Prestaciones Sociales | G195: 0
B196: 2.3 | D196: 4: Bienes y Servicios | E196: 27075453 | F196: 13468697 | G196: 5466099
B197: 2.4 | D197: 5: Donaciones y Transferencias (corrientes) | F197: 10080749 | G197: 0
B198: 2.5 | D198: 6: Otros Gastos (corrientes) | G198: 0
D199: GASTOS DE CAPITAL | E199: =SUM(E200:E203) -> 83372697 | F199: =SUM(F200:F203) -> 64088745 | G199: 44971923
B200: 2.4 | D200: 7: Donaciones y Transferencias (de capital) | E200: 12753343 | G200: 0
B201: 2.5 | D201: 8: Otros Gastos (de capital) | G201: 0
B202: 2.6 | D202: 9: Adquisiciones de Activos No Financieros | E202: 70619354 | F202: 64088745 | G202: 44971923
B203: 2.7 | D203: 10: Adquisiciones de Activos Financieros | G203: 0
D204: SERVICIO DE DEUDA | E204: =+E205 -> 35314009 | F204: =+F205 -> 15121123 | G204: 11477014
B205: 2.8 | D205: 11: Servicio de Deuda | E205: 35314009 | F205: 15121123 | G205: 11477014
D207: PIM TOTAL S/ | E207: =+E111 -> 2566030316 | F207: =+F111 -> 2208754226 | G207: 2005866539
F208: 2208754226
F209: =+F207-F208 -> 0
D210: EJECUCION | E210: 2018 | F210: 2019 (*) | G210: 2020 (**)
D211: POR FUENTE DE FINANCIAMIENTO
D212: CONSOLIDADO | E212: =+E213+E220+E225 -> 1855924796 | F212: =+F213+F220+F225 -> 1911092512 | G212: =+G213+G220+G225 -> 2005866539
D213: GASTOS CORRIENTES | E213: =SUM(E214:E219) -> 1638702133 | F213: =SUM(F214:F219) -> 1659755731 | G213: 1623426221
D214: 1: Reserva de ContingenciaAcciones Centrales (AC) | E214: =+E230+E246+E262+E278+E294 -> 0 | F214: =+F230+F246+F262+F278+F294 -> 0 | G214: 0
B215: 2.1 | D215: 2: Personal y Obligaciones Sociales | E215: =+E231+E247+E263+E279+E295 -> 1120582291 | F215: =+F231+F247+F263+F279+F295 -> 1169666425 | G215: 1198963270
B216: 2.2 | D216: 3: Pensiones y Prestaciones Sociales | E216: =+E232+E248+E264+E280+E296 -> 178341053 | F216: =+F232+F248+F264+F280+F296 -> 186986823 | G216: 189632677
... 90 more rows

Sheet F.04
E2: 2.1 | F2: 2.2 | G2: 2.3 | I2: 2.5 | K2: 2.4 | M2: 2.6 | P2: 2.8
B4: FORMATO N° 04
B5: DISTRIBUCION DE GASTO POR UNIDADES EJECUTORAS / ENTIDAD PUBLICA Y FUENTES DE FINANCIAMIENTO - PROYECTO 2020
B6: PROYECTO DE PRESUPUESTO - 2020
B8: SECTOR : 99 GOBIERNOS REGIONALES
B9: FTE FTO CONSOLIDADO
B10: PLIEGOS DEL SECTOR O GOBIERNO REGIONAL | C10: UNIDADES EJECUTORAS O ENTIDADES PUBLICAS ADSCRITAS AL SECTOR | D10: GASTOS CORRIENTES */ | K10: GASTOS DE CAPITAL | P10: SERVICIO DE DEUDA | R10: TOTAL
D11: 1: Reserva de Contingencia | E11: 2: Personal y Obligaciones Sociales | F11: 3: Pensiones y Prestaciones Sociales | G11: 4: Bienes y Servicios | H11: 5: Donaciones y Transferencias | I11: 6: Otros Gastos | J11: SUB TOTAL GASTOS CORRIENTES | K11: 7: Donaciones y Transferencias | L11: 8: Otros Gastos | M11: 9: Adquisiciones de Activos No Financieros | N11: 10: Adquisiciones de Activos Financieros | O11: SUB TOTAL GASTOS DE CAPITAL | P11: 11: Servicio de la Deuda | Q11: SUB TOTAL SERVICIO DE DEUDA | R11: TOTAL GASTOS UNIDAD EJECUTORA /ENTIDAD PUBLICA | S11: PART. %
B12: 451 GOBIERNO REGIONAL | C12: 001 SEDE LA LIBERTAD | E12: =+E56+E100+E144+E188+E232 -> 34864280 | F12: 25383163 | G12: 51833061 | H12: 0 | I12: 530506 | J12: 112611010 | K12: 0 | L12: 0 | M12: 47056247 | N12: 0 | O12: 47056247 | P12: 11477014 | Q12: 11477014 | R12: 171144271 | S12: =+R12*100/R49 -> 8.532186348
B13: LA LIBERTAD | C13: 005 PROYECTO ESPEC.CHAVIMOCHIC | E13: =+E57+E101+E145+E189+E233 -> 0 | F13: 0 | G13: 0 | H13: 0 | I13: 0 | J13: 0 | K13: 0 | L13: 0 | M13: 303195870 | N13: 0 | O13: 303195870 | P13: 20445916 | Q13: 20445916 | R13: 323641786 | S13: =+R13*100/R49 -> 16.1347617
C14: 100 AGRICULTURA LA LIBERTAD | E14: =+E58+E102+E146+E190+E234 -> 3313959 | F14: 5931172 | G14: 2085333 | H14: 0 | I14: 13000 | J14: 11343464 | K14: 0 | L14: 0 | M14: 0 | N14: 0 | O14: 0 | P14: 0 | Q14: 0 | R14: 11343464 | S14: =+R14*100/R49 -> 0.5655143939
C15: 200 TRANSPORTES LA LIBERTAD | E15: =+E59+E103+E147+E191+E235 -> 2165700 | F15: 1740136 | G15: 21333399 | H15: 0 | I15: 0 | J15: 25239235 | K15: 0 | L15: 0 | M15: 0 | N15: 0 | O15: 0 | P15: 0 | Q15: 0 | R15: 25239235 | S15: =+R15*100/R49 -> 1.258270902
C16: 300 EDUCACION LA LIBERTAD | E16: =+E60+E104+E148+E192+E236 -> 42267811 | F16: 110415265 | G16: 5245548 | H16: 0 | I16: 0 | J16: 157928624 | K16: 0 | L16: 0 | M16: 15000 | N16: 0 | O16: 15000 | P16: 0 | Q16: 0 | R16: 157943624 | S16: =+R16*100/R49 -> 7.874084388
C17: 301 EDUCACION CHEPEN | E17: =+E61+E105+E149+E193+E237 -> 47444541 | F17: 4350145 | G17: 2328803 | H17: 0 | I17: 0 | J17: 54123489 | K17: 0 | L17: 0 | M17: 0 | N17: 0 | O17: 0 | P17: 0 | Q17: 0 | R17: 54123489 | S17: =+R17*100/R49 -> 2.698259727
C18: 302 EDUCACION PACASMAYO | E18: =+E62+E106+E150+E194+E238 -> 53232299 | F18: 5640427 | G18: 2901570 | H18: 0 | I18: 0 | J18: 61774296 | K18: 0 | L18: 0 | M18: 0 | N18: 0 | O18: 0 | P18: 0 | Q18: 0 | R18: 61774296 | S18: =+R18*100/R49 -> 3.079681265
C19: 303 EDUCACION ASCOPE | E19: =+E63+E107+E151+E195+E239 -> 66574635 | F19: 4830711 | G19: 3901604 | H19: 0 | I19: 25085 | J19: 75332035 | K19: 0 | L19: 0 | M19: 0 | N19: 0 | O19: 0 | P19: 0 | Q19: 0 | R19: 75332035 | S19: =+R19*100/R49 -> 3.755585605
C20: 304 EDUCACION GRAN CHIMU | E20: =+E64+E108+E152+E196+E240 -> 29051802 | F20: 994933 | G20: 1660458 | H20: 0 | I20: 10000 | J20: 31717193 | K20: 0 | L20: 0 | M20: 0 | N20: 0 | O20: 0 | P20: 0 | Q20: 0 | R20: 31717193 | S20: =+R20*100/R49 -> 1.581221501
C21: 305 EDUCACION OTUZCO | E21: =+E65+E109+E153+E197+E241 -> 57276878 | F21: 1536850 | G21: 4480400 | H21: 0 | I21: 0 | J21: 63294128 | K21: 0 | L21: 0 | M21: 0 | N21: 0 | O21: 0 | P21: 0 | Q21: 0 | R21: 63294128 | S21: =+R21*100/R49 -> 3.155450613
C22: 306 EDUCACION SANTIAGO DE CHUCO | E22: =+E66+E110+E154+E198+E242 -> 43943837 | F22: 1304282 | G22: 2627121 | H22: 0 | I22: 0 | J22: 47875240 | K22: 0 | L22: 0 | M22: 0 | N22: 0 | O22: 0 | P22: 0 | Q22: 0 | R22: 47875240 | S22: =+R22*100/R49 -> 2.386760987
C23: 307 EDUCACION SANCHEZ CARRION | E23: =+E67+E111+E155+E199+E243 -> 109132356 | F23: 2130928 | G23: 7195383 | H23: 0 | I23: 0 | J23: 118458667 | K23: 0 | L23: 0 | M23: 0 | N23: 0 | O23: 0 | P23: 0 | Q23: 0 | R23: 118458667 | S23: =+R23*100/R49 -> 5.905610603
C24: 308 EDUCACION PATAZ | E24: =+E68+E112+E156+E200+E244 -> 69070662 | F24: 1433355 | G24: 5151483 | H24: 0 | I24: 0 | J24: 75655500 | K24: 0 | L24: 0 | M24: 0 | N24: 0 | O24: 0 | P24: 0 | Q24: 0 | R24: 75655500 | S24: =+R24*100/R49 -> 3.771711554
C25: 309 EDUCACION BOLIVAR | E25: =+E69+E113+E157+E201+E245 -> 14505924 | F25: 438219 | G25: 1491092 | H25: 0 | I25: 0 | J25: 16435235 | K25: 0 | L25: 0 | M25: 0 | N25: 0 | O25: 0 | P25: 0 | Q25: 0 | R25: 16435235 | S25: =+R25*100/R49 -> 0.8193583511
C26: 310 COLEGIO MILITAR RAMON CASTILLA | E26: =+E70+E114+E158+E202+E246 -> 3002507 | F26: 20129 | G26: 2375517 | H26: 0 | I26: 1201 | J26: 5399354 | K26: 0 | L26: 0 | M26: 39040 | N26: 0 | O26: 39040 | P26: 0 | Q26: 0 | R26: 5438394 | S26: =+R26*100/R49 -> 0.271124419
C27: 311 EDUCACION JULCAN | E27: =+E71+E115+E159+E203+E247 -> 29857953 | F27: 113590 | G27: 2439954 | H27: 0 | I27: 0 | J27: 32411497 | K27: 0 | L27: 0 | M27: 0 | N27: 0 | O27: 0 | P27: 0 | Q27: 0 | R27: 32411497 | S27: =+R27*100/R49 -> 1.61583517
C28: 312 EDUCACION VIRU | E28: =+E72+E116+E160+E204+E248 -> 34379553 | F28: 39781 | G28: 2407511 | H28: 0 | I28: 0 | J28: 36826845 | K28: 0 | L28: 0 | M28: 0 | N28: 0 | O28: 0 | P28: 0 | Q28: 0 | R28: 36826845 | S28: =+R28*100/R49 -> 1.835956894
C29: 313 EDUCACION EL PORVENIR | E29: =+E73+E117+E161+E205+E249 -> 67857630 | F29: 304250 | G29: 3352058 | H29: 0 | I29: 15000 | J29: 71528938 | K29: 0 | L29: 0 | M29: 0 | N29: 0 | O29: 0 | P29: 0 | Q29: 0 | R29: 71528938 | S29: =+R29*100/R49 -> 3.565986899
C30: 314 EDUCACION LA ESPERANZA | E30: =+E74+E118+E162+E206+E250 -> 68358971 | F30: 211808 | G30: 2622817 | H30: 0 | I30: 0 | J30: 71193596 | K30: 0 | L30: 0 | M30: 0 | N30: 0 | O30: 0 | P30: 0 | Q30: 0 | R30: 71193596 | S30: =+R30*100/R49 -> 3.549268838
C31: 315 EDUCACION TRUJILLO NOR OESTE | E31: =+E75+E119+E163+E207+E251 -> 67339561 | F31: 294297 | G31: 2786058 | H31: 0 | I31: 0 | J31: 70419916 | K31: 0 | L31: 0 | M31: 0 | N31: 0 | O31: 0 | P31: 0 | Q31: 0 | R31: 70419916 | S31: =+R31*100/R49 -> 3.510697977
C32: 316 EDUCACION TRUJILLO SUR ESTE | E32: =+E76+E120+E164+E208+E252 -> 77050646 | F32: 218996 | G32: 2852060 | H32: 0 | I32: 3798 | J32: 80125500 | K32: 0 | L32: 0 | M32: 0 | N32: 0 | O32: 0 | P32: 0 | Q32: 0 | R32: 80125500 | S32: =+R32*100/R49 -> 3.994557885
C33: 400 SALUD LA LIBERTAD | E33: =+E77+E121+E165+E209+E253 -> 26213679 | F33: 2896508 | G33: 18333671 | H33: 0 | I33: 732494 | J33: 48176352 | K33: 0 | L33: 0 | M33: 71796 | N33: 0 | O33: 71796 | P33: 0 | Q33: 0 | R33: 48248148 | S33: =+R33*100/R49 -> 2.405351855
C34: 401 INSTIT. REG.DE OFTALMOLOGIA | E34: =+E78+E122+E166+E210+E254 -> 3864202 | F34: 0 | G34: 6668676 | H34: 0 | I34: 0 | J34: 10532878 | K34: 0 | L34: 0 | M34: 0 | N34: 0 | O34: 0 | P34: 0 | Q34: 0 | R34: 10532878 | S34: =+R34*100/R49 -> 0.5251036295
C35: 402 SALUD NORTE ASCOPE | E35: =+E79+E123+E167+E211+E255 -> 43888815 | F35: 6117557 | G35: 13585324 | H35: 0 | I35: 0 | J35: 63591696 | K35: 0 | L35: 0 | M35: 31800 | N35: 0 | O35: 31800 | P35: 0 | Q35: 0 | R35: 63623496 | S35: =+R35*100/R49 -> 3.171870848
C36: 403 SALUD TRUJILLO SUR OESTE | E36: =+E80+E124+E168+E212+E256 -> 41532376 | F36: 9879593 | G36: 8836424 | H36: 0 | I36: 0 | J36: 60248393 | K36: 0 | L36: 0 | M36: 107635 | N36: 0 | O36: 107635 | P36: 0 | Q36: 0 | R36: 60356028 | S36: =+R36*100/R49 -> 3.008975265
C37: 404 SALUD CHEPEN | E37: =+E81+E125+E169+E213+E257 -> 14754549 | F37: 1333940 | G37: 4497485 | H37: 0 | I37: 0 | J37: 20585974 | K37: 0 | L37: 0 | M37: 0 | N37: 0 | O37: 0 | P37: 0 | Q37: 0 | R37: 20585974 | S37: =+R37*100/R49 -> 1.02628832
C38: 405 SALUD PACASMAYO | E38: =+E82+E126+E170+E214+E258 -> 16000165 | F38: 597302 | G38: 3345648 | H38: 0 | I38: 0 | J38: 19943115 | K38: 0 | L38: 0 | M38: 0 | N38: 0 | O38: 0 | P38: 0 | Q38: 0 | R38: 19943115 | S38: =+R38*100/R49 -> 0.994239378
C39: 406 SALUD SANCHEZ CARRION | E39: =+E83+E127+E171+E215+E259 -> 14516281 | F39: 448682 | G39: 7131350 | H39: 0 | I39: 0 | J39: 22096313 | K39: 0 | L39: 0 | M39: 0 | N39: 0 | O39: 0 | P39: 0 | Q39: 0 | R39: 22096313 | S39: =+R39*100/R49 -> 1.101584406
C40: 407 SALUD SANTIAGO DE CHUCO | E40: =+E84+E128+E172+E216+E260 -> 7985295 | F40: 53732 | G40: 2916112 | H40: 0 | I40: 0 | J40: 10955139 | K40: 0 | L40: 0 | M40: 0 | N40: 0 | O40: 0 | P40: 0 | Q40: 0 | R40: 10955139 | S40: =+R40*100/R49 -> 0.5461549304
C41: 408 SALUD OTUZCO | E41: =+E85+E129+E173+E217+E261 -> 12116698 | F41: 133789 | G41: 6158325 | H41: 0 | I41: 0 | J41: 18408812 | K41: 0 | L41: 0 | M41: 0 | N41: 0 | O41: 0 | P41: 0 | Q41: 0 | R41: 18408812 | S41: =+R41*100/R49 -> 0.917748596
C42: 409 SALUD TRUJILLO ESTE | E42: =+E86+E130+E174+E218+E262 -> 60942531 | F42: 839137 | G42: 16591810 | H42: 0 | I42: 0 | J42: 78373478 | K42: 0 | L42: 0 | M42: 0 | N42: 0 | O42: 0 | P42: 0 | Q42: 0 | R42: 78373478 | S42: =+R42*100/R49 -> 3.907212991
C43: 410 INSTIT.REG.DE ENFERM.NEOPLASICAS | E43: =+E87+E131+E175+E219+E263 -> 11170740 | F43: 0 | G43: 7059963 | H43: 0 | I43: 0 | J43: 18230703 | K43: 0 | L43: 0 | M43: 0 | N43: 0 | O43: 0 | P43: 0 | Q43: 0 | R43: 18230703 | S43: =+R43*100/R49 -> 0.9088691917
C44: 411 SALUD JULCAN | E44: =+E88+E132+E176+E220+E264 -> 3324969 | F44: 0 | G44: 893557 | H44: 0 | I44: 0 | J44: 4218526 | K44: 0 | L44: 0 | M44: 0 | N44: 0 | O44: 0 | P44: 0 | Q44: 0 | R44: 4218526 | S44: =+R44*100/R49 -> 0.2103094058
C45: 412 SALUD VIRU | E45: =+E89+E133+E177+E221+E265 -> 6901280 | F45: 0 | G45: 2486360 | H45: 0 | I45: 0 | J45: 9387640 | K45: 0 | L45: 0 | M45: 0 | N45: 0 | O45: 0 | P45: 0 | Q45: 0 | R45: 9387640 | S45: =+R45*100/R49 -> 0.4680092029
C46: 413 SALUD ASCOPE | E46: =+E90+E134+E178+E222+E266 -> 11265505 | F46: 0 | G46: 2708782 | H46: 0 | I46: 0 | J46: 13974287 | K46: 0 | L46: 0 | M46: 0 | N46: 0 | O46: 0 | P46: 0 | Q46: 0 | R46: 13974287 | S46: =+R46*100/R49 -> 0.6966708267
C47: 414 SALUD GRAN CHIMU | E47: =+E91+E135+E179+E223+E267 -> 3794680 | F47: 0 | G47: 1214473 | H47: 0 | I47: 0 | J47: 5009153 | K47: 0 | L47: 0 | M47: 0 | N47: 0 | O47: 0 | P47: 0 | Q47: 0 | R47: 5009153 | S47: =+R47*100/R49 -> 0.2497251389
B49: TOTAL SECTOR | C49: TOTAL SECTOR | D49: =SUM(D12:D48) -> 0 | E49: 1198963270 | F49: 189632677 | G49: 233499190 | H49: 0 | I49: 1331084 | J49: 1623426221 | K49: 0 | L49: 0 | M49: 350517388 | N49: 0 | O49: 350517388 | P49: 31922930 | Q49: 31922930 | R49: 2005866539 | S49: =+R49*100/R49 -> 100
B50: PROYECTO DE PRESUPUESTO PARA EL AÑO FISCAL 2020
B51: INFORMACION PARA LA COMISION DE PRESUPUESTO Y CUENTA GENERAL DE LA REPUBLICA DEL CONGRESO DE LA REPUBLICA
B53: FTE FTO RECURSOS ORDINARIOS
B54: PLIEGOS DEL SECTOR O GOBIERNO REGIONAL | C54: UNIDADES EJECUTORAS O ENTIDADES PUBLICAS ADSCRITAS AL SECTOR | D54: GASTOS CORRIENTES */ | K54: GASTOS DE CAPITAL | P54: SERVICIO DE DEUDA | R54: TOTAL
D55: 1: Reserva de Contingencia | E55: 2: Personal y Obligaciones Sociales | F55: 3: Pensiones y Prestaciones Sociales | G55: 4: Bienes y Servicios | H55: 5: Donaciones y Transferencias | I55: 6: Otros Gastos | J55: SUB TOTAL GASTOS CORRIENTES | K55: 7: Donaciones y Transferencias | L55: 8: Otros Gastos | M55: 9: Adquisiciones de Activos No Financieros | N55: 10: Adquisiciones de Activos Financieros | O55: SUB TOTAL GASTOS DE CAPITAL | P55: 11: Servicio de la Deuda | Q55: SUB TOTAL SERVICIO DE DEUDA | R55: TOTAL GASTOS UNIDAD EJECUTORA /ENTIDAD PUBLICA | S55: PART. %
B56: 451 GOBIERNO REGIONAL | C56: 001 SEDE LA LIBERTAD | E56: =+'B.DATOS (GASTOS)'!C15 -> 34754997 | F56: =+'B.DATOS (GASTOS)'!D15 -> 25383163 | G56: =+'B.DATOS (GASTOS)'!E15 -> 39461632 | I56: =+'B.DATOS (GASTOS)'!F15 -> 527386 | J56: =+D56+E56+F56+G56+H56+I56 -> 100127178 | K56: =+'B.DATOS (GASTOS)'!H15 -> 0 | M56: =+'B.DATOS (GASTOS)'!I15 -> 37674422 | O56: =+K56+L56+M56+N56 -> 37674422 | P56: =+'B.DATOS (GASTOS)'!K15 -> 0 | Q56: =+P56 -> 0 | R56: =+J56+O56+Q56 -> 137801600 | S56: =+R56*100/R93 -> 8.475032489
B57: LA LIBERTAD | C57: 005 PROYECTO ESPEC.CHAVIMOCHIC | E57: =+'B.DATOS (GASTOS)'!C16 -> 0 | F57: =+'B.DATOS (GASTOS)'!D16 -> 0 | G57: =+'B.DATOS (GASTOS)'!E16 -> 0 | I57: =+'B.DATOS (GASTOS)'!F16 -> 0 | J57: =+D57+E57+F57+G57+H57+I57 -> 0 | K57: =+'B.DATOS (GASTOS)'!H16 -> 0 | M57: =+'B.DATOS (GASTOS)'!I16 -> 17000000 | O57: =+K57+L57+M57+N57 -> 17000000 | P57: =+'B.DATOS (GASTOS)'!K16 -> 0 | Q57: =+P57 -> 0 | R57: =+J57+O57+Q57 -> 17000000 | S57: =+R57*100/R93 -> 1.045528879
C58: 100 AGRICULTURA LA LIBERTAD | E58: =+'B.DATOS (GASTOS)'!C17 -> 3313959 | F58: =+'B.DATOS (GASTOS)'!D17 -> 5931172 | G58: =+'B.DATOS (GASTOS)'!E17 -> 1863768 | I58: =+'B.DATOS (GASTOS)'!F17 -> 13000 | J58: 11121899 | K58: =+'B.DATOS (GASTOS)'!H17 -> 0 | M58: =+'B.DATOS (GASTOS)'!I17 -> 0 | O58: 0 | P58: =+'B.DATOS (GASTOS)'!K17 -> 0 | Q58: 0 | R58: 11121899 | S58: =+R58*100/R93 -> 0.6840156817
C59: 200 TRANSPORTES LA LIBERTAD | E59: =+'B.DATOS (GASTOS)'!C18 -> 2165700 | F59: =+'B.DATOS (GASTOS)'!D18 -> 1740136 | G59: =+'B.DATOS (GASTOS)'!E18 -> 16028871 | I59: =+'B.DATOS (GASTOS)'!F18 -> 0 | J59: 19934707 | K59: =+'B.DATOS (GASTOS)'!H18 -> 0 | M59: =+'B.DATOS (GASTOS)'!I18 -> 0 | O59: 0 | P59: =+'B.DATOS (GASTOS)'!K18 -> 0 | Q59: 0 | R59: 19934707 | S59: =+R59*100/R93 -> 1.226018344
C60: 300 EDUCACION LA LIBERTAD | E60: =+'B.DATOS (GASTOS)'!C21 -> 42267811 | F60: =+'B.DATOS (GASTOS)'!D21 -> 110415265 | G60: =+'B.DATOS (GASTOS)'!E21 -> 4839324 | I60: =+'B.DATOS (GASTOS)'!F21 -> 0 | J60: =+D60+E60+F60+G60+H60+I60 -> 157522400 | K60: =+'B.DATOS (GASTOS)'!H21 -> 0 | M60: =+'B.DATOS (GASTOS)'!I21 -> 0 | O60: =+K60+L60+M60+N60 -> 0 | P60: =+'B.DATOS (GASTOS)'!K21 -> 0 | Q60: 0 | R60: =+J60+O60+Q60 -> 157522400 | S60: =+R60*100/R93 -> 9.687895189
C61: 301 EDUCACION CHEPEN | E61: =+'B.DATOS (GASTOS)'!C22 -> 47444541 | F61: =+'B.DATOS (GASTOS)'!D22 -> 4350145 | G61: =+'B.DATOS (GASTOS)'!E22 -> 2324580 | I61: =+'B.DATOS (GASTOS)'!F22 -> 0 | J61: =+D61+E61+F61+G61+H61+I61 -> 54119266 | K61: =+'B.DATOS (GASTOS)'!H22 -> 0 | M61: =+'B.DATOS (GASTOS)'!I22 -> 0 | O61: =+K61+L61+M61+N61 -> 0 | P61: =+'B.DATOS (GASTOS)'!K22 -> 0 | Q61: 0 | R61: =+J61+O61+Q61 -> 54119266 | S61: =+R61*100/R93 -> 3.328426793
C62: 302 EDUCACION PACASMAYO | E62: =+'B.DATOS (GASTOS)'!C23 -> 53232299 | F62: =+'B.DATOS (GASTOS)'!D23 -> 5640427 | G62: =+'B.DATOS (GASTOS)'!E23 -> 2891127 | I62: =+'B.DATOS (GASTOS)'!F23 -> 0 | J62: 61763853 | K62: =+'B.DATOS (GASTOS)'!H23 -> 0 | M62: =+'B.DATOS (GASTOS)'!I23 -> 0 | O62: 0 | P62: =+'B.DATOS (GASTOS)'!K23 -> 0 | Q62: 0 | R62: 61763853 | S62: =+R62*100/R93 -> 3.79858188
C63: 303 EDUCACION ASCOPE | E63: =+'B.DATOS (GASTOS)'!C24 -> 66574635 | F63: =+'B.DATOS (GASTOS)'!D24 -> 4830711 | G63: =+'B.DATOS (GASTOS)'!E24 -> 3824626 | I63: =+'B.DATOS (GASTOS)'!F24 -> 25085 | J63: 75255057 | K63: =+'B.DATOS (GASTOS)'!H24 -> 0 | M63: =+'B.DATOS (GASTOS)'!I24 -> 0 | O63: 0 | P63: =+'B.DATOS (GASTOS)'!K24 -> 0 | Q63: 0 | R63: 75255057 | S63: =+R63*100/R93 -> 4.628313844
C64: 304 EDUCACION GRAN CHIMU | E64: =+'B.DATOS (GASTOS)'!C25 -> 29051802 | F64: =+'B.DATOS (GASTOS)'!D25 -> 994933 | G64: =+'B.DATOS (GASTOS)'!E25 -> 1651122 | I64: =+'B.DATOS (GASTOS)'!F25 -> 10000 | J64: 31707857 | K64: =+'B.DATOS (GASTOS)'!H25 -> 0 | M64: =+'B.DATOS (GASTOS)'!I25 -> 0 | O64: 0 | P64: =+'B.DATOS (GASTOS)'!K25 -> 0 | Q64: 0 | R64: 31707857 | S64: =+R64*100/R93 -> 1.950087069
C65: 305 EDUCACION OTUZCO | E65: =+'B.DATOS (GASTOS)'!C26 -> 57276878 | F65: =+'B.DATOS (GASTOS)'!D26 -> 1536850 | G65: =+'B.DATOS (GASTOS)'!E26 -> 4465400 | I65: =+'B.DATOS (GASTOS)'!F26 -> 0 | J65: 63279128 | K65: =+'B.DATOS (GASTOS)'!H26 -> 0 | M65: =+'B.DATOS (GASTOS)'!I26 -> 0 | O65: 0 | P65: =+'B.DATOS (GASTOS)'!K26 -> 0 | Q65: 0 | R65: 63279128 | S65: =+R65*100/R93 -> 3.891773867
C66: 306 EDUCACION SANTIAGO DE CHUCO | E66: =+'B.DATOS (GASTOS)'!C27 -> 43943837 | F66: =+'B.DATOS (GASTOS)'!D27 -> 1304282 | G66: =+'B.DATOS (GASTOS)'!E27 -> 2598349 | I66: =+'B.DATOS (GASTOS)'!F27 -> 0 | J66: 47846468 | K66: =+'B.DATOS (GASTOS)'!H27 -> 0 | M66: =+'B.DATOS (GASTOS)'!I27 -> 0 | O66: 0 | P66: =+'B.DATOS (GASTOS)'!K27 -> 0 | Q66: 0 | R66: 47846468 | S66: =+R66*100/R93 -> 2.942639061
C67: 307 EDUCACION SANCHEZ CARRION | E67: =+'B.DATOS (GASTOS)'!C28 -> 109132356 | F67: =+'B.DATOS (GASTOS)'!D28 -> 2130928 | G67: =+'B.DATOS (GASTOS)'!E28 -> 7080810 | I67: =+'B.DATOS (GASTOS)'!F28 -> 0 | J67: 118344094 | K67: =+'B.DATOS (GASTOS)'!H28 -> 0 | M67: =+'B.DATOS (GASTOS)'!I28 -> 0 | O67: 0 | P67: =+'B.DATOS (GASTOS)'!K28 -> 0 | Q67: 0 | R67: 118344094 | S67: =+R67*100/R93 -> 7.278362817
C68: 308 EDUCACION PATAZ | E68: =+'B.DATOS (GASTOS)'!C29 -> 69070662 | F68: =+'B.DATOS (GASTOS)'!D29 -> 1433355 | G68: =+'B.DATOS (GASTOS)'!E29 -> 5074131 | I68: =+'B.DATOS (GASTOS)'!F29 -> 0 | J68: 75578148 | K68: =+'B.DATOS (GASTOS)'!H29 -> 0 | M68: =+'B.DATOS (GASTOS)'!I29 -> 0 | O68: 0 | P68: =+'B.DATOS (GASTOS)'!K29 -> 0 | Q68: 0 | R68: 75578148 | S68: =+R68*100/R93 -> 4.648184489
C69: 309 EDUCACION BOLIVAR | E69: =+'B.DATOS (GASTOS)'!C30 -> 14505924 | F69: =+'B.DATOS (GASTOS)'!D30 -> 438219 | G69: =+'B.DATOS (GASTOS)'!E30 -> 1487452 | I69: =+'B.DATOS (GASTOS)'!F30 -> 0 | J69: 16431595 | K69: =+'B.DATOS (GASTOS)'!H30 -> 0 | M69: =+'B.DATOS (GASTOS)'!I30 -> 0 | O69: 0 | P69: =+'B.DATOS (GASTOS)'!K30 -> 0 | Q69: 0 | R69: 16431595 | S69: =+R69*100/R93 -> 1.010571005
C70: 310 COLEGIO MILITAR RAMON CASTILLA | E70: =+'B.DATOS (GASTOS)'!C31 -> 3002507 | F70: =+'B.DATOS (GASTOS)'!D31 -> 20129 | G70: =+'B.DATOS (GASTOS)'!E31 -> 901067 | I70: =+'B.DATOS (GASTOS)'!F31 -> 1201 | J70: 3924904 | K70: =+'B.DATOS (GASTOS)'!H31 -> 0 | M70: =+'B.DATOS (GASTOS)'!I31 -> 0 | O70: 0 | P70: =+'B.DATOS (GASTOS)'!K31 -> 0 | Q70: 0 | R70: 3924904 | S70: =+R70*100/R93 -> 0.2413882634
C71: 311 EDUCACION JULCAN | E71: =+'B.DATOS (GASTOS)'!C32 -> 29857953 | F71: =+'B.DATOS (GASTOS)'!D32 -> 113590 | G71: =+'B.DATOS (GASTOS)'!E32 -> 2425044 | I71: =+'B.DATOS (GASTOS)'!F32 -> 0 | J71: 32396587 | K71: =+'B.DATOS (GASTOS)'!H32 -> 0 | M71: =+'B.DATOS (GASTOS)'!I32 -> 0 | O71: 0 | P71: =+'B.DATOS (GASTOS)'!K32 -> 0 | Q71: 0 | R71: 32396587 | S71: =+R71*100/R93 -> 1.992445134
C72: 312 EDUCACION VIRU | E72: =+'B.DATOS (GASTOS)'!C33 -> 34379553 | F72: =+'B.DATOS (GASTOS)'!D33 -> 39781 | G72: =+'B.DATOS (GASTOS)'!E33 -> 2366381 | I72: =+'B.DATOS (GASTOS)'!F33 -> 0 | J72: 36785715 | K72: =+'B.DATOS (GASTOS)'!H33 -> 0 | M72: =+'B.DATOS (GASTOS)'!I33 -> 0 | O72: 0 | P72: =+'B.DATOS (GASTOS)'!K33 -> 0 | Q72: 0 | R72: 36785715 | S72: =+R72*100/R93 -> 2.262383962
C73: 313 EDUCACION EL PORVENIR | E73: =+'B.DATOS (GASTOS)'!C34 -> 67857630 | F73: =+'B.DATOS (GASTOS)'!D34 -> 304250 | G73: =+'B.DATOS (GASTOS)'!E34 -> 3283938 | I73: =+'B.DATOS (GASTOS)'!F34 -> 15000 | J73: 71460818 | K73: =+'B.DATOS (GASTOS)'!H34 -> 0 | M73: =+'B.DATOS (GASTOS)'!I34 -> 0 | O73: 0 | P73: =+'B.DATOS (GASTOS)'!K34 -> 0 | Q73: 0 | R73: 71460818 | S73: =+R73*100/R93 -> 4.3949617
C74: 314 EDUCACION LA ESPERANZA | E74: =+'B.DATOS (GASTOS)'!C35 -> 68358971 | F74: =+'B.DATOS (GASTOS)'!D35 -> 211808 | G74: =+'B.DATOS (GASTOS)'!E35 -> 2575459 | I74: =+'B.DATOS (GASTOS)'!F35 -> 0 | J74: 71146238 | K74: =+'B.DATOS (GASTOS)'!H35 -> 0 | M74: =+'B.DATOS (GASTOS)'!I35 -> 0 | O74: 0 | P74: =+'B.DATOS (GASTOS)'!K35 -> 0 | Q74: 0 | R74: 71146238 | S74: =+R74*100/R93 -> 4.375614496
C75: 315 EDUCACION TRUJILLO NOR OESTE | E75: =+'B.DATOS (GASTOS)'!C36 -> 67339561 | F75: =+'B.DATOS (GASTOS)'!D36 -> 294297 | G75: =+'B.DATOS (GASTOS)'!E36 -> 2709417 | I75: =+'B.DATOS (GASTOS)'!F36 -> 0 | J75: 70343275 | K75: =+'B.DATOS (GASTOS)'!H36 -> 0 | M75: =+'B.DATOS (GASTOS)'!I36 -> 0 | O75: 0 | P75: =+'B.DATOS (GASTOS)'!K36 -> 0 | Q75: 0 | R75: 70343275 | S75: =+R75*100/R93 -> 4.326230907
C76: 316 EDUCACION TRUJILLO SUR ESTE | E76: =+'B.DATOS (GASTOS)'!C37 -> 77050646 | F76: =+'B.DATOS (GASTOS)'!D37 -> 218996 | G76: =+'B.DATOS (GASTOS)'!E37 -> 2815028 | I76: =+'B.DATOS (GASTOS)'!F37 -> 3798 | J76: 80088468 | K76: =+'B.DATOS (GASTOS)'!H37 -> 0 | M76: =+'B.DATOS (GASTOS)'!I37 -> 0 | O76: 0 | P76: =+'B.DATOS (GASTOS)'!K37 -> 0 | Q76: 0 | R76: 80088468 | S76: =+R76*100/R93 -> 4.925576831
C77: 400 SALUD LA LIBERTAD | E77: =+'B.DATOS (GASTOS)'!C40 -> 26213679 | F77: =+'B.DATOS (GASTOS)'!D40 -> 2896508 | G77: =+'B.DATOS (GASTOS)'!E40 -> 12347615 | I77: =+'B.DATOS (GASTOS)'!F40 -> 181126 | J77: =+D77+E77+F77+G77+H77+I77 -> 41638928 | K77: =+'B.DATOS (GASTOS)'!H40 -> 0 | M77: =+'B.DATOS (GASTOS)'!I40 -> 36744 | O77: =+K77+L77+M77+N77 -> 36744 | P77: =+'B.DATOS (GASTOS)'!K40 -> 0 | Q77: 0 | R77: =+J77+O77+Q77 -> 41675672 | S77: =+R77*100/R93 -> 2.563124624
C78: 401 INSTIT. REG.DE OFTALMOLOGIA | E78: =+'B.DATOS (GASTOS)'!C41 -> 3864202 | F78: =+'B.DATOS (GASTOS)'!D41 -> 0 | G78: =+'B.DATOS (GASTOS)'!E41 -> 1417478 | I78: =+'B.DATOS (GASTOS)'!F41 -> 0 | J78: =+D78+E78+F78+G78+H78+I78 -> 5281680 | K78: =+'B.DATOS (GASTOS)'!H41 -> 0 | M78: =+'B.DATOS (GASTOS)'!I41 -> 0 | O78: =+K78+L78+M78+N78 -> 0 | P78: =+'B.DATOS (GASTOS)'!K41 -> 0 | Q78: 0 | R78: =+J78+O78+Q78 -> 5281680 | S78: =+R78*100/R93 -> 0.3248322922
C79: 402 SALUD NORTE ASCOPE | E79: =+'B.DATOS (GASTOS)'!C42 -> 43888815 | F79: =+'B.DATOS (GASTOS)'!D42 -> 6117557 | G79: =+'B.DATOS (GASTOS)'!E42 -> 5577479 | I79: =+'B.DATOS (GASTOS)'!F42 -> 0 | J79: 55583851 | K79: =+'B.DATOS (GASTOS)'!H42 -> 0 | M79: =+'B.DATOS (GASTOS)'!I42 -> 0 | O79: 0 | P79: =+'B.DATOS (GASTOS)'!K42 -> 0 | Q79: 0 | R79: 55583851 | S79: =+R79*100/R93 -> 3.418501259
C80: 403 SALUD TRUJILLO SUR OESTE | E80: =+'B.DATOS (GASTOS)'!C43 -> 41532376 | F80: =+'B.DATOS (GASTOS)'!D43 -> 9879593 | G80: =+'B.DATOS (GASTOS)'!E43 -> 4623962 | I80: =+'B.DATOS (GASTOS)'!F43 -> 0 | J80: 56035931 | K80: =+'B.DATOS (GASTOS)'!H43 -> 0 | M80: =+'B.DATOS (GASTOS)'!I43 -> 107635 | O80: 107635 | P80: =+'B.DATOS (GASTOS)'!K43 -> 0 | Q80: 0 | R80: 56143566 | S80: =+R80*100/R93 -> 3.452924682
C81: 404 SALUD CHEPEN | E81: =+'B.DATOS (GASTOS)'!C44 -> 14754549 | F81: =+'B.DATOS (GASTOS)'!D44 -> 1333940 | G81: =+'B.DATOS (GASTOS)'!E44 -> 3773116 | I81: =+'B.DATOS (GASTOS)'!F44 -> 0 | J81: 19861605 | K81: =+'B.DATOS (GASTOS)'!H44 -> 0 | M81: =+'B.DATOS (GASTOS)'!I44 -> 0 | O81: 0 | P81: =+'B.DATOS (GASTOS)'!K44 -> 0 | Q81: 0 | R81: 19861605 | S81: =+R81*100/R93 -> 1.221522447
C82: 405 SALUD PACASMAYO | E82: =+'B.DATOS (GASTOS)'!C45 -> 16000165 | F82: =+'B.DATOS (GASTOS)'!D45 -> 597302 | G82: =+'B.DATOS (GASTOS)'!E45 -> 2954040 | I82: =+'B.DATOS (GASTOS)'!F45 -> 0 | J82: 19551507 | K82: =+'B.DATOS (GASTOS)'!H45 -> 0 | M82: =+'B.DATOS (GASTOS)'!I45 -> 0 | O82: 0 | P82: =+'B.DATOS (GASTOS)'!K45 -> 0 | Q82: 0 | R82: 19551507 | S82: =+R82*100/R93 -> 1.202450893
C83: 406 SALUD SANCHEZ CARRION | E83: =+'B.DATOS (GASTOS)'!C46 -> 14516281 | F83: =+'B.DATOS (GASTOS)'!D46 -> 448682 | G83: =+'B.DATOS (GASTOS)'!E46 -> 6876138 | I83: =+'B.DATOS (GASTOS)'!F46 -> 0 | J83: 21841101 | K83: =+'B.DATOS (GASTOS)'!H46 -> 0 | M83: =+'B.DATOS (GASTOS)'!I46 -> 0 | O83: 0 | P83: =+'B.DATOS (GASTOS)'!K46 -> 0 | Q83: 0 | R83: 21841101 | S83: =+R83*100/R93 -> 1.343264814
C84: 407 SALUD SANTIAGO DE CHUCO | E84: =+'B.DATOS (GASTOS)'!C47 -> 7985295 | F84: =+'B.DATOS (GASTOS)'!D47 -> 53732 | G84: =+'B.DATOS (GASTOS)'!E47 -> 2885071 | I84: =+'B.DATOS (GASTOS)'!F47 -> 0 | J84: 10924098 | K84: =+'B.DATOS (GASTOS)'!H47 -> 0 | M84: =+'B.DATOS (GASTOS)'!I47 -> 0 | O84: 0 | P84: =+'B.DATOS (GASTOS)'!K47 -> 0 | Q84: 0 | R84: 10924098 | S84: =+R84*100/R93 -> 0.6718505842
C85: 408 SALUD OTUZCO | E85: =+'B.DATOS (GASTOS)'!C48 -> 12116698 | F85: =+'B.DATOS (GASTOS)'!D48 -> 133789 | G85: =+'B.DATOS (GASTOS)'!E48 -> 5918250 | I85: =+'B.DATOS (GASTOS)'!F48 -> 0 | J85: 18168737 | K85: =+'B.DATOS (GASTOS)'!H48 -> 0 | M85: =+'B.DATOS (GASTOS)'!I48 -> 0 | O85: 0 | P85: =+'B.DATOS (GASTOS)'!K48 -> 0 | Q85: 0 | R85: 18168737 | S85: =+R85*100/R93 -> 1.117408189
C86: 409 SALUD TRUJILLO ESTE | E86: =+'B.DATOS (GASTOS)'!C49 -> 60942531 | F86: =+'B.DATOS (GASTOS)'!D49 -> 839137 | G86: =+'B.DATOS (GASTOS)'!E49 -> 12858208 | I86: =+'B.DATOS (GASTOS)'!F49 -> 0 | J86: 74639876 | K86: =+'B.DATOS (GASTOS)'!H49 -> 0 | M86: =+'B.DATOS (GASTOS)'!I49 -> 0 | O86: 0 | P86: =+'B.DATOS (GASTOS)'!K49 -> 0 | Q86: 0 | R86: 74639876 | S86: =+R86*100/R93 -> 4.590479168
C87: 410 INSTIT.REG.DE ENFERM.NEOPLASICAS | E87: =+'B.DATOS (GASTOS)'!C50 -> 11170740 | F87: =+'B.DATOS (GASTOS)'!D50 -> 0 | G87: =+'B.DATOS (GASTOS)'!E50 -> 5505842 | I87: =+'B.DATOS (GASTOS)'!F50 -> 0 | J87: 16676582 | K87: =+'B.DATOS (GASTOS)'!H50 -> 0 | M87: =+'B.DATOS (GASTOS)'!I50 -> 0 | O87: 0 | P87: =+'B.DATOS (GASTOS)'!K50 -> 0 | Q87: 0 | R87: 16676582 | S87: =+R87*100/R93 -> 1.025638122
C88: 411 SALUD JULCAN | E88: =+'B.DATOS (GASTOS)'!C51 -> 3324969 | F88: =+'B.DATOS (GASTOS)'!D51 -> 0 | G88: =+'B.DATOS (GASTOS)'!E51 -> 891557 | I88: =+'B.DATOS (GASTOS)'!F51 -> 0 | J88: 4216526 | K88: =+'B.DATOS (GASTOS)'!H51 -> 0 | M88: =+'B.DATOS (GASTOS)'!I51 -> 0 | O88: 0 | P88: =+'B.DATOS (GASTOS)'!K51 -> 0 | Q88: 0 | R88: 4216526 | S88: =+R88*100/R93 -> 0.2593235118
C89: 412 SALUD VIRU | E89: =+'B.DATOS (GASTOS)'!C52 -> 6901280 | F89: =+'B.DATOS (GASTOS)'!D52 -> 0 | G89: =+'B.DATOS (GASTOS)'!E52 -> 1960199 | I89: =+'B.DATOS (GASTOS)'!F52 -> 0 | J89: 8861479 | K89: =+'B.DATOS (GASTOS)'!H52 -> 0 | M89: =+'B.DATOS (GASTOS)'!I52 -> 0 | O89: 0 | P89: =+'B.DATOS (GASTOS)'!K52 -> 0 | Q89: 0 | R89: 8861479 | S89: =+R89*100/R93 -> 0.5449960118
C90: 413 SALUD ASCOPE | E90: =+'B.DATOS (GASTOS)'!C53 -> 11265505 | F90: =+'B.DATOS (GASTOS)'!D53 -> 0 | G90: =+'B.DATOS (GASTOS)'!E53 -> 2516907 | I90: =+'B.DATOS (GASTOS)'!F53 -> 0 | J90: 13782412 | K90: =+'B.DATOS (GASTOS)'!H53 -> 0 | M90: =+'B.DATOS (GASTOS)'!I53 -> 0 | O90: 0 | P90: =+'B.DATOS (GASTOS)'!K53 -> 0 | Q90: 0 | R90: 13782412 | S90: =+R90*100/R93 -> 0.8476417507
C91: 414 SALUD GRAN CHIMU | E91: =+'B.DATOS (GASTOS)'!C54 -> 3794680 | F91: =+'B.DATOS (GASTOS)'!D54 -> 0 | G91: =+'B.DATOS (GASTOS)'!E54 -> 1115899 | I91: =+'B.DATOS (GASTOS)'!F54 -> 0 | J91: 4910579 | K91: =+'B.DATOS (GASTOS)'!H54 -> 0 | M91: =+'B.DATOS (GASTOS)'!I54 -> 0 | O91: 0 | P91: =+'B.DATOS (GASTOS)'!K54 -> 0 | Q91: 0 | R91: 4910579 | S91: =+R91*100/R93 -> 0.3020089503
B93: TOTAL SECTOR | C93: TOTAL SECTOR | D93: =SUM(D56:D92) -> 0 | E93: 1198853987 | F93: 189632677 | G93: 181889287 | H93: 0 | I93: 776596 | J93: 1571152547 | K93: 0 | L93: 0 | M93: 54818801 | N93: 0 | O93: 54818801 | P93: 0 | Q93: 0 | R93: 1625971348 | S93: =+R93*100/R93 -> 100
B94: PROYECTO DE PRESUPUESTO PARA EL AÑO FISCAL 2020
B95: INFORMACION PARA LA COMISION DE PRESUPUESTO Y CUENTA GENERAL DE LA REPUBLICA DEL CONGRESO DE LA REPUBLICA
B97: FTE FTO RECURSOS DIRECTAMENTE RECAUDADOS
B98: PLIEGOS DEL SECTOR O GOBIERNO REGIONAL | C98: UNIDADES EJECUTORAS O ENTIDADES PUBLICAS ADSCRITAS AL SECTOR | D98: GASTOS CORRIENTES */ | K98: GASTOS DE CAPITAL | P98: SERVICIO DE DEUDA | R98: TOTAL
D99: 1: Reserva de Contingencia | E99: 2: Personal y Obligaciones Sociales | F99: 3: Pensiones y Prestaciones Sociales | G99: 4: Bienes y Servicios | H99: 5: Donaciones y Transferencias | I99: 6: Otros Gastos | J99: SUB TOTAL GASTOS CORRIENTES | K99: 7: Donaciones y Transferencias | L99: 8: Otros Gastos | M99: 9: Adquisiciones de Activos No Financieros | N99: 10: Adquisiciones de Activos Financieros | O99: SUB TOTAL GASTOS DE CAPITAL | P99: 11: Servicio de la Deuda | Q99: SUB TOTAL SERVICIO DE DEUDA | R99: TOTAL GASTOS UNIDAD EJECUTORA /ENTIDAD PUBLICA | S99: PART. %
B100: 451 GOBIERNO REGIONAL | C100: 001 SEDE LA LIBERTAD | E100: =+'B.DATOS (GASTOS)'!C70 -> 109283 | F100: =+'B.DATOS (GASTOS)'!D70 -> 0 | G100: =+'B.DATOS (GASTOS)'!E70 -> 6905330 | I100: =+'B.DATOS (GASTOS)'!F70 -> 3120 | J100: =+D100+E100+F100+G100+H100+I100 -> 7017733 | K100: =+'B.DATOS (GASTOS)'!H70 -> 0 | M100: =+'B.DATOS (GASTOS)'!I70 -> 0 | O100: =+K100+L100+M100+N100 -> 0 | P100: =+'B.DATOS (GASTOS)'!K70 -> 0 | Q100: =+P100 -> 0 | R100: =+J100+O100+Q100 -> 7017733 | S100: =+R100*100/R137 -> 7.207686237
B101: LA LIBERTAD | C101: 005 PROYECTO ESPEC.CHAVIMOCHIC | E101: =+'B.DATOS (GASTOS)'!C71 -> 0 | F101: =+'B.DATOS (GASTOS)'!D71 -> 0 | G101: =+'B.DATOS (GASTOS)'!E71 -> 0 | I101: =+'B.DATOS (GASTOS)'!F71 -> 0 | J101: =+D101+E101+F101+G101+H101+I101 -> 0 | K101: =+'B.DATOS (GASTOS)'!H71 -> 0 | M101: =+'B.DATOS (GASTOS)'!I71 -> 33738657 | O101: =+K101+L101+M101+N101 -> 33738657 | P101: =+'B.DATOS (GASTOS)'!K71 -> 20445916 | Q101: =+P101 -> 20445916 | R101: =+J101+O101+Q101 -> 54184573 | S101: =+R101*100/R137 -> 55.65121971
C102: 100 AGRICULTURA LA LIBERTAD | E102: =+'B.DATOS (GASTOS)'!C72 -> 0 | F102: =+'B.DATOS (GASTOS)'!D72 -> 0 | G102: =+'B.DATOS (GASTOS)'!E72 -> 221565 | I102: =+'B.DATOS (GASTOS)'!F72 -> 0 | J102: 221565 | K102: =+'B.DATOS (GASTOS)'!H72 -> 0 | M102: =+'B.DATOS (GASTOS)'!I72 -> 0 | O102: 0 | P102: =+'B.DATOS (GASTOS)'!K72 -> 0 | Q102: =+P102 -> 0 | R102: 221565 | S102: =+R102*100/R137 -> 0.2275622343
C103: 200 TRANSPORTES LA LIBERTAD | E103: =+'B.DATOS (GASTOS)'!C73 -> 0 | F103: =+'B.DATOS (GASTOS)'!D73 -> 0 | G103: =+'B.DATOS (GASTOS)'!E73 -> 5304528 | I103: =+'B.DATOS (GASTOS)'!F73 -> 0 | J103: 5304528 | K103: =+'B.DATOS (GASTOS)'!H73 -> 0 | M103: =+'B.DATOS (GASTOS)'!I73 -> 0 | O103: 0 | P103: =+'B.DATOS (GASTOS)'!K73 -> 0 | Q103: 0 | R103: 5304528 | S103: =+R103*100/R137 -> 5.448108878
C104: 300 EDUCACION LA LIBERTAD | E104: =+'B.DATOS (GASTOS)'!C76 -> 0 | F104: =+'B.DATOS (GASTOS)'!D76 -> 0 | G104: =+'B.DATOS (GASTOS)'!E76 -> 406224 | I104: =+'B.DATOS (GASTOS)'!F76 -> 0 | J104: 406224 | K104: =+'B.DATOS (GASTOS)'!H76 -> 0 | M104: =+'B.DATOS (GASTOS)'!I76 -> 15000 | O104: 15000 | P104: =+'B.DATOS (GASTOS)'!K76 -> 0 | Q104: 0 | R104: 421224 | S104: =+R104*100/R137 -> 0.4326255256
C105: 301 EDUCACION CHEPEN | E105: =+'B.DATOS (GASTOS)'!C77 -> 0 | F105: =+'B.DATOS (GASTOS)'!D77 -> 0 | G105: =+'B.DATOS (GASTOS)'!E77 -> 4223 | I105: =+'B.DATOS (GASTOS)'!F77 -> 0 | J105: =+D105+E105+F105+G105+H105+I105 -> 4223 | K105: =+'B.DATOS (GASTOS)'!H77 -> 0 | M105: =+'B.DATOS (GASTOS)'!I77 -> 0 | O105: =+K105+L105+M105+N105 -> 0 | P105: =+'B.DATOS (GASTOS)'!K77 -> 0 | Q105: 0 | R105: =+J105+O105+Q105 -> 4223 | S105: =+R105*100/R137 -> 0.004337306503
C106: 302 EDUCACION PACASMAYO | E106: =+'B.DATOS (GASTOS)'!C78 -> 0 | F106: =+'B.DATOS (GASTOS)'!D78 -> 0 | G106: =+'B.DATOS (GASTOS)'!E78 -> 10443 | I106: =+'B.DATOS (GASTOS)'!F78 -> 0 | J106: 10443 | K106: =+'B.DATOS (GASTOS)'!H78 -> 0 | M106: =+'B.DATOS (GASTOS)'!I78 -> 0 | O106: 0 | P106: =+'B.DATOS (GASTOS)'!K78 -> 0 | Q106: 0 | R106: 10443 | S106: =+R106*100/R137 -> 0.01072566702
C107: 303 EDUCACION ASCOPE | E107: =+'B.DATOS (GASTOS)'!C79 -> 0 | F107: =+'B.DATOS (GASTOS)'!D79 -> 0 | G107: =+'B.DATOS (GASTOS)'!E79 -> 76978 | I107: =+'B.DATOS (GASTOS)'!F79 -> 0 | J107: 76978 | K107: =+'B.DATOS (GASTOS)'!H79 -> 0 | M107: =+'B.DATOS (GASTOS)'!I79 -> 0 | O107: 0 | P107: =+'B.DATOS (GASTOS)'!K79 -> 0 | Q107: 0 | R107: 76978 | S107: =+R107*100/R137 -> 0.07906161023
C108: 304 EDUCACION GRAN CHIMU | E108: =+'B.DATOS (GASTOS)'!C80 -> 0 | F108: =+'B.DATOS (GASTOS)'!D80 -> 0 | G108: =+'B.DATOS (GASTOS)'!E80 -> 9336 | I108: =+'B.DATOS (GASTOS)'!F80 -> 0 | J108: 9336 | K108: =+'B.DATOS (GASTOS)'!H80 -> 0 | M108: =+'B.DATOS (GASTOS)'!I80 -> 0 | O108: 0 | P108: =+'B.DATOS (GASTOS)'!K80 -> 0 | Q108: 0 | R108: 9336 | S108: =+R108*100/R137 -> 0.009588703177
C109: 305 EDUCACION OTUZCO | E109: =+'B.DATOS (GASTOS)'!C81 -> 0 | F109: =+'B.DATOS (GASTOS)'!D81 -> 0 | G109: =+'B.DATOS (GASTOS)'!E81 -> 15000 | I109: =+'B.DATOS (GASTOS)'!F81 -> 0 | J109: 15000 | K109: =+'B.DATOS (GASTOS)'!H81 -> 0 | M109: =+'B.DATOS (GASTOS)'!I81 -> 0 | O109: 0 | P109: =+'B.DATOS (GASTOS)'!K81 -> 0 | Q109: 0 | R109: 15000 | S109: =+R109*100/R137 -> 0.0154060141
C110: 306 EDUCACION SANTIAGO DE CHUCO | E110: =+'B.DATOS (GASTOS)'!C82 -> 0 | F110: =+'B.DATOS (GASTOS)'!D82 -> 0 | G110: =+'B.DATOS (GASTOS)'!E82 -> 28772 | I110: =+'B.DATOS (GASTOS)'!F82 -> 0 | J110: 28772 | K110: =+'B.DATOS (GASTOS)'!H82 -> 0 | M110: =+'B.DATOS (GASTOS)'!I82 -> 0 | O110: 0 | P110: =+'B.DATOS (GASTOS)'!K82 -> 0 | Q110: 0 | R110: 28772 | S110: =+R110*100/R137 -> 0.02955078918
C111: 307 EDUCACION SANCHEZ CARRION | E111: =+'B.DATOS (GASTOS)'!C83 -> 0 | F111: =+'B.DATOS (GASTOS)'!D83 -> 0 | G111: =+'B.DATOS (GASTOS)'!E83 -> 114573 | I111: =+'B.DATOS (GASTOS)'!F83 -> 0 | J111: 114573 | K111: =+'B.DATOS (GASTOS)'!H83 -> 0 | M111: =+'B.DATOS (GASTOS)'!I83 -> 0 | O111: 0 | P111: =+'B.DATOS (GASTOS)'!K83 -> 0 | Q111: 0 | R111: 114573 | S111: =+R111*100/R137 -> 0.1176742169
C112: 308 EDUCACION PATAZ | E112: =+'B.DATOS (GASTOS)'!C84 -> 0 | F112: =+'B.DATOS (GASTOS)'!D84 -> 0 | G112: =+'B.DATOS (GASTOS)'!E84 -> 77352 | I112: =+'B.DATOS (GASTOS)'!F84 -> 0 | J112: 77352 | K112: =+'B.DATOS (GASTOS)'!H84 -> 0 | M112: =+'B.DATOS (GASTOS)'!I84 -> 0 | O112: 0 | P112: =+'B.DATOS (GASTOS)'!K84 -> 0 | Q112: 0 | R112: 77352 | S112: =+R112*100/R137 -> 0.07944573352
C113: 309 EDUCACION BOLIVAR | E113: =+'B.DATOS (GASTOS)'!C85 -> 0 | F113: =+'B.DATOS (GASTOS)'!D85 -> 0 | G113: =+'B.DATOS (GASTOS)'!E85 -> 3640 | I113: =+'B.DATOS (GASTOS)'!F85 -> 0 | J113: 3640 | K113: =+'B.DATOS (GASTOS)'!H85 -> 0 | M113: =+'B.DATOS (GASTOS)'!I85 -> 0 | O113: 0 | P113: =+'B.DATOS (GASTOS)'!K85 -> 0 | Q113: 0 | R113: 3640 | S113: =+R113*100/R137 -> 0.003738526089
C114: 310 COLEGIO MILITAR RAMON CASTILLA | E114: =+'B.DATOS (GASTOS)'!C86 -> 0 | F114: =+'B.DATOS (GASTOS)'!D86 -> 0 | G114: =+'B.DATOS (GASTOS)'!E86 -> 1474450 | I114: =+'B.DATOS (GASTOS)'!F86 -> 0 | J114: 1474450 | K114: =+'B.DATOS (GASTOS)'!H86 -> 0 | M114: =+'B.DATOS (GASTOS)'!I86 -> 39040 | O114: 39040 | P114: =+'B.DATOS (GASTOS)'!K86 -> 0 | Q114: 0 | R114: 1513490 | S114: =+R114*100/R137 -> 1.554456552
C115: 311 EDUCACION JULCAN | E115: =+'B.DATOS (GASTOS)'!C87 -> 0 | F115: =+'B.DATOS (GASTOS)'!D87 -> 0 | G115: =+'B.DATOS (GASTOS)'!E87 -> 14910 | I115: =+'B.DATOS (GASTOS)'!F87 -> 0 | J115: 14910 | K115: =+'B.DATOS (GASTOS)'!H87 -> 0 | M115: =+'B.DATOS (GASTOS)'!I87 -> 0 | O115: 0 | P115: =+'B.DATOS (GASTOS)'!K87 -> 0 | Q115: 0 | R115: 14910 | S115: =+R115*100/R137 -> 0.01531357802
C116: 312 EDUCACION VIRU | E116: =+'B.DATOS (GASTOS)'!C88 -> 0 | F116: =+'B.DATOS (GASTOS)'!D88 -> 0 | G116: =+'B.DATOS (GASTOS)'!E88 -> 41130 | I116: =+'B.DATOS (GASTOS)'!F88 -> 0 | J116: 41130 | K116: =+'B.DATOS (GASTOS)'!H88 -> 0 | M116: =+'B.DATOS (GASTOS)'!I88 -> 0 | O116: 0 | P116: =+'B.DATOS (GASTOS)'!K88 -> 0 | Q116: 0 | R116: 41130 | S116: =+R116*100/R137 -> 0.04224329067
C117: 313 EDUCACION EL PORVENIR | E117: =+'B.DATOS (GASTOS)'!C89 -> 0 | F117: =+'B.DATOS (GASTOS)'!D89 -> 0 | G117: =+'B.DATOS (GASTOS)'!E89 -> 68120 | I117: =+'B.DATOS (GASTOS)'!F89 -> 0 | J117: 68120 | K117: =+'B.DATOS (GASTOS)'!H89 -> 0 | M117: =+'B.DATOS (GASTOS)'!I89 -> 0 | O117: 0 | P117: =+'B.DATOS (GASTOS)'!K89 -> 0 | Q117: 0 | R117: 68120 | S117: =+R117*100/R137 -> 0.06996384537
C118: 314 EDUCACION LA ESPERANZA | E118: =+'B.DATOS (GASTOS)'!C90 -> 0 | F118: =+'B.DATOS (GASTOS)'!D90 -> 0 | G118: =+'B.DATOS (GASTOS)'!E90 -> 47358 | I118: =+'B.DATOS (GASTOS)'!F90 -> 0 | J118: 47358 | K118: =+'B.DATOS (GASTOS)'!H90 -> 0 | M118: =+'B.DATOS (GASTOS)'!I90 -> 0 | O118: 0 | P118: =+'B.DATOS (GASTOS)'!K90 -> 0 | Q118: 0 | R118: 47358 | S118: =+R118*100/R137 -> 0.04863986772
C119: 315 EDUCACION TRUJILLO NOR OESTE | E119: =+'B.DATOS (GASTOS)'!C91 -> 0 | F119: =+'B.DATOS (GASTOS)'!D91 -> 0 | G119: =+'B.DATOS (GASTOS)'!E91 -> 76641 | I119: =+'B.DATOS (GASTOS)'!F91 -> 0 | J119: 76641 | K119: =+'B.DATOS (GASTOS)'!H91 -> 0 | M119: =+'B.DATOS (GASTOS)'!I91 -> 0 | O119: 0 | P119: =+'B.DATOS (GASTOS)'!K91 -> 0 | Q119: 0 | R119: 76641 | S119: =+R119*100/R137 -> 0.07871548845
C120: 316 EDUCACION TRUJILLO SUR ESTE | E120: =+'B.DATOS (GASTOS)'!C92 -> 0 | F120: =+'B.DATOS (GASTOS)'!D92 -> 0 | G120: =+'B.DATOS (GASTOS)'!E92 -> 37032 | I120: =+'B.DATOS (GASTOS)'!F92 -> 0 | J120: 37032 | K120: =+'B.DATOS (GASTOS)'!H92 -> 0 | M120: =+'B.DATOS (GASTOS)'!I92 -> 0 | O120: 0 | P120: =+'B.DATOS (GASTOS)'!K92 -> 0 | Q120: 0 | R120: 37032 | S120: =+R120*100/R137 -> 0.03803436761
C121: 400 SALUD LA LIBERTAD | E121: =+'B.DATOS (GASTOS)'!C95 -> 0 | F121: =+'B.DATOS (GASTOS)'!D95 -> 0 | G121: =+'B.DATOS (GASTOS)'!E95 -> 2237590 | I121: =+'B.DATOS (GASTOS)'!F95 -> 551368 | J121: 2788958 | K121: =+'B.DATOS (GASTOS)'!H95 -> 0 | M121: =+'B.DATOS (GASTOS)'!I95 -> 35052 | O121: 35052 | P121: =+'B.DATOS (GASTOS)'!K95 -> 0 | Q121: 0 | R121: 2824010 | S121: =+R121*100/R137 -> 2.900449192
C122: 401 INSTIT. REG.DE OFTALMOLOGIA | E122: =+'B.DATOS (GASTOS)'!C96 -> 0 | F122: =+'B.DATOS (GASTOS)'!D96 -> 0 | G122: =+'B.DATOS (GASTOS)'!E96 -> 5251198 | I122: =+'B.DATOS (GASTOS)'!F96 -> 0 | J122: =+D122+E122+F122+G122+H122+I122 -> 5251198 | K122: =+'B.DATOS (GASTOS)'!H96 -> 0 | M122: =+'B.DATOS (GASTOS)'!I96 -> 0 | O122: =+K122+L122+M122+N122 -> 0 | P122: =+'B.DATOS (GASTOS)'!K96 -> 0 | Q122: 0 | R122: =+J122+O122+Q122 -> 5251198 | S122: =+R122*100/R137 -> 5.393335362
C123: 402 SALUD NORTE ASCOPE | E123: =+'B.DATOS (GASTOS)'!C97 -> 0 | F123: =+'B.DATOS (GASTOS)'!D97 -> 0 | G123: =+'B.DATOS (GASTOS)'!E97 -> 8007845 | I123: =+'B.DATOS (GASTOS)'!F97 -> 0 | J123: 8007845 | K123: =+'B.DATOS (GASTOS)'!H97 -> 0 | M123: =+'B.DATOS (GASTOS)'!I97 -> 31800 | O123: 31800 | P123: =+'B.DATOS (GASTOS)'!K97 -> 0 | Q123: 0 | R123: 8039645 | S123: =+R123*100/R137 -> 8.257258949
C124: 403 SALUD TRUJILLO SUR OESTE | E124: =+'B.DATOS (GASTOS)'!C98 -> 0 | F124: =+'B.DATOS (GASTOS)'!D98 -> 0 | G124: =+'B.DATOS (GASTOS)'!E98 -> 4212462 | I124: =+'B.DATOS (GASTOS)'!F98 -> 0 | J124: 4212462 | K124: =+'B.DATOS (GASTOS)'!H98 -> 0 | M124: =+'B.DATOS (GASTOS)'!I98 -> 0 | O124: 0 | P124: =+'B.DATOS (GASTOS)'!K98 -> 0 | Q124: 0 | R124: 4212462 | S124: =+R124*100/R137 -> 4.326483265
C125: 404 SALUD CHEPEN | E125: =+'B.DATOS (GASTOS)'!C99 -> 0 | F125: =+'B.DATOS (GASTOS)'!D99 -> 0 | G125: =+'B.DATOS (GASTOS)'!E99 -> 724369 | I125: =+'B.DATOS (GASTOS)'!F99 -> 0 | J125: 724369 | K125: =+'B.DATOS (GASTOS)'!H99 -> 0 | M125: =+'B.DATOS (GASTOS)'!I99 -> 0 | O125: 0 | P125: =+'B.DATOS (GASTOS)'!K99 -> 0 | Q125: 0 | R125: 724369 | S125: =+R125*100/R137 -> 0.7439759352
C126: 405 SALUD PACASMAYO | E126: =+'B.DATOS (GASTOS)'!C100 -> 0 | F126: =+'B.DATOS (GASTOS)'!D100 -> 0 | G126: =+'B.DATOS (GASTOS)'!E100 -> 391608 | I126: =+'B.DATOS (GASTOS)'!F100 -> 0 | J126: 391608 | K126: =+'B.DATOS (GASTOS)'!H100 -> 0 | M126: =+'B.DATOS (GASTOS)'!I100 -> 0 | O126: 0 | P126: =+'B.DATOS (GASTOS)'!K100 -> 0 | Q126: 0 | R126: 391608 | S126: =+R126*100/R137 -> 0.4022078913
C127: 406 SALUD SANCHEZ CARRION | E127: =+'B.DATOS (GASTOS)'!C101 -> 0 | F127: =+'B.DATOS (GASTOS)'!D101 -> 0 | G127: =+'B.DATOS (GASTOS)'!E101 -> 255212 | I127: =+'B.DATOS (GASTOS)'!F101 -> 0 | J127: 255212 | K127: =+'B.DATOS (GASTOS)'!H101 -> 0 | M127: =+'B.DATOS (GASTOS)'!I101 -> 0 | O127: 0 | P127: =+'B.DATOS (GASTOS)'!K101 -> 0 | Q127: 0 | R127: 255212 | S127: =+R127*100/R137 -> 0.2621199781
C128: 407 SALUD SANTIAGO DE CHUCO | E128: =+'B.DATOS (GASTOS)'!C102 -> 0 | F128: =+'B.DATOS (GASTOS)'!D102 -> 0 | G128: =+'B.DATOS (GASTOS)'!E102 -> 31041 | I128: =+'B.DATOS (GASTOS)'!F102 -> 0 | J128: 31041 | K128: =+'B.DATOS (GASTOS)'!H102 -> 0 | M128: =+'B.DATOS (GASTOS)'!I102 -> 0 | O128: 0 | P128: =+'B.DATOS (GASTOS)'!K102 -> 0 | Q128: 0 | R128: 31041 | S128: =+R128*100/R137 -> 0.03188120558
C129: 408 SALUD OTUZCO | E129: =+'B.DATOS (GASTOS)'!C103 -> 0 | F129: =+'B.DATOS (GASTOS)'!D103 -> 0 | G129: =+'B.DATOS (GASTOS)'!E103 -> 240075 | I129: =+'B.DATOS (GASTOS)'!F103 -> 0 | J129: 240075 | K129: =+'B.DATOS (GASTOS)'!H103 -> 0 | M129: =+'B.DATOS (GASTOS)'!I103 -> 0 | O129: 0 | P129: =+'B.DATOS (GASTOS)'!K103 -> 0 | Q129: 0 | R129: 240075 | S129: =+R129*100/R137 -> 0.2465732557
C130: 409 SALUD TRUJILLO ESTE | E130: =+'B.DATOS (GASTOS)'!C104 -> 0 | F130: =+'B.DATOS (GASTOS)'!D104 -> 0 | G130: =+'B.DATOS (GASTOS)'!E104 -> 3733602 | I130: =+'B.DATOS (GASTOS)'!F104 -> 0 | J130: 3733602 | K130: =+'B.DATOS (GASTOS)'!H104 -> 0 | M130: =+'B.DATOS (GASTOS)'!I104 -> 0 | O130: 0 | P130: =+'B.DATOS (GASTOS)'!K104 -> 0 | Q130: 0 | R130: 3733602 | S130: =+R130*100/R137 -> 3.834661671
C131: 410 INSTIT.REG.DE ENFERM.NEOPLASICAS | E131: =+'B.DATOS (GASTOS)'!C105 -> 0 | F131: =+'B.DATOS (GASTOS)'!D105 -> 0 | G131: =+'B.DATOS (GASTOS)'!E105 -> 1554121 | I131: =+'B.DATOS (GASTOS)'!F105 -> 0 | J131: 1554121 | K131: =+'B.DATOS (GASTOS)'!H105 -> 0 | M131: =+'B.DATOS (GASTOS)'!I105 -> 0 | O131: 0 | P131: =+'B.DATOS (GASTOS)'!K105 -> 0 | Q131: 0 | R131: 1554121 | S131: =+R131*100/R137 -> 1.596187336
C132: 411 SALUD JULCAN | E132: =+'B.DATOS (GASTOS)'!C106 -> 0 | F132: =+'B.DATOS (GASTOS)'!D106 -> 0 | G132: =+'B.DATOS (GASTOS)'!E106 -> 2000 | I132: =+'B.DATOS (GASTOS)'!F106 -> 0 | J132: 2000 | K132: =+'B.DATOS (GASTOS)'!H106 -> 0 | M132: =+'B.DATOS (GASTOS)'!I106 -> 0 | O132: 0 | P132: =+'B.DATOS (GASTOS)'!K106 -> 0 | Q132: 0 | R132: 2000 | S132: =+R132*100/R137 -> 0.002054135213
C133: 412 SALUD VIRU | E133: =+'B.DATOS (GASTOS)'!C107 -> 0 | F133: =+'B.DATOS (GASTOS)'!D107 -> 0 | G133: =+'B.DATOS (GASTOS)'!E107 -> 526161 | I133: =+'B.DATOS (GASTOS)'!F107 -> 0 | J133: 526161 | K133: =+'B.DATOS (GASTOS)'!H107 -> 0 | M133: =+'B.DATOS (GASTOS)'!I107 -> 0 | O133: 0 | P133: =+'B.DATOS (GASTOS)'!K107 -> 0 | Q133: 0 | R133: 526161 | S133: =+R133*100/R137 -> 0.540402919
C134: 413 SALUD ASCOPE | E134: =+'B.DATOS (GASTOS)'!C108 -> 0 | F134: =+'B.DATOS (GASTOS)'!D108 -> 0 | G134: =+'B.DATOS (GASTOS)'!E108 -> 191875 | I134: =+'B.DATOS (GASTOS)'!F108 -> 0 | J134: 191875 | K134: =+'B.DATOS (GASTOS)'!H108 -> 0 | M134: =+'B.DATOS (GASTOS)'!I108 -> 0 | O134: 0 | P134: =+'B.DATOS (GASTOS)'!K108 -> 0 | Q134: 0 | R134: 191875 | S134: =+R134*100/R137 -> 0.197068597
C135: 414 SALUD GRAN CHIMU | E135: =+'B.DATOS (GASTOS)'!C109 -> 0 | F135: =+'B.DATOS (GASTOS)'!D109 -> 0 | G135: =+'B.DATOS (GASTOS)'!E109 -> 98574 | I135: =+'B.DATOS (GASTOS)'!F109 -> 0 | J135: 98574 | K135: =+'B.DATOS (GASTOS)'!H109 -> 0 | M135: =+'B.DATOS (GASTOS)'!I109 -> 0 | O135: 0 | P135: =+'B.DATOS (GASTOS)'!K109 -> 0 | Q135: 0 | R135: 98574 | S135: =+R135*100/R137 -> 0.1012421623
B137: TOTAL SECTOR | C137: TOTAL SECTOR | D137: =SUM(D100:D136) -> 0 | E137: 109283 | F137: 0 | G137: 42395338 | H137: 0 | I137: 554488 | J137: 43059109 | K137: 0 | L137: 0 | M137: 33859549 | N137: 0 | O137: 33859549 | P137: 20445916 | Q137: 20445916 | R137: 97364574 | S137: =+R137*100/R137 -> 100
B138: PROYECTO DE PRESUPUESTO PARA EL AÑO FISCAL 2020
B139: INFORMACION PARA LA COMISION DE PRESUPUESTO Y CUENTA GENERAL DE LA REPUBLICA DEL CONGRESO DE LA REPUBLICA
B141: FTE FTO DONACIONES Y TRANSFERENCIAS
B142: PLIEGOS DEL SECTOR O GOBIERNO REGIONAL | C142: UNIDADES EJECUTORAS O ENTIDADES PUBLICAS ADSCRITAS AL SECTOR | D142: GASTOS CORRIENTES */ | K142: GASTOS DE CAPITAL | P142: SERVICIO DE DEUDA | R142: TOTAL
D143: 1: Reserva de Contingencia | E143: 2: Personal y Obligaciones Sociales | F143: 3: Pensiones y Prestaciones Sociales | G143: 4: Bienes y Servicios | H143: 5: Donaciones y Transferencias | I143: 6: Otros Gastos | J143: SUB TOTAL GASTOS CORRIENTES | K143: 7: Donaciones y Transferencias | L143: 8: Otros Gastos | M143: 9: Adquisiciones de Activos No Financieros | N143: 10: Adquisiciones de Activos Financieros | O143: SUB TOTAL GASTOS DE CAPITAL | P143: 11: Servicio de la Deuda | Q143: SUB TOTAL SERVICIO DE DEUDA | R143: TOTAL GASTOS UNIDAD EJECUTORA /ENTIDAD PUBLICA | S143: PART. %
B144: 451 GOBIERNO REGIONAL | C144: 001 SEDE LA LIBERTAD | E144: =+'B.DATOS (GASTOS)'!C179 -> 0 | F144: =+'B.DATOS (GASTOS)'!D179 -> 0 | G144: =+'B.DATOS (GASTOS)'!E179 -> 0 | I144: =+'B.DATOS (GASTOS)'!F179 -> 0 | J144: =+D144+E144+F144+G144+H144+I144 -> 0 | K144: =+'B.DATOS (GASTOS)'!H179 -> 0 | M144: =+'B.DATOS (GASTOS)'!I179 -> 0 | O144: =+K144+L144+M144+N144 -> 0 | P144: =+'B.DATOS (GASTOS)'!K179 -> 0 | Q144: =+P144 -> 0 | R144: =+J144+O144+Q144 -> 0 | S144: =+R144*100/R147 -> 
B145: LA LIBERTAD | C145: 005 PROYECTO ESPEC.CHAVIMOCHIC | E145: =+'B.DATOS (GASTOS)'!C180 -> 0 | F145: =+'B.DATOS (GASTOS)'!D180 -> 0 | G145: =+'B.DATOS (GASTOS)'!E180 -> 0 | I145: =+'B.DATOS (GASTOS)'!F180 -> 0 | J145: =+D145+E145+F145+G145+H145+I145 -> 0 | K145: =+'B.DATOS (GASTOS)'!H180 -> 0 | M145: =+'B.DATOS (GASTOS)'!I180 -> 0 | O145: =+K145+L145+M145+N145 -> 0 | P145: =+'B.DATOS (GASTOS)'!K180 -> 0 | Q145: 0 | R145: =+J145+O145+Q145 -> 0 | S145: =+R145*100/R148 -> 
C146: 100 AGRICULTURA LA LIBERTAD | E146: =+'B.DATOS (GASTOS)'!C181 -> 0 | F146: =+'B.DATOS (GASTOS)'!D181 -> 0 | G146: =+'B.DATOS (GASTOS)'!E181 -> 0 | I146: =+'B.DATOS (GASTOS)'!F181 -> 0 | J146: 0 | K146: =+'B.DATOS (GASTOS)'!H181 -> 0 | M146: =+'B.DATOS (GASTOS)'!I181 -> 0 | O146: 0 | P146: =+'B.DATOS (GASTOS)'!K181 -> 0 | Q146: 0 | R146: 0
C147: 200 TRANSPORTES LA LIBERTAD | E147: =+'B.DATOS (GASTOS)'!C182 -> 0 | F147: =+'B.DATOS (GASTOS)'!D182 -> 0 | G147: =+'B.DATOS (GASTOS)'!E182 -> 0 | I147: =+'B.DATOS (GASTOS)'!F182 -> 0 | J147: 0 | K147: =+'B.DATOS (GASTOS)'!H182 -> 0 | M147: =+'B.DATOS (GASTOS)'!I182 -> 0 | O147: 0 | P147: =+'B.DATOS (GASTOS)'!K182 -> 0 | Q147: 0 | R147: 0
C148: 300 EDUCACION LA LIBERTAD | E148: =+'B.DATOS (GASTOS)'!C185 -> 0 | F148: =+'B.DATOS (GASTOS)'!D185 -> 0 | G148: =+'B.DATOS (GASTOS)'!E185 -> 0 | I148: =+'B.DATOS (GASTOS)'!F185 -> 0 | J148: 0 | K148: =+'B.DATOS (GASTOS)'!H185 -> 0 | M148: =+'B.DATOS (GASTOS)'!I185 -> 0 | O148: 0 | P148: =+'B.DATOS (GASTOS)'!K185 -> 0 | Q148: 0 | R148: 0
C149: 301 EDUCACION CHEPEN | E149: =+'B.DATOS (GASTOS)'!C186 -> 0 | F149: =+'B.DATOS (GASTOS)'!D186 -> 0 | G149: =+'B.DATOS (GASTOS)'!E186 -> 0 | I149: =+'B.DATOS (GASTOS)'!F186 -> 0 | J149: =+D149+E149+F149+G149+H149+I149 -> 0 | K149: =+'B.DATOS (GASTOS)'!H186 -> 0 | M149: =+'B.DATOS (GASTOS)'!I186 -> 0 | O149: =+K149+L149+M149+N149 -> 0 | P149: =+'B.DATOS (GASTOS)'!K186 -> 0 | Q149: 0 | R149: =+J149+O149+Q149 -> 0
C150: 302 EDUCACION PACASMAYO | E150: =+'B.DATOS (GASTOS)'!C187 -> 0 | F150: =+'B.DATOS (GASTOS)'!D187 -> 0 | G150: =+'B.DATOS (GASTOS)'!E187 -> 0 | I150: =+'B.DATOS (GASTOS)'!F187 -> 0 | J150: 0 | K150: =+'B.DATOS (GASTOS)'!H187 -> 0 | M150: =+'B.DATOS (GASTOS)'!I187 -> 0 | O150: 0 | P150: =+'B.DATOS (GASTOS)'!K187 -> 0 | Q150: 0 | R150: 0
C151: 303 EDUCACION ASCOPE | E151: =+'B.DATOS (GASTOS)'!C188 -> 0 | F151: =+'B.DATOS (GASTOS)'!D188 -> 0 | G151: =+'B.DATOS (GASTOS)'!E188 -> 0 | I151: =+'B.DATOS (GASTOS)'!F188 -> 0 | J151: 0 | K151: =+'B.DATOS (GASTOS)'!H188 -> 0 | M151: =+'B.DATOS (GASTOS)'!I188 -> 0 | O151: 0 | P151: =+'B.DATOS (GASTOS)'!K188 -> 0 | Q151: 0 | R151: 0
C152: 304 EDUCACION GRAN CHIMU | E152: =+'B.DATOS (GASTOS)'!C189 -> 0 | F152: =+'B.DATOS (GASTOS)'!D189 -> 0 | G152: =+'B.DATOS (GASTOS)'!E189 -> 0 | I152: =+'B.DATOS (GASTOS)'!F189 -> 0 | J152: 0 | K152: =+'B.DATOS (GASTOS)'!H189 -> 0 | M152: =+'B.DATOS (GASTOS)'!I189 -> 0 | O152: 0 | P152: =+'B.DATOS (GASTOS)'!K189 -> 0 | Q152: 0 | R152: 0
C153: 305 EDUCACION OTUZCO | E153: =+'B.DATOS (GASTOS)'!C190 -> 0 | F153: =+'B.DATOS (GASTOS)'!D190 -> 0 | G153: =+'B.DATOS (GASTOS)'!E190 -> 0 | I153: =+'B.DATOS (GASTOS)'!F190 -> 0 | J153: 0 | K153: =+'B.DATOS (GASTOS)'!H190 -> 0 | M153: =+'B.DATOS (GASTOS)'!I190 -> 0 | O153: 0 | P153: =+'B.DATOS (GASTOS)'!K190 -> 0 | Q153: 0 | R153: 0
C154: 306 EDUCACION SANTIAGO DE CHUCO | E154: =+'B.DATOS (GASTOS)'!C191 -> 0 | F154: =+'B.DATOS (GASTOS)'!D191 -> 0 | G154: =+'B.DATOS (GASTOS)'!E191 -> 0 | I154: =+'B.DATOS (GASTOS)'!F191 -> 0 | J154: 0 | K154: =+'B.DATOS (GASTOS)'!H191 -> 0 | M154: =+'B.DATOS (GASTOS)'!I191 -> 0 | O154: 0 | P154: =+'B.DATOS (GASTOS)'!K191 -> 0 | Q154: 0 | R154: 0
C155: 307 EDUCACION SANCHEZ CARRION | E155: =+'B.DATOS (GASTOS)'!C192 -> 0 | F155: =+'B.DATOS (GASTOS)'!D192 -> 0 | G155: =+'B.DATOS (GASTOS)'!E192 -> 0 | I155: =+'B.DATOS (GASTOS)'!F192 -> 0 | J155: 0 | K155: =+'B.DATOS (GASTOS)'!H192 -> 0 | M155: =+'B.DATOS (GASTOS)'!I192 -> 0 | O155: 0 | P155: =+'B.DATOS (GASTOS)'!K192 -> 0 | Q155: 0 | R155: 0
C156: 308 EDUCACION PATAZ | E156: =+'B.DATOS (GASTOS)'!C193 -> 0 | F156: =+'B.DATOS (GASTOS)'!D193 -> 0 | G156: =+'B.DATOS (GASTOS)'!E193 -> 0 | I156: =+'B.DATOS (GASTOS)'!F193 -> 0 | J156: 0 | K156: =+'B.DATOS (GASTOS)'!H193 -> 0 | M156: =+'B.DATOS (GASTOS)'!I193 -> 0 | O156: 0 | P156: =+'B.DATOS (GASTOS)'!K193 -> 0 | Q156: 0 | R156: 0
C157: 309 EDUCACION BOLIVAR | E157: =+'B.DATOS (GASTOS)'!C194 -> 0 | F157: =+'B.DATOS (GASTOS)'!D194 -> 0 | G157: =+'B.DATOS (GASTOS)'!E194 -> 0 | I157: =+'B.DATOS (GASTOS)'!F194 -> 0 | J157: 0 | K157: =+'B.DATOS (GASTOS)'!H194 -> 0 | M157: =+'B.DATOS (GASTOS)'!I194 -> 0 | O157: 0 | P157: =+'B.DATOS (GASTOS)'!K194 -> 0 | Q157: 0 | R157: 0
C158: 310 COLEGIO MILITAR RAMON CASTILLA | E158: =+'B.DATOS (GASTOS)'!C195 -> 0 | F158: =+'B.DATOS (GASTOS)'!D195 -> 0 | G158: =+'B.DATOS (GASTOS)'!E195 -> 0 | I158: =+'B.DATOS (GASTOS)'!F195 -> 0 | J158: 0 | K158: =+'B.DATOS (GASTOS)'!H195 -> 0 | M158: =+'B.DATOS (GASTOS)'!I195 -> 0 | O158: 0 | P158: =+'B.DATOS (GASTOS)'!K195 -> 0 | Q158: 0 | R158: 0
C159: 311 EDUCACION JULCAN | E159: =+'B.DATOS (GASTOS)'!C196 -> 0 | F159: =+'B.DATOS (GASTOS)'!D196 -> 0 | G159: =+'B.DATOS (GASTOS)'!E196 -> 0 | I159: =+'B.DATOS (GASTOS)'!F196 -> 0 | J159: 0 | K159: =+'B.DATOS (GASTOS)'!H196 -> 0 | M159: =+'B.DATOS (GASTOS)'!I196 -> 0 | O159: 0 | P159: =+'B.DATOS (GASTOS)'!K196 -> 0 | Q159: 0 | R159: 0
C160: 312 EDUCACION VIRU | E160: =+'B.DATOS (GASTOS)'!C197 -> 0 | F160: =+'B.DATOS (GASTOS)'!D197 -> 0 | G160: =+'B.DATOS (GASTOS)'!E197 -> 0 | I160: =+'B.DATOS (GASTOS)'!F197 -> 0 | J160: 0 | K160: =+'B.DATOS (GASTOS)'!H197 -> 0 | M160: =+'B.DATOS (GASTOS)'!I197 -> 0 | O160: 0 | P160: =+'B.DATOS (GASTOS)'!K197 -> 0 | Q160: 0 | R160: 0
C161: 313 EDUCACION EL PORVENIR | E161: =+'B.DATOS (GASTOS)'!C198 -> 0 | F161: =+'B.DATOS (GASTOS)'!D198 -> 0 | G161: =+'B.DATOS (GASTOS)'!E198 -> 0 | I161: =+'B.DATOS (GASTOS)'!F198 -> 0 | J161: 0 | K161: =+'B.DATOS (GASTOS)'!H198 -> 0 | M161: =+'B.DATOS (GASTOS)'!I198 -> 0 | O161: 0 | P161: =+'B.DATOS (GASTOS)'!K198 -> 0 | Q161: 0 | R161: 0
C162: 314 EDUCACION LA ESPERANZA | E162: =+'B.DATOS (GASTOS)'!C199 -> 0 | F162: =+'B.DATOS (GASTOS)'!D199 -> 0 | G162: =+'B.DATOS (GASTOS)'!E199 -> 0 | I162: =+'B.DATOS (GASTOS)'!F199 -> 0 | J162: 0 | K162: =+'B.DATOS (GASTOS)'!H199 -> 0 | M162: =+'B.DATOS (GASTOS)'!I199 -> 0 | O162: 0 | P162: =+'B.DATOS (GASTOS)'!K199 -> 0 | Q162: 0 | R162: 0 | S162: 0
C163: 315 EDUCACION TRUJILLO NOR OESTE | E163: =+'B.DATOS (GASTOS)'!C200 -> 0 | F163: =+'B.DATOS (GASTOS)'!D200 -> 0 | G163: =+'B.DATOS (GASTOS)'!E200 -> 0 | I163: =+'B.DATOS (GASTOS)'!F200 -> 0 | J163: 0 | K163: =+'B.DATOS (GASTOS)'!H200 -> 0 | M163: =+'B.DATOS (GASTOS)'!I200 -> 0 | O163: 0 | P163: =+'B.DATOS (GASTOS)'!K200 -> 0 | Q163: 0 | R163: 0
C164: 316 EDUCACION TRUJILLO SUR ESTE | E164: =+'B.DATOS (GASTOS)'!C201 -> 0 | F164: =+'B.DATOS (GASTOS)'!D201 -> 0 | G164: =+'B.DATOS (GASTOS)'!E201 -> 0 | I164: =+'B.DATOS (GASTOS)'!F201 -> 0 | J164: 0 | K164: =+'B.DATOS (GASTOS)'!H201 -> 0 | M164: =+'B.DATOS (GASTOS)'!I201 -> 0 | O164: 0 | P164: =+'B.DATOS (GASTOS)'!K201 -> 0 | Q164: 0 | R164: 0
B165: 451 GOBIERNO REGIONAL | C165: 400 SALUD LA LIBERTAD | E165: =+'B.DATOS (GASTOS)'!C204 -> 0 | F165: =+'B.DATOS (GASTOS)'!D204 -> 0 | G165: =+'B.DATOS (GASTOS)'!E204 -> 3748466 | I165: =+'B.DATOS (GASTOS)'!F204 -> 0 | J165: 3748466 | K165: =+'B.DATOS (GASTOS)'!H204 -> 0 | M165: =+'B.DATOS (GASTOS)'!I204 -> 0 | O165: 0 | P165: =+'B.DATOS (GASTOS)'!K204 -> 0 | Q165: 0 | R165: 3748466
B166: LA LIBERTAD | C166: 401 INSTIT. REG.DE OFTALMOLOGIA | E166: =+'B.DATOS (GASTOS)'!C205 -> 0 | F166: =+'B.DATOS (GASTOS)'!D205 -> 0 | G166: =+'B.DATOS (GASTOS)'!E205 -> 0 | I166: =+'B.DATOS (GASTOS)'!F205 -> 0 | J166: =+D166+E166+F166+G166+H166+I166 -> 0 | K166: =+'B.DATOS (GASTOS)'!H205 -> 0 | M166: =+'B.DATOS (GASTOS)'!I205 -> 0 | O166: =+K166+L166+M166+N166 -> 0 | P166: =+'B.DATOS (GASTOS)'!K205 -> 0 | Q166: 0 | R166: =+J166+O166+Q166 -> 0 | S166: =+R166*100/R181 -> 0
C167: 402 SALUD NORTE ASCOPE | E167: =+'B.DATOS (GASTOS)'!C206 -> 0 | F167: =+'B.DATOS (GASTOS)'!D206 -> 0 | G167: =+'B.DATOS (GASTOS)'!E206 -> 0 | I167: =+'B.DATOS (GASTOS)'!F206 -> 0 | J167: 0 | K167: =+'B.DATOS (GASTOS)'!H206 -> 0 | M167: =+'B.DATOS (GASTOS)'!I206 -> 0 | O167: 0 | P167: =+'B.DATOS (GASTOS)'!K206 -> 0 | Q167: 0 | R167: 0 | S167: =+R167*100/R181 -> 0
C168: 403 SALUD TRUJILLO SUR OESTE | E168: =+'B.DATOS (GASTOS)'!C207 -> 0 | F168: =+'B.DATOS (GASTOS)'!D207 -> 0 | G168: =+'B.DATOS (GASTOS)'!E207 -> 0 | I168: =+'B.DATOS (GASTOS)'!F207 -> 0 | J168: 0 | K168: =+'B.DATOS (GASTOS)'!H207 -> 0 | M168: =+'B.DATOS (GASTOS)'!I207 -> 0 | O168: 0 | P168: =+'B.DATOS (GASTOS)'!K207 -> 0 | Q168: 0 | R168: 0 | S168: =+R168*100/R181 -> 0
C169: 404 SALUD CHEPEN | E169: =+'B.DATOS (GASTOS)'!C208 -> 0 | F169: =+'B.DATOS (GASTOS)'!D208 -> 0 | G169: =+'B.DATOS (GASTOS)'!E208 -> 0 | I169: =+'B.DATOS (GASTOS)'!F208 -> 0 | J169: 0 | K169: =+'B.DATOS (GASTOS)'!H208 -> 0 | M169: =+'B.DATOS (GASTOS)'!I208 -> 0 | O169: 0 | P169: =+'B.DATOS (GASTOS)'!K208 -> 0 | Q169: 0 | R169: 0 | S169: =+R169*100/R181 -> 0
C170: 405 SALUD PACASMAYO | E170: =+'B.DATOS (GASTOS)'!C209 -> 0 | F170: =+'B.DATOS (GASTOS)'!D209 -> 0 | G170: =+'B.DATOS (GASTOS)'!E209 -> 0 | I170: =+'B.DATOS (GASTOS)'!F209 -> 0 | J170: 0 | K170: =+'B.DATOS (GASTOS)'!H209 -> 0 | M170: =+'B.DATOS (GASTOS)'!I209 -> 0 | O170: 0 | P170: =+'B.DATOS (GASTOS)'!K209 -> 0 | Q170: 0 | R170: 0 | S170: =+R170*100/R181 -> 0
C171: 406 SALUD SANCHEZ CARRION | E171: =+'B.DATOS (GASTOS)'!C210 -> 0 | F171: =+'B.DATOS (GASTOS)'!D210 -> 0 | G171: =+'B.DATOS (GASTOS)'!E210 -> 0 | I171: =+'B.DATOS (GASTOS)'!F210 -> 0 | J171: 0 | K171: =+'B.DATOS (GASTOS)'!H210 -> 0 | M171: =+'B.DATOS (GASTOS)'!I210 -> 0 | O171: 0 | P171: =+'B.DATOS (GASTOS)'!K210 -> 0 | Q171: 0 | R171: 0 | S171: =+R171*100/R181 -> 0
C172: 407 SALUD SANTIAGO DE CHUCO | E172: =+'B.DATOS (GASTOS)'!C211 -> 0 | F172: =+'B.DATOS (GASTOS)'!D211 -> 0 | G172: =+'B.DATOS (GASTOS)'!E211 -> 0 | I172: =+'B.DATOS (GASTOS)'!F211 -> 0 | J172: 0 | K172: =+'B.DATOS (GASTOS)'!H211 -> 0 | M172: =+'B.DATOS (GASTOS)'!I211 -> 0 | O172: 0 | P172: =+'B.DATOS (GASTOS)'!K211 -> 0 | Q172: 0 | R172: 0 | S172: =+R172*100/R181 -> 0
C173: 408 SALUD OTUZCO | E173: =+'B.DATOS (GASTOS)'!C212 -> 0 | F173: =+'B.DATOS (GASTOS)'!D212 -> 0 | G173: =+'B.DATOS (GASTOS)'!E212 -> 0 | I173: =+'B.DATOS (GASTOS)'!F212 -> 0 | J173: 0 | K173: =+'B.DATOS (GASTOS)'!H212 -> 0 | M173: =+'B.DATOS (GASTOS)'!I212 -> 0 | O173: 0 | P173: =+'B.DATOS (GASTOS)'!K212 -> 0 | Q173: 0 | R173: 0 | S173: =+R173*100/R181 -> 0
C174: 409 SALUD TRUJILLO ESTE | E174: =+'B.DATOS (GASTOS)'!C213 -> 0 | F174: =+'B.DATOS (GASTOS)'!D213 -> 0 | G174: =+'B.DATOS (GASTOS)'!E213 -> 0 | I174: =+'B.DATOS (GASTOS)'!F213 -> 0 | J174: 0 | K174: =+'B.DATOS (GASTOS)'!H213 -> 0 | M174: =+'B.DATOS (GASTOS)'!I213 -> 0 | O174: 0 | P174: =+'B.DATOS (GASTOS)'!K213 -> 0 | Q174: 0 | R174: 0 | S174: =+R174*100/R181 -> 0
C175: 410 INSTIT.REG.DE ENFERM.NEOPLASICAS | E175: =+'B.DATOS (GASTOS)'!C214 -> 0 | F175: =+'B.DATOS (GASTOS)'!D214 -> 0 | G175: =+'B.DATOS (GASTOS)'!E214 -> 0 | I175: =+'B.DATOS (GASTOS)'!F214 -> 0 | J175: 0 | K175: =+'B.DATOS (GASTOS)'!H214 -> 0 | M175: =+'B.DATOS (GASTOS)'!I214 -> 0 | O175: 0 | P175: =+'B.DATOS (GASTOS)'!K214 -> 0 | Q175: 0 | R175: 0 | S175: =+R175*100/R181 -> 0
C176: 411 SALUD JULCAN | E176: =+'B.DATOS (GASTOS)'!C215 -> 0 | F176: =+'B.DATOS (GASTOS)'!D215 -> 0 | G176: =+'B.DATOS (GASTOS)'!E215 -> 0 | I176: =+'B.DATOS (GASTOS)'!F215 -> 0 | J176: 0 | K176: =+'B.DATOS (GASTOS)'!H215 -> 0 | M176: =+'B.DATOS (GASTOS)'!I215 -> 0 | O176: 0 | P176: =+'B.DATOS (GASTOS)'!K215 -> 0 | Q176: 0 | R176: 0 | S176: =+R176*100/R181 -> 0
C177: 412 SALUD VIRU | E177: =+'B.DATOS (GASTOS)'!C216 -> 0 | F177: =+'B.DATOS (GASTOS)'!D216 -> 0 | G177: =+'B.DATOS (GASTOS)'!E216 -> 0 | I177: =+'B.DATOS (GASTOS)'!F216 -> 0 | J177: 0 | K177: =+'B.DATOS (GASTOS)'!H216 -> 0 | M177: =+'B.DATOS (GASTOS)'!I216 -> 0 | O177: 0 | P177: =+'B.DATOS (GASTOS)'!K216 -> 0 | Q177: 0 | R177: 0 | S177: =+R177*100/R181 -> 0
C178: 413 SALUD ASCOPE | E178: =+'B.DATOS (GASTOS)'!C217 -> 0 | F178: =+'B.DATOS (GASTOS)'!D217 -> 0 | G178: =+'B.DATOS (GASTOS)'!E217 -> 0 | I178: =+'B.DATOS (GASTOS)'!F217 -> 0 | J178: 0 | K178: =+'B.DATOS (GASTOS)'!H217 -> 0 | M178: =+'B.DATOS (GASTOS)'!I217 -> 0 | O178: 0 | P178: =+'B.DATOS (GASTOS)'!K217 -> 0 | Q178: 0 | R178: 0 | S178: =+R178*100/R181 -> 0
C179: 414 SALUD GRAN CHIMU | E179: =+'B.DATOS (GASTOS)'!C218 -> 0 | F179: =+'B.DATOS (GASTOS)'!D218 -> 0 | G179: =+'B.DATOS (GASTOS)'!E218 -> 0 | I179: =+'B.DATOS (GASTOS)'!F218 -> 0 | J179: 0 | K179: =+'B.DATOS (GASTOS)'!H218 -> 0 | M179: =+'B.DATOS (GASTOS)'!I218 -> 0 | O179: 0 | P179: =+'B.DATOS (GASTOS)'!K218 -> 0 | Q179: 0 | R179: 0 | S179: =+R179*100/R181 -> 0
B181: TOTAL SECTOR | C181: TOTAL SECTOR | D181: =SUM(D144:D180) -> 0 | E181: 0 | F181: 0 | G181: 3748466 | H181: 0 | I181: 0 | J181: 3748466 | K181: 0 | L181: 0 | M181: 0 | N181: 0 | O181: 0 | P181: 0 | Q181: 0 | R181: 3748466 | S181: =+R181*100/R181 -> 100
B182: PROYECTO DE PRESUPUESTO PARA EL AÑO FISCAL 2020
B183: INFORMACION PARA LA COMISION DE PRESUPUESTO Y CUENTA GENERAL DE LA REPUBLICA DEL CONGRESO DE LA REPUBLICA
B185: FTE FTO RECURSOS DETERMINADOS
B186: PLIEGOS DEL SECTOR O GOBIERNO REGIONAL | C186: UNIDADES EJECUTORAS O ENTIDADES PUBLICAS ADSCRITAS AL SECTOR | D186: GASTOS CORRIENTES */ | K186: GASTOS DE CAPITAL | P186: SERVICIO DE DEUDA | R186: TOTAL
D187: 1: Reserva de Contingencia | E187: 2: Personal y Obligaciones Sociales | F187: 3: Pensiones y Prestaciones Sociales | G187: 4: Bienes y Servicios | H187: 5: Donaciones y Transferencias | I187: 6: Otros Gastos | J187: SUB TOTAL GASTOS CORRIENTES | K187: 7: Donaciones y Transferencias | L187: 8: Otros Gastos | M187: 9: Adquisiciones de Activos No Financieros | N187: 10: Adquisiciones de Activos Financieros | O187: SUB TOTAL GASTOS DE CAPITAL | P187: 11: Servicio de la Deuda | Q187: SUB TOTAL SERVICIO DE DEUDA | R187: TOTAL GASTOS UNIDAD EJECUTORA /ENTIDAD PUBLICA | S187: PART. %
B188: 451 GOBIERNO REGIONAL | C188: 001 SEDE LA LIBERTAD | E188: =+'B.DATOS (GASTOS)'!C233 -> 0 | F188: =+'B.DATOS (GASTOS)'!D233 -> 0 | G188: =+'B.DATOS (GASTOS)'!E233 -> 5466099 | I188: =+'B.DATOS (GASTOS)'!F233 -> 0 | J188: =+D188+E188+F188+G188+H188+I188 -> 5466099 | K188: =+'B.DATOS (GASTOS)'!H233 -> 0 | M188: =+'B.DATOS (GASTOS)'!I233 -> 9381825 | O188: =+K188+L188+M188+N188 -> 9381825 | P188: =+'B.DATOS (GASTOS)'!K233 -> 11477014 | Q188: =+P188 -> 11477014 | R188: =+J188+O188+Q188 -> 26324938 | S188: =+R188*100/R225 -> 42.51784332
B189: LA LIBERTAD | C189: 005 PROYECTO ESPEC.CHAVIMOCHIC | E189: =+'B.DATOS (GASTOS)'!C234 -> 0 | F189: =+'B.DATOS (GASTOS)'!D234 -> 0 | G189: =+'B.DATOS (GASTOS)'!E234 -> 0 | I189: =+'B.DATOS (GASTOS)'!F234 -> 0 | J189: =+D189+E189+F189+G189+H189+I189 -> 0 | K189: =+'B.DATOS (GASTOS)'!H234 -> 0 | M189: =+'B.DATOS (GASTOS)'!I234 -> 35590098 | O189: =+K189+L189+M189+N189 -> 35590098 | P189: =+'B.DATOS (GASTOS)'!K234 -> 0 | Q189: 0 | R189: =+J189+O189+Q189 -> 35590098 | S189: =+R189*100/R225 -> 57.48215668
C190: 100 AGRICULTURA LA LIBERTAD | E190: =+'B.DATOS (GASTOS)'!C235 -> 0 | F190: =+'B.DATOS (GASTOS)'!D235 -> 0 | G190: =+'B.DATOS (GASTOS)'!E235 -> 0 | I190: =+'B.DATOS (GASTOS)'!F235 -> 0 | J190: 0 | K190: =+'B.DATOS (GASTOS)'!H235 -> 0 | M190: =+'B.DATOS (GASTOS)'!I235 -> 0 | O190: 0 | P190: =+'B.DATOS (GASTOS)'!K235 -> 0 | Q190: 0 | R190: 0 | S190: =+R190*100/R225 -> 0
C191: 200 TRANSPORTES LA LIBERTAD | E191: =+'B.DATOS (GASTOS)'!C236 -> 0 | F191: =+'B.DATOS (GASTOS)'!D236 -> 0 | G191: =+'B.DATOS (GASTOS)'!E236 -> 0 | I191: =+'B.DATOS (GASTOS)'!F236 -> 0 | J191: 0 | K191: =+'B.DATOS (GASTOS)'!H236 -> 0 | M191: =+'B.DATOS (GASTOS)'!I236 -> 0 | O191: 0 | P191: =+'B.DATOS (GASTOS)'!K236 -> 0 | Q191: 0 | R191: 0 | S191: =+R191*100/R225 -> 0
C192: 300 EDUCACION LA LIBERTAD | E192: =+'B.DATOS (GASTOS)'!C239 -> 0 | F192: =+'B.DATOS (GASTOS)'!D239 -> 0 | G192: =+'B.DATOS (GASTOS)'!E239 -> 0 | I192: =+'B.DATOS (GASTOS)'!F239 -> 0 | J192: 0 | K192: =+'B.DATOS (GASTOS)'!H239 -> 0 | M192: =+'B.DATOS (GASTOS)'!I239 -> 0 | O192: 0 | P192: =+'B.DATOS (GASTOS)'!K239 -> 0 | Q192: 0 | R192: 0 | S192: =+R192*100/R225 -> 0
C193: 301 EDUCACION CHEPEN | E193: =+'B.DATOS (GASTOS)'!C240 -> 0 | F193: =+'B.DATOS (GASTOS)'!D240 -> 0 | G193: =+'B.DATOS (GASTOS)'!E240 -> 0 | I193: =+'B.DATOS (GASTOS)'!F240 -> 0 | J193: =+D193+E193+F193+G193+H193+I193 -> 0 | K193: =+'B.DATOS (GASTOS)'!H240 -> 0 | M193: =+'B.DATOS (GASTOS)'!I240 -> 0 | O193: =+K193+L193+M193+N193 -> 0 | P193: =+'B.DATOS (GASTOS)'!K240 -> 0 | Q193: 0 | R193: =+J193+O193+Q193 -> 0 | S193: =+R193*100/R225 -> 0
C194: 302 EDUCACION PACASMAYO | E194: =+'B.DATOS (GASTOS)'!C241 -> 0 | F194: =+'B.DATOS (GASTOS)'!D241 -> 0 | G194: =+'B.DATOS (GASTOS)'!E241 -> 0 | I194: =+'B.DATOS (GASTOS)'!F241 -> 0 | J194: 0 | K194: =+'B.DATOS (GASTOS)'!H241 -> 0 | M194: =+'B.DATOS (GASTOS)'!I241 -> 0 | O194: 0 | P194: =+'B.DATOS (GASTOS)'!K241 -> 0 | Q194: 0 | R194: 0 | S194: =+R194*100/R225 -> 0
C195: 303 EDUCACION ASCOPE | E195: =+'B.DATOS (GASTOS)'!C242 -> 0 | F195: =+'B.DATOS (GASTOS)'!D242 -> 0 | G195: =+'B.DATOS (GASTOS)'!E242 -> 0 | I195: =+'B.DATOS (GASTOS)'!F242 -> 0 | J195: 0 | K195: =+'B.DATOS (GASTOS)'!H242 -> 0 | M195: =+'B.DATOS (GASTOS)'!I242 -> 0 | O195: 0 | P195: =+'B.DATOS (GASTOS)'!K242 -> 0 | Q195: 0 | R195: 0 | S195: =+R195*100/R225 -> 0
C196: 304 EDUCACION GRAN CHIMU | E196: =+'B.DATOS (GASTOS)'!C243 -> 0 | F196: =+'B.DATOS (GASTOS)'!D243 -> 0 | G196: =+'B.DATOS (GASTOS)'!E243 -> 0 | I196: =+'B.DATOS (GASTOS)'!F243 -> 0 | J196: 0 | K196: =+'B.DATOS (GASTOS)'!H243 -> 0 | M196: =+'B.DATOS (GASTOS)'!I243 -> 0 | O196: 0 | P196: =+'B.DATOS (GASTOS)'!K243 -> 0 | Q196: 0 | R196: 0 | S196: =+R196*100/R225 -> 0
C197: 305 EDUCACION OTUZCO | E197: =+'B.DATOS (GASTOS)'!C244 -> 0 | F197: =+'B.DATOS (GASTOS)'!D244 -> 0 | G197: =+'B.DATOS (GASTOS)'!E244 -> 0 | I197: =+'B.DATOS (GASTOS)'!F244 -> 0 | J197: 0 | K197: =+'B.DATOS (GASTOS)'!H244 -> 0 | M197: =+'B.DATOS (GASTOS)'!I244 -> 0 | O197: 0 | P197: =+'B.DATOS (GASTOS)'!K244 -> 0 | Q197: 0 | R197: 0 | S197: =+R197*100/R225 -> 0
C198: 306 EDUCACION SANTIAGO DE CHUCO | E198: =+'B.DATOS (GASTOS)'!C245 -> 0 | F198: =+'B.DATOS (GASTOS)'!D245 -> 0 | G198: =+'B.DATOS (GASTOS)'!E245 -> 0 | I198: =+'B.DATOS (GASTOS)'!F245 -> 0 | J198: 0 | K198: =+'B.DATOS (GASTOS)'!H245 -> 0 | M198: =+'B.DATOS (GASTOS)'!I245 -> 0 | O198: 0 | P198: =+'B.DATOS (GASTOS)'!K245 -> 0 | Q198: 0 | R198: 0 | S198: =+R198*100/R225 -> 0
C199: 307 EDUCACION SANCHEZ CARRION | E199: =+'B.DATOS (GASTOS)'!C246 -> 0 | F199: =+'B.DATOS (GASTOS)'!D246 -> 0 | G199: =+'B.DATOS (GASTOS)'!E246 -> 0 | I199: =+'B.DATOS (GASTOS)'!F246 -> 0 | J199: 0 | K199: =+'B.DATOS (GASTOS)'!H246 -> 0 | M199: =+'B.DATOS (GASTOS)'!I246 -> 0 | O199: 0 | P199: =+'B.DATOS (GASTOS)'!K246 -> 0 | Q199: 0 | R199: 0 | S199: =+R199*100/R225 -> 0
C200: 308 EDUCACION PATAZ | E200: =+'B.DATOS (GASTOS)'!C247 -> 0 | F200: =+'B.DATOS (GASTOS)'!D247 -> 0 | G200: =+'B.DATOS (GASTOS)'!E247 -> 0 | I200: =+'B.DATOS (GASTOS)'!F247 -> 0 | J200: 0 | K200: =+'B.DATOS (GASTOS)'!H247 -> 0 | M200: =+'B.DATOS (GASTOS)'!I247 -> 0 | O200: 0 | P200: =+'B.DATOS (GASTOS)'!K247 -> 0 | Q200: 0 | R200: 0 | S200: =+R200*100/R225 -> 0
C201: 309 EDUCACION BOLIVAR | E201: =+'B.DATOS (GASTOS)'!C248 -> 0 | F201: =+'B.DATOS (GASTOS)'!D248 -> 0 | G201: =+'B.DATOS (GASTOS)'!E248 -> 0 | I201: =+'B.DATOS (GASTOS)'!F248 -> 0 | J201: 0 | K201: =+'B.DATOS (GASTOS)'!H248 -> 0 | M201: =+'B.DATOS (GASTOS)'!I248 -> 0 | O201: 0 | P201: =+'B.DATOS (GASTOS)'!K248 -> 0 | Q201: 0 | R201: 0 | S201: =+R201*100/R225 -> 0
C202: 310 COLEGIO MILITAR RAMON CASTILLA | E202: =+'B.DATOS (GASTOS)'!C249 -> 0 | F202: =+'B.DATOS (GASTOS)'!D249 -> 0 | G202: =+'B.DATOS (GASTOS)'!E249 -> 0 | I202: =+'B.DATOS (GASTOS)'!F249 -> 0 | J202: 0 | K202: =+'B.DATOS (GASTOS)'!H249 -> 0 | M202: =+'B.DATOS (GASTOS)'!I249 -> 0 | O202: 0 | P202: =+'B.DATOS (GASTOS)'!K249 -> 0 | Q202: 0 | R202: 0 | S202: =+R202*100/R225 -> 0
C203: 311 EDUCACION JULCAN | E203: =+'B.DATOS (GASTOS)'!C250 -> 0 | F203: =+'B.DATOS (GASTOS)'!D250 -> 0 | G203: =+'B.DATOS (GASTOS)'!E250 -> 0 | I203: =+'B.DATOS (GASTOS)'!F250 -> 0 | J203: 0 | K203: =+'B.DATOS (GASTOS)'!H250 -> 0 | M203: =+'B.DATOS (GASTOS)'!I250 -> 0 | O203: 0 | P203: =+'B.DATOS (GASTOS)'!K250 -> 0 | Q203: 0 | R203: 0 | S203: =+R203*100/R225 -> 0
C204: 312 EDUCACION VIRU | E204: =+'B.DATOS (GASTOS)'!C251 -> 0 | F204: =+'B.DATOS (GASTOS)'!D251 -> 0 | G204: =+'B.DATOS (GASTOS)'!E251 -> 0 | I204: =+'B.DATOS (GASTOS)'!F251 -> 0 | J204: 0 | K204: =+'B.DATOS (GASTOS)'!H251 -> 0 | M204: =+'B.DATOS (GASTOS)'!I251 -> 0 | O204: 0 | P204: =+'B.DATOS (GASTOS)'!K251 -> 0 | Q204: 0 | R204: 0 | S204: =+R204*100/R225 -> 0
C205: 313 EDUCACION EL PORVENIR | E205: =+'B.DATOS (GASTOS)'!C252 -> 0 | F205: =+'B.DATOS (GASTOS)'!D252 -> 0 | G205: =+'B.DATOS (GASTOS)'!E252 -> 0 | I205: =+'B.DATOS (GASTOS)'!F252 -> 0 | J205: 0 | K205: =+'B.DATOS (GASTOS)'!H252 -> 0 | M205: =+'B.DATOS (GASTOS)'!I252 -> 0 | O205: 0 | P205: =+'B.DATOS (GASTOS)'!K252 -> 0 | Q205: 0 | R205: 0 | S205: =+R205*100/R225 -> 0
C206: 314 EDUCACION LA ESPERANZA | E206: =+'B.DATOS (GASTOS)'!C253 -> 0 | F206: =+'B.DATOS (GASTOS)'!D253 -> 0 | G206: =+'B.DATOS (GASTOS)'!E253 -> 0 | I206: =+'B.DATOS (GASTOS)'!F253 -> 0 | J206: 0 | K206: =+'B.DATOS (GASTOS)'!H253 -> 0 | M206: =+'B.DATOS (GASTOS)'!I253 -> 0 | O206: 0 | P206: =+'B.DATOS (GASTOS)'!K253 -> 0 | Q206: 0 | R206: 0 | S206: =+R206*100/R225 -> 0
C207: 315 EDUCACION TRUJILLO NOR OESTE | E207: =+'B.DATOS (GASTOS)'!C254 -> 0 | F207: =+'B.DATOS (GASTOS)'!D254 -> 0 | G207: =+'B.DATOS (GASTOS)'!E254 -> 0 | I207: =+'B.DATOS (GASTOS)'!F254 -> 0 | J207: 0 | K207: =+'B.DATOS (GASTOS)'!H254 -> 0 | M207: =+'B.DATOS (GASTOS)'!I254 -> 0 | O207: 0 | P207: =+'B.DATOS (GASTOS)'!K254 -> 0 | Q207: 0 | R207: 0 | S207: =+R207*100/R225 -> 0
C208: 316 EDUCACION TRUJILLO SUR ESTE | E208: =+'B.DATOS (GASTOS)'!C255 -> 0 | F208: =+'B.DATOS (GASTOS)'!D255 -> 0 | G208: =+'B.DATOS (GASTOS)'!E255 -> 0 | I208: =+'B.DATOS (GASTOS)'!F255 -> 0 | J208: 0 | K208: =+'B.DATOS (GASTOS)'!H255 -> 0 | M208: =+'B.DATOS (GASTOS)'!I255 -> 0 | O208: 0 | P208: =+'B.DATOS (GASTOS)'!K255 -> 0 | Q208: 0 | R208: 0 | S208: =+R208*100/R225 -> 0
C209: 400 SALUD LA LIBERTAD | E209: =+'B.DATOS (GASTOS)'!C258 -> 0 | F209: =+'B.DATOS (GASTOS)'!D258 -> 0 | G209: =+'B.DATOS (GASTOS)'!E258 -> 0 | I209: =+'B.DATOS (GASTOS)'!F258 -> 0 | J209: 0 | K209: =+'B.DATOS (GASTOS)'!H258 -> 0 | M209: =+'B.DATOS (GASTOS)'!I258 -> 0 | O209: 0 | P209: =+'B.DATOS (GASTOS)'!K258 -> 0 | Q209: 0 | R209: 0 | S209: =+R209*100/R225 -> 0
C210: 401 INSTIT. REG.DE OFTALMOLOGIA | E210: =+'B.DATOS (GASTOS)'!C259 -> 0 | F210: =+'B.DATOS (GASTOS)'!D259 -> 0 | G210: =+'B.DATOS (GASTOS)'!E259 -> 0 | I210: =+'B.DATOS (GASTOS)'!F259 -> 0 | J210: =+D210+E210+F210+G210+H210+I210 -> 0 | K210: =+'B.DATOS (GASTOS)'!H259 -> 0 | M210: =+'B.DATOS (GASTOS)'!I259 -> 0 | O210: =+K210+L210+M210+N210 -> 0 | P210: =+'B.DATOS (GASTOS)'!K259 -> 0 | Q210: 0 | R210: =+J210+O210+Q210 -> 0 | S210: =+R210*100/R225 -> 0
C211: 402 SALUD NORTE ASCOPE | E211: =+'B.DATOS (GASTOS)'!C260 -> 0 | F211: =+'B.DATOS (GASTOS)'!D260 -> 0 | G211: =+'B.DATOS (GASTOS)'!E260 -> 0 | I211: =+'B.DATOS (GASTOS)'!F260 -> 0 | J211: 0 | K211: =+'B.DATOS (GASTOS)'!H260 -> 0 | M211: =+'B.DATOS (GASTOS)'!I260 -> 0 | O211: 0 | P211: =+'B.DATOS (GASTOS)'!K260 -> 0 | Q211: 0 | R211: 0 | S211: =+R211*100/R225 -> 0
... 57 more rows

Sheet F.06
B2: FORMATO N° 06
B3: PROGRAMAS SOCIALES PRIORIZADOS SEGÚN EL CICLO DE VIDA POR FUENTE DE FINANCIAMIENTO 2018, 2019 Y PROYECTO 2020
B4: PROYECTO DE PRESUPUESTO - 2020
B5: SECTOR : 99 GOBIERNOS REGIONALES
B6: PLIEGO : 451 GOBIERNO REGIONAL LA LIBERTAD
B7: FTE FTO :
B8: PROGRAMAS SOCIALES | C8: PRESUPUESTO PIA | G8: PRESUPUESTO PIM | J8: BENEFICIARIOS
C9: 2018 | D9: 2019 | E9: DIferencia (2018-2019) | F9: Proyecto 2020 | G9: 2018 | H9: 2019 | I9: DIferencia (2018-2019) | J9: 2018 | K9: 2019 (*) | L9: DIferencia (2018-2019) | M9: Estimado 2019 (**) | N9: Proyecto 2020 | O9: DIferencia (2019-2020)
B11: I. DE GESTANTES A NIÑOS DE HASTA 14 AÑOS
B12: JUNTOS
B14: II. GESTACIÓN | C14: =SUM(C15:C16) -> 68970923 | D14: =SUM(D15:D16) -> 75431490 | E14: -3993961 | F14: 76604718 | G14: 90912526 | H14: 94827464 | I14: -3914938 | J14: 164900 | K14: 164900 | L14: 0 | M14: 167400 | N14: 167400 | O14: -2500
B15: SAMU | C15: 12931719 | D15: 14165022 | E15: =+D15-C15 -> 1233303 | F15: 15449770 | G15: 13923331 | H15: 15830419 | I15: =+G15-H15 -> -1907088 | J15: 2400 | K15: 2400 | L15: =+K15-J15 -> 0 | M15: 2400 | N15: =+M15-L15 -> 2400 | O15: =+M15-K15 -> 0
B16: SMN | C16: 56039204 | D16: 61266468 | E16: =+C16-D16 -> -5227264 | F16: 61154948 | G16: 76989195 | H16: 78997045 | I16: =+G16-H16 -> -2007850 | J16: 162500 | K16: 162500 | L16: =+K16-J16 -> 0 | M16: 165000 | N16: 165000 | O16: =+J16-N16 -> -2500
B17: Mortalidad Materna
B18: Mortalidad Neonatal
B20: III. De 0 a 2 AÑOS | C20: =SUM(C21:C22) -> 106824652 | D20: 104512820 | E20: 2311832 | F20: 79067468 | G20: 142917498 | H20: 108972704 | I20: 33944794 | J20: =+J21 -> 89000 | K20: =+K21 -> 89000 | L20: =SUM(L21:L22) -> 0 | M20: =+M21 -> 90000 | N20: =SUM(N21:N22) -> 92000 | O20: =+O21 -> -2000
B21: PAN | C21: 106824652 | D21: 104512820 | E21: =+C21-D21 -> 2311832 | F21: 79067468 | G21: 142917498 | H21: 108972704 | I21: =+G21-H21 -> 33944794 | J21: 89000 | K21: 89000 | L21: =+J21-K21 -> 0 | M21: 90000 | N21: 92000 | O21: =+M21-N21 -> -2000
B22: CUNA MAS | F22: =+E22-D22 -> 0 | I22: =+H22-G22 -> 0 | L22: =+K22-J22 -> 0 | N22: =+M22-L22 -> 0
B23: Desnutrición Cronica
B24: Mortalidad Infantil
B25: Desarrollo cognitivo, lenguaje, socioemocional y motor
B27: IV. DE 3 A 5 AÑOS | C27: =+C28 -> 124991506 | D27: 144584498 | E27: 19592992 | F27: 144584498 | G27: 145128938 | H27: 155028859 | I27: 9899921 | J27: 68368 | K27: 69368 | L27: 1000 | M27: 76283 | N27: 75283 | O27: 6915
B28: PELA | C28: 124991506 | D28: 144584498 | E28: =+D28-C28 -> 19592992 | F28: 144584498 | G28: 145128938 | H28: 155028859 | I28: =+H28-G28 -> 9899921 | J28: 68368 | K28: 69368 | L28: =+K28-J28 -> 1000 | M28: 76283 | N28: =+M28-L28 -> 75283 | O28: =+M28-K28 -> 6915
B29: Logros de aprendizaje | I29: =+H29-G29 -> 0 | L29: =+K29-J29 -> 0 | O29: =+M29-K29 -> 0
B30: Cobertura escolar
B32: V. DE 6 A 12 AÑOS | C32: =+C33 -> 311852842 | D32: 310675637 | E32: 1177205 | F32: 310675637 | G32: 344654171 | H32: 345722780 | I32: 1068609 | J32: 172300 | K32: 172800 | L32: 500 | M32: 177236 | N32: 176736 | O32: 4436
B33: PELA Primaria | C33: 311852842 | D33: 310675637 | E33: =+C33-D33 -> 1177205 | F33: 310675637 | G33: 344654171 | H33: 345722780 | I33: =+H33-G33 -> 1068609 | J33: 172300 | K33: 172800 | L33: =+K33-J33 -> 500 | M33: 177236 | N33: =+M33-L33 -> 176736 | O33: =+M33-K33 -> 4436
B34: Logros de aprendizaje | I34: =+H34-G34 -> 0 | L34: =+K34-J34 -> 0 | O34: =+M34-K34 -> 0
B36: VI. DE 13 A 17 AÑOS | C36: =+C37 -> 291311768 | D36: 286302061 | E36: 5009707 | F36: 286302061 | G36: 306915945 | H36: 313839812 | I36: 6923867 | J36: 118000 | K36: 118681 | L36: 681 | M36: 121484 | N36: 120803 | O36: 2803
B37: PELA Secundaria | C37: 291311768 | D37: 286302061 | E37: =+C37-D37 -> 5009707 | F37: 286302061 | G37: 306915945 | H37: 313839812 | I37: =+H37-G37 -> 6923867 | J37: 118000 | K37: 118681 | L37: =+K37-J37 -> 681 | M37: 121484 | N37: =+M37-L37 -> 120803 | O37: =+M37-K37 -> 2803
B38: Cobertura escolar
B39: Logros de aprindizaje | F39: =+E39-D39 -> 0 | I39: =+H39-G39 -> 0 | L39: =+K39-J39 -> 0 | N39: =+M39-L39 -> 0 | O39: =+M39-K39 -> 0
B40: Deserción escolar
B42: VII. DE 17 A 24 AÑOS
B43: Jovenes a la obra
B44: Beca 18
B45: Acceso a la educación superior de calidad
B46: Educacion pertienente para el mercado laboral
B48: VIII. DE 65 A MAS
B49: Pensión 65
B50: Asegurar las condiciones básicas para la subsistencia
B52: TOTAL | C52: =+C14+C20+C27+C32+C36 -> 903951691 | D52: =+D14+D20+D27+D32+D36 -> 921506506 | E52: =+E14+E20+E27+E32+E36 -> 24097775 | F52: 897234382 | G52: 1030529078 | H52: 1018391619 | I52: 47922253 | J52: =+J14+J20+J27+J32+J36 -> 612568 | K52: 614749 | L52: 2181 | M52: 632403 | N52: 632222 | O52: 9654
B53: Est. %
B54: (*) Al 30 de junio 2019
B55: (**) = Estimado al 31 de diciembre de 2019
B57: PROYECTO DE PRESUPUESTO PARA EL AÑO FISCAL 2021
B58: INFORMACION PARA LA COMISION DE PRESUPUESTO Y CUENTA GENERAL DE LA REPUBLICA DEL CONGRESO DE LA REPUBLICA

Sheet F.05
B2: FORMATO N° 05
B3: DISTRIBUCION DEL PRESUPUESTO POR PROGRAMA PRESUPUESTAL 2018, 2019 Y 2020
B4: PROYECTO DE PRESUPUESTO - 2020
B5: SECTOR : 99 GOBIERNOS REGIONALES
B6: PLIEGO : 451 GOBIERNO REGIONAL LA LIBERTAD
B7: P.I.A. | C7: 2018 | D7: 2019 | E7: 2020
B8: POR PROGRAMA PRESUPUESTAL
B9: 0001: PROGRAMA ARTICULADO NUTRICIONAL | C9: 106824652 | D9: 104512820 | E9: 79067468 | G9: 2019
B10: 0002: SALUD MATERNO NEONATAL | C10: 56039204 | D10: 61266468 | E10: 61154948 | G10: FALTA INGRESAR PIM
B11: 0016: PTBC-VIH/SIDA | C11: 16334943 | D11: 18929368 | E11: 21730512 | G11: FALTA INGRESAR EJECUCION PROYECTADA
B12: 0017: ENFERMDEDADES METAXENICAS Y ZOONOSIS | C12: 5394702 | D12: 5327205 | E12: 5781357
B13: 0018: EFNERMEDADES NO TRANSMISIBLES | C13: 14986326 | D13: 17841505 | E13: 18647491
B14: 0024: PREVENCION Y CONTROL DEL CANCER | C14: 14949883 | D14: 16864732 | E14: 18868765 | G14: AÑO 2020
B15: 0030: REDUCCION DE DELITOS Y FALTAS QUE AFECTAN LA SEGURIDAD CIUDADANA | C15: 0 | E15: 2952500 | G15: PIM : SE INGRESO EL MISMO IMPORTE DEL PIA
B16: 0042: APROVECHAMIENTO DE LOS RECURSOS HIDRICOS PARA USO AGRARIO | C16: 380564651 | D16: 207933266 | E16: 280115204 | G16: EJECUCION PROYECTADA : SE INGRESOS EL MISMO IMPORTE DEL PIA
B17: 0046: ACCESO Y USO DE LA ELECTRIFICACION RURAL
B18: 0047: ACCESO Y USO ADECUADO DE LOS SERVICIOS PUBLICOS DE TELECOMUNICACIONES E INFORMACION ASOCIADA | C18: 6970 | D18: 15480 | E18: 20471
B19: 0048: PREVENCION Y ATENCION DE INCENDIOS, EMERGENCIAS MEDICAS, RESCATES Y OTROS | C19: 0
B20: 0051: PREVENCION Y TRATAMIENTO DEL CONSUMO DE DROGAS | C20: 2404259 | D20: 1849040 | E20: 1109198
B21: 0068: REDUCCION DE VULNERABILIDAD Y ATENCION DE EMERGENCIAS POR DESASTRES | C21: 5486447 | D21: 5308817 | E21: 6487329
B22: 0082: PROGRAMA NACIONAL DE SANEAMIENTO URBANO | C22: 0
B23: 0083: PROGRAMA NACIONAL DE SANEAMIENTO RURAL | E23: 385700
B24: 0090: LOGROS DE APRENDIZAJE DE ESTUDIANTES DE LA EDUCACION BASICA REGULAR | C24: =772655604+70000 -> 772725604 | D24: 793502683 | E24: 844124875
B25: 0091: INCREMENTO EN EL ACCESO DE LA POBLACION DE 3 A 16 AÑOS A LOS SERVICIOS EDUCATIVOS PUBLICOS DE LA EDUCACION BASICA REGULAR | C25: 857741 | D25: 2665470
B26: 0095: FORTALECIMIENTO DE LA PESCA ARTESANAL
B27: 0101: INCREMENTO DE LA PRACTICA DE ACTIVIDADES FISICAS, DEPORTIVAS Y RECREATIVAS EN LA POBLACION PERUANA
B28: 0103: FORTALECIMIENTO DE LAS CONDICIONES LABORALES | C28: 2668680 | D28: 2701045 | E28: 2706117
B29: 0104: REDUCCION DE LA MORTALIDAD POR EMERGENCIAS Y URGENCIAS MEDICAS | C29: 12931719 | D29: 14165022 | E29: 15449770
B30: 0106: INCLUSION DE NIÑOS, NIÑAS Y JOVENES CON DISCAPACIDAD EN LA EDUCACION BASICA Y TECNICO PRODUCTIVA | C30: 6749930 | D30: 6498514 | E30: 7130933
B31: 0107: MEJORA DE LA FORMACION EN CARRERAS DOCENTES EN INSTITUTOS DE EDUCACION SUPERIOR NO UNIVERSITARIA | C31: 12865724 | D31: 10641996 | E31: 12245499
B32: 0117: ATENCION OPORTUNA DE NIÑAS, NIÑOS Y ADOLESCENTE EN PRESUNTO ESTADO DE ABANDONO | E32: 1010096
B33: 0121: MEJORA DE LA ARTICULACION DE PEQUEÑOS PRODUCTORES AL MERCADO | C33: 2889453 | D33: 2905297 | E33: 2896163
B34: 0129: PREVENCION Y MANEJO DE CONDICIONES SECUNDARIAS DE SALUD EN PERSONAL CON DISCAPACIDAD | C34: 825064 | D34: 727491 | E34: 954744
B35: 0130: COMPETITIVIDAD Y APROVECHAMIENTO SOSTENIBLE DE LOS RECURSOS FORESTALES Y DE LA FAUNA SILVESTRE | C35: 621221 | D35: 679816 | E35: 581604
B36: 0131: CONTROL Y PREVENCION EN SALUD MENTAL | C36: 4490349 | D36: 4705153 | E36: 8736394
B37: 0138: REDUCCION DEL COSTO, TIEMPO E INSEGURIDADEN EL SISTEMA DE TRANSPORTE | C37: 39531106 | D37: 5120630 | E37: 16325280
B38: 0146: ACCESO DE LAS FAMILIAS A VIVIENDA Y ENTORNO URBANO ADECUADO
B39: 0147: FORTALECIMIENTO DE LA EDUCACION SUPERIOR TECNOLOGICA | E39: 757459
B40: 0150: INCREMENTO EN EL ACCESO DE LA POBLACION A LOS SERVICIOS EDUCATIVOS PUBLICOS DE LA EDUCACION BASICA | E40: 3615
B42: 9001: ACCIONES CENTRALES | C42: 127565933 | D42: 186496981 | E42: 191829182
B44: 9002: ASIGNACIONES PRESUPUESTALES QUE NO RESULTAN EN PRODUCTOS | C44: 427766559 | D44: 396014201 | E44: 404793865
B46: PIA TOTAL S/ | C46: =SUM(C9:C45) -> 2015481120 | D46: =SUM(D9:D45) -> 1866673000 | E46: 2005866539
B49: P.I.M. | C49: 2018 | D49: 2019 | E49: 2020
B50: POR PROGRAMA PRESUPUESTAL
B51: 0001: PROGRAMA ARTICULADO NUTRICIONAL | C51: 142917498 | D51: 108489549 | E51: 79067468
B52: 0002: SALUD MATERNO NEONATAL | C52: 76989195 | D52: 79517388 | E52: 61154948
B53: 0016: PTBC-VIH/SIDA | C53: 21927214 | D53: 24936495 | E53: 21730512
B54: 0017: ENFERMDEDADES METAXENICAS Y ZOONOSIS | C54: 6139835 | D54: 5725670 | E54: 5781357
B55: 0018: EFNERMEDADES NO TRANSMISIBLES | C55: 20618491 | D55: 32182405 | E55: 18647491
B56: 0024: PREVENCION Y CONTROL DEL CANCER | C56: 26550001 | D56: 23870158 | E56: 18868765
B57: 0030: REDUCCION DE DELITOS Y FALTAS QUE AFECTAN LA SEGURIDAD CIUDADANA | C57: 7218657 | D57: 2890115 | E57: 2952500
B58: 0042: APROVECHAMIENTO DE LOS RECURSOS HIDRICOS PARA USO AGRARIO | C58: 445389103 | D58: 210306684 | E58: 280115204
B59: 0046: ACCESO Y USO DE LA ELECTRIFICACION RURAL | C59: 42238 | D59: 22104
B60: 0047: ACCESO Y USO ADECUADO DE LOS SERVICIOS PUBLICOS DE TELECOMUNICACIONES E INFORMACION ASOCIADA | C60: 6970 | D60: 16540 | E60: 20471
B61: 0048: PREVENCION Y ATENCION DE INCENDIOS, EMERGENCIAS MEDICAS, RESCATES Y OTROS | C61: 1102900 | D61: 1086060
B62: 0051: PREVENCION Y TRATAMIENTO DEL CONSUMO DE DROGAS | C62: 3904259 | D62: 2263597 | E62: 1109198
B63: 0068: REDUCCION DE VULNERABILIDAD Y ATENCION DE EMERGENCIAS POR DESASTRES | C63: 24740364 | D63: 19789979 | E63: 6487329
B64: 0082: PROGRAMA NACIONAL DE SANEAMIENTO URBANO | C64: 3237552 | D64: 248263
B65: 0083: PROGRAMA NACIONAL DE SANEAMIENTO RURAL | C65: 1087483 | D65: 1177135 | E65: 385700
B66: 0090: LOGROS DE APRENDIZAJE DE ESTUDIANTES DE LA EDUCACION BASICA REGULAR | C66: =858699406+4449 -> 858703855 | D66: =878655509+237685569 -> 1116341078 | E66: 844124875
B67: 0091: INCREMENTO EN EL ACCESO DE LA POBLACION DE 3 A 16 AÑOS A LOS SERVICIOS EDUCATIVOS PUBLICOS DE LA EDUCACION BASICA REGULAR | C67: 2472572 | D67: 2473679
B68: 0095: FORTALECIMIENTO DE LA PESCA ARTESANAL | C68: 549700
B69: 0101: INCREMENTO DE LA PRACTICA DE ACTIVIDADES FISICAS, DEPORTIVAS Y RECREATIVAS EN LA POBLACION PERUANA | C69: 195990
B70: 0103: FORTALECIMIENTO DE LAS CONDICIONES LABORALES | C70: 2668680 | D70: 2865556 | E70: 2706117
B71: 0104: REDUCCION DE LA MORTALIDAD POR EMERGENCIAS Y URGENCIAS MEDICAS | C71: 13923331 | D71: 15830480 | E71: 15449770
B72: 0106: INCLUSION DE NIÑOS, NIÑAS Y JOVENES CON DISCAPACIDAD EN LA EDUCACION BASICA Y TECNICO PRODUCTIVA | C72: 7215203 | D72: 7252314 | E72: 7130933
B73: 0107: MEJORA DE LA FORMACION EN CARRERAS DOCENTES EN INSTITUTOS DE EDUCACION SUPERIOR NO UNIVERSITARIA | C73: 14841180 | D73: 13101153 | E73: 12245499
B74: 0117: ATENCION OPORTUNA DE NIÑAS, NIÑOS Y ADOLESCENTE EN PRESUNTO ESTADO DE ABANDONO | E74: 1010096
B75: 0121: MEJORA DE LA ARTICULACION DE PEQUEÑOS PRODUCTORES AL MERCADO | C75: 2986298 | D75: 2955943 | E75: 2896163
B76: 0129: PREVENCION Y MANEJO DE CONDICIONES SECUNDARIAS DE SALUD EN PERSONAL CON DISCAPACIDAD | C76: 909345 | D76: 830071 | E76: 954744
B77: 0130: COMPETITIVIDAD Y APROVECHAMIENTO SOSTENIBLE DE LOS RECURSOS FORESTALES Y DE LA FAUNA SILVESTRE | C77: 622207 | D77: 679816 | E77: 581604
B78: 0131: CONTROL Y PREVENCION EN SALUD MENTAL | C78: 7915771 | D78: 10682453 | E78: 8736394
B79: 0138: REDUCCION DEL COSTO, TIEMPO E INSEGURIDADEN EL SISTEMA DE TRANSPORTE | C79: 49480571 | D79: 23878704 | E79: 16325280
B80: 0146: ACCESO DE LAS FAMILIAS A VIVIENDA Y ENTORNO URBANO ADECUADO | C80: 5716937
B81: 0147: FORTALECIMIENTO DE LA EDUCACION SUPERIOR TECNOLOGICA | C81: 4475417 | D81: 6271559 | E81: 757459
B82: 0150: INCREMENTO EN EL ACCESO DE LA POBLACION A LOS SERVICIOS EDUCATIVOS PUBLICOS DE LA EDUCACION BASICA | E82: 3615
B84: 9001: ACCIONES CENTRALES | C84: 225452498 | D84: =241223393-878674 -> 240344719 | E84: 191829182
B86: 9002: ASIGNACIONES PRESUPUESTALES QUE NO RESULTAN EN PRODUCTOS | C86: 586029001 | D86: =511656575-258932016 -> 252724559 | E86: 404793865
B88: PIM TOTAL S/ | C88: =SUM(C51:C87) -> 2566030316 | D88: =SUM(D51:D87) -> 2208754226 | E88: =SUM(E51:E87) -> 2005866539
B91: EJECUCION | C91: 2018 | D91: 2019 | E91: 2020
B92: POR PROGRAMA PRESUPUESTAL
B93: 0001: PROGRAMA ARTICULADO NUTRICIONAL | C93: 96145940.59 | D93: 55897495.36 | E93: 79067468
B94: 0002: SALUD MATERNO NEONATAL | C94: 69712025.21 | D94: 45873432.98 | E94: 61154948
B95: 0016: PTBC-VIH/SIDA | C95: 20394473.7 | D95: 16459320.27 | E95: 21730512
B96: 0017: ENFERMDEDADES METAXENICAS Y ZOONOSIS | C96: 5701485.26 | D96: 3616942.08 | E96: 5781357
B97: 0018: EFNERMEDADES NO TRANSMISIBLES | C97: 18534674.93 | D97: 14819615.07 | E97: 18647491
B98: 0024: PREVENCION Y CONTROL DEL CANCER | C98: 25301483.34 | D98: 14458793.93 | E98: 18868765
B99: 0030: REDUCCION DE DELITOS Y FALTAS QUE AFECTAN LA SEGURIDAD CIUDADANA | C99: 2760015.49 | D99: 2435400 | E99: 2952500
B100: 0042: APROVECHAMIENTO DE LOS RECURSOS HIDRICOS PARA USO AGRARIO | C100: 6768453.77 | D100: 2523523.29 | E100: 280115204
B101: 0046: ACCESO Y USO DE LA ELECTRIFICACION RURAL | C101: 9000 | D101: 16874
B102: 0047: ACCESO Y USO ADECUADO DE LOS SERVICIOS PUBLICOS DE TELECOMUNICACIONES E INFORMACION ASOCIADA | C102: 6875.33 | D102: 11652.24 | E102: 20471
B103: 0048: PREVENCION Y ATENCION DE INCENDIOS, EMERGENCIAS MEDICAS, RESCATES Y OTROS | D103: 1086059.28
B104: 0051: PREVENCION Y TRATAMIENTO DEL CONSUMO DE DROGAS | C104: 2853219.15 | D104: 411223.37 | E104: 1109198
B105: 0068: REDUCCION DE VULNERABILIDAD Y ATENCION DE EMERGENCIAS POR DESASTRES | C105: 11552880.2 | D105: 6200979.39 | E105: 6487329
B106: 0082: PROGRAMA NACIONAL DE SANEAMIENTO URBANO | C106: 2789030.6 | D106: 195045.34
B107: 0083: PROGRAMA NACIONAL DE SANEAMIENTO RURAL | C107: 340351.27 | D107: 170624.64 | E107: 385700
B108: 0090: LOGROS DE APRENDIZAJE DE ESTUDIANTES DE LA EDUCACION BASICA REGULAR | C108: =826273445.18+7984.48 -> 826281429.7 | D108: =544957587.56+518847465.98 -> 1063805054 | E108: 844124875
B109: 0091: INCREMENTO EN EL ACCESO DE LA POBLACION DE 3 A 16 AÑOS A LOS SERVICIOS EDUCATIVOS PUBLICOS DE LA EDUCACION BASICA REGULAR | C109: 2035494.35 | D109: 583183.08
B110: 0095: FORTALECIMIENTO DE LA PESCA ARTESANAL
B111: 0101: INCREMENTO DE LA PRACTICA DE ACTIVIDADES FISICAS, DEPORTIVAS Y RECREATIVAS EN LA POBLACION PERUANA | C111: 195989.05
B112: 0103: FORTALECIMIENTO DE LAS CONDICIONES LABORALES | C112: 2262643.99 | D112: 1554849.89 | E112: 2706117
B113: 0104: REDUCCION DE LA MORTALIDAD POR EMERGENCIAS Y URGENCIAS MEDICAS | C113: 13630607.14 | D113: 9874359.13 | E113: 15449770
B114: 0106: INCLUSION DE NIÑOS, NIÑAS Y JOVENES CON DISCAPACIDAD EN LA EDUCACION BASICA Y TECNICO PRODUCTIVA | C114: 7038375.1 | D114: 4262318.51 | E114: 7130933
B115: 0107: MEJORA DE LA FORMACION EN CARRERAS DOCENTES EN INSTITUTOS DE EDUCACION SUPERIOR NO UNIVERSITARIA | C115: 14625858.72 | D115: 8634977.13 | E115: 12245499
B116: 0117: ATENCION OPORTUNA DE NIÑAS, NIÑOS Y ADOLESCENTE EN PRESUNTO ESTADO DE ABANDONO | E116: 1010096
B117: 0121: MEJORA DE LA ARTICULACION DE PEQUEÑOS PRODUCTORES AL MERCADO | C117: 2874493.6 | D117: 1804618.75 | E117: 2896163
B118: 0129: PREVENCION Y MANEJO DE CONDICIONES SECUNDARIAS DE SALUD EN PERSONAL CON DISCAPACIDAD | C118: 897976.04 | D118: 458655.46 | E118: 954744
B119: 0130: COMPETITIVIDAD Y APROVECHAMIENTO SOSTENIBLE DE LOS RECURSOS FORESTALES Y DE LA FAUNA SILVESTRE | C119: 496358.89 | D119: 267627.73 | E119: 581604
B120: 0131: CONTROL Y PREVENCION EN SALUD MENTAL | C120: 6816434.25 | D120: 5218658.05 | E120: 8736394
B121: 0138: REDUCCION DEL COSTO, TIEMPO E INSEGURIDADEN EL SISTEMA DE TRANSPORTE | C121: 23764256.35 | D121: 6035153.6 | E121: 16325280
B122: 0146: ACCESO DE LAS FAMILIAS A VIVIENDA Y ENTORNO URBANO ADECUADO | C122: 5611025.77
B123: 0147: FORTALECIMIENTO DE LA EDUCACION SUPERIOR TECNOLOGICA | C123: 467931.89 | D123: 5642458.89 | E123: 757459
B124: 0150: INCREMENTO EN EL ACCESO DE LA POBLACION A LOS SERVICIOS EDUCATIVOS PUBLICOS DE LA EDUCACION BASICA | E124: 3615
B126: 9001: ACCIONES CENTRALES | C126: 214982963.9 | D126: =126502830.47+84630125.53 -> 211132956 | E126: 191829182
B128: 9002: ASIGNACIONES PRESUPUESTALES QUE NO RESULTAN EN PRODUCTOS | C128: 471073048.4 | D128: =266153182.36+161487478.64 -> 427640661 | E128: 404793865
B130: EJECUCION TOTAL S/ | C130: =SUM(C93:C129) -> 1855924796 | D130: =SUM(D93:D129) -> 1911092512 | E130: 2005866539
B132: (*) Proyección a 31/12/2019
B133: (**) Proyecto 2020
B135: PROYECTO DE PRESUPUESTO PARA EL AÑO FISCAL 2020
B136: INFORMACION PARA LA COMISION DE PRESUPUESTO Y CUENTA GENERAL DE LA REPUBLICA DEL CONGRESO DE LA REPUBLICA

Sheet F.07
D2: 2.1 | E2: 2.2 | F2: 2.3 | H2: 2.5 | J2: 2.4 | L2: 2.6 | O2: 2.8
B4: FORMATO N° 07
B5: RESUMEN POR GRUPO GENÉRICO Y FUENTES DE FINANCIAMIENTO 2020
B6: PROYECTO DE PRESUPUESTO - 2020
B7: SECTOR : 99 GOBIERNOS REGIONALES
B8: PLIEGO : 451 GOBIERNO REGIONAL LA LIBERTAD
B9: RECURSOS PUBLICOS | C9: GASTO CORRIENTE 2020 | J9: GASTO CAPITAL 2020 | O9: SERVICIO DE DEUDA 2020 | Q9: TOTAL
C10: RESERVA | D10: PERSONAL Y | E10: PENSIONES | F10: BIENES Y | G10: DONACIONES | H10: OTROS | I10: SUB TOTAL | J10: DONACIONES | K10: OTROS | L10: ADQUIS. ACT. | M10: ADQUIS. ACT. | N10: SUB TOTAL | O10: SERVICIO DE | P10: SUB TOTAL
C11: CONTINGENCIA | D11: OBLIGAC. SOC. | E11: PREST. SOC. | F11: SERVICIOS | G11: TRANSFER. | H11: GASTOS | I11: GASTO CTE | J11: TRANSFER. | K11: GASTOS | L11: NO FINANC. | M11: FINANC. | N11: GASTO CAP. | O11: LA DEUDA | P11: SERV. DEUDA | Q11: S/ | R11: EST. %
B13: 1. RECURSOS ORDINARIOS | D13: =+'B.DATOS (GASTOS)'!F338 -> 1198853987 | E13: =+'B.DATOS (GASTOS)'!F339 -> 189632677 | F13: =+'B.DATOS (GASTOS)'!F340 -> 181889287 | H13: =+'B.DATOS (GASTOS)'!F341 -> 776596 | I13: =SUM(C13:H13) -> 1571152547 | J13: =+'B.DATOS (GASTOS)'!F343 -> 0 | L13: =+'B.DATOS (GASTOS)'!F344 -> 54818801 | N13: =SUM(J13:M13) -> 54818801 | O13: =+'B.DATOS (GASTOS)'!F346 -> 0 | P13: =SUM(O13) -> 0 | Q13: =+P13+N13+I13 -> 1625971348 | R13: =+Q13/$Q$29 -> 0.8106078527
B15: 2. RECURSOS DIRECTAM. RECAUD. | D15: =+'B.DATOS (GASTOS)'!G338 -> 109283 | E15: =+'B.DATOS (GASTOS)'!G339 -> 0 | F15: =+'B.DATOS (GASTOS)'!G340 -> 42395338 | H15: =+'B.DATOS (GASTOS)'!G341 -> 554488 | I15: =SUM(C15:H15) -> 43059109 | J15: =+'B.DATOS (GASTOS)'!G343 -> 0 | L15: =+'B.DATOS (GASTOS)'!G344 -> 33859549 | N15: =SUM(J15:M15) -> 33859549 | O15: =+'B.DATOS (GASTOS)'!G346 -> 20445916 | P15: =SUM(O15) -> 20445916 | Q15: =+P15+N15+I15 -> 97364574 | R15: =+Q15/$Q$29 -> 0.048539901
B17: 3.- RECURS.OPERAC.OFICIALES DE CREDITO | D17: =+'B.DATOS (GASTOS)'!H338 -> 0 | E17: =+'B.DATOS (GASTOS)'!H339 -> 0 | F17: =+'B.DATOS (GASTOS)'!H340 -> 0 | H17: =+'B.DATOS (GASTOS)'!H341 -> 0 | I17: =SUM(C17:H17) -> 0 | J17: =+'B.DATOS (GASTOS)'!H343 -> 0 | K17: 222 | L17: =+'B.DATOS (GASTOS)'!H344 -> 216867115 | N17: =SUM(J17:M17) -> 216867337 | O17: =+'B.DATOS (GASTOS)'!H346 -> 0 | P17: =SUM(O17) -> 0 | Q17: =+P17+N17+I17 -> 216867337 | R17: =+Q17/$Q$29 -> 0.1081165216
B19: 4. DONACIONES Y TRANSFERENCIAS | D19: =+'B.DATOS (GASTOS)'!I338 -> 0 | E19: =+'B.DATOS (GASTOS)'!I339 -> 0 | F19: =+'B.DATOS (GASTOS)'!I340 -> 3748466 | H19: =+'B.DATOS (GASTOS)'!I341 -> 0 | I19: =SUM(C19:H19) -> 3748466 | J19: =+'B.DATOS (GASTOS)'!I343 -> 0 | L19: =+'B.DATOS (GASTOS)'!I344 -> 0 | N19: =SUM(J19:M19) -> 0 | O19: =+'B.DATOS (GASTOS)'!I346 -> 0 | P19: =SUM(O19) -> 0 | Q19: =+P19+N19+I19 -> 3748466 | R19: =+Q19/$Q$29 -> 0.001868751242
B21: 5. RECURSOS DETERMINADOS | C21: =SUM(C23:C27) -> 0 | D21: 0 | E21: 0 | F21: 5466099 | G21: 0 | H21: 0 | I21: =SUM(C21:H21) -> 5466099 | J21: =SUM(J23:J27) -> 0 | K21: =SUM(K23:K27) -> 0 | L21: =SUM(L23:L27) -> 44971923 | M21: =SUM(M23:M27) -> 0 | N21: =SUM(J21:M21) -> 44971923 | O21: =SUM(O23:O27) -> 11477014 | P21: =SUM(O21) -> 11477014 | Q21: =+P21+N21+I21 -> 61915036 | R21: =+Q21/$Q$29 -> 0.03086697342
B23: - CANON Y SOBRECANON, REGALIAS Y PARTICIPAC. | D23: =+'B.DATOS (GASTOS)'!J338 -> 0 | E23: =+'B.DATOS (GASTOS)'!J339 -> 0 | F23: =+'B.DATOS (GASTOS)'!J340 -> 5466099 | H23: =+'B.DATOS (GASTOS)'!J341 -> 0 | I23: =SUM(C23:H23) -> 5466099 | J23: =+'B.DATOS (GASTOS)'!J343 -> 0 | L23: =+'B.DATOS (GASTOS)'!J344 -> 44971923 | N23: =SUM(J23:M23) -> 44971923 | O23: =+'B.DATOS (GASTOS)'!J346 -> 11477014 | P23: =SUM(O23) -> 11477014 | Q23: =+P23+N23+I23 -> 61915036 | R23: =+Q23/$Q$29 -> 0.03086697342
B24: - CONTRIBUCIONES A FONDOS
B25: - FONDO DE COMPENCIÓN MUNICIPAL
B26: - IMPUESTOS MUNICIPALES
B27: - OTROS (ESPECIFICAR)
B29: TOTAL | C29: =SUM(C13:C21) -> 0 | D29: 1198963270 | E29: 189632677 | F29: 233499190 | G29: 0 | H29: 1331084 | I29: 1623426221 | J29: 0 | K29: 222 | L29: 350517388 | M29: 0 | N29: 350517610 | O29: 31922930 | P29: 31922930 | Q29: 2005866761 | R29: =+Q29/$Q$29 -> 1
B32: PROYECTO DE PRESUPUESTO PARA EL AÑO FISCAL 2020
B33: INFORMACION PARA LA COMISION DE PRESUPUESTO Y CUENTA GENERAL DE LA REPUBLICA DEL CONGRESO DE LA REPUBLICA

Sheet F.08
E1: 2.1 | F1: 2.2 | G1: 2.3 | I1: 2.5 | K1: 2.4 | M1: 2.6 | P1: 2.8
B3: FORMATO N° 08
B4: RESUMEN DE PRESUPUESTO POR FUNCIONES PIA 2018, 2019 y PROYECTO 2020
B5: PROYECTO DE PRESUPUESTO - 2020
B6: SECTOR : 99 GOBIERNOS REGIONALES
B7: PLIEGO : 451 GOBIERNO REGIONAL LA LIBERTAD
B8: FUNCIONES | C8: PPTO (PIA) | D8: GASTOS CORRIENTES */ | K8: GASTOS DE CAPITAL | P8: SERVICIO DE DEUDA | R8: TOTAL
D9: 0: Reserva de Contingencia | E9: 1: Personal y Obligaciones Sociales | F9: 2: Pensiones y Prestaciones Sociales | G9: 3: Bienes y Servicios | H9: 4: Donaciones y Transferencias | I9: 5: Otros Gastos | J9: SUB TOTAL GASTOS CORRIENTES | K9: 4: Donaciones y Transferencias | L9: 5: Otros Gastos | M9: 6: Adquisiciones de Activos No Financieros | N9: 7: Adquisiciones de Activos Financieros | O9: SUB TOTAL GASTOS DE CAPITAL | P9: 8: Servicio de la Deuda | Q9: SUB TOTAL SERVICIO DE DEUDA | R9: SOLES | S9: PART. %
B10: 1 Legislativa | C10: 2017 | J10: =+D10+E10+F10+G10+H10+I10 -> 0 | O10: =+K10+L10+M10+N10 -> 0
C11: 2018 | O11: =+K11+L11+M11+N11 -> 0
C12: 2019 | O12: =+K12+L12+M12+N12 -> 0
C13: Var. % (2019-2018)
B14: 2 Relaciones Exteriores | C14: 2017 | J14: =+D14+E14+F14+G14+H14+I14 -> 0 | O14: =+K14+L14+M14+N14 -> 0
C15: 2018 | O15: =+K15+L15+M15+N15 -> 0
C16: 2019 | O16: =+K16+L16+M16+N16 -> 0
C17: Var. % (2019-2018)
B18: 3 Planeam. Gestión y Reserva | C18: 2018 | E18: 10464644 | F18: 101530 | G18: 17594842 | I18: 398207 | J18: =+D18+E18+F18+G18+H18+I18 -> 28559223 | M18: 14237922 | O18: =+K18+L18+M18+N18 -> 14237922 | Q18: =+P18 -> 0 | R18: =+J18+O18+Q18 -> 42797145 | S18: =+R18*100/$R$110 -> 2.123420784
C19: 2019 | E19: 13043988 | F19: 121189 | G19: 42758151 | I19: 498207 | J19: =+D19+E19+F19+G19+H19+I19 -> 56421535 | K19: 10080749 | M19: 2656777 | O19: =+K19+L19+M19+N19 -> 12737526 | Q19: =+P19 -> 0 | R19: =+J19+O19+Q19 -> 69159061 | S19: =+R19*100/$R$111 -> 3.70499667
C20: 2020 | E20: 12894227 | F20: 79259 | G20: 31230250 | I20: 530506 | J20: =+D20+E20+F20+G20+H20+I20 -> 44734242 | M20: 2569161 | O20: =+K20+L20+M20+N20 -> 2569161 | Q20: =+P20 -> 0 | R20: =+J20+O20+Q20 -> 47303403 | S20: =+R20*100/$R$112 -> 2.358252759
C21: Var. % (2019-2020) | E21: =+E20/E19-1 -> -0.01148122798 | F21: =+F20/F19-1 -> -0.3459884973 | G21: =+G20/G19-1 -> -0.2696070978 | I21: =+I20/I19-1 -> 0.06483048211 | J21: =+J20/J19-1 -> -0.2071424147 | M21: =+M20/M19-1 -> -0.03297830416 | O21: =+O20/O19-1 -> -0.7982998425 | R21: =+R20/R19-1 -> -0.3160201669
B22: 4 Defensa y Seg. Nacional | C22: =+C18 -> 2018 | J22: =+D22+E22+F22+G22+H22+I22 -> 0 | O22: =+K22+L22+M22+N22 -> 0 | Q22: =+P22 -> 0 | R22: =+J22+O22+Q22 -> 0 | S22: =+R22*100/$R$110 -> 0
C23: 2019 | J23: =+D23+E23+F23+G23+H23+I23 -> 0 | O23: =+K23+L23+M23+N23 -> 0 | Q23: =+P23 -> 0 | R23: =+J23+O23+Q23 -> 0 | S23: =+R23*100/$R$111 -> 0
C24: 2020 | J24: =+D24+E24+F24+G24+H24+I24 -> 0 | O24: =+K24+L24+M24+N24 -> 0 | Q24: =+P24 -> 0 | R24: =+J24+O24+Q24 -> 0 | S24: =+R24*100/$R$112 -> 0
C25: Var. % (2019-2020) | E25: =+E24/E23-1 ->  | F25: =+F24/F23-1 ->  | G25: =+G24/G23-1 ->  | I25: =+I24/I23-1 ->  | J25: =+J24/J23-1 ->  | M25: =+M24/M23-1 ->  | O25: =+O24/O23-1 ->  | Q25: =+Q24/Q23-1 ->  | R25: =+R24/R23-1 -> 
B26: 5 Orden Púb. y Seguridad | C26: 2018 | E26: 273352 | F26: 1080000 | G26: 1016541 | J26: =+D26+E26+F26+G26+H26+I26 -> 2369893 | M26: 12500 | O26: =+K26+L26+M26+N26 -> 12500 | Q26: =+P26 -> 0 | R26: =+J26+O26+Q26 -> 2382393 | S26: =+R26*100/$R$110 -> 0.1182046796
C27: 2019 | E27: 323103 | F27: 1080000 | G27: 1253987 | J27: =+D27+E27+F27+G27+H27+I27 -> 2657090 | M27: 10048 | O27: =+K27+L27+M27+N27 -> 10048 | Q27: =+P27 -> 0 | R27: =+J27+O27+Q27 -> 2667138 | S27: =+R27*100/$R$111 -> 0.1428842044
C28: 2020 | E28: 323103 | F28: 1080000 | G28: 2049015 | J28: =+D28+E28+F28+G28+H28+I28 -> 3452118 | M28: 2952500 | O28: =+K28+L28+M28+N28 -> 2952500 | Q28: =+P28 -> 0 | R28: =+J28+O28+Q28 -> 6404618 | S28: =+R28*100/$R$112 -> 0.3192943237
C29: Var. % (2019-2020) | E29: =+E28/E27-1 -> 0 | F29: =+F28/F27-1 -> 0 | G29: =+G28/G27-1 -> 0.634000193 | J29: =+J28/J27-1 -> 0.299210038 | M29: =+M28/M27-1 -> 292.8395701 | O29: =+O28/O27-1 -> 292.8395701 | R29: =+R28/R27-1 -> 1.401307319
B30: 6 Justicia | C30: 2018 | J30: =+D30+E30+F30+G30+H30+I30 -> 0 | O30: =+K30+L30+M30+N30 -> 0 | Q30: =+P30 -> 0 | R30: =+J30+O30+Q30 -> 0 | S30: =+R30*100/$R$110 -> 0
C31: 2019 | J31: =+D31+E31+F31+G31+H31+I31 -> 0 | O31: =+K31+L31+M31+N31 -> 0 | Q31: =+P31 -> 0 | R31: =+J31+O31+Q31 -> 0 | S31: =+R31*100/$R$111 -> 0
C32: 2020 | J32: =+D32+E32+F32+G32+H32+I32 -> 0 | O32: =+K32+L32+M32+N32 -> 0 | Q32: =+P32 -> 0 | R32: =+J32+O32+Q32 -> 0 | S32: =+R32*100/$R$112 -> 0
C33: Var. % (2019-2020) | E33: =+E32/E31-1 ->  | F33: =+F32/F31-1 ->  | G33: =+G32/G31-1 ->  | I33: =+I32/I31-1 ->  | J33: =+J32/J31-1 ->  | M33: =+M32/M31-1 ->  | O33: =+O32/O31-1 ->  | Q33: =+Q32/Q31-1 ->  | R33: =+R32/R31-1 -> 
B34: 7 Trabajo | C34: 2018 | E34: 1132200 | G34: 2029356 | I34: 3120 | J34: =+D34+E34+F34+G34+H34+I34 -> 3164676 | M34: 57880 | O34: =+K34+L34+M34+N34 -> 57880 | Q34: =+P34 -> 0 | R34: =+J34+O34+Q34 -> 3222556 | S34: =+R34*100/$R$110 -> 0.1598901606
C35: 2019 | E35: 1161502 | G35: 2148436 | I35: 3120 | J35: =+D35+E35+F35+G35+H35+I35 -> 3313058 | M35: 60000 | O35: =+K35+L35+M35+N35 -> 60000 | Q35: =+P35 -> 0 | R35: =+J35+O35+Q35 -> 3373058 | S35: =+R35*100/$R$111 -> 0.1807018268
C36: 2020 | E36: 1161409 | G36: 2083502 | J36: =+D36+E36+F36+G36+H36+I36 -> 3244911 | O36: =+K36+L36+M36+N36 -> 0 | Q36: =+P36 -> 0 | R36: =+J36+O36+Q36 -> 3244911 | S36: =+R36*100/$R$112 -> 0.161771032
C37: Var. % (2019-2020) | E37: =+E36/E35-1 -> -8.006873858e-05 | G37: =+G36/G35-1 -> -0.03022384656 | I37: =+I36/I35-1 -> -1 | J37: =+J36/J35-1 -> -0.0205692143 | M37: =+M36/M35-1 -> -1 | O37: =+O36/O35-1 -> -1 | R37: =+R36/R35-1 -> -0.03799134198
B38: 8 Comercio | C38: 2018 | J38: =+D38+E38+F38+G38+H38+I38 -> 0 | O38: =+K38+L38+M38+N38 -> 0 | Q38: =+P38 -> 0 | R38: =+J38+O38+Q38 -> 0 | S38: =+R38*100/$R$110 -> 0
C39: 2019 | J39: =+D39+E39+F39+G39+H39+I39 -> 0 | O39: =+K39+L39+M39+N39 -> 0 | Q39: =+P39 -> 0 | R39: =+J39+O39+Q39 -> 0 | S39: =+R39*100/$R$111 -> 0
C40: 2020 | J40: =+D40+E40+F40+G40+H40+I40 -> 0 | O40: =+K40+L40+M40+N40 -> 0 | Q40: =+P40 -> 0 | R40: =+J40+O40+Q40 -> 0 | S40: =+R40*100/$R$112 -> 0
C41: Var. % (2019-2020) | E41: =+E40/E39-1 ->  | F41: =+F40/F39-1 ->  | G41: =+G40/G39-1 ->  | I41: =+I40/I39-1 ->  | J41: =+J40/J39-1 ->  | M41: =+M40/M39-1 ->  | O41: =+O40/O39-1 ->  | Q41: =+Q40/Q39-1 ->  | R41: =+R40/R39-1 -> 
B42: 9 Turismo | C42: 2018 | E42: 498805 | G42: 153634 | J42: =+D42+E42+F42+G42+H42+I42 -> 652439 | O42: =+K42+L42+M42+N42 -> 0 | Q42: =+P42 -> 0 | R42: =+J42+O42+Q42 -> 652439 | S42: =+R42*100/$R$110 -> 0.03237137741
C43: 2019 | E43: 466481 | G43: 158825 | J43: =+D43+E43+F43+G43+H43+I43 -> 625306 | O43: =+K43+L43+M43+N43 -> 0 | Q43: =+P43 -> 0 | R43: =+J43+O43+Q43 -> 625306 | S43: =+R43*100/$R$111 -> 0.03349896043
C44: 2020 | E44: 464682 | G44: 258654 | J44: =+D44+E44+F44+G44+H44+I44 -> 723336 | O44: =+K44+L44+M44+N44 -> 0 | Q44: =+P44 -> 0 | R44: =+J44+O44+Q44 -> 723336 | S44: =+R44*100/$R$112 -> 0.0360610233
C45: Var. % (2019-2020) | E45: =+E44/E43-1 -> -0.00385653435 | G45: =+G44/G43-1 -> 0.6285471431 | J45: =+J44/J43-1 -> 0.1567712448 | R45: =+R44/R43-1 -> 0.1567712448
B46: 10 Agropecuaria | C46: 2018 | E46: 3281914 | F46: 14000 | G46: 1815970 | I46: 13000 | J46: =+D46+E46+F46+G46+H46+I46 -> 5124884 | M46: 467865071 | O46: =+K46+L46+M46+N46 -> 467865071 | Q46: =+P46 -> 0 | R46: =+J46+O46+Q46 -> 472989955 | S46: =+R46*100/$R$110 -> 23.4678435
C47: 2019 | E47: 3329654 | G47: 2150612 | I47: 13000 | J47: =+D47+E47+F47+G47+H47+I47 -> 5493266 | M47: 250010557 | O47: =+K47+L47+M47+N47 -> 250010557 | Q47: =+P47 -> 0 | R47: =+J47+O47+Q47 -> 255503823 | S47: =+R47*100/$R$111 -> 13.68787835
C48: 2020 | E48: 3329656 | G48: 2086351 | I48: 13000 | J48: =+D48+E48+F48+G48+H48+I48 -> 5429007 | M48: 330853861 | O48: =+K48+L48+M48+N48 -> 330853861 | Q48: =+P48 -> 0 | R48: =+J48+O48+Q48 -> 336282868 | S48: =+R48*100/$R$112 -> 16.76496723
C49: Var. % (2019-2020) | E49: =+E48/E47-1 -> 6.006630118e-07 | G49: =+G48/G47-1 -> -0.02988033174 | I49: =+I48/I47-1 -> 0 | J49: =+J48/J47-1 -> -0.01169777688 | M49: =+M48/M47-1 -> 0.3233595612 | O49: =+O48/O47-1 -> 0.3233595612 | R49: =+R48/R47-1 -> 0.3161559152
B50: 11 Pesca | C50: 2018 | E50: 1130165 | G50: 298036 | J50: =+D50+E50+F50+G50+H50+I50 -> 1428201 | O50: =+K50+L50+M50+N50 -> 0 | Q50: =+P50 -> 0 | R50: =+J50+O50+Q50 -> 1428201 | S50: =+R50*100/$R$110 -> 0.07086154198
C51: 2019 | E51: 1138039 | G51: 316983 | J51: =+D51+E51+F51+G51+H51+I51 -> 1455022 | O51: =+K51+L51+M51+N51 -> 0 | Q51: =+P51 -> 0 | R51: =+J51+O51+Q51 -> 1455022 | S51: =+R51*100/$R$111 -> 0.07794859542
C52: 2020 | E52: 1123119 | G52: 457496 | J52: =+D52+E52+F52+G52+H52+I52 -> 1580615 | O52: =+K52+L52+M52+N52 -> 0 | Q52: =+P52 -> 0 | R52: =+J52+O52+Q52 -> 1580615 | S52: =+R52*100/$R$112 -> 0.07879960951
C53: Var. % (2019-2020) | E53: =+E52/E51-1 -> -0.01311027126 | G53: =+G52/G51-1 -> 0.4432824473 | J53: =+J52/J51-1 -> 0.08631690792 | R53: =+R52/R51-1 -> 0.08631690792
B54: 12 Energía | C54: =+C50 -> 2018 | E54: 213635 | G54: 517196 | J54: =+D54+E54+F54+G54+H54+I54 -> 730831 | O54: =+K54+L54+M54+N54 -> 0 | Q54: =+P54 -> 0 | R54: =+J54+O54+Q54 -> 730831 | S54: =+R54*100/$R$110 -> 0.03626087056
C55: 2019 | E55: 180135 | G55: 542643 | J55: =+D55+E55+F55+G55+H55+I55 -> 722778 | O55: =+K55+L55+M55+N55 -> 0 | Q55: =+P55 -> 0 | R55: =+J55+O55+Q55 -> 722778 | S55: =+R55*100/$R$111 -> 0.03872074092
C56: 2020 | E56: 180171 | G56: 842448 | J56: =+D56+E56+F56+G56+H56+I56 -> 1022619 | O56: =+K56+L56+M56+N56 -> 0 | Q56: =+P56 -> 0 | R56: =+J56+O56+Q56 -> 1022619 | S56: =+R56*100/$R$112 -> 0.05098140779
C57: Var. % (2019-2020) | E57: =+E56/E55-1 -> 0.0001998501124 | G57: =+G56/G55-1 -> 0.5524903113 | J57: =+J56/J55-1 -> 0.4148452222 | R57: =+R56/R55-1 -> 0.4148452222
B58: 13 Mineria | C58: 2018 | J58: =+D58+E58+F58+G58+H58+I58 -> 0 | O58: =+K58+L58+M58+N58 -> 0 | Q58: =+P58 -> 0 | R58: =+J58+O58+Q58 -> 0 | S58: =+R58*100/$R$110 -> 0
C59: 2019 | J59: =+D59+E59+F59+G59+H59+I59 -> 0 | O59: =+K59+L59+M59+N59 -> 0 | Q59: =+P59 -> 0 | R59: =+J59+O59+Q59 -> 0 | S59: =+R59*100/$R$111 -> 0
C60: 2020 | J60: =+D60+E60+F60+G60+H60+I60 -> 0 | O60: =+K60+L60+M60+N60 -> 0 | Q60: =+P60 -> 0 | R60: =+J60+O60+Q60 -> 0 | S60: =+R60*100/$R$112 -> 0
C61: Var. % (2019-2020) | E61: =+E60/E59-1 ->  | F61: =+F60/F59-1 ->  | G61: =+G60/G59-1 ->  | I61: =+I60/I59-1 ->  | J61: =+J60/J59-1 ->  | M61: =+M60/M59-1 ->  | O61: =+O60/O59-1 ->  | Q61: =+Q60/Q59-1 ->  | R61: =+R60/R59-1 -> 
B62: 14 Industria | C62: 2018 | J62: =+D62+E62+F62+G62+H62+I62 -> 0 | O62: =+K62+L62+M62+N62 -> 0 | Q62: =+P62 -> 0 | R62: =+J62+O62+Q62 -> 0 | S62: =+R62*100/$R$110 -> 0
C63: 2019 | J63: =+D63+E63+F63+G63+H63+I63 -> 0 | O63: =+K63+L63+M63+N63 -> 0 | Q63: =+P63 -> 0 | R63: =+J63+O63+Q63 -> 0 | S63: =+R63*100/$R$111 -> 0
C64: 2020 | J64: =+D64+E64+F64+G64+H64+I64 -> 0 | O64: =+K64+L64+M64+N64 -> 0 | Q64: =+P64 -> 0 | R64: =+J64+O64+Q64 -> 0 | S64: =+R64*100/$R$112 -> 0
C65: Var. % (2019-2020) | E65: =+E64/E63-1 ->  | F65: =+F64/F63-1 ->  | G65: =+G64/G63-1 ->  | I65: =+I64/I63-1 ->  | J65: =+J64/J63-1 ->  | M65: =+M64/M63-1 ->  | O65: =+O64/O63-1 ->  | Q65: =+Q64/Q63-1 ->  | R65: =+R64/R63-1 -> 
B66: 15 Transporte | C66: 2018 | E66: 2139230 | F66: 15000 | G66: 26585928 | I66: 4138580 | J66: =+D66+E66+F66+G66+H66+I66 -> 32878738 | M66: 12771327 | O66: =+K66+L66+M66+N66 -> 12771327 | R66: =+J66+O66+Q66 -> 45650065 | S66: =+R66*100/$R$110 -> 2.264971105
C67: 2019 | E67: 2054644 | F67: 0 | G67: 8155212 | I67: 4382400 | J67: =+D67+E67+F67+G67+H67+I67 -> 14592256 | M67: 11723861 | O67: =+K67+L67+M67+N67 -> 11723861 | R67: =+J67+O67+Q67 -> 26316117 | S67: =+R67*100/$R$111 -> 1.409809857
C68: 2020 | E68: 2030735 | F68: 5000 | G68: 22992960 | J68: =+D68+E68+F68+G68+H68+I68 -> 25028695 | O68: =+K68+L68+M68+N68 -> 0 | R68: =+J68+O68+Q68 -> 25028695 | S68: =+R68*100/$R$112 -> 1.247774691
C69: Var. % (2019-2020) | E69: =+E68/E67-1 -> -0.01163656575 | G69: =+G68/G67-1 -> 1.819419041 | I69: =+I68/I67-1 -> -1 | J69: =+J68/J67-1 -> 0.715203941 | M69: =+M68/M67-1 -> -1 | O69: =+O68/O67-1 -> -1 | R69: =+R68/R67-1 -> -0.04892142712
B70: 16 Comunicaciones | C70: 2018 | E70: 134427 | G70: 193579 | I70: 243820 | J70: =+D70+E70+F70+G70+H70+I70 -> 571826 | O70: =+K70+L70+M70+N70 -> 0 | Q70: =+P70 -> 0 | R70: =+J70+O70+Q70 -> 571826 | S70: =+R70*100/$R$110 -> 0.02837168725
C71: 2019 | E71: 134965 | G71: 172148 | J71: =+D71+E71+F71+G71+H71+I71 -> 307113 | O71: =+K71+L71+M71+N71 -> 0 | Q71: =+P71 -> 0 | R71: =+J71+O71+Q71 -> 307113 | S71: =+R71*100/$R$111 -> 0.01645269074
C72: 2020 | E72: 134965 | G72: 303680 | J72: =+D72+E72+F72+G72+H72+I72 -> 438645 | O72: =+K72+L72+M72+N72 -> 0 | Q72: =+P72 -> 0 | R72: =+J72+O72+Q72 -> 438645 | S72: =+R72*100/$R$112 -> 0.02186810495
C73: Var. % (2019-2020) | E73: =+E72/E71-1 -> 0 | G73: =+G72/G71-1 -> 0.7640634803 | J73: =+J72/J71-1 -> 0.4282853543 | R73: =+R72/R71-1 -> 0.4282853543
B74: 17 Ambiente | C74: 2018 | J74: =+D74+E74+F74+G74+H74+I74 -> 0 | O74: =+K74+L74+M74+N74 -> 0 | Q74: =+P74 -> 0 | R74: =+J74+O74+Q74 -> 0 | S74: =+R74*100/$R$110 -> 0
C75: 2019 | J75: =+D75+E75+F75+G75+H75+I75 -> 0 | O75: =+K75+L75+M75+N75 -> 0 | Q75: =+P75 -> 0 | R75: =+J75+O75+Q75 -> 0 | S75: =+R75*100/$R$111 -> 0
C76: 2020 | J76: =+D76+E76+F76+G76+H76+I76 -> 0 | O76: =+K76+L76+M76+N76 -> 0 | Q76: =+P76 -> 0 | R76: =+J76+O76+Q76 -> 0 | S76: =+R76*100/$R$112 -> 0
C77: Var. % (2019-2020) | E77: =+E76/E75-1 ->  | F77: =+F76/F75-1 ->  | G77: =+G76/G75-1 ->  | I77: =+I76/I75-1 ->  | J77: =+J76/J75-1 ->  | M77: =+M76/M75-1 ->  | O77: =+O76/O75-1 ->  | Q77: =+Q76/Q75-1 ->  | R77: =+R76/R75-1 -> 
B78: 18 Saneamiento | C78: 2018 | J78: =+D78+E78+F78+G78+H78+I78 -> 0 | O78: =+K78+L78+M78+N78 -> 0 | Q78: =+P78 -> 0 | R78: =+J78+O78+Q78 -> 0 | S78: =+R78*100/$R$110 -> 0
C79: 2019 | J79: =+D79+E79+F79+G79+H79+I79 -> 0 | O79: =+K79+L79+M79+N79 -> 0 | Q79: =+P79 -> 0 | R79: =+J79+O79+Q79 -> 0 | S79: =+R79*100/$R$111 -> 0
C80: 2020 | G80: 385700 | J80: =+D80+E80+F80+G80+H80+I80 -> 385700 | O80: =+K80+L80+M80+N80 -> 0 | Q80: =+P80 -> 0 | R80: =+J80+O80+Q80 -> 385700 | S80: =+R80*100/$R$112 -> 0.01922859734
C81: Var. % (2019-2020)
B82: 19 Vivienda y Des. Urbano | C82: 2018 | E82: 291875 | G82: 1368595 | J82: =+D82+E82+F82+G82+H82+I82 -> 1660470 | O82: =+K82+L82+M82+N82 -> 0 | Q82: =+P82 -> 0 | R82: =+J82+O82+Q82 -> 1660470 | S82: =+R82*100/$R$110 -> 0.08238578787
C83: 2019 | E83: 292134 | G83: 1164206 | J83: =+D83+E83+F83+G83+H83+I83 -> 1456340 | O83: =+K83+L83+M83+N83 -> 0 | Q83: =+P83 -> 0 | R83: =+J83+O83+Q83 -> 1456340 | S83: =+R83*100/$R$111 -> 0.07801920346
C84: 2020 | E84: 292134 | G84: 1518170 | J84: =+D84+E84+F84+G84+H84+I84 -> 1810304 | O84: =+K84+L84+M84+N84 -> 0 | Q84: =+P84 -> 0 | R84: =+J84+O84+Q84 -> 1810304 | S84: =+R84*100/$R$112 -> 0.09025047105
C85: Var. % (2019-2020) | E85: =+E84/E83-1 -> 0 | G85: =+G84/G83-1 -> 0.3040389759 | J85: =+J84/J83-1 -> 0.2430503866 | R85: =+R84/R83-1 -> 0.2430503866
B86: 20 Salud | C86: =+C82 -> 2018 | E86: 217082474 | F86: 735817 | G86: 102621598 | I86: 1117126 | J86: =+D86+E86+F86+G86+H86+I86 -> 321557015 | M86: 60008247 | O86: =+K86+L86+M86+N86 -> 60008247 | Q86: =+P86 -> 0 | R86: =+J86+O86+Q86 -> 381565262 | S86: =+R86*100/$R$110 -> 18.93172098
C87: 2019 | E87: 255946262 | F87: 809514 | G87: 97991832 | I87: 909158 | J87: =+D87+E87+F87+G87+H87+I87 -> 355656766 | M87: 32644581 | O87: =+K87+L87+M87+N87 -> 32644581 | Q87: =+P87 -> 0 | R87: =+J87+O87+Q87 -> 388301347 | S87: =+R87*100/$R$111 -> 20.80212162
C88: 2020 | E88: 278985963 | F88: 809516 | G88: 110071277 | I88: 732494 | J88: =+D88+E88+F88+G88+H88+I88 -> 390599250 | M88: 211231 | O88: =+K88+L88+M88+N88 -> 211231 | Q88: =+P88 -> 0 | R88: =+J88+O88+Q88 -> 390810481 | S88: =+R88*100/$R$112 -> 19.48337406
C89: Var. % (2019-2020) | E89: =+E88/E87-1 -> 0.09001772802 | F89: =+F88/F87-1 -> 2.470618173e-06 | G89: =+G88/G87-1 -> 0.123269917 | I89: =+I88/I87-1 -> -0.1943160595 | J89: =+J88/J87-1 -> 0.09824776959 | M89: =+M88/M87-1 -> -0.9935293702 | O89: =+O88/O87-1 -> -0.9935293702 | R89: =+R88/R87-1 -> 0.006461821519
B90: 21 Cultura y Deporte | C90: 2018 | J90: =+D90+E90+F90+G90+H90+I90 -> 0 | O90: =+K90+L90+M90+N90 -> 0 | Q90: =+P90 -> 0 | R90: =+J90+O90+Q90 -> 0 | S90: =+R90*100/$R$110 -> 0
C91: 2019 | J91: =+D91+E91+F91+G91+H91+I91 -> 0 | O91: =+K91+L91+M91+N91 -> 0 | Q91: =+P91 -> 0 | R91: =+J91+O91+Q91 -> 0 | S91: =+R91*100/$R$111 -> 0
C92: 2020 | J92: =+D92+E92+F92+G92+H92+I92 -> 0 | O92: =+K92+L92+M92+N92 -> 0 | Q92: =+P92 -> 0 | R92: =+J92+O92+Q92 -> 0 | S92: =+R92*100/$R$112 -> 0
C93: Var. % (2019-2020) | E93: =+E92/E91-1 ->  | F93: =+F92/F91-1 ->  | G93: =+G92/G91-1 ->  | I93: =+I92/I91-1 ->  | J93: =+J92/J91-1 ->  | M93: =+M92/M91-1 ->  | O93: =+O92/O91-1 ->  | Q93: =+Q92/Q91-1 ->  | R93: =+R92/R91-1 -> 
B94: 22 Educación | C94: 2018 | E94: 769862242 | F94: 528893 | G94: 56894810 | I94: 404973 | J94: =+D94+E94+F94+G94+H94+I94 -> 827690918 | M94: 42225079 | O94: =+K94+L94+M94+N94 -> 42225079 | Q94: =+P94 -> 0 | R94: =+J94+O94+Q94 -> 869915997 | S94: =+R94*100/$R$110 -> 43.16170409
C95: 2019 | E95: 811737767 | F95: 930802 | G95: 57278607 | I95: 404973 | J95: =+D95+E95+F95+G95+H95+I95 -> 870352149 | M95: 36260558 | O95: =+K95+L95+M95+N95 -> 36260558 | Q95: =+P95 -> 0 | R95: =+J95+O95+Q95 -> 906612707 | S95: =+R95*100/$R$111 -> 48.56915366
C96: 2020 | E96: 896697590 | F96: 942999 | G96: 57953725 | I96: 55084 | J96: =+D96+E96+F96+G96+H96+I96 -> 955649398 | M96: 13930635 | O96: =+K96+L96+M96+N96 -> 13930635 | Q96: =+P96 -> 0 | R96: =+J96+O96+Q96 -> 969580033 | S96: =+R96*100/$R$112 -> 48.33721557
C97: Var. % (2019-2020) | E97: =+E96/E95-1 -> 0.1046641249 | F97: =+F96/F95-1 -> 0.01310375354 | G97: =+G96/G95-1 -> 0.01178656457 | I97: =+I96/I95-1 -> -0.8639810555 | J97: =+J96/J95-1 -> 0.09800314631 | M97: =+M96/M95-1 -> -0.6158185155 | O97: =+O96/O95-1 -> -0.6158185155 | R97: =+R96/R95-1 -> 0.06945339009
B98: 23 Protección Social | C98: 2018 | E98: 1358512 | G98: 3305601 | J98: =+D98+E98+F98+G98+H98+I98 -> 4664113 | M98: 23500 | O98: =+K98+L98+M98+N98 -> 23500 | Q98: =+P98 -> 0 | R98: =+J98+O98+Q98 -> 4687613 | S98: =+R98*100/$R$110 -> 0.2325803479
C99: 2019 | E99: 1285517 | G99: 1601670 | J99: =+D99+E99+F99+G99+H99+I99 -> 2887187 | O99: =+K99+L99+M99+N99 -> 0 | Q99: =+P99 -> 0 | R99: =+J99+O99+Q99 -> 2887187 | S99: =+R99*100/$R$111 -> 0.1546726932
C100: 2020 | E100: 1345516 | G100: 1265962 | J100: =+D100+E100+F100+G100+H100+I100 -> 2611478 | O100: =+K100+L100+M100+N100 -> 0 | Q100: =+P100 -> 0 | R100: =+J100+O100+Q100 -> 2611478 | S100: =+R100*100/$R$112 -> 0.1301920117
C101: Var. % (2019-2020) | E101: =+E100/E99-1 -> 0.04667305061 | G101: =+G100/G99-1 -> -0.2095987313 | J101: =+J100/J99-1 -> -0.09549398775 | R101: =+R100/R99-1 -> -0.09549398775
B102: 24 Previsión Social | C102: 2018 | F102: 176755832 | J102: =+D102+E102+F102+G102+H102+I102 -> 176755832 | O102: =+K102+L102+M102+N102 -> 0 | Q102: =+P102 -> 0 | R102: =+J102+O102+Q102 -> 176755832 | S102: =+R102*100/$R$110 -> 8.769907604
C103: 2019 | F103: 181664345 | J103: =+D103+E103+F103+G103+H103+I103 -> 181664345 | O103: =+K103+L103+M103+N103 -> 0 | Q103: =+P103 -> 0 | R103: =+J103+O103+Q103 -> 181664345 | S103: =+R103*100/$R$111 -> 9.732141872
C104: 2020 | F104: 186715903 | J104: =+D104+E104+F104+G104+H104+I104 -> 186715903 | O104: =+K104+L104+M104+N104 -> 0 | Q104: =+P104 -> 0 | R104: =+J104+O104+Q104 -> 186715903 | S104: =+R104*100/$R$112 -> 9.308490838
C105: Var. % (2019-2020) | F105: =+F104/F103-1 -> 0.02780709665 | J105: =+J104/J103-1 -> 0.02780709665 | R105: =+R104/R103-1 -> 0.02780709665
B106: 25 Deuda Pública | C106: 2018 | J106: =+D106+E106+F106+G106+H106+I106 -> 0 | O106: =+K106+L106+M106+N106 -> 0 | P106: 10470535 | Q106: =+P106 -> 10470535 | R106: =+J106+O106+Q106 -> 10470535 | S106: =+R106*100/$R$110 -> 0.5195054866
C107: 2019 | J107: =+D107+E107+F107+G107+H107+I107 -> 0 | O107: =+K107+L107+M107+N107 -> 0 | P107: 25591658 | Q107: =+P107 -> 25591658 | R107: =+J107+O107+Q107 -> 25591658 | S107: =+R107*100/$R$111 -> 1.370999061
C108: 2020 | J108: =+D108+E108+F108+G108+H108+I108 -> 0 | O108: =+K108+L108+M108+N108 -> 0 | P108: 31922930 | Q108: =+P108 -> 31922930 | R108: =+J108+O108+Q108 -> 31922930 | S108: =+R108*100/$R$112 -> 1.591478265
C109: Var. % (2019-2020) | Q109: =+Q108/Q107-1 -> 0.2473959288 | R109: =+R108/R107-1 -> 0.2473959288
B110: TOTAL | C110: 2018 | E110: =+E10+E14+E18+E22+E26+E30+E34+E38+E42+E46+E50+E54+E58+E62+E66+E70+E74+E78+E82+E86+E90+E94+E98+E102+E106 -> 1007863475 | F110: 179231072 | G110: 214395686 | I110: =+I10+I14+I18+I22+I26+I30+I34+I38+I42+I46+I50+I54+I58+I62+I66+I70+I74+I78+I82+I86+I90+I94+I98+I102+I106 -> 6318826 | J110: =+D110+E110+F110+G110+H110+I110 -> 1407809059 | K110: =+K10+K14+K18+K22+K26+K30+K34+K38+K42+K46+K50+K54+K58+K62+K66+K70+K74+K78+K82+K86+K90+K94+K98+K102+K106 -> 0 | M110: =+M10+M14+M18+M22+M26+M30+M34+M38+M42+M46+M50+M54+M58+M62+M66+M70+M74+M78+M82+M86+M90+M94+M98+M102+M106 -> 597201526 | O110: =+K110+L110+M110+N110 -> 597201526 | P110: =+P10+P14+P18+P22+P26+P30+P34+P38+P42+P46+P50+P54+P58+P62+P66+P70+P74+P78+P82+P86+P90+P94+P98+P102+P106 -> 10470535 | Q110: 10470535 | R110: =+J110+O110+Q110 -> 2015481120 | S110: =+R110*100/$R$110 -> 100
C111: 2019 | E111: 1091094191 | F111: 184605850 | G111: 215693312 | I111: =+I11+I15+I19+I23+I27+I31+I35+I39+I43+I47+I51+I55+I59+I63+I67+I71+I75+I79+I83+I87+I91+I95+I99+I103+I107 -> 6210858 | J111: =+D111+E111+F111+G111+H111+I111 -> 1497604211 | K111: =+K11+K15+K19+K23+K27+K31+K35+K39+K43+K47+K51+K55+K59+K63+K67+K71+K75+K79+K83+K87+K91+K95+K99+K103+K107 -> 10080749 | M111: =+M11+M15+M19+M23+M27+M31+M35+M39+M43+M47+M51+M55+M59+M63+M67+M71+M75+M79+M83+M87+M91+M95+M99+M103+M107 -> 333366382 | O111: =+K111+L111+M111+N111 -> 343447131 | P111: 25591658 | Q111: 25591658 | R111: =+J111+O111+Q111 -> 1866643000 | S111: =+R111*100/$R$111 -> 100
C112: 2020 | E112: 1198963270 | F112: 189632677 | G112: 233499190 | I112: =+I12+I16+I20+I24+I28+I32+I36+I40+I44+I48+I52+I56+I60+I64+I68+I72+I76+I80+I84+I88+I92+I96+I100+I104+I108 -> 1331084 | J112: =+D112+E112+F112+G112+H112+I112 -> 1623426221 | K112: =+K12+K16+K20+K24+K28+K32+K36+K40+K44+K48+K52+K56+K60+K64+K68+K72+K76+K80+K84+K88+K92+K96+K100+K104+K108 -> 0 | M112: =+M12+M16+M20+M24+M28+M32+M36+M40+M44+M48+M52+M56+M60+M64+M68+M72+M76+M80+M84+M88+M92+M96+M100+M104+M108 -> 350517388 | O112: =+K112+L112+M112+N112 -> 350517388 | P112: 31922930 | Q112: 31922930 | R112: =+J112+O112+Q112 -> 2005866539 | S112: =+R112*100/$R$112 -> 100
C113: Var. % (2019-2020) | E113: =+E112/E111-1 -> 0.09886321446 | F113: =+F112/F111-1 -> 0.02723005257 | G113: =+G112/G111-1 -> 0.08255183174 | I113: =+I112/I111-1 -> -0.7856843612 | J113: =+J112/J111-1 -> 0.08401552899 | M113: =+M112/M111-1 -> 0.05144791714 | O113: =+O112/O111-1 -> 0.02058615828 | R113: =+R112/R111-1 -> 0.07458498438
B115: PROYECTO DE PRESUPUESTO PARA EL AÑO FISCAL 2020
B116: INFORMACION PARA LA COMISION DE PRESUPUESTO Y CUENTA GENERAL DE LA REPUBLICA DEL CONGRESO DE LA REPUBLICA

Sheet F.09
B2: FORMATO 09
B3: COMPARATIVO DEL NUMERO DE PLAZAS EN EL PRESUPUESTO 2018, 2019 Y PROYECTO 2020
B4: PROYECTO DE PRESUPUESTO - 2020
B6: SECTOR : 99 GOBIERNOS REGIONALES
B7: PLIEGO : 451 GOBIERNO REGIONAL LA LIBERTAD
B9: CATEGORIA | C9: Nombrados/Plazo Indeterninado | H9: Contratados/Plazo Fijo | N9: Otros Contratos (*****) | S9: PERSONAL | V9: Pensionistas a cargo de la Entidad
B10: REMUNERATIVA | C10: Decreto Legislativo 276 (Regimen Público) | D10: Decreto Legislativo 728 (Regimen Privado) | E10: Otros (especificar) | F10: Sub Total PEA (*) | G10: Costo Anual (****) | H10: Decreto Legislativo 276 (Regimen Público) | I10: Decreto Legislativo 728 (Regimen Privado) | J10: Decreto Legislativo 1057 | K10: Otros | L10: Sub Total PEA (*) | M10: Costo Anual (****) | N10: Decreto Legislativo 1057 (CAS) | O10: Decreto Legislativo 295 (SNP) | P10: Otros | Q10: Sub Total | R10: Costo Anual (****) | S10: TOTAL (*) | T10: PPTO ANUAL (**) | V10: Decreto Legislativo 20530 | W10: Pensiones de Gracia Ley 27747 | X10: Decreto Ley 19990 | Y10: Otros (***) | Z10: Sub Total PEA (*) | AA10: Costo Anual (****)
B11: 276 ADMINISTRATIVOS | C11: =SUM(C12,C21,C28,C35) -> 3282 | D11: =SUM(D12,D21,D28,D35) -> 0 | E11: =SUM(E12,E21,E28,E35) -> 0 | F11: =SUM(C11:E11) -> 3282 | G11: =SUM(G12,G21,G28,G35) -> 62333421.9 | H11: =SUM(H12,H21,H28,H35) -> 747 | I11: =SUM(I12,I21,I28,I35) -> 0 | J11: =SUM(J12,J21,J28,J35) -> 0 | K11: =SUM(K12,K21,K28,K35) -> 0 | L11: =SUM(H11:K11) -> 747 | M11: =SUM(M12,M21,M28,M35) -> 34226247.42 | N11: =SUM(N12,N21,N28,N35) -> 0 | O11: =SUM(O12,O21,O28,O35) -> 0 | P11: =SUM(P12,P21,P28,P35) -> 0 | Q11: =SUM(N11:P11) -> 0 | R11: =SUM(R12,R21,R28,R35) -> 0 | S11: =+F11+L11+Q11 -> 4029 | T11: =SUM(T12,T21,T28,T35) -> 96559669.31 | V11: =SUM(V12,V21,V28,V35) -> 0 | W11: =SUM(W12,W21,W28,W35) -> 0 | X11: =SUM(X12,X21,X28,X35) -> 0 | Y11: =SUM(Y12,Y21,Y28,Y35) -> 0 | Z11: =SUM(Z12,Z21,Z28,Z35) -> 0
B12: DIRECTIVOS/FUNCIONARIOS | C12: =SUM(C13:C20) -> 241 | D12: =SUM(D13:D20) -> 0 | E12: =SUM(E13:E20) -> 0 | F12: 241 | G12: =SUM(G13:G20) -> 6087573 | H12: =SUM(H13:H20) -> 169 | I12: =SUM(I13:I20) -> 0 | J12: =SUM(J13:J20) -> 0 | K12: =SUM(K13:K20) -> 0 | L12: 169 | M12: =SUM(M13:M20) -> 9700586.88 | N12: =SUM(N13:N20) -> 0 | O12: =SUM(O13:O20) -> 0 | P12: =SUM(P13:P20) -> 0 | Q12: 0 | R12: =SUM(R13:R20) -> 0 | S12: 410 | T12: =SUM(T13:T20) -> 15788159.88 | V12: =SUM(V13:V20) -> 0 | W12: =SUM(W13:W20) -> 0 | X12: =SUM(X13:X20) -> 0 | Y12: =SUM(Y13:Y20) -> 0 | Z12: =SUM(Z13:Z20) -> 0
B13: F-1 | C13: 27 | F13: 27 | G13: 1370496.92 | H13: 0 | L13: 0 | M13: 0 | Q13: 0 | S13: 27 | T13: =G13+M13 -> 1370496.92 | Z13: =SUM(V13:Y13) -> 0
B14: F-2 | C14: 70 | F14: 70 | G14: 1631321.4 | H14: 52 | L14: 52 | M14: 2148089.64 | Q14: 0 | S14: 122 | T14: 3779411.04 | Z14: 0
B15: F-3 | C15: 55 | F15: 55 | G15: 1653440.54 | H15: 28 | L15: 28 | M15: 1668428.06 | Q15: 0 | S15: 83 | T15: 3321868.6 | Z15: 0
B16: F-4 | C16: 29 | F16: 29 | G16: 770853.744 | H16: 32 | L16: 32 | M16: 1598666.544 | Q16: 0 | S16: 61 | T16: 2369520.288 | Z16: 0
B17: F-5 | C17: 37 | F17: 37 | G17: 661460.3964 | H17: 34 | L17: 34 | M17: 1971147.356 | Q17: 0 | S17: 71 | T17: 2632607.753 | Z17: 0
B18: F-6 | C18: 20 | F18: 20 | G18: 0 | H18: 20 | L18: 20 | M18: 1898285.84 | Q18: 0 | S18: 40 | T18: 1898285.84 | Z18: 0
B19: F-7 | C19: 2 | F19: 2 | G19: 0 | H19: 2 | L19: 2 | M19: 243369.44 | Q19: 0 | S19: 4 | T19: 243369.44 | Z19: 0
B20: F-8 | C20: 1 | F20: 1 | G20: 0 | H20: 1 | L20: 1 | M20: 172600 | Q20: 0 | S20: 2 | T20: 172600 | Z20: 0
B21: PROFESIONALES | C21: =SUM(C22:C27) -> 378 | D21: =SUM(D22:D27) -> 0 | E21: =SUM(E22:E27) -> 0 | F21: 378 | G21: =SUM(G22:G27) -> 8401166.264 | H21: =SUM(H22:H27) -> 106 | I21: =SUM(I22:I27) -> 0 | J21: =SUM(J22:J27) -> 0 | K21: =SUM(K22:K27) -> 0 | L21: 106 | M21: =SUM(M22:M27) -> 4298774.864 | N21: =SUM(N22:N27) -> 0 | O21: =SUM(O22:O27) -> 0 | P21: =SUM(P22:P27) -> 0 | Q21: 0 | R21: =SUM(R22:R27) -> 0 | S21: 484 | T21: =SUM(T22:T27) -> 12699941.13 | V21: =SUM(V22:V27) -> 0 | W21: =SUM(W22:W27) -> 0 | X21: =SUM(X22:X27) -> 0 | Y21: =SUM(Y22:Y27) -> 0 | Z21: =SUM(Z22:Z27) -> 0
B22: SPA | C22: 42 | F22: 42 | G22: 1171555.416 | H22: 17 | L22: 17 | M22: 759384.4565 | Q22: 0 | S22: 59 | T22: =G22+M22 -> 1930939.873 | Z22: =SUM(V22:Y22) -> 0
B23: SPB | C23: 25 | F23: 25 | G23: 716995.48 | H23: 7 | L23: 7 | M23: 304824.52 | Q23: 0 | S23: 32 | T23: 1021820 | Z23: 0
B24: SPC | C24: 42 | F24: 42 | G24: 1147039.24 | H24: 6 | L24: 6 | M24: 428488.6 | Q24: 0 | S24: 48 | T24: 1575527.84 | Z24: 0
B25: SPD | C25: 84 | F25: 84 | G25: 2128782.168 | H25: 15 | L25: 15 | M25: 754868.0875 | Q25: 0 | S25: 99 | T25: 2883650.255 | Z25: 0
B26: SPE | C26: 161 | F26: 161 | G26: 2953043 | H26: 47 | L26: 47 | M26: 1640956.52 | Q26: 0 | S26: 208 | T26: 4593999.52 | Z26: 0
B27: SPF | C27: 24 | F27: 24 | G27: 283750.96 | H27: 14 | L27: 14 | M27: 410252.68 | Q27: 0 | S27: 38 | T27: 694003.64 | Z27: 0
B28: TECNICOS | C28: =SUM(C29:C34) -> 1077 | D28: =SUM(D29:D34) -> 0 | E28: =SUM(E29:E34) -> 0 | F28: 1077 | G28: =SUM(G29:G34) -> 25879307.7 | H28: =SUM(H29:H34) -> 189 | I28: =SUM(I29:I34) -> 0 | J28: =SUM(J29:J34) -> 0 | K28: =SUM(K29:K34) -> 0 | L28: 189 | M28: =SUM(M29:M34) -> 11215399.02 | N28: =SUM(N29:N34) -> 0 | O28: =SUM(O29:O34) -> 0 | P28: =SUM(P29:P34) -> 0 | Q28: 0 | R28: =SUM(R29:R34) -> 0 | S28: 1266 | T28: =SUM(T29:T34) -> 37094706.72 | V28: =SUM(V29:V34) -> 0 | W28: =SUM(W29:W34) -> 0 | X28: =SUM(X29:X34) -> 0 | Y28: =SUM(Y29:Y34) -> 0 | Z28: =SUM(Z29:Z34) -> 0
B29: STA | C29: 324 | F29: 324 | G29: 8007365.64 | H29: 36 | L29: 36 | M29: 3047998.68 | Q29: 0 | S29: 360 | T29: =G29+M29 -> 11055364.32 | Z29: =SUM(V29:Y29) -> 0
B30: STB | C30: 127 | F30: 127 | G30: 3628550.2 | H30: 15 | L30: 15 | M30: 1378000.96 | Q30: 0 | S30: 142 | T30: 5006551.16 | Z30: 0
B31: STC | C31: 146 | F31: 146 | G31: 3884181.36 | H31: 21 | L31: 21 | M31: 1792714.2 | Q31: 0 | S31: 167 | T31: 5676895.56 | Z31: 0
B32: STD | C32: 239 | F32: 239 | G32: 5950587.067 | H32: 38 | L32: 38 | M32: 2284825.387 | Q32: 0 | S32: 277 | T32: 8235412.453 | Z32: 0
B33: STE | C33: 147 | F33: 147 | G33: 2395828.601 | H33: 41 | L33: 41 | M33: 1210890.761 | Q33: 0 | S33: 188 | T33: 3606719.362 | Z33: 0
B34: STF | C34: 94 | F34: 94 | G34: 2012794.832 | H34: 38 | L34: 38 | M34: 1500969.032 | Q34: 0 | S34: 132 | T34: 3513763.863 | Z34: 0
B35: AUXILIARES | C35: =SUM(C36:C41) -> 1586 | D35: =SUM(D36:D41) -> 0 | E35: =SUM(E36:E41) -> 0 | F35: 1586 | G35: =SUM(G36:G41) -> 21965374.93 | H35: =SUM(H36:H41) -> 283 | I35: =SUM(I36:I41) -> 0 | J35: =SUM(J36:J41) -> 0 | K35: =SUM(K36:K41) -> 0 | L35: 283 | M35: =SUM(M36:M41) -> 9011486.654 | N35: =SUM(N36:N41) -> 0 | O35: =SUM(O36:O41) -> 0 | P35: =SUM(P36:P41) -> 0 | Q35: 0 | R35: =SUM(R36:R41) -> 0 | S35: 1869 | T35: =SUM(T36:T41) -> 30976861.59 | V35: =SUM(V36:V41) -> 0 | W35: =SUM(W36:W41) -> 0 | X35: =SUM(X36:X41) -> 0 | Y35: =SUM(Y36:Y41) -> 0 | Z35: =SUM(Z36:Z41) -> 0
B36: SAA | C36: 186 | F36: 186 | G36: 3520577.21 | H36: 32 | L36: 32 | M36: 1841262.77 | Q36: 0 | S36: 218 | T36: =G36+M36 -> 5361839.98 | Z36: =SUM(V36:Y36) -> 0
B37: SAB | C37: 54 | F37: 54 | G37: 1101286.12 | H37: 8 | L37: 8 | M37: 482396.44 | Q37: 0 | S37: 62 | T37: 1583682.56 | Z37: 0
B38: SAC | C38: 135 | F38: 135 | G38: 2403989.227 | H38: 9 | L38: 9 | M38: 501987.5467 | Q38: 0 | S38: 144 | T38: 2905976.773 | Z38: 0
B39: SAD | C39: 155 | F39: 155 | G39: 2665415.52 | H39: 15 | L39: 15 | M39: 665957.88 | Q39: 0 | S39: 170 | T39: 3331373.4 | Z39: 0
B40: SAE | C40: 1046 | F40: 1046 | G40: 12138272.5 | H40: 212 | L40: 212 | M40: 5319482.617 | Q40: 0 | S40: 1258 | T40: 17457755.11 | Z40: 0
B41: SAF | C41: 10 | F41: 10 | G41: 135834.36 | H41: 7 | L41: 7 | M41: 200399.4 | Q41: 0 | S41: 17 | T41: 336233.76 | Z41: 0
B42: 276 ASISTENCIALES | C42: =SUM(C43,C47,C54) -> 2314 | D42: =SUM(D43,D47,D54) -> 0 | E42: =SUM(E43,E47,E54) -> 0 | F42: 2314 | G42: =SUM(G43,G47,G54) -> 46943874.48 | H42: =SUM(H43,H47,H54) -> 149 | I42: =SUM(I43,I47,I54) -> 0 | J42: =SUM(J43,J47,J54) -> 0 | K42: =SUM(K43,K47,K54) -> 0 | L42: 149 | M42: =SUM(M43,M47,M54) -> 3825790.12 | N42: =SUM(N43,N47,N54) -> 0 | O42: =SUM(O43,O47,O54) -> 0 | P42: =SUM(P43,P47,P54) -> 0 | Q42: 0 | R42: =SUM(R43,R47,R54) -> 0 | S42: 2463 | T42: =SUM(T43,T47,T54) -> 50769664.6 | V42: =SUM(V43,V47,V54) -> 0 | W42: =SUM(W43,W47,W54) -> 0 | X42: =SUM(X43,X47,X54) -> 0 | Y42: =SUM(Y43,Y47,Y54) -> 0 | Z42: =SUM(Z43,Z47,Z54) -> 0
B43: PROFESIONALES | C43: =SUM(C44:C46) -> 25 | D43: =SUM(D44:D46) -> 0 | E43: =SUM(E44:E46) -> 0 | F43: 25 | G43: =SUM(G44:G46) -> 924924.8 | H43: =SUM(H44:H46) -> 1 | I43: =SUM(I44:I46) -> 0 | J43: =SUM(J44:J46) -> 0 | K43: =SUM(K44:K46) -> 0 | L43: 1 | M43: =SUM(M44:M46) -> 30024 | N43: =SUM(N44:N46) -> 0 | O43: =SUM(O44:O46) -> 0 | P43: =SUM(P44:P46) -> 0 | Q43: 0 | R43: =SUM(R44:R46) -> 0 | S43: 26 | T43: =SUM(T44:T46) -> 954948.8 | V43: =SUM(V44:V46) -> 0 | W43: =SUM(W44:W46) -> 0 | X43: =SUM(X44:X46) -> 0 | Y43: =SUM(Y44:Y46) -> 0 | Z43: =SUM(Z44:Z46) -> 0
B44: SPD | C44: 10 | F44: 10 | G44: 386808.16 | L44: 0 | Q44: 0 | S44: 10 | T44: =G44+M44 -> 386808.16 | Z44: =SUM(V44:Y44) -> 0
B45: SPE | C45: 11 | F45: 11 | G45: 427427.6 | L45: 0 | Q45: 0 | S45: 11 | T45: =G45+M45 -> 427427.6 | Z45: =SUM(V45:Y45) -> 0
B46: SPF | C46: 4 | F46: 4 | G46: 110689.04 | H46: 1 | L46: 1 | M46: 30024 | Q46: 0 | S46: 5 | T46: =G46+M46 -> 140713.04 | Z46: =SUM(V46:Y46) -> 0
B47: TECNICOS | C47: =SUM(C48:C53) -> 1935 | D47: =SUM(D48:D53) -> 0 | E47: =SUM(E48:E53) -> 0 | F47: 1935 | G47: =SUM(G48:G53) -> 37236265.64 | H47: =SUM(H48:H53) -> 121 | I47: =SUM(I48:I53) -> 0 | J47: =SUM(J48:J53) -> 0 | K47: =SUM(K48:K53) -> 0 | L47: 121 | M47: =SUM(M48:M53) -> 3096432.96 | N47: =SUM(N48:N53) -> 0 | O47: =SUM(O48:O53) -> 0 | P47: =SUM(P48:P53) -> 0 | Q47: 0 | R47: =SUM(R48:R53) -> 0 | S47: 2056 | T47: =SUM(T48:T53) -> 40332698.6 | V47: =SUM(V48:V53) -> 0 | W47: 0 | X47: 0 | Y47: 0 | Z47: 0 | AA47: 0
B48: STA | C48: 102 | F48: 102 | G48: 2665183.84 | H48: 8 | L48: 8 | M48: 100734.96 | Q48: 0 | S48: 110 | T48: =G48+M48 -> 2765918.8 | Z48: =SUM(V48:Y48) -> 0
B49: STB | C49: 339 | F49: 339 | G49: 8622777.68 | H49: 18 | L49: 18 | M49: 405991.44 | Q49: 0 | S49: 357 | T49: 9028769.12 | Z49: 0
B50: STC | C50: 703 | F50: 703 | G50: 18837214.12 | H50: 58 | L50: 58 | M50: 1560600.84 | Q50: 0 | S50: 761 | T50: 20397814.96 | Z50: 0
B51: STD | C51: 43 | F51: 43 | G51: 1119767.84 | H51: 2 | L51: 2 | M51: 50376 | Q51: 0 | S51: 45 | T51: 1170143.84 | Z51: 0
B52: STE | C52: 106 | F52: 106 | G52: 2408584.6 | H52: 14 | L52: 14 | M52: 360333.48 | Q52: 0 | S52: 120 | T52: 2768918.08 | Z52: 0
B53: STF | C53: 642 | F53: 642 | G53: 3582737.56 | H53: 21 | L53: 21 | M53: 618396.24 | Q53: 0 | S53: 663 | T53: 4201133.8 | Z53: 0
B54: AUXILIARES | C54: =SUM(C55:C59) -> 354 | D54: =SUM(D55:D59) -> 0 | E54: =SUM(E55:E59) -> 0 | F54: 354 | G54: =SUM(G55:G59) -> 8782684.04 | H54: =SUM(H55:H59) -> 27 | I54: =SUM(I55:I59) -> 0 | J54: =SUM(J55:J59) -> 0 | K54: =SUM(K55:K59) -> 0 | L54: 27 | M54: =SUM(M55:M59) -> 699333.16 | N54: =SUM(N55:N59) -> 0 | O54: =SUM(O55:O59) -> 0 | P54: =SUM(P55:P59) -> 0 | Q54: 0 | R54: =SUM(R55:R59) -> 0 | S54: 381 | T54: =SUM(T55:T59) -> 9482017.2 | V54: =SUM(V55:V59) -> 0 | W54: =SUM(W55:W59) -> 0 | X54: =SUM(X55:X59) -> 0 | Y54: =SUM(Y55:Y59) -> 0 | Z54: =SUM(Z55:Z59) -> 0
B55: SAA | C55: 2 | F55: 2 | G55: 53600.16 | H55: 6 | L55: 6 | M55: 153336.44 | Q55: 0 | S55: 8 | T55: =G55+M55 -> 206936.6 | Z55: =SUM(V55:Y55) -> 0
B56: SAB | C56: 105 | F56: 105 | G56: 3110881.8 | H56: 0 | L56: 0 | M56: 0 | Q56: 0 | S56: 105 | T56: =G56+M56 -> 3110881.8 | Z56: =SUM(V56:Y56) -> 0
B57: SAC | C57: 121 | F57: 121 | G57: 2921152.88 | H57: 10 | L57: 10 | M57: 268090.68 | Q57: 0 | S57: 131 | T57: =G57+M57 -> 3189243.56 | Z57: =SUM(V57:Y57) -> 0
B58: SAD | C58: 118 | F58: 118 | G58: 2672354.28 | H58: 10 | L58: 10 | M58: 247484.64 | Q58: 0 | S58: 128 | T58: =G58+M58 -> 2919838.92 | Z58: =SUM(V58:Y58) -> 0
B59: SAF | C59: 8 | F59: 8 | G59: 24694.92 | H59: 1 | L59: 1 | M59: 30421.4 | Q59: 0 | S59: 9 | T59: =G59+M59 -> 55116.32 | Z59: =SUM(V59:Y59) -> 0
B60: 276 - CARRERAS ESPECIALES | C60: =SUM(C61,C97,C140,C146) -> 15629 | D60: =SUM(D61,D97,D140,D146) -> 0 | E60: =SUM(E61,E97,E140,E146) -> 0 | F60: 15629 | G60: =SUM(G61,G97,G140,G146) -> 381779229.4 | H60: =SUM(H61,H97,H140,H146) -> 7463 | I60: =SUM(I61,I97,I140,I146) -> 0 | J60: =SUM(J61,J97,J140,J146) -> 0 | K60: =SUM(K61,K97,K140,K146) -> 0 | L60: 7463 | M60: =SUM(M61,M97,M140,M146) -> 130862430 | N60: =SUM(N61,N97,N140,N146) -> 0 | O60: =SUM(O61,O97,O140,O146) -> 0 | P60: =SUM(P61,P97,P140,P146) -> 0 | Q60: 0 | R60: =SUM(R61,R97,R140,R146) -> 0 | S60: 23092 | T60: =SUM(T61,T97,T140,T146) -> 512641659.4 | U60: 0 | V60: 0 | W60: 0 | X60: 0 | Y60: 0 | Z60: 0 | AA60: 0
B61: PROFESORADO | C61: =SUM(C62:C95) -> 947 | D61: =SUM(D62:D95) -> 0 | E61: =SUM(E62:E95) -> 0 | F61: 947 | G61: =SUM(G62:G95) -> 19931204.76 | H61: =SUM(H62:H95) -> 1592 | I61: =SUM(I62:I95) -> 0 | J61: =SUM(J62:J95) -> 0 | K61: =SUM(K62:K95) -> 0 | L61: 1592 | M61: =SUM(M62:M95) -> 29995117.72 | N61: =SUM(N62:N95) -> 0 | O61: =SUM(O62:O95) -> 0 | P61: =SUM(P62:P95) -> 0 | Q61: 0 | R61: =SUM(R62:R95) -> 0 | S61: 2539 | T61: =SUM(T62:T95) -> 49926322.48 | V61: =SUM(V62:V95) -> 0 | W61: =SUM(W62:W95) -> 0 | X61: =SUM(X62:X95) -> 0 | Y61: =SUM(Y62:Y95) -> 0 | Z61: =SUM(Z62:Z95) -> 0
B62: A-24 | C62: 5 | F62: 5 | G62: =83243.56-8000 -> 75243.56 | H62: 15 | L62: 15 | M62: 193339.08 | Q62: 0 | S62: 20 | T62: =G62+M62 -> 268582.64 | Z62: =SUM(V62:Y62) -> 0
B63: A-30 | C63: 3 | F63: 3 | G63: =41598.28-6800 -> 34798.28 | H63: 14 | L63: 14 | M63: 187607.52 | Q63: 0 | S63: 17 | T63: 222405.8 | Z63: =SUM(V63:Y63) -> 0
B64: A-40 | C64: 1 | F64: 1 | G64: 16667.8 | H64: 7 | L64: 7 | M64: =103046.28-3200 -> 99846.28 | Q64: 0 | S64: 8 | T64: 116514.08 | Z64: =SUM(V64:Y64) -> 0
B65: B-24 | C65: 4 | F65: 4 | G65: 52774.8 | H65: 14 | L65: 14 | M65: =185509.44-7200 -> 178309.44 | Q65: 0 | S65: 18 | T65: 231084.24 | Z65: =SUM(V65:Y65) -> 0
B66: B-30 | C66: 1 | F66: 1 | G66: 14681.92 | H66: 7 | L66: 7 | M66: =90307.92-3200 -> 87107.92 | Q66: 0 | S66: 8 | T66: 101789.84 | Z66: =SUM(V66:Y66) -> 0
B67: B-40 | C67: 0 | G67: 0 | H67: 4 | L67: 4 | M67: 49292.44 | S67: 4 | T67: 49292.44
B68: C-24 | C68: 11 | F68: =SUM(C68:E68) -> 11 | G68: =139253.36-6800 -> 132453.36 | H68: 23 | L68: 23 | M68: =292245.6-3400-3400 -> 285445.6 | Q68: =SUM(N68:P68) -> 0 | S68: 34 | T68: 417898.96 | Z68: =SUM(V68:Y68) -> 0
B69: C-30 | C69: 6 | F69: =SUM(C69:E69) -> 6 | G69: =97051.8-800 -> 96251.8 | H69: 21 | L69: 21 | M69: =281304.72-10000 -> 271304.72 | Q69: =SUM(N69:P69) -> 0 | S69: 27 | T69: 367556.52 | Z69: =SUM(V69:Y69) -> 0
B70: C-40 | C70: 1 | F70: =SUM(C70:E70) -> 1 | G70: =14324.32-3000 -> 11324.32 | H70: 7 | L70: 7 | M70: =109594.32-200 -> 109394.32 | Q70: =SUM(N70:P70) -> 0 | S70: 8 | T70: 120718.64 | Z70: =SUM(V70:Y70) -> 0
B71: D-24 | C71: 1 | F71: =SUM(C71:E71) -> 1 | G71: 13733.44 | H71: 7 | L71: 7 | M71: =92104.2-3200 -> 88904.2 | Q71: =SUM(N71:P71) -> 0 | S71: 8 | T71: 102637.64 | Z71: =SUM(V71:Y71) -> 0
B72: D-30 | C72: 0 | G72: 0 | H72: 8 | L72: 8 | M72: 80771.12 | S72: 8 | T72: 80771.12
B73: D-40 | C73: 0 | G73: 0 | H73: 1 | L73: 1 | M73: 12129.28 | S73: 1 | T73: 12129.28
B74: E-24 | C74: 4 | F74: =SUM(C74:E74) -> 4 | G74: 54955.92 | H74: 14 | L74: 14 | M74: =186551.76-7200 -> 179351.76 | Q74: =SUM(N74:P74) -> 0 | S74: 18 | T74: 234307.68 | Z74: =SUM(V74:Y74) -> 0
B75: E-30 | C75: 78 | F75: =SUM(C75:E75) -> 78 | G75: 1015543.44 | H75: 228 | L75: =SUM(H75:K75) -> 228 | M75: =3118775.76-122400 -> 2996375.76 | Q75: =SUM(N75:P75) -> 0 | S75: =+F75+L75+Q75 -> 306 | T75: 4011919.2 | Z75: =SUM(V75:Y75) -> 0
B76: E-40 | C76: 0 | G76: 0 | H76: 5 | L76: 5 | M76: 68567 | S76: 5 | T76: 68567
B77: I-24 | C77: 50 | F77: =SUM(C77:E77) -> 50 | G77: =818462.12-24400 -> 794062.12 | H77: 86 | L77: 86 | M77: =1480790.28-30000 -> 1450790.28 | Q77: =SUM(N77:P77) -> 0 | S77: 136 | T77: 2244852.4 | Z77: =SUM(V77:Y77) -> 0
B78: I-26 | C78: 11 | F78: 11 | G78: 178560.56 | H78: 0 | L78: 0 | M78: 0 | Q78: 0 | S78: 11 | T78: 178560.56 | Z78: 0
B79: I-30 | C79: 205 | F79: 205 | G79: 4269656.64 | H79: 188 | L79: 188 | M79: 3777979.44 | Q79: 0 | S79: 393 | T79: 8047636.08 | Z79: 0
B80: I-40 | C80: 16 | F80: 16 | G80: 463668 | H80: 47 | L80: 47 | M80: 1269985.2 | Q80: 0 | S80: 63 | T80: 1733653.2 | Z80: 0
B81: II-24 | C81: 58 | F81: 58 | G81: 1062409.72 | H81: 145 | L81: 145 | M81: 2395282.72 | Q81: 0 | S81: 203 | T81: 3457692.44 | Z81: 0
B82: II-26 | C82: 31 | F82: 31 | G82: 590190.48 | H82: 2 | L82: 2 | M82: 24776.16 | Q82: 0 | S82: 33 | T82: 614966.64 | Z82: 0
B83: II-30 | C83: 293 | F83: 293 | G83: 6616433.2 | H83: 288 | L83: 288 | M83: 6016840.96 | Q83: 0 | S83: 581 | T83: 12633274.16 | Z83: 0
B84: II-40 | C84: 27 | F84: 27 | G84: 796557.36 | H84: 63 | L84: 63 | M84: 1754973.12 | Q84: 0 | S84: 90 | T84: 2551530.48 | Z84: 0
B85: III-24 | C85: 5 | F85: 5 | G85: 97692.8 | H85: 11 | L85: 11 | M85: 198846.8 | Q85: 0 | S85: 16 | T85: 296539.6 | Z85: 0
B86: III-30 | C86: 29 | F86: 29 | G86: 672211.6 | H86: 81 | L86: 81 | M86: 1848965.32 | Q86: 0 | S86: 110 | T86: 2521176.92 | Z86: 0
B87: III-40 | C87: 10 | F87: 10 | G87: 329000 | H87: 63 | L87: 63 | M87: 1897310.6 | Q87: 0 | S87: 73 | T87: 2226310.6 | Z87: 0
B88: IV-24 | C88: 21 | F88: 21 | G88: 439091.4 | H88: 21 | L88: 21 | M88: 431310.24 | Q88: 0 | S88: 42 | T88: 870401.64 | Z88: 0
B89: IV-30 | C89: 55 | F89: 55 | G89: 1492225.6 | H89: 37 | L89: 37 | M89: 976686.52 | Q89: 0 | S89: 92 | T89: 2468912.12 | Z89: 0
B90: IV-40 | C90: 0 | G90: 0 | H90: 10 | L90: 10 | M90: 328178.32 | S90: 10 | T90: 328178.32
B91: P/H | C91: 1 | F91: =SUM(C91:E91) -> 1 | G91: 44277.08 | H91: 159 | L91: 159 | M91: 2236134.32 | Q91: =SUM(N91:P91) -> 0 | S91: 160 | T91: 2280411.4 | Z91: =SUM(V91:Y91) -> 0
B92: V-24 | C92: 9 | F92: =SUM(C92:E92) -> 9 | G92: 188849.44 | H92: 5 | L92: 5 | M92: 121279.6 | Q92: =SUM(N92:P92) -> 0 | S92: 14 | T92: 310129.04 | Z92: =SUM(V92:Y92) -> 0
B93: V-26 | C93: 1 | F93: =SUM(C93:E93) -> 1 | G93: 27290.56 | H93: 0 | L93: 0 | M93: 0 | Q93: =SUM(N93:P93) -> 0 | S93: 1 | T93: 27290.56 | Z93: =SUM(V93:Y93) -> 0
B94: V-30 | C94: 7 | F94: =SUM(C94:E94) -> 7 | G94: =227919.72-3000 -> 224919.72 | H94: 8 | L94: 8 | M94: =254151.84-3000 -> 251151.84 | Q94: =SUM(N94:P94) -> 0 | S94: 15 | T94: 476071.56 | Z94: =SUM(V94:Y94) -> 0
B95: V-40 | C95: 3 | F95: =SUM(C95:E95) -> 3 | G95: =128079.84-2400 -> 125679.84 | H95: 3 | L95: 3 | M95: 126879.84 | Q95: =SUM(N95:P95) -> 0 | S95: 6 | T95: 252559.68 | Z95: =SUM(V95:Y95) -> 0
B97: PROFESIONALES DE LA SALUD | C97: =SUM(C98:C139) -> 1827 | D97: =SUM(D98:D139) -> 0 | E97: =SUM(E98:E139) -> 0 | F97: =SUM(C97:E97) -> 1827 | G97: =SUM(G98:G139) -> 93089257.64 | H97: 339 | I97: 0 | J97: 0 | K97: 0 | L97: 339 | M97: 17673950.08 | N97: 0 | O97: 0 | P97: 0 | Q97: =SUM(N97:P97) -> 0 | R97: =SUM(R98:R139) -> 0 | S97: =+F97+L97+Q97 -> 2166 | T97: =SUM(T98:T139) -> 110763207.7 | V97: =SUM(V98:V139) -> 0 | W97: =SUM(W98:W139) -> 0 | X97: =SUM(X98:X139) -> 0 | Y97: =SUM(Y98:Y139) -> 0 | Z97: =SUM(Z98:Z139) -> 0
B98: CD-I | C98: 31 | F98: 31 | G98: 1125957 | H98: 5 | L98: =SUM(H98:K98) -> 5 | M98: =+VLOOKUP(B98,'[1]F23(OK)'!$B$103:$R$145,17,) -> 157567.44 | Q98: 0 | S98: 36 | T98: =G98+M98 -> 1283524.44 | Z98: =SUM(V98:Y98) -> 0
B99: CD-II | C99: 9 | F99: 9 | G99: 325638.96 | H99: 0 | L99: 0 | M99: =+VLOOKUP(B99,'[1]F23(OK)'!$B$103:$R$145,17,) -> 0 | Q99: 0 | S99: 9 | T99: 325638.96 | Z99: 0
B100: CD-III | C100: 2 | F100: 2 | G100: 70142 | H100: 0 | L100: 0 | M100: =+VLOOKUP(B100,'[1]F23(OK)'!$B$103:$R$145,17,) -> 0 | Q100: 0 | S100: 2 | T100: 70142 | Z100: 0
B101: CD-IV | C101: 1 | F101: 1 | G101: 36484 | H101: 0 | L101: 0 | M101: =+VLOOKUP(B101,'[1]F23(OK)'!$B$103:$R$145,17,) -> 0 | Q101: 0 | S101: 1 | T101: 36484 | Z101: 0
B102: CD-V | C102: 9 | F102: 9 | G102: 352601.4 | H102: 0 | L102: 0 | M102: =+VLOOKUP(B102,'[1]F23(OK)'!$B$103:$R$145,17,) -> 0 | Q102: 0 | S102: 9 | T102: 352601.4 | Z102: 0
B103: ENF-10 | C103: 228 | F103: 228 | G103: 8524801.8 | H103: 66 | L103: 66 | M103: =+VLOOKUP(B103,'[1]F23(OK)'!$B$103:$R$145,17,) -> 2326232.76 | Q103: 0 | S103: 294 | T103: 10851034.56 | Z103: 0
B104: ENF-11 | C104: 68 | F104: 68 | G104: 2864056.28 | H104: 0 | L104: 0 | M104: =+VLOOKUP(B104,'[1]F23(OK)'!$B$103:$R$145,17,) -> 0 | Q104: 0 | S104: 68 | T104: 2864056.28 | Z104: 0
B105: ENF-12 | C105: 22 | F105: 22 | G105: 951652.4 | H105: 1 | L105: 1 | M105: =+VLOOKUP(B105,'[1]F23(OK)'!$B$103:$R$145,17,) -> 8537.4 | Q105: 0 | S105: 23 | T105: 960189.8
B106: ENF-13 | C106: 3 | F106: 3 | G106: 141008.4 | H106: 0 | L106: 0 | M106: =+VLOOKUP(B106,'[1]F23(OK)'!$B$103:$R$145,17,) -> 0 | Q106: 0 | S106: 3 | T106: 141008.4
B107: ENF-14 | C107: 256 | F107: 256 | G107: 11679077.92 | H107: 6 | L107: 6 | M107: =+VLOOKUP(B107,'[1]F23(OK)'!$B$103:$R$145,17,) -> 240682.2 | Q107: 0 | S107: 262 | T107: 11919760.12
B108: G4-II | C108: 29 | F108: 29 | G108: 890222.04 | H108: 4 | L108: 4 | M108: =+VLOOKUP(B108,'[1]F23(OK)'!$B$103:$R$145,17,) -> 100197.84 | Q108: 0 | S108: 33 | T108: 990419.88
B109: G4-III | C109: 4 | F109: 4 | G109: 105719.92 | H109: 0 | L109: 0 | M109: =+VLOOKUP(B109,'[1]F23(OK)'!$B$103:$R$145,17,) -> 0 | Q109: 0 | S109: 4 | T109: 105719.92
B110: G4-IV | C110: 3 | F110: 3 | G110: 85567.6 | H110: 1 | L110: 1 | M110: =+VLOOKUP(B110,'[1]F23(OK)'!$B$103:$R$145,17,) -> 32244 | Q110: 0 | S110: 4 | T110: 117811.6 | Z110: =SUM(V110:Y110) -> 0
B111: G4-V | C111: 4 | F111: 4 | G111: 108016.48 | H111: 0 | L111: 0 | M111: =+VLOOKUP(B111,'[1]F23(OK)'!$B$103:$R$145,17,) -> 0 | Q111: 0 | S111: 4 | T111: 108016.48 | Z111: 0
B112: G4-VI | C112: 8 | F112: 8 | G112: 205680.56 | H112: 0 | L112: 0 | M112: =+VLOOKUP(B112,'[1]F23(OK)'!$B$103:$R$145,17,) -> 0 | Q112: 0 | S112: 8 | T112: 205680.56 | Z112: 0
B113: G5-I | C113: 0 | F113: 0 | G113: 0 | H113: 1 | L113: 1 | M113: 25262.08 | Q113: 0 | S113: 1 | T113: 25262.08 | Z113: 0
B114: G5-II | C114: 1 | F114: 1 | G114: 25282.76 | H114: 1 | L114: 1 | M114: =+VLOOKUP(B114,'[1]F23(OK)'!$B$103:$R$145,17,) -> 32070.96 | Q114: 0 | S114: 2 | T114: 57353.72 | Z114: 0
B115: G5-III | C115: 2 | F115: 2 | G115: 50568.92 | H115: 0 | L115: 0 | M115: =+VLOOKUP(B115,'[1]F23(OK)'!$B$103:$R$145,17,) -> 0 | Q115: 0 | S115: 2 | T115: 50568.92 | Z115: 0
B116: G5-V | C116: 1 | F116: 1 | G116: 33280 | H116: 0 | L116: 0 | M116: =+VLOOKUP(B116,'[1]F23(OK)'!$B$103:$R$145,17,) -> 0 | Q116: 0 | S116: 1 | T116: 33280 | Z116: 0
B117: MC-1 | C117: 208 | F117: 208 | G117: 13837571.88 | H117: 158 | L117: 158 | M117: =+VLOOKUP(B117,'[1]F23(OK)'!$B$103:$R$145,17,) -> 9944994.6 | Q117: 0 | S117: 366 | T117: 23782566.48 | Z117: 0
B118: MC-2 | C118: 112 | F118: 112 | G118: 8198200.44 | H118: 11 | L118: 11 | M118: =+VLOOKUP(B118,'[1]F23(OK)'!$B$103:$R$145,17,) -> 822027.96 | Q118: 0 | S118: 123 | T118: 9020228.4 | Z118: 0
B119: MC-3 | C119: 71 | F119: 71 | G119: 5316147.04 | H119: 5 | L119: 5 | M119: =+VLOOKUP(B119,'[1]F23(OK)'!$B$103:$R$145,17,) -> 330051.96 | Q119: 0 | S119: 76 | T119: 5646199 | Z119: 0
B120: MC-4 | C120: 21 | F120: 21 | G120: 1683457.8 | H120: 0 | L120: 0 | M120: =+VLOOKUP(B120,'[1]F23(OK)'!$B$103:$R$145,17,) -> 0 | Q120: 0 | S120: 21 | T120: 1683457.8 | Z120: 0
B121: MC-5 | C121: 209 | F121: 209 | G121: 17120637.4 | H121: 23 | L121: 23 | M121: =+VLOOKUP(B121,'[1]F23(OK)'!$B$103:$R$145,17,) -> 1827043.8 | Q121: 0 | S121: 232 | T121: 18947681.2 | Z121: 0
B122: OBS-I | C122: 224 | F122: 224 | G122: 8676790.72 | H122: 20 | L122: 20 | M122: =+VLOOKUP(B122,'[1]F23(OK)'!$B$103:$R$145,17,) -> 670358.16 | Q122: 0 | S122: 244 | T122: 9347148.88 | Z122: 0
B123: OBS-II | C123: 36 | F123: 36 | G123: 1410132.96 | H123: 0 | L123: 0 | M123: =+VLOOKUP(B123,'[1]F23(OK)'!$B$103:$R$145,17,) -> 0 | Q123: 0 | S123: 36 | T123: 1410132.96 | Z123: 0
B124: OBS-III | C124: 2 | F124: 2 | G124: 75380 | H124: 0 | L124: 0 | M124: =+VLOOKUP(B124,'[1]F23(OK)'!$B$103:$R$145,17,) -> 0 | Q124: 0 | S124: 2 | T124: 75380
B125: OBS-IV | C125: 1 | F125: 1 | G125: 43324 | H125: 0 | L125: 0 | M125: =+VLOOKUP(B125,'[1]F23(OK)'!$B$103:$R$145,17,) -> 0 | Q125: 0 | S125: 1 | T125: 43324 | Z125: =SUM(V125:Y125) -> 0
B126: OBS-V | C126: 17 | F126: 17 | G126: 711213.44 | H126: 0 | L126: 0 | M126: =+VLOOKUP(B126,'[1]F23(OK)'!$B$103:$R$145,17,) -> 0 | Q126: 0 | S126: 17 | T126: 711213.44 | Z126: =SUM(V126:Y126) -> 0
B127: OPS-IV | C127: 105 | F127: 105 | G127: 3293947.32 | H127: 24 | L127: 24 | M127: =+VLOOKUP(B127,'[1]F23(OK)'!$B$103:$R$145,17,) -> 702687.12 | Q127: 0 | S127: 129 | T127: 3996634.44
B128: OPS-V | C128: 27 | F128: 27 | G128: 954112.8 | H128: 0 | L128: 0 | M128: =+VLOOKUP(B128,'[1]F23(OK)'!$B$103:$R$145,17,) -> 0 | Q128: 0 | S128: 27 | T128: 954112.8
B129: OPS-VI | C129: 10 | F129: 10 | G129: 311160.64 | H129: 0 | L129: 0 | M129: =+VLOOKUP(B129,'[1]F23(OK)'!$B$103:$R$145,17,) -> 0 | Q129: 0 | S129: 10 | T129: 311160.64 | Z129: =SUM(V129:Y129) -> 0
B130: OPS-VII | C130: 4 | F130: 4 | G130: 161824 | H130: 0 | L130: 0 | M130: =+VLOOKUP(B130,'[1]F23(OK)'!$B$103:$R$145,17,) -> 0 | Q130: 0 | S130: 4 | T130: 161824
B131: OPS-VIII | C131: 68 | F131: 68 | G131: 2596729.76 | H131: 6 | L131: 6 | M131: =+VLOOKUP(B131,'[1]F23(OK)'!$B$103:$R$145,17,) -> 225581.4 | Q131: 0 | S131: 74 | T131: 2822311.16
B132: PS-IV | C132: 7 | F132: 7 | G132: 225222.92 | H132: 4 | L132: 4 | M132: =+VLOOKUP(B132,'[1]F23(OK)'!$B$103:$R$145,17,) -> 114874.8 | Q132: 0 | S132: 11 | T132: 340097.72
B133: PS-VI | C133: 1 | F133: 1 | G133: 35500 | H133: 0 | L133: 0 | M133: =+VLOOKUP(B133,'[1]F23(OK)'!$B$103:$R$145,17,) -> 0 | Q133: 0 | S133: 1 | T133: 35500 | Z133: =SUM(V133:Y133) -> 0
B134: PS-VIII | C134: 1 | F134: 1 | G134: 40701.4 | H134: 0 | L134: 0 | M134: =+VLOOKUP(B134,'[1]F23(OK)'!$B$103:$R$145,17,) -> 0 | Q134: 0 | S134: 1 | T134: 40701.4 | Z134: =SUM(V134:Y134) -> 0
B135: TM-1 | C135: 9 | F135: 9 | G135: 309533.08 | H135: 1 | L135: 1 | M135: =+VLOOKUP(B135,'[1]F23(OK)'!$B$103:$R$145,17,) -> 33076.8 | Q135: 0 | S135: 10 | T135: 342609.88 | Z135: =SUM(V135:Y135) -> 0
B136: TM-2 | C136: 3 | F136: 3 | G136: 113988 | H136: 0 | L136: 0 | M136: =+VLOOKUP(B136,'[1]F23(OK)'!$B$103:$R$145,17,) -> 0 | Q136: 0 | S136: 3 | T136: 113988 | Z136: =SUM(V136:Y136) -> 0
B137: TM-3 | C137: 2 | F137: 2 | G137: 73188.8 | H137: 0 | L137: 0 | M137: =+VLOOKUP(B137,'[1]F23(OK)'!$B$103:$R$145,17,) -> 0 | Q137: 0 | S137: 2 | T137: 73188.8 | Z137: =SUM(V137:Y137) -> 0
B138: TM-4 | C138: 1 | F138: 1 | G138: 41840 | H138: 1 | L138: 1 | M138: =+VLOOKUP(B138,'[1]F23(OK)'!$B$103:$R$145,17,) -> 39557.4 | Q138: 0 | S138: 2 | T138: 81397.4
B139: TM-5 | C139: 7 | F139: 7 | G139: 282894.8 | H139: 1 | L139: 1 | M139: =+VLOOKUP(B139,'[1]F23(OK)'!$B$103:$R$145,17,) -> 40901.4 | Q139: 0 | S139: 8 | T139: 323796.2
B140: CARRERA PUBLICA MAGISTERIAL | C140: =SUM(C141:C141) -> 2 | D140: =SUM(D141:D141) -> 0 | E140: =SUM(E141:E141) -> 0 | F140: 2 | G140: =SUM(G141:G141) -> 36731 | H140: =SUM(H141:H145) -> 2884 | I140: 0 | J140: 0 | K140: 0 | L140: 2884 | M140: 42492015.92 | N140: 0 | O140: 0 | P140: 0 | Q140: 0 | R140: =SUM(R141:R145) -> 0 | S140: 2886 | T140: =SUM(T141:T145) -> 42528746.92 | V140: =SUM(V141:V141) -> 0 | W140: =SUM(W141:W141) -> 0 | X140: =SUM(X141:X141) -> 0 | Y140: =SUM(Y141:Y141) -> 0 | Z140: =SUM(Z141:Z141) -> 0
B141: G-24 | C141: 2 | F141: 2 | G141: 36731 | H141: 789 | L141: =SUM(H141:K141) -> 789 | M141: 10843364.36 | Q141: 0 | S141: 791 | T141: =G141+M141 -> 10880095.36 | Z141: =SUM(V141:Y141) -> 0
B142: G-30 | C142: 0 | F142: 0 | G142: 0 | H142: 1983 | L142: 1983 | M142: 29581976.04 | Q142: 0 | S142: 1983 | T142: =G142+M142 -> 29581976.04 | Z142: =SUM(V142:Y142) -> 0
B143: G-40 | C143: 0 | F143: 0 | G143: 0 | H143: 106 | L143: 106 | M143: 1964807.52 | Q143: 0 | S143: 106 | T143: =G143+M143 -> 1964807.52 | Z143: =SUM(V143:Y143) -> 0
B144: I-26 | C144: 0 | F144: 0 | G144: 0 | H144: 3 | L144: 3 | M144: 46704 | Q144: 0 | S144: 3 | T144: =G144+M144 -> 46704 | Z144: =SUM(V144:Y144) -> 0
B145: II-26 | C145: 0 | F145: 0 | G145: 0 | H145: 3 | L145: 3 | M145: 55164 | Q145: 0 | S145: 3 | T145: =G145+M145 -> 55164 | Z145: =SUM(V145:Y145) -> 0
B146: LEY DE LA REFORMA MAGISTERIAL | C146: =SUM(C147:C189) -> 12853 | D146: =SUM(D147:D189) -> 0 | E146: =SUM(E147:E189) -> 0 | F146: 12853 | G146: =SUM(G147:G189) -> 268722036 | H146: =SUM(H147:H189) -> 2648 | I146: =SUM(I147:I189) -> 0 | J146: =SUM(J147:J189) -> 0 | K146: =SUM(K147:K189) -> 0 | L146: 2648 | M146: =SUM(M147:M189) -> 40701346.28 | N146: =SUM(N147:N189) -> 0 | O146: =SUM(O147:O189) -> 0 | P146: =SUM(P147:P189) -> 0 | Q146: 0 | R146: =SUM(R147:R189) -> 0 | S146: 15501 | T146: =SUM(T147:T189) -> 309423382.3 | V146: =SUM(V147:V189) -> 0 | W146: =SUM(W147:W189) -> 0 | X146: =SUM(X147:X189) -> 0 | Y146: =SUM(Y147:Y189) -> 0 | Z146: =SUM(Z147:Z189) -> 0
B147: A-24 | C147: =+VLOOKUP(B147,'[1]F23(OK)'!$B$181:$P$223,14,) -> 13 | F147: 13 | G147: 145151.72 | H147: 1 | L147: 1 | M147: 12512.52 | Q147: 0 | S147: 14 | T147: =G147+M147 -> 157664.24 | Z147: =SUM(V147:Y147) -> 0
B148: A-30 | C148: =+VLOOKUP(B148,'[1]F23(OK)'!$B$181:$P$223,14,) -> 12 | F148: 12 | G148: 136922 | H148: 5 | L148: 5 | M148: 76778.52 | Q148: 0 | S148: 17 | T148: 213700.52 | Z148: =SUM(V148:Y148) -> 0
B149: A-40 | C149: =+VLOOKUP(B149,'[1]F23(OK)'!$B$181:$P$223,14,) -> 2 | F149: 2 | G149: 23455 | H149: 2 | L149: 2 | M149: 29520.84 | Q149: 0 | S149: 4 | T149: 52975.84
B150: B-24 | C150: =+VLOOKUP(B150,'[1]F23(OK)'!$B$181:$P$223,14,) -> 14 | F150: 14 | G150: 150322.88 | H150: 3 | L150: 3 | M150: 38887.68 | Q150: 0 | S150: 17 | T150: 189210.56 | Z150: =SUM(V150:Y150) -> 0
B151: B-30 | C151: =+VLOOKUP(B151,'[1]F23(OK)'!$B$181:$P$223,14,) -> 5 | F151: 5 | G151: 52549.88 | H151: 3 | L151: 3 | M151: 37861.32 | Q151: 0 | S151: 8 | T151: 90411.2 | Z151: 0
B152: B-40 | C152: =+VLOOKUP(B152,'[1]F23(OK)'!$B$181:$P$223,14,) -> 2 | F152: 2 | G152: 25624.04 | H152: 0 | L152: 0 | M152: 0 | Q152: 0 | S152: 2 | T152: 25624.04 | Z152: 0
B153: C-24 | C153: =+VLOOKUP(B153,'[1]F23(OK)'!$B$181:$P$223,14,) -> 11 | F153: 11 | G153: 113846.6 | H153: 3 | L153: 3 | M153: 42151.2 | Q153: 0 | S153: 14 | T153: 155997.8 | Z153: 0
B154: C-30 | C154: =+VLOOKUP(B154,'[1]F23(OK)'!$B$181:$P$223,14,) -> 28 | F154: 28 | G154: 312947.64 | H154: 8 | L154: 8 | M154: 109634.04 | Q154: 0 | S154: 36 | T154: 422581.68 | Z154: 0
B155: C-40 | C155: =+VLOOKUP(B155,'[1]F23(OK)'!$B$181:$P$223,14,) -> 6 | F155: 6 | G155: 86800.92 | H155: 0 | L155: 0 | M155: 0 | Q155: 0 | S155: 6 | T155: 86800.92 | Z155: 0
B156: D-24 | C156: =+VLOOKUP(B156,'[1]F23(OK)'!$B$181:$P$223,14,) -> 6 | F156: 6 | G156: 59010.88 | H156: 4 | L156: 4 | M156: 52271.88 | Q156: 0 | S156: 10 | T156: 111282.76 | Z156: 0
B157: D-30 | C157: =+VLOOKUP(B157,'[1]F23(OK)'!$B$181:$P$223,14,) -> 6 | F157: 6 | G157: 58523.04 | H157: 0 | L157: 0 | M157: 0 | Q157: 0 | S157: 6 | T157: 58523.04 | Z157: 0
B158: D-40 | C158: =+VLOOKUP(B158,'[1]F23(OK)'!$B$181:$P$223,14,) -> 1 | F158: 1 | G158: 13158.88 | H158: 0 | L158: 0 | M158: 0 | Q158: 0 | S158: 1 | T158: 13158.88 | Z158: 0
B159: E-24 | C159: =+VLOOKUP(B159,'[1]F23(OK)'!$B$181:$P$223,14,) -> 47 | F159: 47 | G159: 420633.12 | H159: 16 | L159: 16 | M159: 220965.24 | Q159: 0 | S159: 63 | T159: 641598.36 | Z159: 0
B160: E-30 | C160: =+VLOOKUP(B160,'[1]F23(OK)'!$B$181:$P$223,14,) -> 574 | F160: 574 | G160: 4612205.84 | H160: 142 | L160: 142 | M160: 1764356.4 | Q160: 0 | S160: 716 | T160: 6376562.24 | Z160: 0
B161: E-40 | C161: =+VLOOKUP(B161,'[1]F23(OK)'!$B$181:$P$223,14,) -> 6 | F161: =SUM(C161:E161) -> 6 | G161: 71589 | H161: 0 | L161: 0 | M161: 0 | Q161: =SUM(N161:P161) -> 0 | S161: =+F161+L161+Q161 -> 6 | T161: 71589 | Z161: 0
B162: G-24 | C162: =+VLOOKUP(B162,'[1]F23(OK)'!$B$181:$P$223,14,) -> 0 | F162: 0 | G162: 0 | H162: 725 | L162: 725 | M162: 8846488.28 | S162: 725 | T162: 8846488.28
B163: G-30 | C163: =+VLOOKUP(B163,'[1]F23(OK)'!$B$181:$P$223,14,) -> 0 | F163: 0 | G163: 0 | H163: 1039 | L163: 1039 | M163: 14190565.36 | S163: 1039 | T163: 14190565.36
B164: G-40 | C164: =+VLOOKUP(B164,'[1]F23(OK)'!$B$181:$P$223,14,) -> 0 | F164: 0 | G164: 0 | H164: 1 | L164: 1 | M164: 17135.92 | S164: 1 | T164: 17135.92
B165: I-24 | C165: =+VLOOKUP(B165,'[1]F23(OK)'!$B$181:$P$223,14,) -> 57 | F165: 57 | G165: 765556.88 | H165: 74 | L165: 74 | M165: 1192975.8 | Q165: =SUM(N165:P165) -> 0 | S165: 131 | T165: 1958532.68 | Z165: =SUM(V165:Y165) -> 0
B166: I-26 | C166: =+VLOOKUP(B166,'[1]F23(OK)'!$B$181:$P$223,14,) -> 987 | F166: 987 | G166: 14845457.52 | H166: 21 | L166: 21 | M166: 355190.16 | Q166: 0 | S166: 1008 | T166: 15200647.68 | Z166: =SUM(V166:Y166) -> 0
B167: I-30 | C167: =+VLOOKUP(B167,'[1]F23(OK)'!$B$181:$P$223,14,) -> 1523 | F167: 1523 | G167: 28648956.48 | H167: 112 | L167: 112 | M167: 2324136.96 | Q167: 0 | S167: 1635 | T167: 30973093.44
B168: I-40 | C168: =+VLOOKUP(B168,'[1]F23(OK)'!$B$181:$P$223,14,) -> 307 | F168: 307 | G168: 9032876.64 | H168: 50 | L168: 50 | M168: 1388900.4 | Q168: 0 | S168: 357 | T168: 10421777.04 | Z168: =SUM(V168:Y168) -> 0
B169: II-24 | C169: =+VLOOKUP(B169,'[1]F23(OK)'!$B$181:$P$223,14,) -> 95 | F169: 95 | G169: 1554882.92 | H169: 66 | L169: 66 | M169: 1120889.28 | Q169: 0 | S169: 161 | T169: 2675772.2
B170: II-26 | C170: =+VLOOKUP(B170,'[1]F23(OK)'!$B$181:$P$223,14,) -> 1405 | F170: 1405 | G170: 22328752.4 | H170: 20 | L170: 20 | M170: 381441.6 | Q170: 0 | S170: 1425 | T170: 22710194
B171: II-30 | C171: =+VLOOKUP(B171,'[1]F23(OK)'!$B$181:$P$223,14,) -> 2474 | F171: 2474 | G171: 47021048.08 | H171: 158 | L171: 158 | M171: 3362049 | Q171: 0 | S171: 2632 | T171: 50383097.08
B172: II-40 | C172: =+VLOOKUP(B172,'[1]F23(OK)'!$B$181:$P$223,14,) -> 565 | F172: 565 | G172: 15563405.32 | H172: 51 | L172: 51 | M172: 1516884 | Q172: 0 | S172: 616 | T172: 17080289.32
B173: III-24 | C173: =+VLOOKUP(B173,'[1]F23(OK)'!$B$181:$P$223,14,) -> 35 | F173: 35 | G173: 456214.88 | H173: 33 | L173: 33 | M173: 618601.68 | Q173: 0 | S173: 68 | T173: 1074816.56 | Z173: =SUM(V173:Y173) -> 0
B174: III-26 | C174: =+VLOOKUP(B174,'[1]F23(OK)'!$B$181:$P$223,14,) -> 708 | F174: 708 | G174: 13373015.36 | H174: 8 | L174: 8 | M174: 165789.48 | Q174: 0 | S174: 716 | T174: 13538804.84
B175: III-30 | C175: =+VLOOKUP(B175,'[1]F23(OK)'!$B$181:$P$223,14,) -> 1449 | F175: 1449 | G175: 32006593.36 | H175: 22 | L175: 22 | M175: 517604.88 | Q175: 0 | S175: 1471 | T175: 32524198.24
B176: III-40 | C176: =+VLOOKUP(B176,'[1]F23(OK)'!$B$181:$P$223,14,) -> 346 | F176: 346 | G176: 11036526.92 | H176: 28 | L176: 28 | M176: 877189.8 | Q176: 0 | S176: 374 | T176: 11913716.72 | Z176: =SUM(V176:Y176) -> 0
B177: IV-24 | C177: =+VLOOKUP(B177,'[1]F23(OK)'!$B$181:$P$223,14,) -> 36 | F177: 36 | G177: 813331.64 | H177: 5 | L177: 5 | M177: 94725.72 | Q177: 0 | S177: 41 | T177: 908057.36 | Z177: =SUM(V177:Y177) -> 0
B178: IV-26 | C178: =+VLOOKUP(B178,'[1]F23(OK)'!$B$181:$P$223,14,) -> 383 | F178: 383 | G178: 8191597.56 | H178: 1 | L178: 1 | M178: 22639.32 | Q178: 0 | S178: 384 | T178: 8214236.88
B179: IV-30 | C179: =+VLOOKUP(B179,'[1]F23(OK)'!$B$181:$P$223,14,) -> 560 | F179: 560 | G179: 14338031.56 | H179: 23 | L179: 23 | M179: 656985.48 | Q179: 0 | S179: 583 | T179: 14995017.04 | Z179: =SUM(V179:Y179) -> 0
B180: IV-40 | C180: =+VLOOKUP(B180,'[1]F23(OK)'!$B$181:$P$223,14,) -> 383 | F180: 383 | G180: 15402704.24 | H180: 6 | L180: 6 | M180: 168562.32 | Q180: 0 | S180: 389 | T180: 15571266.56
B181: P/H | C181: =+VLOOKUP(B181,'[1]F23(OK)'!$B$181:$P$223,14,) -> 0 | F181: 0 | G181: 0 | H181: 4 | L181: 4 | M181: 45975.52 | S181: 4 | T181: 45975.52
B182: V-24 | C182: =+VLOOKUP(B182,'[1]F23(OK)'!$B$181:$P$223,14,) -> 18 | F182: 18 | G182: 487249.76 | H182: 2 | L182: 2 | M182: 50751.84 | Q182: =SUM(N182:P182) -> 0 | S182: 20 | T182: 538001.6
B183: V-26 | C183: =+VLOOKUP(B183,'[1]F23(OK)'!$B$181:$P$223,14,) -> 175 | F183: 175 | G183: 4573178.8 | H183: 3 | L183: 3 | M183: 82471.92 | Q183: 0 | S183: 178 | T183: 4655650.72 | Z183: =SUM(V183:Y183) -> 0
B184: V-30 | C184: =+VLOOKUP(B184,'[1]F23(OK)'!$B$181:$P$223,14,) -> 269 | F184: 269 | G184: 8253502.24 | H184: 5 | L184: 5 | M184: 161479.8 | Q184: 0 | S184: 274 | T184: 8414982.04 | Z184: =SUM(V184:Y184) -> 0
B185: V-40 | C185: =+VLOOKUP(B185,'[1]F23(OK)'!$B$181:$P$223,14,) -> 148 | F185: 148 | G185: 6958625.44 | H185: 3 | L185: 3 | M185: 128673.72 | Q185: 0 | S185: 151 | T185: 7087299.16
B186: VI-24 | C186: =+VLOOKUP(B186,'[1]F23(OK)'!$B$181:$P$223,14,) -> 4 | F186: 4 | G186: 70506.64 | H186: 0 | L186: 0 | M186: 0 | Q186: 0 | S186: 4 | T186: 70506.64
B187: VI-26 | C187: =+VLOOKUP(B187,'[1]F23(OK)'!$B$181:$P$223,14,) -> 61 | F187: 61 | G187: 1709497.12 | H187: 0 | L187: 0 | M187: 0 | Q187: 0 | S187: 61 | T187: 1709497.12 | Z187: =SUM(V187:Y187) -> 0
B188: VI-30 | C188: =+VLOOKUP(B188,'[1]F23(OK)'!$B$181:$P$223,14,) -> 92 | F188: 92 | G188: 3029059.2 | H188: 1 | L188: 1 | M188: 28298.4 | Q188: 0 | S188: 93 | T188: 3057357.6 | Z188: =SUM(V188:Y188) -> 0
B189: VI-40 | C189: =+VLOOKUP(B189,'[1]F23(OK)'!$B$181:$P$223,14,) -> 40 | F189: 40 | G189: 1978723.6 | H189: 0 | L189: 0 | M189: 0 | Q189: 0 | S189: 40 | T189: 1978723.6 | Z189: =SUM(V189:Y189) -> 0
B190: 728 - REGIMEN PRIVADO | C190: =SUM(C191,C195,C200,C205,C208) -> 0 | D190: 0 | E190: 0 | F190: 0 | G190: 0 | H190: 0 | I190: 182 | J190: 0 | K190: 0 | L190: 182 | M190: 8061855.62 | N190: 0 | O190: 0 | P190: 0 | Q190: 0 | R190: 0 | S190: 182 | T190: 8061855.62 | V190: =SUM(V191,V195,V200,V205,V208) -> 0 | W190: 0 | X190: 0 | Y190: 0 | Z190: 0 | AA190: 0
B191: FUNCIONARIOS Y DIRECTIVOS | C191: =SUM(C192:C194) -> 0 | D191: 0 | E191: 0 | F191: 0 | G191: 0 | H191: 0 | I191: 13 | J191: 0 | K191: 0 | L191: 13 | M191: 1234026.22 | N191: 0 | O191: 0 | P191: 0 | Q191: 0 | R191: 0 | S191: 13 | T191: 1234026.22 | V191: =SUM(V192:V194) -> 0 | W191: 0 | X191: 0 | Y191: 0 | Z191: 0 | AA191: 0
B192: D-2 | F192: =SUM(C192:E192) -> 0 | I192: 11 | L192: =SUM(H192:K192) -> 11 | M192: 1009298.22 | Q192: =SUM(N192:P192) -> 0 | S192: =+F192+L192+Q192 -> 11 | T192: =G192+M192 -> 1009298.22 | Z192: =SUM(V192:Y192) -> 0
B193: D-3 | F193: =SUM(C193:E193) -> 0 | I193: 1 | L193: =SUM(H193:K193) -> 1 | M193: 106050 | Q193: =SUM(N193:P193) -> 0 | S193: =+F193+L193+Q193 -> 1 | T193: =G193+M193 -> 106050 | Z193: =SUM(V193:Y193) -> 0
B194: D-4 | F194: =SUM(C194:E194) -> 0 | I194: 1 | L194: =SUM(H194:K194) -> 1 | M194: 118678 | Q194: =SUM(N194:P194) -> 0 | S194: =+F194+L194+Q194 -> 1 | T194: =G194+M194 -> 118678 | Z194: =SUM(V194:Y194) -> 0
B195: PROFESIONALES | C195: =SUM(C196:C199) -> 0 | D195: 0 | E195: 0 | F195: 0 | G195: 0 | H195: 0 | I195: 40 | J195: 0 | K195: 0 | L195: 40 | M195: 2471127.4 | N195: 0 | O195: 0 | P195: 0 | Q195: 0 | R195: 0 | S195: 40 | T195: 2471127.4 | V195: =SUM(V196:V199) -> 0 | W195: 0 | X195: 0 | Y195: 0 | Z195: 0 | AA195: 0
B196: P-3 | F196: =SUM(C196:E196) -> 0 | I196: 9 | L196: =SUM(H196:K196) -> 9 | M196: 439552.12 | Q196: =SUM(N196:P196) -> 0 | S196: =+F196+L196+Q196 -> 9 | T196: =G196+M196 -> 439552.12 | Z196: =SUM(V196:Y196) -> 0
B197: P-4 | F197: =SUM(C197:E197) -> 0 | I197: 7 | L197: =SUM(H197:K197) -> 7 | M197: 404995.36 | Q197: =SUM(N197:P197) -> 0 | S197: =+F197+L197+Q197 -> 7 | T197: =G197+M197 -> 404995.36 | Z197: =SUM(V197:Y197) -> 0
B198: P-5 | F198: =SUM(C198:E198) -> 0 | I198: 5 | L198: =SUM(H198:K198) -> 5 | M198: 298382 | Q198: =SUM(N198:P198) -> 0 | S198: =+F198+L198+Q198 -> 5 | T198: =G198+M198 -> 298382 | Z198: =SUM(V198:Y198) -> 0
B199: P-6 | F199: =SUM(C199:E199) -> 0 | I199: 19 | L199: =SUM(H199:K199) -> 19 | M199: 1328197.92 | Q199: =SUM(N199:P199) -> 0 | S199: =+F199+L199+Q199 -> 19 | T199: =G199+M199 -> 1328197.92 | Z199: =SUM(V199:Y199) -> 0
B200: TECNICOS | C200: =SUM(C201:C204) -> 0 | D200: 0 | E200: 0 | F200: 0 | G200: 0 | H200: 0 | I200: 122 | J200: 0 | K200: 0 | L200: 122 | M200: 4179703.5 | N200: 0 | O200: 0 | P200: 0 | Q200: 0 | R200: 0 | S200: 122 | T200: 4179703.5 | V200: =SUM(V201:V204) -> 0 | W200: 0 | X200: 0 | Y200: 0 | Z200: 0 | AA200: 0
B201: T-3 | F201: =SUM(C201:E201) -> 0 | I201: 15 | K201: 0 | L201: =SUM(H201:K201) -> 15 | M201: 401692.9 | Q201: =SUM(N201:P201) -> 0 | S201: =+F201+L201+Q201 -> 15 | T201: =G201+M201 -> 401692.9 | Z201: =SUM(V201:Y201) -> 0
B202: T-4 | F202: =SUM(C202:E202) -> 0 | I202: 15 | L202: =SUM(H202:K202) -> 15 | M202: 443429.98 | Q202: =SUM(N202:P202) -> 0 | S202: =+F202+L202+Q202 -> 15 | T202: =G202+M202 -> 443429.98 | Z202: =SUM(V202:Y202) -> 0
B203: T-5 | F203: =SUM(C203:E203) -> 0 | I203: 34 | L203: =SUM(H203:K203) -> 34 | M203: 1204434.98 | Q203: =SUM(N203:P203) -> 0 | S203: =+F203+L203+Q203 -> 34 | T203: =G203+M203 -> 1204434.98 | Z203: =SUM(V203:Y203) -> 0
B204: T-6 | F204: =SUM(C204:E204) -> 0 | I204: 58 | L204: =SUM(H204:K204) -> 58 | M204: 2130145.64 | Q204: =SUM(N204:P204) -> 0 | S204: =+F204+L204+Q204 -> 58 | T204: =G204+M204 -> 2130145.64 | Z204: =SUM(V204:Y204) -> 0
... 31 more rows

Sheet F.10
B1: FORMATO N° 10
B2: INFORMACIÓN DE REMUNERACIONES Y NÚMERO DE PLAZAS- PRESUPUESTO 2018, 2019 Y PROYECTO 2020
B3: PROYECTO DE PRESUPUESTO 2020
B5: SECTOR : 99 GOBIERNOS REGIONALES
B6: PLIEGO : 451 GOBIERNO REGIONAL LA LIBERTAD
B7: FUENTE DE FINANCIAMIENTO
B9: CATEGORIA | C9: 2018 (PIA) | E9: 2019 PIA | G9: 2020 (PROYECTO) | I9: VARIACION 2019-2020
B10: REMUNERATIVA | C10: PEA / Beneficiarios | D10: COSTO ANUAL | E10: PEA / Beneficiarios | F10: COSTO ANUAL | G10: PEA / Beneficiarios | H10: COSTO ANUAL | I10: PEA / Beneficiarios | J10: COSTO ANUAL
B12: COSTO TOTAL EN PLANILLAS (*) | C12: 31553 | D12: 704740331 | E12: 33393 | F12: =1091014908-F17-F18-F20-F22-F26-F27 -> 943285675 | G12: 33501 | H12: =943285675+97944082+9791653 -> 1051021410 | I12: =+G12-E12 -> 108 | J12: =+H12-F12 -> 107735735
B13: AETA | I13: 0 | J13: 0
B14: BONIFICACIÓN EXTRAORDINARIA (INACEPTACIÓN DE GRATIFICACIONES) | I14: 0 | J14: 0
B15: BONOS POR FUNCION JURIDICCIONAL Y FISCAL | I15: 0 | J15: 0
B16: DIETA DE DIRECTORIO | I16: 0 | J16: 0
B17: DIETAS | C17: 15 | D17: 617760 | E17: 15 | F17: 771700 | G17: 15 | H17: 771700 | I17: 0 | J17: 0
B18: ESCOLARIDAD, AGUINALDO Y GRATIFICACIONES | C18: 30517 | D18: 28928098 | E18: 33393 | F18: =12818033+19474340 -> 32292373 | G18: 33501 | H18: =+F18 -> 32292373 | I18: 108 | J18: 0
B19: GASTOS POR ESTACIONAMIENTO DE VEHICULOS | I19: 0 | J19: 0
B20: GASTOS VARIABLES Y OCASIONALES | D20: =4243410+12731637 -> 16975047 | F20: 19682593 | G20: 41150 | H20: 19683598 | I20: 41150 | J20: 1005
B21: MOVILIDAD PARA TRASLADO DE TRABAJADORES | I21: 0 | J21: 0
B22: OBLIGACIONES DEL EMPLEADOR (CARGAS SOCIALES) | C22: 30517 | D22: 38103046 | E22: 33393 | F22: =52435947-618160 -> 51817787 | G22: 33501 | H22: 51920126 | I22: 108 | J22: 102339
B23: PRODUCTIVIDAD | I23: 0 | J23: 0
B24: RETRIBUCIONES EN BIENES | I24: 0 | J24: 0
B25: SEGUROS (ESPECIFICAR) | I25: 0 | J25: 0
B26: TRANSFERENCIAS CAFAE | C26: 3101 | D26: 36608939 | E26: 3104 | F26: 39853658 | G26: 3181 | H26: 39853658 | I26: 77 | J26: 0
B27: VESTUARIO | C27: 3615 | D27: 2828326 | E27: 3104 | F27: 3311122 | G27: 3181 | H27: 3311122 | I27: 77 | J27: 0
B28: OTROS RETRIBUCIONES Y COMPLEMENTOS (**) | I28: 0 | J28: 0
B30: TOTAL (*) | C30: =+C12 -> 31553 | D30: =SUM(D11:D29) -> 828801547 | E30: =+E12 -> 33393 | F30: =SUM(F11:F29) -> 1091014908 | G30: =+G12 -> 33501 | H30: =SUM(H11:H29) -> 1198853987 | I30: =SUM(I11:I29) -> 41628 | J30: =SUM(J11:J29) -> 107839079
B31: (*) DEBE COINCIDIR CON LOS MONTOS ASIGNADOS EN LA GENERICA 1. PERSONAL Y OBLIGACIONES SOCIALES CONSIDERADAS EN EL PRESUPUESTO.
B32: (**) PNUD, BONOS, etc.
B35: PROYECTO DE PRESUPUESTO PARA EL AÑO FISCAL 2020
B36: INFORMACION PARA LA COMISION DE PRESUPUESTO Y CUENTA GENERAL DE LA REPUBLICA DEL CONGRESO DE LA REPUBLICA

Sheet F.11
B2: FORMATO N° 11
B3: INGRESOS MENSUALES POR PERIODO DEL PERSONAL ACTIVO - COMPARATIVO 2018, 2019 y PROYECTO 2020)
B4: PROYECTO DE PRESUPUESTO - 2020
B5: SECTOR : 99 GOBIERNOS REGIONALES | E5: =+C5-D5 -> 0
B6: PLIEGO : 451 GOBIERNO REGIONAL LA LIBERTAD
B7: UNIDAD EJECUTORA: Cada una de las Unidades Ejecutoras
B8: FUENTE DE FINANCIAMIENTO | D8: : Recursos Públicos / Recursos Ordinarios / Recursos Directamente Recaudados / Donaciones y Transferencias / Operaciones Oficiales de Crédito/ Recursos Determinados
B10: NIVELES REMUNERATIVOS | C10: INGRESOS PERSONAL PPTO 2018 (EJECUCIÓN) | S10: INGRESOS PERSONAL PPTO 2019 | AE10: DIFERENCIA (2018 -2019) | AG10: PROYECTO 2020
C11: PEA | D11: REMUNERACION MENSUAL (cada persona) | E11: CAFAE MENSUAL (cada persona) | F11: AETA MENSUAL (cada persona) | G11: INCENTIVOS O PRODUCTIVIDAD (cada persona) | H11: MOVILIDAQD | I11: RACIONAMIENTO | J11: BONOS | K11: OTROS INGRESOS MENSUAL (cada persona) | L11: SUB TOTAL INGRESOS MENSUALES (cada persona) | M11: AGUINALDOS, GRAFICACIONES Y ESCOLARIDAD (anual cada persona) | N11: OTROS INGRESOS NO MENSUALES (anual cada persona) | O11: OTROS INGRESOS NO MENSUALES (anual cada personal) | P11: SUB TOTAL OTROS BENEFICIOS ... (no, mensuales, monto anual) | Q11: TOTAL INGRESOS ANUAL POR PERSONA | R11: TOTAL INGRESO ANUAL PEA | S11: PEA | T11: REMUNERACION MENSUAL (cada persona) | U11: CAFAE MENSUL (cada persona) | V11: AETA MENSUAL (cada persona) | W11: OTROS INGRESOS MENSUAL (cada persona) | X11: SUB TOTAL INGRESOS MENSUALES (cada persona) | Y11: AGUINALDOS, GRAFICACIONES Y ESCOLARIDAD (anual cada persona) | Z11: OTROS INGRESOS NO MENSUALES (anual cada personal) | AA11: OTROS INGRESOS NO MENSUALES (anual cada persona) | AB11: SUB TOTAL OTROS BENEFICIOS ... (no, mensuales, monto anual) | AC11: TOTAL INGRESOS ANUAL POR PERSONA | AD11: TOTAL INGRESO ANUAL PEA (Proyección al 31 /dic/ 2019) | AE11: DIFERENCIA INGRESO ANUAL POR PERSONAL | AF11: DIFERENCIA INGRESO ANUAL PEA | AG11: PEA | AH11: TOTAL INGRESO ANUAL PEA (Proyeccion al 31 de diciembre de 2020)
C12: -1 | D12: (2) | E12: (3) | F12: (4) | G12: (5) | H12: (6) | I12: (7) | J12: (8) | K12: (9) | L12: (10) | M12: (11) | N12: (12) | O12: (12) | P12: (13) | Q12: (14) | R12: (15) | S12: (1) | T12: (2) | U12: (3) | V12: (4) | W12: (9) | X12: (10) | Y12: (11) | Z12: (12) | AA12: (12) | AB12: (13) | AC12: (14) | AD12: (15)
B13: CARRERA ADMINISTRATIVA - DL 276 | C13: =+C14+C23+C30+C37 -> 3089 | D13: =+D14+D23+D30+D37 -> 43564.92978 | E13: =+E14+E23+E30+E37 -> 34669.55148 | F13: =+F14+F23+F30+F37 -> 0 | G13: 0 | H13: 0 | I13: 0 | J13: 0 | K13: 0 | L13: 78234.48126 | M13: 26000 | N13: 26000 | O13: 0 | P13: 26000 | Q13: 964813.7752 | R13: =+R14+R23+R30+R37 -> 73601408.7 | S13: =+S14+S23+S30+S37 -> 3166 | T13: 43564.92978 | U13: 47114.12 | V13: 0 | W13: 0 | X13: 90679.04978 | Y13: 26000 | Z13: 0 | AA13: 26000 | AB13: 26000 | AC13: 1114148.597 | AD13: 93186952.24 | AE13: =+AE14+AE23+AE30+AE37 -> -77 | AF13: =+AF14+AF23+AF30+AF37 -> 19585543.54 | AG13: =+AG14+AG23+AG30+AG37 -> 3166 | AH13: =+AH14+AH23+AH30+AH37 -> 93186952.24
B14: Funcionarios y Directivos | C14: =SUM(C15:C22) -> 244 | D14: =SUM(D15:D22) -> 28862.20791 | E14: =SUM(E15:E22) -> 14984.9689 | F14: 0 | G14: 0 | H14: 0 | I14: 0 | J14: 0 | K14: 0 | L14: 43847.1768 | M14: 8000 | N14: 8000 | O14: 0 | P14: 8000 | Q14: =SUM(Q15:Q22) -> 534166.1217 | R14: 9715107.88 | S14: 244 | T14: 28862.20791 | U14: 17203 | V14: 0 | W14: 0 | X14: 46065.20791 | Y14: 8000 | Z14: =SUM(Z15:Z22) -> 0 | AA14: =SUM(AA15:AA22) -> 8000 | AB14: =SUM(AB15:AB22) -> 8000 | AC14: =SUM(AC15:AC22) -> 560782.4949 | AD14: =SUM(AD15:AD22) -> 11014007.08 | AE14: =SUM(AE15:AE22) -> 0 | AF14: 1298899.2 | AG14: 244 | AH14: =SUM(AH15:AH22) -> 11014007.08
B15: Funcionario 1 | C15: 27 | D15: 997.27 | E15: 1734.814815 | K15: 0 | L15: =SUM(D15:K15) -> 2732.084815 | M15: 1000 | N15: 1000 | P15: =+N15+O15 -> 1000 | Q15: =+L15*12+P15 -> 33785.01778 | R15: =+C15*Q15 -> 912195.48 | S15: 27 | T15: 997.27 | U15: 2060 | W15: 0 | X15: =SUM(T15:W15) -> 3057.27 | Y15: 1000 | AA15: 1000 | AB15: =+Y15+Z15 -> 1000 | AC15: =+X15*12+AB15 -> 37687.24 | AD15: =+S15*AC15 -> 1017555.48 | AE15: =+C15-S15 -> 0 | AF15: =+AD15-R15 -> 105360 | AG15: 27 | AH15: =+AD15 -> 1017555.48
B16: Funcionario 2 | C16: 71 | D16: 1130.221831 | E16: 1470.197183 | K16: 0 | L16: 2600.419014 | M16: 1000 | N16: 1000 | P16: =+N16+O16 -> 1000 | Q16: =+L16*12+P16 -> 32205.02817 | R16: =+C16*Q16 -> 2286557 | S16: 71 | T16: 1130.221831 | U16: 2271.6 | W16: 0 | X16: 3401.821831 | Y16: 1000 | AA16: 1000 | AB16: 1000 | AC16: =+X16*12+AB16 -> 41821.86197 | AD16: =+S16*AC16 -> 2969352.2 | AE16: 0 | AF16: 682795.2 | AG16: 71 | AH16: =+AD16 -> 2969352.2
B17: Funcionario 3 | C17: 55 | D17: 1244.108182 | E17: 1976.054545 | K17: 0 | L17: 3220.162727 | M17: 1000 | N17: 1000 | P17: =+N17+O17 -> 1000 | Q17: =+L17*12+P17 -> 39641.95273 | R17: 2180307.4 | S17: 55 | T17: 1244.108182 | U17: 2317.4 | W17: 0 | X17: 3561.508182 | Y17: 1000 | AA17: 1000 | AB17: 1000 | AC17: 43738.09818 | AD17: 2405595.4 | AE17: 0 | AF17: 225288 | AG17: 55 | AH17: 2405595.4
B18: Funcionario 4 | C18: 31 | D18: 1386.164516 | E18: 1756.064516 | K18: 0 | L18: 3142.229032 | M18: 1000 | N18: 1000 | P18: 1000 | Q18: 38706.74839 | R18: 1199909.2 | S18: 31 | T18: 1386.164516 | U18: 2417 | W18: 0 | X18: 3803.164516 | Y18: 1000 | AA18: 1000 | AB18: 1000 | AC18: 46637.97419 | AD18: 1445777.2 | AE18: 0 | AF18: 245868 | AG18: 31 | AH18: 1445777.2
B19: Funcionario 5 | C19: 37 | D19: 1141.018378 | E19: 2437.837838 | K19: 0 | L19: 3578.856216 | M19: 1000 | N19: 1000 | P19: 1000 | Q19: 43946.27459 | R19: 1626012.16 | S19: 37 | T19: 1141.018378 | U19: 2527 | W19: 0 | X19: 3668.018378 | Y19: 1000 | AA19: 1000 | AB19: 1000 | AC19: 45016.22054 | AD19: 1665600.16 | AE19: 0 | AF19: 39588 | AG19: 37 | AH19: 1665600.16
B20: Funcionario 6 | C20: 20 | D20: 1153.865 | E20: 3420 | K20: 0 | L20: 4573.865 | M20: 1000 | N20: 1000 | P20: 1000 | Q20: 55886.38 | R20: 1117727.6 | S20: 20 | T20: 1153.865 | U20: 3420 | W20: 0 | X20: 4573.865 | Y20: 1000 | AA20: 1000 | AB20: 1000 | AC20: 55886.38 | AD20: 1117727.6 | AE20: 0 | AF20: 0 | AG20: 20 | AH20: 1117727.6
B21: Funcionario 7 | C21: 2 | D21: 6260.36 | E21: 2190 | K21: 0 | L21: 8450.36 | M21: 1000 | N21: 1000 | P21: 1000 | Q21: 102404.32 | R21: 204808.64 | S21: 2 | T21: 6260.36 | U21: 2190 | W21: 0 | X21: 8450.36 | Y21: 1000 | AA21: 1000 | AB21: 1000 | AC21: 102404.32 | AD21: 204808.64 | AE21: 0 | AF21: 0 | AG21: 2 | AH21: 204808.64
B22: Funcionario 8 | C22: 1 | D22: 15549.2 | E22: 0 | F22: 0 | G22: 0 | H22: 0 | I22: 0 | J22: 0 | K22: 0 | L22: 15549.2 | M22: 1000 | N22: 1000 | P22: 1000 | Q22: 187590.4 | R22: 187590.4 | S22: 1 | T22: 15549.2 | U22: 0 | V22: 0 | W22: 0 | X22: 15549.2 | Y22: 1000 | AA22: 1000 | AB22: 1000 | AC22: 187590.4 | AD22: 187590.4 | AE22: 0 | AF22: 0 | AG22: 1 | AH22: 187590.4
B23: Profesionales | C23: =SUM(C24:C29) -> 377 | D23: =SUM(D24:D29) -> 5358.250196 | E23: 7740.382661 | F23: 0 | G23: 0 | H23: 0 | I23: 0 | J23: 0 | K23: 0 | L23: 13098.63286 | M23: 6000 | N23: 6000 | O23: 0 | P23: 6000 | Q23: 163183.5943 | R23: 9947765.96 | S23: 377 | T23: 5358.250196 | U23: 12178.5 | V23: 0 | W23: 0 | X23: 17536.7502 | Y23: 6000 | Z23: =SUM(Z24:Z29) -> 0 | AA23: =SUM(AA24:AA29) -> 6000 | AB23: =SUM(AB24:AB29) -> 6000 | AC23: =SUM(AC24:AC29) -> 216441.0024 | AD23: =SUM(AD24:AD29) -> 13653113.48 | AE23: =SUM(AE24:AE29) -> 0 | AF23: 3705347.52 | AG23: =SUM(AG24:AG29) -> 377 | AH23: =SUM(AH24:AH29) -> 13653113.48
B24: Servidor Profesional A | C24: 42 | D24: 868.517619 | E24: 1612.528333 | K24: 0 | L24: =SUM(D24:K24) -> 2481.045952 | M24: 1000 | N24: 1000 | P24: =+N24+O24 -> 1000 | Q24: =+L24*12+P24 -> 30772.55143 | R24: =+C24*Q24 -> 1292447.16 | S24: 42 | T24: 868.517619 | U24: 2015.9 | W24: 0 | X24: =SUM(T24:W24) -> 2884.417619 | Y24: 1000 | AA24: 1000 | AB24: =+Y24+Z24 -> 1000 | AC24: =+X24*12+AB24 -> 35613.01143 | AD24: =+S24*AC24 -> 1495746.48 | AE24: =+C24-S24 -> 0 | AF24: =+AD24-R24 -> 203299.32 | AG24: =+S24 -> 42 | AH24: =+AD24 -> 1495746.48
B25: Servidor Profesional B | C25: 25 | D25: 916.5 | E25: 1397.8952 | K25: 0 | L25: 2314.3952 | M25: 1000 | N25: 1000 | P25: 1000 | Q25: 28772.7424 | R25: 719318.56 | S25: 25 | T25: 916.5 | U25: 2029.4 | W25: 0 | X25: 2945.9 | Y25: 1000 | AA25: 1000 | AB25: 1000 | AC25: 36350.8 | AD25: 908770 | AE25: 0 | AF25: 189451.44 | AG25: 25 | AH25: 908770
B26: Servidor Profesional C | C26: 42 | D26: 884.0107143 | E26: 1293.605238 | K26: 0 | L26: 2177.615952 | M26: 1000 | N26: 1000 | P26: 1000 | Q26: 27131.39143 | R26: 1139518.44 | S26: 42 | T26: 884.0107143 | U26: 2029.4 | W26: 0 | X26: 2913.410714 | Y26: 1000 | AA26: 1000 | AB26: 1000 | AC26: 35960.92857 | AD26: 1510359 | AE26: 0 | AF26: 370840.56 | AG26: 42 | AH26: 1510359
B27: Servidor Profesional D | C27: 84 | D27: 885.9794048 | E27: 1301.561786 | K27: 0 | L27: 2187.54119 | M27: 1000 | N27: 1000 | P27: 1000 | Q27: 27250.49429 | R27: 2289041.52 | S27: 84 | T27: 885.9794048 | U27: 2029.4 | W27: 0 | X27: 2915.379405 | Y27: 1000 | AA27: 1000 | AB27: 1000 | AC27: 35984.55286 | AD27: 3022702.44 | AE27: 0 | AF27: 733660.92 | AG27: 84 | AH27: 3022702.44
B28: Servidor Profesional E | C28: 160 | D28: 919.935375 | E28: 1034.284187 | K28: 0 | L28: 1954.219562 | M28: 1000 | N28: 1000 | P28: 1000 | Q28: 24450.63475 | R28: 3912101.56 | S28: 160 | T28: 919.935375 | U28: 2045 | W28: 0 | X28: 2964.935375 | Y28: 1000 | AA28: 1000 | AB28: 1000 | AC28: 36579.2245 | AD28: 5852675.92 | AE28: 0 | AF28: 1940574.36 | AG28: 160 | AH28: 5852675.92
B29: Servidor Profesional F | C29: 24 | D29: 883.3070833 | E29: 1100.507917 | K29: 0 | L29: 1983.815 | M29: 1000 | N29: 1000 | P29: 1000 | Q29: 24805.78 | R29: 595338.72 | S29: 24 | T29: 883.3070833 | U29: 2029.4 | W29: 0 | X29: 2912.707083 | Y29: 1000 | AA29: 1000 | AB29: 1000 | AC29: 35952.485 | AD29: 862859.64 | AE29: 0 | AF29: 267520.92 | AG29: 24 | AH29: 862859.64
B30: Tecnicos | C30: =SUM(C31:C36) -> 1058 | D30: =SUM(D31:D36) -> 4673.960559 | E30: 6536.409922 | F30: 0 | G30: 0 | H30: 0 | I30: 0 | J30: 0 | K30: 0 | L30: 11210.37048 | M30: 6000 | N30: 6000 | O30: 0 | P30: 6000 | Q30: 140524.4458 | R30: 24922790.24 | S30: 1058 | T30: 4673.960559 | U30: 11497.62 | V30: 0 | W30: 0 | X30: 16171.58056 | Y30: 6000 | Z30: 0 | AA30: 6000 | AB30: 6000 | AC30: 200058.9667 | AD30: 35309006.12 | AE30: 0 | AF30: 10386215.88 | AG30: =SUM(AG31:AG36) -> 1058 | AH30: =SUM(AH31:AH36) -> 35309006.12
B31: Servidor Tecnico A | C31: 314 | D31: 801.4185987 | E31: 1073.239299 | K31: 0 | L31: =SUM(D31:K31) -> 1874.657898 | M31: 1000 | N31: 1000 | P31: =+N31+O31 -> 1000 | Q31: =+L31*12+P31 -> 23495.89478 | R31: =+C31*Q31 -> 7377710.96 | S31: 314 | T31: 801.4185987 | U31: 1916.27 | W31: 0 | X31: =SUM(T31:W31) -> 2717.688599 | Y31: 1000 | AA31: 1000 | AB31: =+Y31+Z31 -> 1000 | AC31: =+X31*12+AB31 -> 33612.26318 | AD31: =+S31*AC31 -> 10554250.64 | AE31: =+C31-S31 -> 0 | AF31: =+AD31-R31 -> 3176539.68 | AG31: =+S31 -> 314 | AH31: =+AD31 -> 10554250.64
B32: Servidor Tecnico B | C32: 127 | D32: 787.1211024 | E32: 1221.259843 | K32: 0 | L32: 2008.380945 | M32: 1000 | N32: 1000 | P32: 1000 | Q32: 25100.57134 | R32: 3187772.56 | S32: 127 | T32: 787.1211024 | U32: 1916.27 | W32: 0 | X32: 2703.391102 | Y32: 1000 | AA32: 1000 | AB32: 1000 | AC32: 33440.69323 | AD32: 4246968.04 | AE32: 0 | AF32: 1059195.48 | AG32: 127 | AH32: 4246968.04
B33: Servidor Tecnico C | C33: 146 | D33: 770.0643151 | E33: 1140.410959 | K33: 0 | L33: 1910.475274 | M33: 1000 | N33: 1000 | P33: 1000 | Q33: 23925.70329 | R33: 3493152.68 | S33: 146 | T33: 770.0643151 | U33: 1916.27 | W33: 0 | X33: 2686.334315 | Y33: 1000 | AA33: 1000 | AB33: 1000 | AC33: 33236.01178 | AD33: 4852457.72 | AE33: 0 | AF33: 1359305.04 | AG33: 146 | AH33: 4852457.72
B34: Servidor Tecnico D | C34: 237 | D34: 761.6720253 | E34: 1198.945148 | K34: 0 | L34: 1960.617173 | M34: 1000 | N34: 1000 | P34: 1000 | Q34: 24527.40608 | R34: 5812995.24 | S34: 237 | T34: 761.6720253 | U34: 1916.27 | W34: 0 | X34: 2677.942025 | Y34: 1000 | AA34: 1000 | AB34: 1000 | AC34: 33135.3043 | AD34: 7853067.12 | AE34: 0 | AF34: 2040071.88 | AG34: 237 | AH34: 7853067.12
B35: Servidor Tecnico E | C35: 142 | D35: 786.8478873 | E35: 882.27 | K35: 0 | L35: 1669.117887 | M35: 1000 | N35: 1000 | P35: 1000 | Q35: 21029.41465 | R35: 2986176.88 | S35: 142 | T35: 786.8478873 | U35: 1916.27 | W35: 0 | X35: 2703.117887 | Y35: 1000 | AA35: 1000 | AB35: 1000 | AC35: 33437.41465 | AD35: 4748112.88 | AE35: 0 | AF35: 1761936 | AG35: 142 | AH35: 4748112.88
B36: Servidor Tecnico F | C36: 92 | D36: 766.8366304 | E36: 1020.284674 | K36: 0 | L36: 1787.121304 | M36: 1000 | N36: 1000 | P36: 1000 | Q36: 22445.45565 | R36: 2064981.92 | S36: 92 | T36: 766.8366304 | U36: 1916.27 | W36: 0 | X36: 2683.10663 | Y36: 1000 | AA36: 1000 | AB36: 1000 | AC36: 33197.27957 | AD36: 3054149.72 | AE36: 0 | AF36: 989167.8 | AG36: 92 | AH36: 3054149.72
B37: Auxiliares | C37: =SUM(C38:C43) -> 1410 | D37: =SUM(D38:D43) -> 4670.51112 | E37: 5407.79 | F37: 0 | G37: 0 | H37: 0 | I37: 0 | J37: 0 | K37: 0 | L37: 10078.30112 | M37: 6000 | N37: 6000 | O37: 0 | P37: 6000 | Q37: 126939.6134 | R37: 29015744.62 | S37: 1487 | T37: 4670.51112 | U37: 6235 | V37: 0 | W37: 0 | X37: 10905.51112 | Y37: 6000 | Z37: 0 | AA37: 6000 | AB37: 6000 | AC37: 136866.1334 | AD37: 33210825.56 | AE37: -77 | AF37: 4195080.938 | AG37: =SUM(AG38:AG43) -> 1487 | AH37: =SUM(AH38:AH43) -> 33210825.56
B38: Servidor Auxiliar A | C38: 182 | D38: 777.3322162 | E38: 908.92 | K38: 0 | L38: =SUM(D38:K38) -> 1686.252216 | M38: 1000 | N38: 1000 | P38: =+N38+O38 -> 1000 | Q38: =+L38*12+P38 -> 21235.02659 | R38: =+C38*Q38 -> 3864774.84 | S38: 185 | T38: 777.3322162 | U38: 1200 | W38: 0 | X38: =SUM(T38:W38) -> 1977.332216 | Y38: 1000 | AA38: 1000 | AB38: =+Y38+Z38 -> 1000 | AC38: =+X38*12+AB38 -> 24727.98659 | AD38: =+S38*AC38 -> 4574677.52 | AE38: =+C38-S38 -> -3 | AF38: =+AD38-R38 -> 709902.6798 | AG38: =+S38 -> 185 | AH38: =+AD38 -> 4574677.52
B39: Servidor Auxiliar B | C39: 51 | D39: 798.992549 | E39: 923.53 | K39: 0 | L39: 1722.522549 | M39: 1000 | N39: 1000 | P39: 1000 | Q39: 21670.27059 | R39: 1105183.8 | S39: 51 | T39: 798.992549 | U39: 1100 | W39: 0 | X39: 1898.992549 | Y39: 1000 | AA39: 1000 | AB39: 1000 | AC39: 23787.91059 | AD39: 1213183.44 | AE39: 0 | AF39: 107999.64 | AG39: 51 | AH39: 1213183.44
B40: Servidor Auxiliar C | C40: 130 | D40: 776.9132061 | E40: 879.01 | K40: 0 | L40: 1655.923206 | M40: 1000 | N40: 1000 | P40: 1000 | Q40: 20871.07847 | R40: 2713240.202 | S40: 131 | T40: 776.9132061 | U40: 990 | W40: 0 | X40: 1766.913206 | Y40: 1000 | AA40: 1000 | AB40: 1000 | AC40: 22202.95847 | AD40: 2908587.56 | AE40: -1 | AF40: 195347.3585 | AG40: 131 | AH40: 2908587.56
B41: Servidor Auxiliar D | C41: 157 | D41: 784.8639041 | E41: 861.07 | K41: 0 | L41: 1645.933904 | M41: 1000 | N41: 1000 | P41: 1000 | Q41: 20751.20685 | R41: 3257939.475 | S41: 146 | T41: 784.8639041 | U41: 985 | W41: 0 | X41: 1769.863904 | Y41: 1000 | AA41: 1000 | AB41: 1000 | AC41: 22238.36685 | AD41: 3246801.56 | AE41: 11 | AF41: -11137.91534 | AG41: 146 | AH41: 3246801.56
B42: Servidor Auxiliar E | C42: 880 | D42: 756.0662448 | E42: 851.26 | K42: 0 | L42: 1607.326245 | M42: 1000 | N42: 1000 | P42: 1000 | Q42: 20287.91494 | R42: 17853365.15 | S42: 964 | T42: 756.0662448 | U42: 980 | W42: 0 | X42: 1736.066245 | Y42: 1000 | AA42: 1000 | AB42: 1000 | AC42: 21832.79494 | AD42: 21046814.32 | AE42: -84 | AF42: 3193449.175 | AG42: 964 | AH42: 21046814.32
B43: Servidor Auxiliar F | C43: 10 | D43: 776.343 | E43: 984 | K43: 0 | L43: 1760.343 | M43: 1000 | N43: 1000 | P43: 1000 | Q43: 22124.116 | R43: 221241.16 | S43: 10 | T43: 776.343 | U43: 980 | W43: 0 | X43: 1756.343 | Y43: 1000 | AA43: 1000 | AB43: 1000 | AC43: 22076.116 | AD43: 220761.16 | AE43: 0 | AF43: -480 | AG43: 10 | AH43: 220761.16
B44: ASISTENCIALES NO PROFESIONALES DE LA SALUD | C44: =+C56+C45+C49 -> 2110 | D44: =+D56+D45+D49 -> 30571.75024 | E44: 0 | F44: 0 | G44: 0 | H44: 0 | I44: 0 | J44: 0 | K44: 3517.473826 | L44: 34089.22406 | M44: 14000 | N44: 14000 | O44: 0 | P44: 14000 | Q44: 423070.6887 | R44: =+R56+R45+R49 -> 65402770.08 | S44: =+S56+S45+S49 -> 2256 | T44: 33031.41274 | U44: 0 | V44: 0 | W44: 3517.473826 | X44: 36548.88656 | Y44: 14000 | Z44: 0 | AA44: 14000 | AB44: 14000 | AC44: 452586.6387 | AD44: 74958050.22 | AE44: =+AE56+AE45+AE49 -> -146 | AF44: 9555280.139 | AG44: =+AG56+AG45+AG49 -> 2256 | AH44: =+AH56+AH45+AH49 -> 74958050.22
B45: Profesionales | C45: =SUM(C46:C48) -> 25 | D45: =SUM(D46:D48) -> 6697.8975 | E45: =SUM(E46:E48) -> 0 | F45: 0 | G45: 0 | H45: 0 | I45: 0 | J45: 0 | K45: 476.5725455 | L45: 7174.470045 | M45: 3000 | N45: 3000 | O45: 0 | P45: 3000 | Q45: 89093.64055 | R45: 782277.4 | S45: 24 | T45: 7521.85 | U45: 0 | V45: 0 | W45: 476.5725455 | X45: 7998.422545 | Y45: 3000 | Z45: =SUM(Z46:Z48) -> 0 | AA45: =SUM(AA46:AA48) -> 3000 | AB45: =SUM(AB46:AB48) -> 3000 | AC45: =SUM(AC46:AC48) -> 98981.07055 | AD45: =SUM(AD46:AD48) -> 799464.12 | AE45: 1 | AF45: 17186.72 | AG45: =SUM(AG46:AG48) -> 24 | AH45: =SUM(AH46:AH48) -> 799464.12
B46: Servidor Profesional D | C46: 10 | D46: 2480.07 | E46: 0 | F46: 0 | G46: 0 | H46: 0 | I46: 0 | J46: 0 | K46: 156.568 | L46: =SUM(D46:K46) -> 2636.638 | M46: 1000 | N46: 1000 | P46: =+N46+O46 -> 1000 | Q46: =+L46*12+P46 -> 32639.656 | R46: =+C46*Q46 -> 326396.56 | S46: 10 | T46: 2498.07 | U46: 0 | V46: 0 | W46: 156.568 | X46: =SUM(T46:W46) -> 2654.638 | Y46: 1000 | AA46: 1000 | AB46: =+Y46+Z46 -> 1000 | AC46: =+X46*12+AB46 -> 32855.656 | AD46: =+S46*AC46 -> 328556.56 | AE46: =+C46-S46 -> 0 | AF46: =+AD46-R46 -> 2160 | AG46: =+S46 -> 10 | AH46: =+AD46 -> 328556.56
B47: Servidor Profesional E | C47: 11 | D47: 2433.78 | E47: 0 | F47: 0 | G47: 0 | H47: 0 | I47: 0 | J47: 0 | K47: 221.7545455 | L47: =SUM(D47:K47) -> 2655.534545 | M47: 1000 | N47: 1000 | P47: =+N47+O47 -> 1000 | Q47: =+L47*12+P47 -> 32866.41455 | R47: =+C47*Q47 -> 361530.56 | S47: 11 | T47: 2533.78 | U47: 0 | V47: 0 | W47: 221.7545455 | X47: =SUM(T47:W47) -> 2755.534545 | Y47: 1000 | AA47: 1000 | AB47: =+Y47+Z47 -> 1000 | AC47: =+X47*12+AB47 -> 34066.41455 | AD47: =+S47*AC47 -> 374730.56 | AE47: =+C47-S47 -> 0 | AF47: =+AD47-R47 -> 13200 | AG47: 11 | AH47: 374730.56
B48: Servidor Profesional F | C48: 4 | D48: 1784.0475 | E48: 0 | F48: 0 | G48: 0 | H48: 0 | I48: 0 | J48: 0 | K48: 98.25 | L48: =SUM(D48:K48) -> 1882.2975 | M48: 1000 | N48: 1000 | P48: =+N48+O48 -> 1000 | Q48: =+L48*12+P48 -> 23587.57 | R48: =+C48*Q48 -> 94350.28 | S48: 3 | T48: 2490 | U48: 0 | W48: 98.25 | X48: =SUM(T48:W48) -> 2588.25 | Y48: 1000 | AA48: 1000 | AB48: =+Y48+Z48 -> 1000 | AC48: =+X48*12+AB48 -> 32059 | AD48: =+S48*AC48 -> 96177 | AE48: =+C48-S48 -> 1 | AF48: =+AD48-R48 -> 1826.72 | AG48: 3 | AH48: 96177
B49: Tecnicos | C49: =SUM(C50:C55) -> 1711 | D49: =SUM(D50:D55) -> 13372.22355 | E49: 0 | F49: 0 | G49: 0 | H49: 0 | I49: 0 | J49: 0 | K49: 1616.954821 | L49: 14989.17837 | M49: 6000 | N49: 6000 | O49: 0 | P49: 6000 | Q49: 185870.1404 | R49: 53713117.13 | S49: 1888 | T49: 14371.22355 | U49: 0 | V49: 0 | W49: 1616.954821 | X49: 15988.17837 | Y49: 6000 | Z49: =SUM(Z50:Z55) -> 0 | AA49: =SUM(AA50:AA55) -> 6000 | AB49: =SUM(AB50:AB55) -> 6000 | AC49: =SUM(AC50:AC55) -> 197858.1404 | AD49: =SUM(AD50:AD55) -> 63473018.49 | AE49: -177 | AF49: 9759901.352 | AG49: =SUM(AG50:AG55) -> 1888 | AH49: =SUM(AH50:AH55) -> 63473018.49
B50: Servidor Tecnico A | C50: 100 | D50: 2210.787885 | E50: 0 | F50: 0 | G50: 0 | H50: 0 | I50: 0 | J50: 0 | K50: 270.2280769 | L50: =SUM(D50:K50) -> 2481.015962 | M50: 1000 | N50: 1000 | P50: =+N50+O50 -> 1000 | Q50: =+L50*12+P50 -> 30772.19154 | R50: =+C50*Q50 -> 3077219.154 | S50: 99 | T50: 2390.787885 | U50: 0 | V50: 0 | W50: 270.2280769 | X50: =SUM(T50:W50) -> 2661.015962 | Y50: 1000 | AA50: 1000 | AB50: =+Y50+Z50 -> 1000 | AC50: =+X50*12+AB50 -> 32932.19154 | AD50: =+S50*AC50 -> 3260286.962 | AE50: =+C50-S50 -> 1 | AF50: =+AD50-R50 -> 183067.8085 | AG50: =+S50 -> 99 | AH50: =+AD50 -> 3260286.962
B51: Servidor Tecnico B | C51: 328 | D51: 2186.062607 | E51: 0 | F51: 0 | G51: 0 | H51: 0 | I51: 0 | J51: 0 | K51: 250.3182808 | L51: 2436.380888 | M51: 1000 | N51: 1000 | P51: 1000 | Q51: 30236.57066 | R51: 9917595.176 | S51: 325 | T51: 2486.062607 | U51: 0 | V51: 0 | W51: 250.3182808 | X51: 2736.380888 | Y51: 1000 | AA51: 1000 | AB51: 1000 | AC51: 33836.57066 | AD51: 10996885.46 | AE51: 3 | AF51: 1079290.288 | AG51: 325 | AH51: 10996885.46
B52: Servidor Tecnico C | C52: 714 | D52: 2268.670886 | E52: 0 | F52: 0 | G52: 0 | H52: 0 | I52: 0 | J52: 0 | K52: 280.6436006 | L52: 2549.314487 | M52: 1000 | N52: 1000 | P52: 1000 | Q52: 31591.77384 | R52: 22556526.52 | S52: 676 | T52: 2468.670886 | U52: 0 | V52: 0 | W52: 280.6436006 | X52: 2749.314487 | Y52: 1000 | AA52: 1000 | AB52: 1000 | AC52: 33991.77384 | AD52: 22978439.12 | AE52: 38 | AF52: 421912.5941 | AG52: 676 | AH52: 22978439.12
B53: Servidor Tecnico D | C53: 43 | D53: 2216.362326 | E53: 0 | F53: 0 | G53: 0 | H53: 0 | I53: 0 | J53: 0 | K53: 244.1097674 | L53: 2460.472093 | M53: 1000 | N53: 1000 | P53: 1000 | Q53: 30525.66512 | R53: 1312603.6 | S53: 42 | T53: 2361.362326 | U53: 0 | V53: 0 | W53: 244.1097674 | X53: 2605.472093 | Y53: 1000 | AA53: 1000 | AB53: 1000 | AC53: 32265.66512 | AD53: 1355157.935 | AE53: 1 | AF53: 42554.33488 | AG53: 42 | AH53: 1355157.935
B54: Servidor Tecnico E | C54: 106 | D54: 2135.28 | E54: 0 | F54: 0 | G54: 0 | H54: 0 | I54: 0 | J54: 0 | K54: 303.4890566 | L54: 2438.769057 | M54: 1000 | N54: 1000 | P54: 1000 | Q54: 30265.22868 | R54: 3208114.24 | S54: 106 | T54: 2205.28 | U54: 0 | V54: 0 | W54: 303.4890566 | X54: 2508.769057 | Y54: 1000 | AA54: 1000 | AB54: 1000 | AC54: 31105.22868 | AD54: 3297154.24 | AE54: 0 | AF54: 89040 | AG54: 106 | AH54: 3297154.24
B55: Servidor Tecnico F | C55: 420 | D55: 2355.059843 | E55: 0 | F55: 0 | G55: 0 | H55: 0 | I55: 0 | J55: 0 | K55: 268.1660384 | L55: 2623.225881 | M55: 1000 | N55: 1000 | P55: 1000 | Q55: 32478.71058 | R55: 13641058.44 | S55: 640 | T55: 2459.059843 | U55: 0 | V55: 0 | W55: 268.1660384 | X55: 2727.225881 | Y55: 1000 | AA55: 1000 | AB55: 1000 | AC55: 33726.71058 | AD55: 21585094.77 | AE55: -220 | AF55: 7944036.327 | AG55: 640 | AH55: 21585094.77
B56: Auxiliares | C56: =SUM(C57:C61) -> 374 | D56: =SUM(D57:D61) -> 10501.62919 | E56: 0 | F56: 0 | G56: 0 | H56: 0 | I56: 0 | J56: 0 | K56: 1423.94646 | L56: 11925.57565 | M56: 5000 | N56: 5000 | O56: 0 | P56: 5000 | Q56: 148106.9078 | R56: 10907375.54 | S56: 344 | T56: 11138.33919 | U56: 0 | V56: 0 | W56: 1423.94646 | X56: 12562.28565 | Y56: 5000 | Z56: =SUM(Z57:Z61) -> 0 | AA56: =SUM(AA57:AA61) -> 5000 | AB56: =SUM(AB57:AB61) -> 5000 | AC56: =SUM(AC57:AC61) -> 155747.4278 | AD56: =SUM(AD57:AD61) -> 10685567.61 | AE56: 30 | AF56: -221807.9331 | AG56: =SUM(AG57:AG61) -> 344 | AH56: =SUM(AH57:AH61) -> 10685567.61
B57: Servidor Auxiliar A | C57: 2 | D57: 2143.75 | E57: 0 | F57: 0 | G57: 0 | H57: 0 | I57: 0 | J57: 0 | K57: 335.34 | L57: =SUM(D57:K57) -> 2479.09 | M57: 1000 | N57: 1000 | P57: =+N57+O57 -> 1000 | Q57: =+L57*12+P57 -> 30749.08 | R57: =+C57*Q57 -> 61498.16 | S57: 2 | T57: 2213.75 | U57: 0 | V57: 0 | W57: 335.34 | X57: =SUM(T57:W57) -> 2549.09 | Y57: 1000 | AA57: 1000 | AB57: =+Y57+Z57 -> 1000 | AC57: =+X57*12+AB57 -> 31589.08 | AD57: =+S57*AC57 -> 63178.16 | AE57: =+C57-S57 -> 0 | AF57: =+AD57-R57 -> 1680 | AG57: =+S57 -> 2 | AH57: =+AD57 -> 63178.16
B58: Servidor Auxiliar B | C58: 122 | D58: 2114.207358 | E58: 0 | F58: 0 | G58: 0 | H58: 0 | I58: 0 | J58: 0 | K58: 268.5260377 | L58: =SUM(D58:K58) -> 2382.733396 | M58: 1000 | N58: 1000 | P58: =+N58+O58 -> 1000 | Q58: =+L58*12+P58 -> 29592.80075 | R58: =+C58*Q58 -> 3610321.692 | S58: 101 | T58: 2324.207358 | U58: 0 | V58: 0 | W58: 268.5260377 | X58: =SUM(T58:W58) -> 2592.733396 | Y58: 1000 | AA58: 1000 | AB58: =+Y58+Z58 -> 1000 | AC58: =+X58*12+AB58 -> 32112.80075 | AD58: =+S58*AC58 -> 3243392.876 | AE58: =+C58-S58 -> 21 | AF58: =+AD58-R58 -> -366928.8158 | AG58: 101 | AH58: 3243392.876
B59: Servidor Auxiliar C | C59: 123 | D59: 2080.930984 | E59: 0 | F59: 0 | G59: 0 | H59: 0 | I59: 0 | J59: 0 | K59: 286.0114754 | L59: =SUM(D59:K59) -> 2366.942459 | M59: 1000 | N59: 1000 | P59: =+N59+O59 -> 1000 | Q59: =+L59*12+P59 -> 29403.30951 | R59: =+C59*Q59 -> 3616607.07 | S59: 118 | T59: 2230.930984 | U59: 0 | V59: 0 | W59: 286.0114754 | X59: =SUM(T59:W59) -> 2516.942459 | Y59: 1000 | AA59: 1000 | AB59: =+Y59+Z59 -> 1000 | AC59: =+X59*12+AB59 -> 31203.30951 | AD59: =+S59*AC59 -> 3681990.522 | AE59: =+C59-S59 -> 5 | AF59: =+AD59-R59 -> 65383.45246 | AG59: 118 | AH59: 3681990.522
B60: Servidor Auxiliar D | C60: 118 | D60: 2063.450847 | E60: 0 | F60: 0 | G60: 0 | H60: 0 | I60: 0 | J60: 0 | K60: 218.424661 | L60: =SUM(D60:K60) -> 2281.875508 | M60: 1000 | N60: 1000 | P60: =+N60+O60 -> 1000 | Q60: =+L60*12+P60 -> 28382.5061 | R60: =+C60*Q60 -> 3349135.72 | S60: 115 | T60: 2198.450847 | U60: 0 | V60: 0 | W60: 218.424661 | X60: =SUM(T60:W60) -> 2416.875508 | Y60: 1000 | AA60: 1000 | AB60: =+Y60+Z60 -> 1000 | AC60: =+X60*12+AB60 -> 30002.5061 | AD60: =+S60*AC60 -> 3450288.202 | AE60: =+C60-S60 -> 3 | AF60: =+AD60-R60 -> 101152.4817 | AG60: 115 | AH60: 3450288.202
B61: Servidor Auxiliar F | C61: 9 | D61: 2099.29 | E61: 0 | F61: 0 | G61: 0 | H61: 0 | I61: 0 | J61: 0 | K61: 315.6442857 | L61: =SUM(D61:K61) -> 2414.934286 | M61: 1000 | N61: 1000 | P61: =+N61+O61 -> 1000 | Q61: =+L61*12+P61 -> 29979.21143 | R61: =+C61*Q61 -> 269812.9029 | S61: 8 | T61: 2171 | U61: 0 | V61: 0 | W61: 315.6442857 | X61: =SUM(T61:W61) -> 2486.644286 | Y61: 1000 | AA61: 1000 | AB61: =+Y61+Z61 -> 1000 | AC61: =+X61*12+AB61 -> 30839.73143 | AD61: =+S61*AC61 -> 246717.8514 | AE61: =+C61-S61 -> 1 | AF61: =+AD61-R61 -> -23095.05143 | AG61: 8 | AH61: 246717.8514
B62: LEY DE PROFESORADO | C62: =+C63+C68+C72+C91 -> 23474 | D62: =+D63+D68+D72+D91 -> 82535.93309 | E62: =+E63+E68+E72+E91 -> 0 | F62: 0 | G62: 0 | H62: 0 | I62: 0 | J62: 0 | K62: 0 | L62: 82535.93309 | M62: 26000 | N62: 26000 | O62: 0 | P62: 26000 | Q62: 1016431.197 | R62: =+R63+R68+R72+R91 -> 720534992.1 | S62: =+S63+S68+S72+S91+S93 -> 24726 | T62: =+T63+T68+T72+T91+T93 -> 88733.16541 | U62: =+U63+U68+U72+U91+U93 -> 0 | V62: 0 | W62: 0 | X62: 88733.16541 | Y62: 26000 | Z62: 0 | AA62: 26000 | AB62: 26000 | AC62: 1090797.985 | AD62: 788959867.6 | AE62: -1252 | AF62: 68424875.42 | AG62: 21973 | AH62: 799022848.3
B63: Docente de Instituto de Educación Superior | C63: =SUM(C64:C67) -> 0 | D63: =SUM(D64:D67) -> 13516.61945 | E63: =SUM(E64:E67) -> 0 | F63: 0 | G63: 0 | H63: 0 | I63: 0 | J63: 0 | K63: 0 | L63: 13516.61945 | M63: 4000 | N63: 4000 | O63: 0 | P63: 4000 | Q63: 166199.4334 | R63: 0 | S63: 675 | T63: 13390.21778 | U63: 0 | V63: 0 | W63: 0 | X63: 13390.21778 | Y63: 4000 | Z63: 0 | AA63: 4000 | AB63: 4000 | AC63: 164682.6133 | AD63: 26627588.27 | AE63: -675 | AF63: 26627588.27 | AG63: =SUM(AG64:AG67) -> 675 | AH63: =SUM(AH64:AH67) -> 26627588.27
B64: Profesor I-30 con Título Pedagógico | D64: 2847.33 | E64: 0 | F64: 0 | G64: 0 | H64: 0 | I64: 0 | J64: 0 | K64: 0 | L64: =SUM(D64:K64) -> 2847.33 | M64: 1000 | N64: 1000 | P64: =+N64+O64 -> 1000 | Q64: =+L64*12+P64 -> 35167.96 | R64: =+C64*Q64 -> 0 | S64: 1 | T64: 2847.33 | U64: 0 | V64: 0 | W64: 0 | X64: =SUM(T64:W64) -> 2847.33 | Y64: 1000 | AA64: 1000 | AB64: =+Y64+Z64 -> 1000 | AC64: =+X64*12+AB64 -> 35167.96 | AD64: =+S64*AC64 -> 35167.96 | AE64: =+C64-S64 -> -1 | AF64: =+AD64-R64 -> 35167.96 | AG64: =+S64 -> 1 | AH64: =+AD64 -> 35167.96
B65: Profesor I-40 con Título Pedagógico | D65: 3076.401672 | E65: 0 | F65: 0 | G65: 0 | H65: 0 | I65: 0 | J65: 0 | K65: 0 | L65: =SUM(D65:K65) -> 3076.401672 | M65: 1000 | N65: 1000 | P65: 1000 | Q65: =+L65*12+P65 -> 37916.82007 | R65: =+C65*Q65 -> 0 | S65: 413 | T65: 2950 | U65: 0 | V65: 0 | W65: 0 | X65: =SUM(T65:W65) -> 2950 | Y65: 1000 | AA65: 1000 | AB65: =+Y65+Z65 -> 1000 | AC65: =+X65*12+AB65 -> 36400 | AD65: =+S65*AC65 -> 15033200 | AE65: =+C65-S65 -> -413 | AF65: =+AD65-R65 -> 15033200 | AG65: 413 | AH65: 15033200
B66: Profesor II-40 con Título Pedagógico | D66: 3254.097778 | E66: 0 | F66: 0 | G66: 0 | H66: 0 | I66: 0 | J66: 0 | K66: 0 | L66: =SUM(D66:K66) -> 3254.097778 | M66: 1000 | N66: 1000 | P66: =+N66+O66 -> 1000 | Q66: =+L66*12+P66 -> 40049.17333 | R66: =+C66*Q66 -> 0 | S66: 176 | T66: 3254.097778 | U66: 0 | V66: 0 | W66: 0 | X66: =SUM(T66:W66) -> 3254.097778 | Y66: 1000 | AA66: 1000 | AB66: =+Y66+Z66 -> 1000 | AC66: =+X66*12+AB66 -> 40049.17333 | AD66: =+S66*AC66 -> 7048654.507 | AE66: =+C66-S66 -> -176 | AF66: =+AD66-R66 -> 7048654.507 | AG66: 176 | AH66: 7048654.507
B67: Profesor III-40 con Título Pedagógico | C67: 0 | D67: 4338.79 | E67: 0 | F67: 0 | G67: 0 | H67: 0 | I67: 0 | J67: 0 | K67: 0 | L67: =SUM(D67:K67) -> 4338.79 | M67: 1000 | N67: 1000 | P67: =+N67+O67 -> 1000 | Q67: =+L67*12+P67 -> 53065.48 | R67: =+C67*Q67 -> 0 | S67: 85 | T67: 4338.79 | U67: 0 | V67: 0 | W67: 0 | X67: =SUM(T67:W67) -> 4338.79 | Y67: 1000 | AA67: 1000 | AB67: =+Y67+Z67 -> 1000 | AC67: =+X67*12+AB67 -> 53065.48 | AD67: =+S67*AC67 -> 4510565.8 | AE67: =+C67-S67 -> -85 | AF67: =+AD67-R67 -> 4510565.8 | AG67: 85 | AH67: 4510565.8
B68: Profesor contratado | C68: =SUM(C69:C71) -> 9747 | D68: =SUM(D69:D71) -> 7028.722434 | E68: =SUM(E69:E71) -> 0 | F68: 0 | G68: 0 | H68: 0 | I68: 0 | J68: 0 | K68: 0 | L68: 7028.722434 | M68: 3000 | N68: 3000 | O68: 0 | P68: 3000 | Q68: 87344.66921 | R68: 267361226.4 | S68: 9386 | T68: 7004.037513 | U68: 0 | V68: 0 | W68: 0 | X68: 7004.037513 | Y68: 3000 | Z68: 0 | AA68: 3000 | AB68: 3000 | AC68: 87048.45016 | AD68: 263271977.9 | AE68: 361 | AF68: -4089248.468 | AG68: =SUM(AG69:AG71) -> 9386 | AH68: =SUM(AH69:AH71) -> 263271977.9
B69: Profesor G-30 Título Pedagógico | C69: 8249 | D69: 2245.912434 | E69: 0 | F69: 0 | G69: 0 | H69: 0 | I69: 0 | J69: 0 | K69: 0 | L69: =SUM(D69:K69) -> 2245.912434 | M69: 1000 | N69: 1000 | P69: =+N69+O69 -> 1000 | Q69: =+L69*12+P69 -> 27950.94921 | R69: =+C69*Q69 -> 230567380 | S69: 7890 | T69: 2352.16 | U69: 0 | V69: 0 | W69: 0 | X69: =SUM(T69:W69) -> 2352.16 | Y69: 1000 | AA69: 1000 | AB69: =+Y69+Z69 -> 1000 | AC69: =+X69*12+AB69 -> 29225.92 | AD69: =+S69*AC69 -> 230592508.8 | AE69: =+C69-S69 -> 359 | AF69: =+AD69-R69 -> 25128.7527 | AG69: =+S69 -> 7890 | AH69: =+AD69 -> 230592508.8
B70: Profesor G-40 Título Pedagógico | C70: 6 | D70: 2822.81 | E70: 0 | F70: 0 | G70: 0 | H70: 0 | I70: 0 | J70: 0 | K70: 0 | L70: =SUM(D70:K70) -> 2822.81 | M70: 1000 | N70: 1000 | P70: =+N70+O70 -> 1000 | Q70: =+L70*12+P70 -> 34873.72 | R70: =+C70*Q70 -> 209242.32 | S70: 10 | T70: 2922.81 | U70: 0 | V70: 0 | W70: 0 | X70: =SUM(T70:W70) -> 2922.81 | Y70: 1000 | AA70: 1000 | AB70: =+Y70+Z70 -> 1000 | AC70: =+X70*12+AB70 -> 36073.72 | AD70: =+S70*AC70 -> 360737.2 | AE70: =+C70-S70 -> -4 | AF70: =+AD70-R70 -> 151494.88 | AG70: 10 | AH70: 360737.2
B71: Profesor por horas | C71: 1492 | D71: 1960 | E71: 0 | F71: 0 | G71: 0 | H71: 0 | I71: 0 | J71: 0 | K71: 0 | L71: =SUM(D71:K71) -> 1960 | M71: 1000 | N71: 1000 | P71: =+N71+O71 -> 1000 | Q71: =+L71*12+P71 -> 24520 | R71: =+C71*Q71+764 -> 36584604 | S71: 1486 | T71: 1729.067513 | U71: 0 | V71: 0 | W71: 0 | X71: =SUM(T71:W71) -> 1729.067513 | Y71: 1000 | AA71: 1000 | AB71: =+Y71+Z71 -> 1000 | AC71: =+X71*12+AB71 -> 21748.81016 | AD71: =+S71*AC71 -> 32318731.9 | AE71: =+C71-S71 -> 6 | AF71: =+AD71-R71 -> -4265872.101 | AG71: 1486 | AH71: 32318731.9
B72: Reforma Magisterial | C72: =SUM(C73:C90) -> 13708 | D72: =SUM(D73:D90) -> 60596.5912 | E72: =SUM(E73:E90) -> 0 | F72: 0 | G72: 0 | H72: 0 | I72: 0 | J72: 0 | K72: 0 | L72: 60596.5912 | M72: 18000 | N72: 18000 | O72: 0 | P72: 18000 | Q72: 745159.0945 | R72: 452836933.8 | S72: 13424 | T72: 64518.91012 | U72: 0 | V72: 0 | W72: 0 | X72: 64518.91012 | Y72: 18000 | Z72: 0 | AA72: 18000 | AB72: 18000 | AC72: 792226.9214 | AD72: 478165541.4 | AE72: 284 | AF72: 25328607.62 | AG72: =SUM(AG73:AG90) -> 10671 | AH72: =SUM(AH73:AH90) -> 487309341.1
B73: Profesor I-30 con Título Pedagógico | C73: 3305 | D73: 2000.1 | E73: 0 | F73: 0 | G73: 0 | H73: 0 | I73: 0 | J73: 0 | K73: 0 | L73: =SUM(D73:K73) -> 2000.1 | M73: 1000 | N73: 1000 | P73: =+N73+O73 -> 1000 | Q73: =+L73*12+P73 -> 25001.2 | R73: =+C73*Q73 -> 82628966 | S73: 2753 | T73: 2388.841588 | U73: 0 | V73: 0 | W73: 0 | X73: =SUM(T73:W73) -> 2388.841588 | Y73: 1000 | AA73: 1000 | AB73: =+Y73+Z73 -> 1000 | AC73: =+X73*12+AB73 -> 29666.09906 | AD73: =+S73*AC73-1075.41 -> 81669695.3 | AE73: =+C73-S73 -> 552 | AF73: =+AD73-R73 -> -959270.6955 | AG73: 3102 | AH73: 90813495
B74: Profesor I-32 con Titulo pedagógico | D74: 2308.450705 | E74: 0 | F74: 0 | G74: 0 | H74: 0 | I74: 0 | J74: 0 | K74: 0 | L74: 2308.450705 | M74: 1000 | N74: 1000 | P74: 1000 | Q74: 28701.40846 | R74: 0 | S74: 224 | T74: 2520.450705 | U74: 0 | V74: 0 | W74: 0 | X74: 2520.450705 | Y74: 1000 | AA74: 1000 | AB74: 1000 | AC74: 31245.40846 | AD74: =+S74*AC74 -> 6998971.495 | AE74: -224 | AF74: 6998971.495 | AG74: =+S74 -> 224 | AH74: =+AD74 -> 6998971.495
B75: Profesor I-40 con Título Pedagógico | C75: 128 | D75: 3200 | E75: 0 | F75: 0 | G75: 0 | H75: 0 | I75: 0 | J75: 0 | K75: 0 | L75: 3200 | M75: 1000 | N75: 1000 | P75: 1000 | Q75: 39400 | R75: 5043200 | S75: 90 | T75: 3643.879481 | U75: 0 | V75: 0 | W75: 0 | X75: 3643.879481 | Y75: 1000 | AA75: 1000 | AB75: 1000 | AC75: 44726.55378 | AD75: =+S75*AC75 -> 4025389.84 | AE75: 38 | AF75: -1017810.16 | AG75: 90 | AH75: 4025389.84
B76: Profesor II-30 con Título Pedagógico | C76: 4796 | D76: 2461.065788 | E76: 0 | F76: 0 | G76: 0 | H76: 0 | I76: 0 | J76: 0 | K76: 0 | L76: 2461.065788 | M76: 1000 | N76: 1000 | P76: 1000 | Q76: 30532.78946 | R76: 146435258.2 | S76: 4086 | T76: 2650.065788 | U76: 0 | V76: 0 | W76: 0 | X76: 2650.065788 | Y76: 1000 | AA76: 1000 | AB76: 1000 | AC76: 32800.78946 | AD76: =+S76*AC76-665406 -> 133358619.7 | AE76: 710 | AF76: -13076638.51 | AG76: 4086 | AH76: 133358619.7
B77: Profesor II-32 con Titulo pedagógico | D77: 2544.031068 | E77: 0 | F77: 0 | G77: 0 | H77: 0 | I77: 0 | J77: 0 | K77: 0 | L77: 2544.031068 | M77: 1000 | N77: 1000 | P77: 1000 | Q77: 31528.37281 | R77: 0 | S77: 216 | T77: 2674.031068 | U77: 0 | V77: 0 | W77: 0 | X77: 2674.031068 | Y77: 1000 | AA77: 1000 | AB77: 1000 | AC77: 33088.37281 | AD77: =+S77*AC77 -> 7147088.527 | AE77: -216 | AF77: 7147088.527 | AG77: 216 | AH77: 7147088.527
B78: Profesor II-40 con Título Pedagógico | C78: 541 | D78: 3493.726912 | E78: 0 | F78: 0 | G78: 0 | H78: 0 | I78: 0 | J78: 0 | K78: 0 | L78: 3493.726912 | M78: 1000 | N78: 1000 | P78: 1000 | Q78: 42924.72294 | R78: 23222275.11 | S78: 266 | T78: 3693.726912 | U78: 0 | V78: 0 | W78: 0 | X78: 3693.726912 | Y78: 1000 | AA78: 1000 | AB78: 1000 | AC78: 45324.72294 | AD78: 12056376.3 | AE78: 275 | AF78: -11165898.81 | AG78: 266 | AH78: 12056376.3
B79: Profesor III-30 con Título Pedagógico | C79: 2207 | D79: 2612.289128 | E79: 0 | F79: 0 | G79: 0 | H79: 0 | I79: 0 | J79: 0 | K79: 0 | L79: 2612.289128 | M79: 1000 | N79: 1000 | P79: 1000 | Q79: 32347.46953 | R79: 71390865.25 | S79: 2930 | T79: 2775.289128 | U79: 0 | V79: 0 | W79: 0 | X79: 2775.289128 | Y79: 1000 | AA79: 1000 | AB79: 1000 | AC79: 34303.46953 | AD79: 100509165.7 | AE79: -723 | AF79: 29118300.47 | AG79: 2930 | AH79: 100509165.7
B80: Profesor III-32 con Titulo pedagógico | D80: 2746.39 | E80: 0 | F80: 0 | G80: 0 | H80: 0 | I80: 0 | J80: 0 | K80: 0 | L80: 2746.39 | M80: 1000 | N80: 1000 | P80: 1000 | Q80: 33956.68 | R80: 0 | S80: 164 | T80: 2888.39 | U80: 0 | V80: 0 | W80: 0 | X80: 2888.39 | Y80: 1000 | AA80: 1000 | AB80: 1000 | AC80: 35660.68 | AD80: 5848351.52 | AE80: -164 | AF80: 5848351.52 | AG80: 164 | AH80: 5848351.52
B81: Profesor III-40 con Título Pedagógico | C81: 532 | D81: 3821.62005 | E81: 0 | F81: 0 | G81: 0 | H81: 0 | I81: 0 | J81: 0 | K81: 0 | L81: 3821.62005 | M81: 1000 | N81: 1000 | P81: 1000 | Q81: 46859.4406 | R81: 24929222.4 | S81: 386 | T81: 3998.62005 | U81: 0 | V81: 0 | W81: 0 | X81: 3998.62005 | Y81: 1000 | AA81: 1000 | AB81: 1000 | AC81: 48983.4406 | AD81: 18907608.07 | AE81: 146 | AF81: -6021614.327 | AG81: 386 | AH81: 18907608.07
B82: Profesor IV-30 con Título Pedagógico | C82: 876 | D82: 2805.126228 | E82: 0 | F82: 0 | G82: 0 | H82: 0 | I82: 0 | J82: 0 | K82: 0 | L82: 2805.126228 | M82: 1000 | N82: 1000 | P82: 1000 | Q82: 34661.51473 | R82: 30363486.9 | S82: 862 | T82: 2975.126228 | U82: 0 | V82: 0 | W82: 0 | X82: 2975.126228 | Y82: 1000 | AA82: 1000 | AB82: 1000 | AC82: 36701.51473 | AD82: 31636705.7 | AE82: 14 | AF82: 1273218.794 | AG82: 862 | AH82: 31636705.7
B83: Profesor IV-32 con Titulo pedagógico | D83: 3025.73 | E83: 0 | F83: 0 | G83: 0 | H83: 0 | I83: 0 | J83: 0 | K83: 0 | L83: 3025.73 | M83: 1000 | N83: 1000 | P83: 1000 | Q83: 37308.76 | R83: 0 | S83: 51 | T83: 3205.73 | U83: 0 | V83: 0 | W83: 0 | X83: 3205.73 | Y83: 1000 | AA83: 1000 | AB83: 1000 | AC83: 39468.76 | AD83: 2012906.76 | AE83: -51 | AF83: 2012906.76 | AG83: 51 | AH83: 2012906.76
B84: Profesor IV-40 con Título Pedagógico | C84: 527 | D84: 4326.768959 | E84: 0 | F84: 0 | G84: 0 | H84: 0 | I84: 0 | J84: 0 | K84: 0 | L84: 4326.768959 | M84: 1000 | N84: 1000 | P84: 1000 | Q84: 52921.22751 | R84: 27889486.9 | S84: 518 | T84: 4526.768959 | U84: 0 | V84: 0 | W84: 0 | X84: 4526.768959 | Y84: 1000 | AA84: 1000 | AB84: 1000 | AC84: 55321.22751 | AD84: 28656395.85 | AE84: 9 | AF84: 766908.9524 | AG84: 518 | AH84: 28656395.85
B85: Profesor V-30 con Título Pedagógico | C85: 394 | D85: 3229.380317 | E85: 0 | F85: 0 | G85: 0 | H85: 0 | I85: 0 | J85: 0 | K85: 0 | L85: 3229.380317 | M85: 1000 | N85: 1000 | P85: 1000 | Q85: 39752.5638 | R85: 15662510.14 | S85: 392 | T85: 3389.380317 | U85: 0 | V85: 0 | W85: 0 | X85: 3389.380317 | Y85: 1000 | AA85: 1000 | AB85: 1000 | AC85: 41672.5638 | AD85: 16335645.01 | AE85: 2 | AF85: 673134.8724 | AG85: 392 | AH85: 16335645.01
B86: Profesor V-32 con Titulo pedagógico | D86: 3443.37 | E86: 0 | F86: 0 | G86: 0 | H86: 0 | I86: 0 | J86: 0 | K86: 0 | L86: 3443.37 | M86: 1000 | N86: 1000 | P86: 1000 | Q86: 42320.44 | R86: 0 | S86: 22 | T86: 3643.37 | U86: 0 | V86: 0 | W86: 0 | X86: 3643.37 | Y86: 1000 | AA86: 1000 | AB86: 1000 | AC86: 44720.44 | AD86: 983849.68 | AE86: -22 | AF86: 983849.68 | AG86: 22 | AH86: 983849.68
B87: Profesor V-40 con Título Pedagógico | C87: 211 | D87: 5044.770748 | E87: 0 | F87: 0 | G87: 0 | H87: 0 | I87: 0 | J87: 0 | K87: 0 | L87: 5044.770748 | M87: 1000 | N87: 1000 | P87: 1000 | Q87: 61537.24897 | R87: 12984359.53 | S87: 243 | T87: 5144.770748 | U87: 0 | V87: 0 | W87: 0 | X87: 5144.770748 | Y87: 1000 | AA87: 1000 | AB87: 1000 | AC87: 62737.24897 | AD87: 15245151.5 | AE87: -32 | AF87: 2260791.967 | AG87: 243 | AH87: 15245151.5
B88: Profesor VI-30 con Título Pedagógico | C88: 50 | D88: 3747.253433 | E88: 0 | F88: 0 | G88: 0 | H88: 0 | I88: 0 | J88: 0 | K88: 0 | L88: 3747.253433 | M88: 1000 | N88: 1000 | P88: 1000 | Q88: 45967.04119 | R88: 2298352.06 | S88: 138 | T88: 3957.253433 | U88: 0 | V88: 0 | W88: 0 | X88: 3957.253433 | Y88: 1000 | AA88: 1000 | AB88: 1000 | AC88: 48487.04119 | AD88: 6691211.685 | AE88: -88 | AF88: 4392859.625 | AG88: 138 | AH88: 6691211.685
B89: Profesor VI-32 con Titulo pedagógico | D89: 3966.215714 | E89: 0 | F89: 0 | G89: 0 | H89: 0 | I89: 0 | J89: 0 | K89: 0 | L89: 3966.215714 | M89: 1000 | N89: 1000 | P89: 1000 | Q89: 48594.58857 | R89: 0 | S89: 8 | T89: 4228.215714 | U89: 0 | V89: 0 | W89: 0 | X89: 4228.215714 | Y89: 1000 | AA89: 1000 | AB89: 1000 | AC89: 51738.58857 | AD89: 413908.7086 | AE89: -8 | AF89: 413908.7086 | AG89: 8 | AH89: 413908.7086
B90: Profesor VI-40 con Título Pedagógico | C90: 141 | D90: 5820.302157 | E90: 0 | F90: 0 | G90: 0 | H90: 0 | I90: 0 | J90: 0 | K90: 0 | L90: 5820.302157 | M90: 1000 | N90: 1000 | P90: 1000 | Q90: 70843.62588 | R90: 9988951.249 | S90: 75 | T90: 6215 | U90: 0 | V90: 0 | W90: 0 | X90: 6215 | Y90: 1000 | AA90: 1000 | AB90: 1000 | AC90: 75580 | AD90: 5668500 | AE90: 66 | AF90: -4320451.249 | AG90: 75 | AH90: 5668500
B91: Auxiliar de Educación | C91: =SUM(C92) -> 19 | D91: =SUM(D92) -> 1394 | E91: 0 | F91: 0 | G91: 0 | H91: 0 | I91: 0 | J91: 0 | K91: 0 | L91: 1394 | M91: 1000 | N91: 1000 | O91: 0 | P91: 1000 | Q91: 17728 | R91: 336832 | S91: 1239 | T91: 1320 | U91: 0 | V91: 0 | W91: 0 | X91: 1320 | Y91: 1000 | Z91: 0 | AA91: 1000 | AB91: 1000 | AC91: 16840 | AD91: 20864760 | AE91: -1220 | AF91: 20527928 | AG91: =SUM(AG92) -> 1239 | AH91: =SUM(AH92) -> 21783941
B92: Profesor E-30 con Est.Secund.Completa | C92: 19 | D92: 1394 | E92: 0 | F92: 0 | G92: 0 | H92: 0 | I92: 0 | J92: 0 | K92: 0 | L92: =SUM(D92:K92) -> 1394 | M92: 1000 | N92: 1000 | P92: =+N92+O92 -> 1000 | Q92: =+L92*12+P92 -> 17728 | R92: =+C92*Q92 -> 336832 | S92: 1239 | T92: 1320 | U92: 0 | V92: 0 | W92: 0 | X92: =SUM(T92:W92) -> 1320 | Y92: 1000 | AA92: 1000 | AB92: =+Y92+Z92 -> 1000 | AC92: =+X92*12+AB92 -> 16840 | AD92: =+S92*AC92 -> 20864760 | AE92: =+C92-S92 -> -1220 | AF92: =+AD92-R92 -> 20527928 | AG92: =+S92 -> 1239 | AH92: 21783941
B93: Palmas Magisterial | S93: =SUM(S94) -> 2 | T93: =SUM(T94) -> 2500 | U93: 0 | V93: 0 | W93: 0 | X93: 2500 | Y93: 0 | Z93: 0 | AA93: 0 | AB93: 0 | AC93: 30000 | AD93: 30000 | AE93: -2 | AF93: 30000 | AG93: 2 | AH93: 30000
B94: Palmas Magisterial | S94: 2 | T94: 2500 | U94: 0 | V94: 0 | W94: 0 | X94: =SUM(T94:W94) -> 2500 | AB94: =+Y94+Z94 -> 0 | AC94: =+X94*12+AB94 -> 30000 | AD94: =+AC94 -> 30000 | AE94: =+C94-S94 -> -2 | AF94: =+AD94-R94 -> 30000 | AG94: =+S94 -> 2 | AH94: =+AD94 -> 30000
B95: CARRERA MEDICA Y PROFESIONALES DE LA SALUD | C95: =+C96 -> 2557 | D95: =+D96 -> 141712.1852 | E95: 0 | F95: 0 | G95: 0 | H95: 0 | I95: 0 | J95: 0 | K95: 18811.76414 | L95: 160523.9493 | M95: 41000 | N95: 41000 | O95: 0 | P95: 41000 | Q95: 1967287.392 | R95: 144589776 | S95: 2888 | T95: 169239.6007 | U95: 0 | V95: 0 | W95: 18811.76414 | X95: 188051.3648 | Y95: 41000 | Z95: =+Z96 -> 0 | AA95: 41000 | AB95: =+AB96 -> 41000 | AC95: =+AC96 -> 2297616.378 | AD95: =+AD96 -> 188680929.3 | AE95: =+AE96 -> -331 | AF95: 44091153.35 | AG95: =+AG96 -> 2888 | AH95: 188680929.3
